Workbook

Sheet Main
A1: Daily Fantasy Baseball Lineup Optimizer | AA1: =IFERROR(VLOOKUP(C14,logins!A:C,3,FALSE),"") -> 1
G2: Road | H2: Home | I2: O/U | J2: Time | K2: Include? | M2: Instructions
G3: Tex | H3: Hou | I3: 8 | J3: 13:05:00 | K3: Yes
G4: Tam | H4: Tor | I4: 7.5 | J4: 13:05:00 | K4: Yes | M4: ** You must have Solver installed in Excel. You can do that by going to
G5: Pit | H5: ChC | I5: 7.5 | J5: 13:05:00 | K5: Yes | M5: File then Options Then Addins. For more info on how to do it, go to:
G6: Sfo | H6: Oak | I6: 8.5 | J6: 16:05:00 | K6: Yes | M6: http://optimizelineups.com/help-videos-2/
G7: Phi | H7: Was | I7: 7 | J7: 16:05:00 | K7: Yes
G8: ChW | H8: NYY | I8: 8.5 | J8: 16:05:00 | K8: Yes
G9: Bal | H9: Bos | I9: 7.5 | J9: 16:05:00 | K9: Yes | M9: 1. Always start off by hitting Refresh Today's Data. This will take 1-2 mins to pull in all of today's stats. Make sure you don't have the filters on, on the Batter or Pitcher page
G10: NYM | H10: Cin | I10: 7.5 | J10: 16:10:00 | K10: Yes | M10: 2. You can go to the Pitcher or Batters tab to see all of today's players with their stats
G11: Min | H11: Det | I11: 8.5 | J11: 19:05:00 | K11: Yes | M11: 3. You can click Refresh Today's Lineup later in the day to see which players are starting
G12: Cle | H12: Kan | I12: 8 | J12: 19:10:00 | K12: Yes | M12: 4. You can go to the Projections tab to edit how you want your projection algorithm to work
B13: Login Here | G13: Atl | H13: Fla | I13: 7.5 | J13: 19:10:00 | K13: Yes | M13: 5. Once your projections are good to go, press the button to Transfer ours or Your Projections to the Lineup pages
B14: User ID: | C14: trial4abc | G14: Mil | H14: StL | I14: 7.5 | J14: 19:15:00 | K14: Yes | M14: 6. Go to the Lineup pages and Optimize your lineups
B15: Password: | C15: trial4abc | G15: Los | H15: Col | I15: 11.5 | J15: 20:10:00 | K15: Yes | M15: Video to see how to use this:
B16: =IFERROR(IF(AA1=1,"Welcome","User/PW doesn't work. Go to"),"User/PW doesn't work. Go to") -> Welcome | G16: Ari | H16: Sdg | I16: 7.5 | J16: 20:40:00 | K16: Yes | M16: http://optimizelineups.com/help-videos-2/
B17: http://www.optimizelineups.com | G17: Sea | H17: Ana | I17: 7.5 | J17: 21:05:00 | K17: Yes | M17: Forum to share comments and get support on this software:
B19: Do you only want to include players in the Starting Lineup? | F19: No | M19: Contact me: ExcelbyJoe@Gmail.com

Sheet Pitcher
F1: Fanduel | J1: DraftKings | U1: Season | Z1: Last 14 days | AC1: Home or Away
A2: Pitchers | B2: Team | C2: Throws | D2: Gametime | E2: FD Salary | F2: FD PPG YTD | G2: FD PPG Last 15 days | H2: FD PPG Last Gm | I2: DK Salary | J2: DK PPG YTD | K2: DK PPG Last 15 days | L2: DK PPG Last Gm | M2: Opponent team | N2: Home Away | O2: Odds | P2: Over Under | Q2: Our FD Projection | R2: Our DK Projection | S2: Your FD Projection | T2: Your DK Projection | U2: IP | V2: GB/FB | W2: SO/9 | X2: ERA | Y2: WHIP | Z2: IP | AA2: ERA | AB2: WHIP | AC2: AB | AD2: BABIP home away | AE2: K/AB Home Away | AF2: OPS | AG2: Opponent K's Rank | AH2: Oppo Rank Runs scored Last 7 | AI2: Oppo OPS Last 7 | AJ2: Oppo Rank verse LHP or RHP | AK2: Oppo OPS vs LHP or RHP | AL2: Oppo Rank at Home/Away | AM2: Oppo OPS Home/Away | AN2: Stadium | AO2: Ballpark rank for runs scores | AP2: Runs ratio | AQ2: Ballpark rank for HR | AR2: HR Ratio | AS2: Woba Vs LHB | AT2: Woba Vs RHB | AU2: BABIP vs LHB | AV2: BABIP vs RHB | AW2: K/AB vs LHB | AX2: K/AB vs RHB | AY2: HR/AB vs LHB | AZ2: HR/AB vs RHB | BA2: 2014 Woba Vs LHB | BB2: 2014 Woba Vs RHB | BC2: Humidity | BD2: Forecast | BE2: Chance of rain at start | BF2: Chance of rain 1 hr in | BG2: Chance of rain 2 hrs in | BH2: Wind | BI2: Temp | BJ2: 2014 xFIP Vs LHB | BK2: 2014 xFIP Vs RHB | BL2: 2015 xFIP Vs LHB | BM2: 2015 xFIP Vs RHB | BN2: 2015 xFIP | BO2: 2015 SIERA | BP2: FG Name | BQ2: name2 | BR2: Our FD Projection $ per Pt | BS2: Our DK Projection $ per Pt | BT2: Your FD Projection $ per Pt | BU2: Your DK Projection $ per Pt
A3: David Price | B3: Tor | C3: L | D3: 13:05:00 | E3: 12300 | F3: 14.3 | G3: 17 | H3: 18 | I3: 12100 | J3: 24 | K3: 27.8 | L3: 31.9 | M3: Tam | N3: Home | O3: -188 | P3: 7.5 | Q3: 16.731 | R3: 28.08 | S3: 14.3 | T3: 24 | U3: 215.1 | V3: 0.71 | W3: 9.2 | X3: 2.34 | Y3: 1.068 | Z3: 14 | AA3: 0.64 | AB3: 0.857 | AC3: 397 | AD3: 0.3074204947 | AE3: 0.274559194 | AF3: 0.623 | AG3: 9 | AH3: 4 | AI3: 0.847 | AJ3: 30 | AK3: 0.646 | AL3: 18 | AM3: 0.74 | AN3: Rogers Centre (Toronto, Ontario) | AO3: 9 | AP3: 1.042 | AQ3: 3 | AR3: 1.31 | AS3: 0.289 | AT3: 0.269 | AU3: 0.3128834356 | AV3: 0.2819277108 | AW3: 0.2117117117 | AX3: 0.2670807453 | AY3: 0.01428571429 | AZ3: 0.02181208054 | BA3: 0.292 | BB3: 0.283 | BC3: 0.68 | BD3: Partly Cloudy | BE3: 0 | BF3: 0 | BG3: 0 | BH3: ENE 14 mph | BI3: 62° | BJ3: 2.86 | BK3: 2.72 | BL3: 3.16 | BM3: 3.28 | BN3: 3.25 | BO3: 3.29 | BP3: David Price | BQ3: David Price | BR3: 735 | BS3: 431 | BT3: 860 | BU3: 504
A4: Chris Archer | B4: Tam | C4: R | D4: 13:05:00 | E4: 12000 | F4: 13.4 | G4: 9.3 | H4: 7 | I4: 11000 | J4: 22.9 | K4: 15.4 | L4: 10.4 | M4: Tor | N4: Away | O4: 178 | P4: 7.5 | Q4: 9.38 | R4: 16.03 | S4: 13.4 | T4: 22.9 | U4: 203.1 | V4: 0.89 | W4: 10.9 | X4: 2.92 | Y4: 1.082 | Z4: 11 | AA4: 2.45 | AB4: 1.455 | AC4: 385 | AD4: 0.2781954887 | AE4: 0.2857142857 | AF4: 0.608 | AG4: 25 | AH4: 15 | AI4: 0.807 | AJ4: 1 | AK4: 0.782 | AL4: 1 | AM4: 0.749 | AN4: Rogers Centre (Toronto, Ontario) | AO4: 9 | AP4: 1.042 | AQ4: 3 | AR4: 1.31 | AS4: 0.258 | AT4: 0.264 | AU4: 0.2894736842 | AV4: 0.2894736842 | AW4: 0.3004587156 | AX4: 0.2961038961 | AY4: 0.02222222222 | AZ4: 0.02285714286 | BA4: 0.283 | BB4: 0.307 | BC4: 0.68 | BD4: Partly Cloudy | BE4: 0 | BF4: 0 | BG4: 0 | BH4: ENE 14 mph | BI4: 62° | BJ4: 3.89 | BK4: 3.44 | BL4: 2.74 | BM4: 2.97 | BN4: 2.84 | BO4: 2.88 | BP4: Chris Archer | BQ4: Chris Archer | BR4: 1279 | BS4: 686 | BT4: 896 | BU4: 480
A5: Felix Hernandez | B5: Sea | C5: R | D5: 21:05:00 | E5: 11000 | F5: 12.5 | G5: 10.3 | H5: 12.7 | I5: 11100 | J5: 19.9 | K5: 15.2 | L5: 17.4 | M5: Ana | N5: Away | O5: -112 | P5: 7.5 | Q5: 14.875 | R5: 23.681 | S5: 12.5 | T5: 19.9 | U5: 195.2 | V5: 1.34 | W5: 8.5 | X5: 3.54 | Y5: 1.165 | Z5: 12.2 | AA5: 4.26 | AB5: 1.263 | AC5: 292 | AD5: 0.3412322275 | AE5: 0.2534246575 | AF5: 0.764 | AG5: 23 | AH5: 17 | AI5: 0.709 | AJ5: 15 | AK5: 0.705 | AL5: 25 | AM5: 0.686 | AN5: Angel Stadium of Anaheim (Anaheim, California) | AO5: 26 | AP5: 0.919 | AQ5: 23 | AR5: 0.837 | AS5: 0.301 | AT5: 0.287 | AU5: 0.2614840989 | AV5: 0.3166666667 | AW5: 0.1923076923 | AX5: 0.274151436 | AY5: 0.03225806452 | AZ5: 0.02816901408 | BA5: 0.233 | BB5: 0.259 | BC5: 0.38 | BD5: Clear | BE5: 0 | BF5: 0 | BG5: 0 | BH5: WSW 9 mph | BI5: 90° | BJ5: 2.64 | BK5: 2.34 | BL5: 3.85 | BM5: 2.67 | BN5: 3.28 | BO5: 3.3 | BP5: Felix Hernandez | BQ5: Felix Hernandez | BR5: 739 | BS5: 469 | BT5: 880 | BU5: 558
A6: Stephen Strasburg | B6: Was | C6: R | D6: 16:05:00 | E6: 11000 | F6: 11.4 | G6: 23 | H6: 20 | I6: 10700 | J6: 18.5 | K6: 41.2 | L6: 33.5 | M6: Phi | N6: Home | O6: -275 | P6: 7 | Q6: 16.758 | R6: 27.195 | S6: 11.4 | T6: 18.5 | U6: 113.1 | V6: 0.78 | W6: 10.7 | X6: 3.81 | Y6: 1.147 | Z6: 15 | AA6: 0.6 | AB6: 0.6 | AC6: 229 | AD6: 0.3 | AE6: 0.3100436681 | AF6: 0.666 | AG6: 13 | AH6: 30 | AI6: 0.608 | AJ6: 23 | AK6: 0.678 | AL6: 29 | AM6: 0.675 | AN6: Nationals Park (Washington, D.C.) | AO6: 6 | AP6: 1.068 | AQ6: 29 | AR6: 0.701 | AS6: 0.281 | AT6: 0.313 | AU6: 0.2925170068 | AV6: 0.3379310345 | AW6: 0.2897959184 | AX6: 0.281938326 | AY6: 0.02252252252 | AZ6: 0.04128440367 | BA6: 0.287 | BB6: 0.302 | BC6: 0.57 | BD6: Overcast | BE6: 0 | BF6: 0 | BG6: 0 | BH6: ENE 15 mph | BI6: 72° | BJ6: 2.94 | BK6: 2.26 | BL6: 3.19 | BM6: 2.69 | BN6: 2.94 | BO6: 2.95 | BP6: Stephen Strasburg | BQ6: Stephen Strasburg | BR6: 656 | BS6: 393 | BT6: 965 | BU6: 578
A7: Matt Harvey | B7: NYM | C7: R | D7: 16:10:00 | E7: 10000 | F7: 12.3 | G7: 12 | H7: 12 | I7: 10500 | J7: 20.5 | K7: 24.1 | L7: 24.1 | M7: Cin | N7: Away | O7: -149 | P7: 7.5 | Q7: 13.776 | R7: 22.96 | S7: 12.3 | T7: 20.5 | U7: 176.2 | V7: 0.91 | W7: 8.7 | X7: 2.8 | Y7: 1.019 | Z7: 5 | AA7: 0 | AB7: 0.4 | AC7: 259 | AD7: 0.2673796791 | AE7: 0.2548262548 | AF7: 0.62 | AG7: 19 | AH7: 19 | AI7: 0.76 | AJ7: 21 | AK7: 0.715 | AL7: 16 | AM7: 0.693 | AN7: Great American Ball Park (Cincinnati, Ohio) | AO7: 18 | AP7: 0.963 | AQ7: 4 | AR7: 1.279 | AS7: 0.303 | AT7: 0.241 | AU7: 0.2511210762 | AV7: 0.2851239669 | AW7: 0.2479108635 | AX7: 0.238372093 | AY7: 0.04587155963 | AZ7: 0.009202453988 | BA7: 0 | BB7: 0 | BC7: 0.68 | BD7: Overcast | BE7: 0.15 | BF7: 0.15 | BG7: 0.15 | BH7: E 11 mph | BI7: 70° | BJ7: 0 | BK7: 0 | BL7: 4.08 | BM7: 2.71 | BN7: 3.37 | BO7: 3.37 | BP7: Matt Harvey | BQ7: Matt Harvey | BR7: 726 | BS7: 457 | BT7: 813 | BU7: 512
A8: Francisco Liriano | B8: Pit | C8: L | D8: 13:05:00 | E8: 9600 | F8: 11.8 | G8: 10.2 | H8: 18 | I8: 9700 | J8: 19.2 | K8: 14.7 | L8: 29.6 | M8: ChC | N8: Away | O8: -108 | P8: 7.5 | Q8: 12.626 | R8: 20.544 | S8: 11.8 | T8: 19.2 | U8: 174 | V8: 1.14 | W8: 9.9 | X8: 3.41 | Y8: 1.213 | Z8: 9.1 | AA8: 5.79 | AB8: 1.714 | AC8: 303 | AD8: 0.2844036697 | AE8: 0.2772277228 | AF8: 0.576 | AG8: 1 | AH8: 16 | AI8: 0.765 | AJ8: 9 | AK8: 0.757 | AL8: 19 | AM8: 0.718 | AN8: Wrigley Field (Chicago, Illinois) | AO8: 23 | AP8: 0.931 | AQ8: 19 | AR8: 0.943 | AS8: 0.276 | AT8: 0.287 | AU8: 0.2551020408 | AV8: 0.306122449 | AW8: 0.251572327 | AX8: 0.2691622103 | AY8: 0.02127659574 | AZ8: 0.02182539683 | BA8: 0.331 | BB8: 0.284 | BC8: 0.61 | BD8: Partly Cloudy | BE8: 0 | BF8: 0 | BG8: 0 | BH8: E 7 mph | BI8: 71° | BJ8: 2.57 | BK8: 3.59 | BL8: 3.11 | BM8: 3.31 | BN8: 3.27 | BO8: 3.48 | BP8: Francisco Liriano | BQ8: Francisco Liriano | BR8: 760 | BS8: 472 | BT8: 814 | BU8: 505
A9: Collin McHugh | B9: Hou | C9: R | D9: 13:05:00 | E9: 9000 | F9: 11.3 | G9: 10.8 | H9: 19 | I9: 8100 | J9: 16.8 | K9: 15.7 | L9: 32.4 | M9: Tex | N9: Home | O9: -142 | P9: 8 | Q9: 10.848 | R9: 16.128 | S9: 11.3 | T9: 16.8 | U9: 190 | V9: 0.88 | W9: 7.5 | X9: 3.93 | Y9: 1.284 | Z9: 11.2 | AA9: 4.63 | AB9: 1.457 | AC9: 370 | AD9: 0.3156028369 | AE9: 0.227027027 | AF9: 0.685 | AG9: 20 | AH9: 1 | AI9: 0.858 | AJ9: 25 | AK9: 0.745 | AL9: 8 | AM9: 0.695 | AN9: Minute Maid Park (Houston, Texas) | AO9: 13 | AP9: 1.012 | AQ9: 8 | AR9: 1.173 | AS9: 0.283 | AT9: 0.344 | AU9: 0.2679245283 | AV9: 0.3513513514 | AW9: 0.2041884817 | AX9: 0.1923990499 | AY9: 0.02011494253 | AZ9: 0.02849740933 | BA9: 0.272 | BB9: 0.252 | BC9: 0.45 | BD9: Clear | BE9: 0 | BF9: 0 | BG9: 0.15 | BH9: NNE 6 mph | BI9: 87° | BJ9: 3.49 | BK9: 2.56 | BL9: 3.98 | BM9: 4.02 | BN9: 4 | BO9: 3.98 | BP9: Collin McHugh | BQ9: Collin McHugh | BR9: 830 | BS9: 502 | BT9: 796 | BU9: 482
A10: Derek Holland | B10: Tex | C10: L | D10: 13:05:00 | E10: 8900 | F10: 8.5 | G10: 1 | H10: 0.3 | I10: 5700 | J10: 12.9 | K10: -4.2 | L10: -5.5 | M10: Hou | N10: Away | O10: 132 | P10: 8 | Q10: 6.069 | R10: 9.2106 | S10: 5.95 | T10: 9.03 | U10: 47.1 | V10: 0.76 | W10: 6.5 | X10: 4.75 | Y10: 1.289 | Z10: 10 | AA10: 10.8 | AB10: 2.4 | AC10: 54 | AD10: 0.2558139535 | AE10: 0.1851851852 | AF10: 0.646 | AG10: 2 | AH10: 11 | AI10: 0.875 | AJ10: 18 | AK10: 0.668 | AL10: 9 | AM10: 0.702 | AN10: Minute Maid Park (Houston, Texas) | AO10: 13 | AP10: 1.012 | AQ10: 8 | AR10: 1.173 | AS10: 0.27 | AT10: 0.331 | AU10: 0.4230769231 | AV10: 0.2792792793 | AW10: 0.2368421053 | AX10: 0.1582278481 | AY10: 0.02777777778 | AZ10: 0.04225352113 | BA10: 0.271 | BB10: 0.261 | BC10: 0.45 | BD10: Clear | BE10: 0 | BF10: 0 | BG10: 0.15 | BH10: NNE 6 mph | BI10: 87° | BJ10: 3.04 | BK10: 3.96 | BL10: 2.62 | BM10: 4.28 | BN10: 4.01 | BO10: 3.99 | BP10: Derek Holland | BQ10: Derek Holland | BR10: 1466 | BS10: 619 | BT10: 1496 | BU10: 631
A11: Jaime Garcia | B11: StL | C11: L | D11: 19:15:00 | E11: 8800 | F11: 11.4 | G11: 10.7 | H11: 11 | I11: 9600 | J11: 18.4 | K11: 16.2 | L11: 19.6 | M11: Mil | N11: Home | O11: -240 | P11: 7.5 | Q11: 12.312 | R11: 19.872 | S11: 11.4 | T11: 18.4 | U11: 117.2 | V11: 1.72 | W11: 6.4 | X11: 2.45 | Y11: 1.028 | Z11: 13.1 | AA11: 3.38 | AB11: 1.2 | AC11: 216 | AD11: 0.2469879518 | AE11: 0.2268518519 | AF11: 0.497 | AG11: 11 | AH11: 10 | AI11: 0.679 | AJ11: 10 | AK11: 0.818 | AL11: 22 | AM11: 0.688 | AN11: Busch Stadium (St. Louis, Missouri) | AO11: 4 | AP11: 1.1 | AQ11: 16 | AR11: 0.966 | AS11: 0.283 | AT11: 0.243 | AU11: 0.301369863 | AV11: 0.2509505703 | AW11: 0.2095238095 | AX11: 0.1751412429 | AY11: 0.0206185567 | AZ11: 0.009230769231 | BA11: 0.389 | BB11: 0.278 | BC11: 0.62 | BD11: Overcast | BE11: 0.15 | BF11: 0.01 | BG11: 0.01 | BH11: E 9 mph | BI11: 74° | BJ11: 2.33 | BK11: 3.12 | BL11: 3.02 | BM11: 3.51 | BN11: 3.41 | BO11: 3.41 | BP11: Jaime Garcia | BQ11: Jaime Garcia | BR11: 715 | BS11: 483 | BT11: 772 | BU11: 522
A12: Julio Teheran | B12: Atl | C12: R | D12: 19:10:00 | E12: 8600 | F12: 9.8 | G12: 13 | H12: 15.3 | I12: 8300 | J12: 14.8 | K12: 23.2 | L12: 29.1 | M12: Fla | N12: Away | O12: -103 | P12: 7.5 | Q12: 10.29 | R12: 15.54 | S12: 9.8 | T12: 14.8 | U12: 188.2 | V12: 0.66 | W12: 7.7 | X12: 4.2 | Y12: 1.304 | Z12: 14 | AA12: 1.93 | AB12: 1.071 | AC12: 337 | AD12: 0 | AE12: 0 | AF12: 0 | AG12: 24 | AH12: 24 | AI12: 0.765 | AJ12: 26 | AK12: 0.679 | AL12: 26 | AM12: 0.701 | AN12: Marlins Park (Miami, Florida) | AO12: 12 | AP12: 1.014 | AQ12: 26 | AR12: 0.788 | AS12: 0.391 | AT12: 0.264 | AU12: 0.3220973783 | AV12: 0.2619047619 | AW12: 0.1536523929 | AX12: 0.2550505051 | AY12: 0.04927536232 | AZ12: 0.02506963788 | BA12: 0.301 | BB12: 0.262 | BC12: 0.7 | BD12: Overcast | BE12: 0.15 | BF12: 0.09 | BG12: 0.07 | BH12: ENE 7 mph | BI12: 84° | BJ12: 3.94 | BK12: 3.5 | BL12: 5.11 | BM12: 3.51 | BN12: 4.23 | BO12: 4.27 | BP12: Julio Teheran | BQ12: Julio Teheran | BR12: 836 | BS12: 534 | BT12: 878 | BU12: 561
A13: Josh Tomlin | B13: Cle | C13: R | D13: 19:10:00 | E13: 8600 | F13: 14.6 | G13: 15.3 | H13: 17.7 | I13: 10800 | J13: 25.3 | K13: 27.9 | L13: 27.9 | M13: Kan | N13: Away | O13: 120 | P13: 8 | Q13: 13.87 | R13: 24.035 | S13: 14.6 | T13: 25.3 | U13: 55.2 | V13: 0.61 | W13: 8.4 | X13: 2.43 | Y13: 0.737 | Z13: 14.2 | AA13: 1.23 | AB13: 0.75 | AC13: 101 | AD13: 0.1388888889 | AE13: 0.2277227723 | AF13: 0.539 | AG13: 30 | AH13: 7 | AI13: 0.814 | AJ13: 17 | AK13: 0.743 | AL13: 5 | AM13: 0.714 | AN13: Kauffman Stadium (Kansas City, Missouri) | AO13: 11 | AP13: 1.014 | AQ13: 22 | AR13: 0.843 | AS13: 0.143 | AT13: 0.356 | AU13: 0.1216216216 | AV13: 0.2380952381 | AW13: 0.2277227723 | AX13: 0.2710280374 | AY13: 0.0202020202 | AZ13: 0.08910891089 | BA13: 0.307 | BB13: 0.37 | BC13: 0.44 | BD13: Clear | BE13: 0 | BF13: 0 | BG13: 0 | BH13: E 8 mph | BI13: 78° | BJ13: 3.05 | BK13: 3.29 | BL13: 3.45 | BM13: 3.52 | BN13: 3.48 | BO13: 3.17 | BP13: Josh Tomlin | BQ13: Josh Tomlin | BR13: 620 | BS13: 449 | BT13: 589 | BU13: 427
A14: Wei-Yin Chen | B14: Bal | C14: L | D14: 16:05:00 | E14: 8300 | F14: 10.2 | G14: 14 | H14: 17 | I14: 7600 | J14: 15.9 | K14: 21.9 | L14: 27.6 | M14: Bos | N14: Away | O14: 110 | P14: 7.5 | Q14: 7.446 | R14: 11.607 | S14: 10.2 | T14: 15.9 | U14: 179.2 | V14: 0.7 | W14: 7.2 | X14: 3.36 | Y14: 1.219 | Z14: 14 | AA14: 1.93 | AB14: 0.857 | AC14: 271 | AD14: 0.2884615385 | AE14: 0.2177121771 | AF14: 0.75 | AG14: 27 | AH14: 13 | AI14: 0.691 | AJ14: 8 | AK14: 0.759 | AL14: 3 | AM14: 0.68 | AN14: Fenway Park (Boston, Massachusetts) | AO14: 5 | AP14: 1.072 | AQ14: 27 | AR14: 0.72 | AS14: 0.256 | AT14: 0.355 | AU14: 0.25 | AV14: 0.3102564103 | AW14: 0.1590909091 | AX14: 0.2028218695 | AY14: 0.01818181818 | AZ14: 0.04770992366 | BA14: 0.298 | BB14: 0.326 | BC14: 0.51 | BD14: Clear | BE14: 0 | BF14: 0 | BG14: 0 | BH14: ENE 13 mph | BI14: 63° | BJ14: 3.22 | BK14: 3.92 | BL14: 3.65 | BM14: 4.22 | BN14: 4.07 | BO14: 4.01 | BP14: Wei-Yin Chen | BQ14: Wei-Yin Chen | BR14: 1115 | BS14: 655 | BT14: 814 | BU14: 478
A15: Jason Hammel | B15: ChC | C15: R | D15: 13:05:00 | E15: 8100 | F15: 9.8 | G15: 8.3 | H15: 12 | I15: 7700 | J15: 16 | K15: 11.2 | L15: 17.6 | M15: Pit | N15: Home | O15: -102 | P15: 7.5 | Q15: 6.664 | R15: 10.88 | S15: 9.8 | T15: 16 | U15: 161.2 | V15: 0.64 | W15: 9.2 | X15: 3.79 | Y15: 1.151 | Z15: 8.2 | AA15: 7.27 | AB15: 1.615 | AC15: 313 | AD15: 0.2743362832 | AE15: 0.2364217252 | AF15: 0.737 | AG15: 8 | AH15: 2 | AI15: 0.821 | AJ15: 3 | AK15: 0.729 | AL15: 3 | AM15: 0.724 | AN15: Wrigley Field (Chicago, Illinois) | AO15: 23 | AP15: 0.931 | AQ15: 19 | AR15: 0.943 | AS15: 0.294 | AT15: 0.313 | AU15: 0.2893401015 | AV15: 0.2827004219 | AW15: 0.2377850163 | AX15: 0.2527472527 | AY15: 0.02536231884 | AZ15: 0.04424778761 | BA15: 0.305 | BB15: 0.297 | BC15: 0.61 | BD15: Partly Cloudy | BE15: 0 | BF15: 0 | BG15: 0 | BH15: E 7 mph | BI15: 71° | BJ15: 3.81 | BK15: 3.38 | BL15: 3.85 | BM15: 3.25 | BN15: 3.52 | BO15: 3.46 | BP15: Jason Hammel | BQ15: Jason Hammel | BR15: 1215 | BS15: 708 | BT15: 827 | BU15: 481
A16: Alfredo Simon | B16: Det | C16: R | D16: 19:05:00 | E16: 7800 | F16: 8.1 | G16: 5.3 | H16: -0.7 | I16: 5400 | J16: 10.8 | K16: 1.9 | L16: -9.8 | M16: Min | N16: Home | O16: 113 | P16: 8.5 | Q16: 7.695 | R16: 10.26 | S16: 8.1 | T16: 10.8 | U16: 171 | V16: 0.78 | W16: 5.9 | X16: 5.21 | Y16: 1.485 | Z16: 10.2 | AA16: 9.28 | AB16: 2.344 | AC16: 340 | AD16: 0.3025830258 | AE16: 0.1852941176 | AF16: 0.746 | AG16: 17 | AH16: 26 | AI16: 0.708 | AJ16: 24 | AK16: 0.699 | AL16: 24 | AM16: 0.658 | AN16: Comerica Park (Detroit, Michigan) | AO16: 14 | AP16: 1.003 | AQ16: 15 | AR16: 1.014 | AS16: 0.367 | AT16: 0.309 | AU16: 0.3055555556 | AV16: 0.2995391705 | AW16: 0.1218961625 | AX16: 0.1815286624 | AY16: 0.04092071611 | AZ16: 0.02857142857 | BA16: 0.313 | BB16: 0.296 | BC16: 0.55 | BD16: Partly Cloudy | BE16: 0 | BF16: 0 | BG16: 0.01 | BH16: ESE 11 mph | BI16: 72° | BJ16: 3.98 | BK16: 4.13 | BL16: 4.95 | BM16: 4.51 | BN16: 4.77 | BO16: 4.86 | BP16: Alfredo Simon | BQ16: Alfredo Simon | BR16: 1014 | BS16: 526 | BT16: 963 | BU16: 500
A17: Andrew Heaney | B17: Ana | C17: L | D17: 21:05:00 | E17: 7000 | F17: 9.8 | G17: 9.5 | H17: 10 | I17: 7500 | J17: 15.2 | K17: 16.5 | L17: 19.1 | M17: Sea | N17: Home | O17: 102 | P17: 7.5 | Q17: 14.112 | R17: 21.888 | S17: 9.8 | T17: 15.2 | U17: 95.1 | V17: 0.67 | W17: 6.8 | X17: 3.3 | Y17: 1.154 | Z17: 11 | AA17: 1.64 | AB17: 1.091 | AC17: 197 | AD17: 0.2941176471 | AE17: 0.1979695431 | AF17: 0.724 | AG17: 4 | AH17: 8 | AI17: 0.814 | AJ17: 29 | AK17: 0.701 | AL17: 7 | AM17: 0.732 | AN17: Angel Stadium of Anaheim (Anaheim, California) | AO17: 26 | AP17: 0.919 | AQ17: 23 | AR17: 0.837 | AS17: 0.258 | AT17: 0.31 | AU17: 0.3333333333 | AV17: 0.2676056338 | AW17: 0.2596153846 | AX17: 0.1557093426 | AY17: 0.01 | AZ17: 0.02671755725 | BA17: 0.273 | BB17: 0.411 | BC17: 0.38 | BD17: Clear | BE17: 0 | BF17: 0 | BG17: 0 | BH17: WSW 9 mph | BI17: 90° | BJ17: 3.66 | BK17: 4.43 | BL17: 2.51 | BM17: 5.06 | BN17: 4.34 | BO17: 4.19 | BP17: Andrew Heaney | BQ17: Andrew Heaney | BR17: 496 | BS17: 343 | BT17: 714 | BU17: 493
A18: Kris Medlen | B18: Kan | C18: R | D18: 19:10:00 | E18: 6900 | F18: 6.3 | G18: 10.7 | H18: 11 | I18: 5000 | J18: 9.2 | K18: 14.6 | L18: 14.4 | M18: Cle | N18: Home | O18: -130 | P18: 8 | Q18: 4.3218 | R18: 6.3112 | S18: 4.41 | T18: 6.44 | U18: 48.2 | V18: 1.27 | W18: 5.9 | X18: 3.51 | Y18: 1.171 | Z18: 11.1 | AA18: 0 | AB18: 1.235 | AC18: 91 | AD18: 0.2753623188 | AE18: 0.1978021978 | AF18: 0.713 | AG18: 26 | AH18: 5 | AI18: 0.795 | AJ18: 27 | AK18: 0.72 | AL18: 23 | AM18: 0.69 | AN18: Kauffman Stadium (Kansas City, Missouri) | AO18: 11 | AP18: 1.014 | AQ18: 22 | AR18: 0.843 | AS18: 0.276 | AT18: 0.31 | AU18: 0.2328767123 | AV18: 0.2916666667 | AW18: 0.1759259259 | AX18: 0.1444444444 | AY18: 0.02127659574 | AZ18: 0.03409090909 | BA18: 0 | BB18: 0 | BC18: 0.44 | BD18: Clear | BE18: 0 | BF18: 0 | BG18: 0 | BH18: E 8 mph | BI18: 78° | BJ18: 0 | BK18: 0 | BL18: 4.57 | BM18: 3.36 | BN18: 4.05 | BO18: 3.94 | BP18: Kris Medlen | BQ18: Kris Medlen | BR18: 1597 | BS18: 792 | BT18: 1565 | BU18: 776
A19: Brett Anderson | B19: Los | C19: L | D19: 20:10:00 | E19: 6800 | F19: 8.6 | G19: 5.8 | H19: 0.7 | I19: 5800 | J19: 12.8 | K19: 7.6 | L19: -4.1 | M19: Col | N19: Away | O19: -166 | P19: 11.5 | Q19: 4.472 | R19: 6.656 | S19: 8.6 | T19: 12.8 | U19: 168.2 | V19: 1.95 | W19: 6 | X19: 3.52 | Y19: 1.334 | Z19: 10.2 | AA19: 5.91 | AB19: 1.688 | AC19: 291 | AD19: 0.3097345133 | AE19: 0.2027491409 | AF19: 0.688 | AG19: 10 | AH19: 3 | AI19: 0.786 | AJ19: 2 | AK19: 0.754 | AL19: 2 | AM19: 0.65 | AN19: Coors Field (Denver, Colorado) | AO19: 1 | AP19: 1.501 | AQ19: 2 | AR19: 1.393 | AS19: 0.289 | AT19: 0.317 | AU19: 0.3245033113 | AV19: 0.3064516129 | AW19: 0.1804878049 | AX19: 0.1509054326 | AY19: 0.005319148936 | AZ19: 0.03463203463 | BA19: 0.324 | BB19: 0.291 | BC19: 0.14 | BD19: Clear | BE19: 0 | BF19: 0 | BG19: 0 | BH19: ENE 8 mph | BI19: 84° | BJ19: 3.15 | BK19: 3.7 | BL19: 3.24 | BM19: 3.6 | BN19: 3.49 | BO19: 3.45 | BP19: Brett Anderson | BQ19: Brett Anderson | BR19: 1521 | BS19: 871 | BT19: 791 | BU19: 453
A20: Jeremy Hellickson | B20: Ari | C20: R | D20: 20:40:00 | E20: 6800 | F20: 7.9 | G20: 3.5 | H20: 8 | I20: 6200 | J20: 11.6 | K20: 4.8 | L20: 14.2 | M20: Sdg | N20: Away | O20: 100 | P20: 7.5 | Q20: 9.401 | R20: 13.804 | S20: 7.9 | T20: 11.6 | U20: 135 | V20: 0.79 | W20: 7.5 | X20: 4.73 | Y20: 1.341 | Z20: 6 | AA20: 7.5 | AB20: 1.667 | AC20: 272 | AD20: 0.3024390244 | AE20: 0.2095588235 | AF20: 0 | AG20: 6 | AH20: 20 | AI20: 0.755 | AJ20: 14 | AK20: 0.693 | AL20: 22 | AM20: 0.678 | AN20: Petco Park (San Diego, California) | AO20: 29 | AP20: 0.826 | AQ20: 24 | AR20: 0.808 | AS20: 0.346 | AT20: 0.329 | AU20: 0.312849162 | AV20: 0.2844444444 | AW20: 0.168627451 | AX20: 0.2089552239 | AY20: 0.03083700441 | AZ20: 0.04248366013 | BA20: 0.261 | BB20: 0.423 | BC20: 0.57 | BD20: Clear | BE20: 0 | BF20: 0 | BG20: 0 | BH20: W 8 mph | BI20: 80° | BJ20: 3.73 | BK20: 4.74 | BL20: 4.79 | BM20: 3.82 | BN20: 4.22 | BO20: 4.17 | BP20: Jeremy Hellickson | BQ20: Jeremy Hellickson | BR20: 723 | BS20: 449 | BT20: 861 | BU20: 534
A21: Aaron Nola | B21: Phi | C21: R | D21: 16:05:00 | E21: 6500 | F21: 10.7 | G21: 8.5 | H21: 10 | I21: 8400 | J21: 16.5 | K21: 13.1 | L21: 16.9 | M21: Was | N21: Away | O21: 250 | P21: 7 | Q21: 10.914 | R21: 16.83 | S21: 10.7 | T21: 16.5 | U21: 72.2 | V21: 0.92 | W21: 7.8 | X21: 3.84 | Y21: 1.197 | Z21: 12 | AA21: 5.25 | AB21: 1.5 | AC21: 141 | AD21: 0.3 | AE21: 0.1985815603 | AF21: 0.722 | AG21: 5 | AH21: 14 | AI21: 0.707 | AJ21: 7 | AK21: 0.725 | AL21: 10 | AM21: 0.72 | AN21: Nationals Park (Washington, D.C.) | AO21: 6 | AP21: 1.068 | AQ21: 29 | AR21: 0.701 | AS21: 0.348 | AT21: 0.291 | AU21: 0.3152173913 | AV21: 0.2545454545 | AW21: 0.1176470588 | AX21: 0.2737430168 | AY21: 0.03636363636 | AZ21: 0.04242424242 | BA21: 0 | BB21: 0 | BC21: 0.57 | BD21: Overcast | BE21: 0 | BF21: 0 | BG21: 0 | BH21: ENE 15 mph | BI21: 72° | BJ21: 0 | BK21: 0 | BL21: 4.77 | BM21: 3.09 | BN21: 3.74 | BO21: 3.7 | BP21: Aaron Nola | BQ21: Aaron Nola | BR21: 596 | BS21: 499 | BT21: 607 | BU21: 509
A22: Tyler Duffey | B22: Min | C22: R | D22: 19:05:00 | E22: 6400 | F22: 11.2 | G22: 17.2 | H22: 18 | I22: 9200 | J22: 17.3 | K22: 28.1 | L22: 31.4 | M22: Det | N22: Away | O22: -123 | P22: 8.5 | Q22: 8.3888 | R22: 12.9577 | S22: 7.84 | T22: 12.11 | U22: 45.2 | V22: 0.94 | W22: 8.7 | X22: 3.15 | Y22: 1.314 | Z22: 13.1 | AA22: 0.68 | AB22: 0.975 | AC22: 89 | AD22: 0.3846153846 | AE22: 0.2359550562 | AF22: 0.859 | AG22: 15 | AH22: 18 | AI22: 0.678 | AJ22: 11 | AK22: 0.732 | AL22: 15 | AM22: 0.74 | AN22: Comerica Park (Detroit, Michigan) | AO22: 14 | AP22: 1.003 | AQ22: 15 | AR22: 1.014 | AS22: 0.343 | AT22: 0.307 | AU22: 0.3965517241 | AV22: 0.2352941176 | AW22: 0.2708333333 | AX22: 0.1875 | AY22: 0.01176470588 | AZ22: 0.02272727273 | BA22: 0 | BB22: 0 | BC22: 0.55 | BD22: Partly Cloudy | BE22: 0 | BF22: 0 | BG22: 0.01 | BH22: ESE 11 mph | BI22: 72° | BJ22: 0 | BK22: 0 | BL22: 3.07 | BM22: 4.78 | BN22: 3.96 | BO22: 4.1 | BP22: Tyler Duffey | BQ22: Tyler Duffey | BR22: 763 | BS22: 710 | BT22: 816 | BU22: 760
A23: Justin Nicolino | B23: Fla | C23: L | D23: 19:10:00 | E23: 6200 | F23: 5.7 | G23: 3.3 | H23: 1.7 | I23: 4300 | J23: 7.2 | K23: 3.3 | L23: -0.7 | M23: Atl | N23: Home | O23: -107 | P23: 7.5 | Q23: 5.7 | R23: 7.2 | S23: 5.7 | T23: 7.2 | U23: 60 | V23: 0.81 | W23: 3.2 | X23: 4.5 | Y23: 1.35 | Z23: 11.2 | AA23: 7.71 | AB23: 1.371 | AC23: 108 | AD23: 0 | AE23: 0 | AF23: 0 | AG23: 28 | AH23: 22 | AI23: 0.717 | AJ23: 28 | AK23: 0.682 | AL23: 28 | AM23: 0.67 | AN23: Marlins Park (Miami, Florida) | AO23: 12 | AP23: 1.014 | AQ23: 26 | AR23: 0.788 | AS23: 0.328 | AT23: 0.347 | AU23: 0.3260869565 | AV23: 0.2763157895 | AW23: 0.1355932203 | AX23: 0.06842105263 | AY23: 0.01818181818 | AZ23: 0.03571428571 | BA23: 0 | BB23: 0 | BC23: 0.7 | BD23: Overcast | BE23: 0.15 | BF23: 0.09 | BG23: 0.07 | BH23: ENE 7 mph | BI23: 84° | BJ23: 0 | BK23: 0 | BL23: 3.89 | BM23: 5.59 | BN23: 5.21 | BO23: 5.48 | BP23: Justin Nicolino | BQ23: Justin Nicolino | BR23: 1088 | BS23: 597 | BT23: 1088 | BU23: 597
A24: John Danks | B24: ChW | C24: L | D24: 16:05:00 | E24: 6100 | F24: 8.2 | G24: 7.5 | H24: 5 | I24: 6200 | J24: 12.1 | K24: 12 | L24: 5.8 | M24: NYY | N24: Away | O24: 140 | P24: 8.5 | Q24: 7.79 | R24: 11.495 | S24: 8.2 | T24: 12.1 | U24: 166.2 | V24: 0.63 | W24: 6.3 | X24: 4.59 | Y24: 1.368 | Z24: 12 | AA24: 4.5 | AB24: 1.25 | AC24: 326 | AD24: 0.3283018868 | AE24: 0.1595092025 | AF24: 0 | AG24: 21 | AH24: 21 | AI24: 0.658 | AJ24: 12 | AK24: 0.705 | AL24: 8 | AM24: 0.733 | AN24: Yankee Stadium (New York, New York) | AO24: 20 | AP24: 0.945 | AQ24: 1 | AR24: 1.468 | AS24: 0.294 | AT24: 0.351 | AU24: 0.2086956522 | AV24: 0.3258145363 | AW24: 0.1552795031 | AX24: 0.1657657658 | AY24: 0.05442176871 | AZ24: 0.03180914513 | BA24: 0.317 | BB24: 0.355 | BC24: 0.43 | BD24: Partly Cloudy | BE24: 0 | BF24: 0 | BG24: 0 | BH24: ENE 13 mph | BI24: 71° | BJ24: 4.73 | BK24: 4.59 | BL24: 4.54 | BM24: 4.58 | BN24: 4.57 | BO24: 4.55 | BP24: John Danks | BQ24: John Danks | BR24: 783 | BS24: 539 | BT24: 744 | BU24: 512
A25: Adam Warren | B25: NYY | C25: R | D25: 16:05:00 | E25: 5800 | F25: 4.8 | G25: 5.7 | H25: 5.3 | I25: 4500 | J25: 7.5 | K25: 8.3 | L25: 7.3 | M25: ChW | N25: Home | O25: -150 | P25: 8.5 | Q25: 5.232 | R25: 8.175 | S25: 4.8 | T25: 7.5 | U25: 122.1 | V25: 0.8 | W25: 7.1 | X25: 3.46 | Y25: 1.185 | Z25: 7.1 | AA25: 6.14 | AB25: 1.636 | AC25: 193 | AD25: 0.2551724138 | AE25: 0.2331606218 | AF25: 0.591 | AG25: 18 | AH25: 28 | AI25: 0.63 | AJ25: 19 | AK25: 0.705 | AL25: 11 | AM25: 0.691 | AN25: Yankee Stadium (New York, New York) | AO25: 20 | AP25: 0.945 | AQ25: 1 | AR25: 1.468 | AS25: 0.27 | AT25: 0.307 | AU25: 0.2649006623 | AV25: 0.303030303 | AW25: 0.1674876847 | AX25: 0.2121212121 | AY25: 0.01075268817 | AZ25: 0.02985074627 | BA25: 0.236 | BB25: 0.307 | BC25: 0.43 | BD25: Partly Cloudy | BE25: 0 | BF25: 0 | BG25: 0 | BH25: ENE 13 mph | BI25: 71° | BJ25: 2.77 | BK25: 3.73 | BL25: 4.13 | BM25: 3.98 | BN25: 4.04 | BO25: 4.02 | BP25: Adam Warren | BQ25: Adam Warren | BR25: 1109 | BS25: 550 | BT25: 1208 | BU25: 600
A26: Tim Hudson | B26: Sfo | C26: R | D26: 16:05:00 | E26: 5800 | F26: 7.2 | G26: 8.7 | H26: 13 | I26: 5500 | J26: 9.8 | K26: 12.7 | L26: 19.3 | M26: Oak | N26: Away | O26: -112 | P26: 8.5 | Q26: 7.704 | R26: 10.486 | S26: 7.2 | T26: 9.8 | U26: 120.2 | V26: 1.32 | W26: 4.7 | X26: 4.18 | Y26: 1.343 | Z26: 10.1 | AA26: 0.87 | AB26: 1.258 | AC26: 175 | AD26: 0.2905405405 | AE26: 0.12 | AF26: 0.814 | AG26: 29 | AH26: 27 | AI26: 0.724 | AJ26: 16 | AK26: 0.708 | AL26: 14 | AM26: 0.704 | AN26: O.co Coliseum (Oakland, California) | AO26: 10 | AP26: 1.023 | AQ26: 21 | AR26: 0.903 | AS26: 0.351 | AT26: 0.305 | AU26: 0.3333333333 | AV26: 0.2740384615 | AW26: 0.06363636364 | AX26: 0.1731448763 | AY26: 0.02030456853 | AZ26: 0.03396226415 | BA26: 0.331 | BB26: 0.292 | BC26: 0.57 | BD26: Partly Cloudy | BE26: 0 | BF26: 0 | BG26: 0 | BH26: W 8 mph | BI26: 72° | BJ26: 4.06 | BK26: 3.05 | BL26: 5.07 | BM26: 3.41 | BN26: 4.08 | BO26: 4.22 | BP26: Tim Hudson | BQ26: Tim Hudson | BR26: 753 | BS26: 525 | BT26: 806 | BU26: 561
A27: John Lamb | B27: Cin | C27: L | D27: 16:10:00 | E27: 5500 | F27: 9.1 | G27: 8 | H27: 12 | I27: 7200 | J27: 14.1 | K27: 13.4 | L27: 21.3 | M27: NYM | N27: Home | O27: 139 | P27: 7.5 | Q27: 6.37 | R27: 9.87 | S27: 6.37 | T27: 9.87 | U27: 43 | V27: 0.66 | W27: 10 | X27: 4.6 | Y27: 1.488 | Z27: 10 | AA27: 2.7 | AB27: 1.2 | AC27: 85 | AD27: 0 | AE27: 0 | AF27: 0 | AG27: 14 | AH27: 12 | AI27: 0.767 | AJ27: 6 | AK27: 0.735 | AL27: 6 | AM27: 0.727 | AN27: Great American Ball Park (Cincinnati, Ohio) | AO27: 18 | AP27: 0.963 | AQ27: 4 | AR27: 1.279 | AS27: 0.449 | AT27: 0.354 | AU27: 0.4285714286 | AV27: 0.3789473684 | AW27: 0.25 | AX27: 0.2585034014 | AY27: 0.03125 | AZ27: 0.02941176471 | BA27: 0 | BB27: 0 | BC27: 0.68 | BD27: Overcast | BE27: 0.15 | BF27: 0.15 | BG27: 0.15 | BH27: E 11 mph | BI27: 70° | BJ27: 0 | BK27: 0 | BL27: 5.58 | BM27: 3.29 | BN27: 3.64 | BO27: 3.55 | BP27: John Lamb | BQ27: John Lamb | BR27: 863 | BS27: 729 | BT27: 863 | BU27: 729
A28: Tyler Wagner | B28: Mil | C28: R | D28: 19:15:00 | E28: 5000 | F28: 0.7 | G28: 0.7 | H28: 0.7 | I28: 4400 | J28: -3.8 | K28: -3.8 | L28: -3.8 | M28: StL | N28: Away | O28: 220 | P28: 7.5 | Q28: 0.3675 | R28: -1.995 | S28: 0.49 | T28: -2.66 | U28: 3.2 | V28: 1.13 | W28: 4.9 | X28: 12.27 | Y28: 2.727 | Z28: 0 | AA28: --- | AB28: 0 | AG28: 12 | AH28: 6 | AI28: 0.775 | AJ28: 20 | AK28: 0.737 | AL28: 24 | AM28: 0.709 | AN28: Busch Stadium (St. Louis, Missouri) | AO28: 4 | AP28: 1.1 | AQ28: 16 | AR28: 0.966 | AS28: 0.224 | AT28: 0.717 | AU28: 0.1666666667 | AV28: 0.7 | AW28: 0 | AX28: 0.1428571429 | AY28: 0 | AZ28: 0.07692307692 | BA28: 0 | BB28: 0 | BC28: 0.62 | BD28: Overcast | BE28: 0.15 | BF28: 0.01 | BG28: 0.01 | BH28: E 9 mph | BI28: 74° | BJ28: 0 | BK28: 0 | BL28: 6.71 | BM28: 3.35 | BN28: 4.88 | BO28: 4.7 | BP28: Tyler Wagner | BQ28: Tyler Wagner | BR28: 13605 | BS28: -2206 | BT28: 10204 | BU28: -1654
A29: Barry Zito | B29: Oak | C29: L | D29: 16:05:00 | E29: 5000 | F29: -1 | G29: -1 | H29: -1 | I29: 5100 | J29: -3.5 | K29: -3.5 | L29: -3.5 | M29: Sfo | N29: Home | O29: 102 | P29: 8.5 | Q29: -0.616 | R29: -2.156 | S29: -0.7 | T29: -2.45 | U29: 1 | V29: 0.67 | W29: 0 | X29: 18 | Y29: 3 | Z29: 1 | AA29: 18 | AB29: 3 | AG29: 22 | AH29: 29 | AI29: 0.647 | AJ29: 13 | AK29: 0.71 | AL29: 5 | AM29: 0.736 | AN29: O.co Coliseum (Oakland, California) | AO29: 10 | AP29: 1.023 | AQ29: 21 | AR29: 0.903 | AS29: 0 | AT29: 0 | AU29: 0 | AV29: 0.25 | AW29: 0 | AX29: 0 | AY29: 1 | AZ29: 0 | BA29: 0 | BB29: 0 | BC29: 0.57 | BD29: Partly Cloudy | BE29: 0 | BF29: 0 | BG29: 0 | BH29: W 8 mph | BI29: 72° | BJ29: 0 | BK29: 0 | BL29: 0 | BM29: 0 | BN29: 0 | BO29: 0 | BP29: Barry Zito | BQ29: Barry Zito | BR29: -8117 | BS29: -2365 | BT29: -7143 | BU29: -2082
A30: Robbie Erlin | B30: Sdg | C30: L | D30: 20:40:00 | E30: 4900 | F30: -2 | G30: -2 | H30: -2 | I30: 4600 | J30: -9.2 | K30: -9.2 | L30: -9.2 | M30: Ari | N30: Home | O30: -110 | P30: 7.5 | Q30: -1.218 | R30: -5.6028 | S30: -1.4 | T30: -6.44 | U30: 3 | V30: 1 | W30: 6 | X30: 21 | Y30: 3.333 | Z30: 3 | AA30: 21 | AB30: 3.333 | AG30: 7 | AH30: 9 | AI30: 0.736 | AJ30: 4 | AK30: 0.73 | AL30: 4 | AM30: 0.721 | AN30: Petco Park (San Diego, California) | AO30: 29 | AP30: 0.826 | AQ30: 24 | AR30: 0.808 | AS30: 0 | AT30: 0 | AU30: 1 | AV30: 0.5 | AW30: 0.4 | AX30: 0 | AY30: 0 | AZ30: 0 | BA30: 0.327 | BB30: 0.348 | BC30: 0.57 | BD30: Clear | BE30: 0 | BF30: 0 | BG30: 0 | BH30: W 8 mph | BI30: 80° | BJ30: 3.84 | BK30: 3.62 | BL30: 0 | BM30: 0 | BN30: 0 | BO30: 0 | BP30: Robbie Erlin | BQ30: Robbie Erlin | BR30: -4023 | BS30: -821 | BT30: -3500 | BU30: -714
A31: Kyle Kendrick | B31: Col | C31: R | D31: 20:10:00 | E31: 4800 | F31: 5.4 | G31: 6 | H31: 1 | I31: 4200 | J31: 6.1 | K31: 7.5 | L31: -1.2 | M31: Los | N31: Home | O31: 156 | P31: 11.5 | Q31: 3.51 | R31: 3.965 | S31: 5.4 | T31: 6.1 | U31: 131.1 | V31: 0.66 | W31: 4.9 | X31: 6.37 | Y31: 1.53 | Z31: 9 | AA31: 8 | AB31: 1.333 | AC31: 243 | AD31: 0 | AE31: 0 | AF31: 0 | AG31: 16 | AH31: 23 | AI31: 0.662 | AJ31: 22 | AK31: 0.74 | AL31: 21 | AM31: 0.737 | AN31: Coors Field (Denver, Colorado) | AO31: 1 | AP31: 1.501 | AQ31: 2 | AR31: 1.393 | AS31: 0.411 | AT31: 0.366 | AU31: 0.3333333333 | AV31: 0.2742616034 | AW31: 0.1338289963 | AX31: 0.1146496815 | AY31: 0.05882352941 | AZ31: 0.06206896552 | BA31: 0.36 | BB31: 0.321 | BC31: 0.14 | BD31: Clear | BE31: 0 | BF31: 0 | BG31: 0 | BH31: ENE 8 mph | BI31: 84° | BJ31: 4.28 | BK31: 4.4 | BL31: 5.56 | BM31: 4.72 | BN31: 5.09 | BO31: 5.1 | BP31: Kyle Kendrick | BQ31: Kyle Kendrick | BR31: 1368 | BS31: 1059 | BT31: 889 | BU31: 689
A32: Craig Breslow | B32: Bos | C32: L | D32: 16:05:00 | E32: 4000 | F32: 1.6 | G32: 3.2 | H32: 2 | I32: 4000 | J32: 2.4 | K32: 6.2 | L32: 3.6 | M32: Bal | N32: Home | O32: 110 | P32: 7.5 | Q32: 1.664 | R32: 2.496 | S32: 1.6 | T32: 2.4 | U32: 55.2 | V32: 0.59 | W32: 6.8 | X32: 4.53 | Y32: 1.491 | Z32: 3.1 | AA32: 2.7 | AB32: 0.6 | AC32: 126 | AD32: 0.2912621359 | AE32: 0.1666666667 | AF32: 0.737 | AG32: 3 | AH32: 25 | AI32: 0.63 | AJ32: 5 | AK32: 0.738 | AL32: 20 | AM32: 0.674 | AN32: Fenway Park (Boston, Massachusetts) | AO32: 5 | AP32: 1.072 | AQ32: 27 | AR32: 0.72 | AS32: 0.35 | AT32: 0.359 | AU32: 0.3181818182 | AV32: 0.31 | AW32: 0.1318681319 | AX32: 0.1960784314 | AY32: 0.0375 | AZ32: 0.05263157895 | BA32: 0.374 | BB32: 0.406 | BC32: 0.51 | BD32: Clear | BE32: 0 | BF32: 0 | BG32: 0 | BH32: ENE 13 mph | BI32: 63° | BJ32: 5.62 | BK32: 4.7 | BL32: 4.95 | BM32: 5.21 | BN32: 5.11 | BO32: 4.45 | BP32: Craig Breslow | BQ32: Craig Breslow | BR32: 2404 | BS32: 1603 | BT32: 2500 | BU32: 1667
E33: 0 | F33: 0 | G33: 0 | H33: 0 | I33: 0 | J33: 0 | K33: 0 | L33: 0 | O33: 0 | U33: 0 | V33: 0 | W33: 0 | X33: 0 | Y33: 0 | Z33: 0 | AA33: 0 | AB33: 0 | AC33: 0 | AD33: 0 | AE33: 0 | AF33: 0 | AG33: 0 | AH33: 0 | AI33: 0 | AS33: 0 | AT33: 0 | AU33: 0 | AV33: 0 | AW33: 0 | AX33: 0 | AY33: 0 | AZ33: 0 | BA33: 0 | BB33: 0 | BC33: 0 | BE33: 0 | BJ33: 0 | BK33: 0 | BL33: 0 | BM33: 0 | BN33: 0 | BO33: 0 | BR33: 0 | BS33: 0 | BT33: 0 | BU33: 0
E34: 0 | F34: 0 | G34: 0 | H34: 0 | I34: 0 | J34: 0 | K34: 0 | L34: 0 | O34: 0 | U34: 0 | V34: 0 | W34: 0 | X34: 0 | Y34: 0 | Z34: 0 | AA34: 0 | AB34: 0 | AC34: 0 | AD34: 0 | AE34: 0 | AF34: 0 | AG34: 0 | AH34: 0 | AI34: 0 | AS34: 0 | AT34: 0 | AU34: 0 | AV34: 0 | AW34: 0 | AX34: 0 | AY34: 0 | AZ34: 0 | BA34: 0 | BB34: 0 | BC34: 0 | BE34: 0 | BJ34: 0 | BK34: 0 | BL34: 0 | BM34: 0 | BN34: 0 | BO34: 0 | BR34: 0 | BS34: 0 | BT34: 0 | BU34: 0
E35: 0 | F35: 0 | G35: 0 | H35: 0 | I35: 0 | J35: 0 | K35: 0 | L35: 0 | O35: 0 | U35: 0 | V35: 0 | W35: 0 | X35: 0 | Y35: 0 | Z35: 0 | AA35: 0 | AB35: 0 | AC35: 0 | AD35: 0 | AE35: 0 | AF35: 0 | AG35: 0 | AH35: 0 | AI35: 0 | AS35: 0 | AT35: 0 | AU35: 0 | AV35: 0 | AW35: 0 | AX35: 0 | AY35: 0 | AZ35: 0 | BA35: 0 | BB35: 0 | BC35: 0 | BE35: 0 | BJ35: 0 | BK35: 0 | BL35: 0 | BM35: 0 | BN35: 0 | BO35: 0 | BR35: 0 | BS35: 0 | BT35: 0 | BU35: 0
E36: 0 | F36: 0 | G36: 0 | H36: 0 | I36: 0 | J36: 0 | K36: 0 | L36: 0 | O36: 0 | U36: 0 | V36: 0 | W36: 0 | X36: 0 | Y36: 0 | Z36: 0 | AA36: 0 | AB36: 0 | AC36: 0 | AD36: 0 | AE36: 0 | AF36: 0 | AG36: 0 | AH36: 0 | AI36: 0 | AS36: 0 | AT36: 0 | AU36: 0 | AV36: 0 | AW36: 0 | AX36: 0 | AY36: 0 | AZ36: 0 | BA36: 0 | BB36: 0 | BC36: 0 | BE36: 0 | BJ36: 0 | BK36: 0 | BL36: 0 | BM36: 0 | BN36: 0 | BO36: 0 | BR36: 0 | BS36: 0 | BT36: 0 | BU36: 0
E37: 0 | F37: 0 | G37: 0 | H37: 0 | I37: 0 | J37: 0 | K37: 0 | L37: 0 | O37: 0 | U37: 0 | V37: 0 | W37: 0 | X37: 0 | Y37: 0 | Z37: 0 | AA37: 0 | AB37: 0 | AC37: 0 | AD37: 0 | AE37: 0 | AF37: 0 | AG37: 0 | AH37: 0 | AI37: 0 | AS37: 0 | AT37: 0 | AU37: 0 | AV37: 0 | AW37: 0 | AX37: 0 | AY37: 0 | AZ37: 0 | BA37: 0 | BB37: 0 | BC37: 0 | BE37: 0 | BJ37: 0 | BK37: 0 | BL37: 0 | BM37: 0 | BN37: 0 | BO37: 0 | BR37: 0 | BS37: 0 | BT37: 0 | BU37: 0
E38: 0 | F38: 0 | G38: 0 | H38: 0 | I38: 0 | J38: 0 | K38: 0 | L38: 0 | O38: 0 | U38: 0 | V38: 0 | W38: 0 | X38: 0 | Y38: 0 | Z38: 0 | AA38: 0 | AB38: 0 | AC38: 0 | AD38: 0 | AE38: 0 | AF38: 0 | AG38: 0 | AH38: 0 | AI38: 0 | AS38: 0 | AT38: 0 | AU38: 0 | AV38: 0 | AW38: 0 | AX38: 0 | AY38: 0 | AZ38: 0 | BA38: 0 | BB38: 0 | BC38: 0 | BE38: 0 | BJ38: 0 | BK38: 0 | BL38: 0 | BM38: 0 | BN38: 0 | BO38: 0 | BR38: 0 | BS38: 0 | BT38: 0 | BU38: 0
E39: 0 | F39: 0 | G39: 0 | H39: 0 | I39: 0 | J39: 0 | K39: 0 | L39: 0 | O39: 0 | U39: 0 | V39: 0 | W39: 0 | X39: 0 | Y39: 0 | Z39: 0 | AA39: 0 | AB39: 0 | AC39: 0 | AD39: 0 | AE39: 0 | AF39: 0 | AG39: 0 | AH39: 0 | AI39: 0 | AS39: 0 | AT39: 0 | AU39: 0 | AV39: 0 | AW39: 0 | AX39: 0 | AY39: 0 | AZ39: 0 | BA39: 0 | BB39: 0 | BC39: 0 | BE39: 0 | BJ39: 0 | BK39: 0 | BL39: 0 | BM39: 0 | BN39: 0 | BO39: 0 | BR39: 0 | BS39: 0 | BT39: 0 | BU39: 0
E40: 0 | F40: 0 | G40: 0 | H40: 0 | I40: 0 | J40: 0 | K40: 0 | L40: 0 | O40: 0 | U40: 0 | V40: 0 | W40: 0 | X40: 0 | Y40: 0 | Z40: 0 | AA40: 0 | AB40: 0 | AC40: 0 | AD40: 0 | AE40: 0 | AF40: 0 | AG40: 0 | AH40: 0 | AI40: 0 | AS40: 0 | AT40: 0 | AU40: 0 | AV40: 0 | AW40: 0 | AX40: 0 | AY40: 0 | AZ40: 0 | BA40: 0 | BB40: 0 | BC40: 0 | BE40: 0 | BJ40: 0 | BK40: 0 | BL40: 0 | BM40: 0 | BN40: 0 | BO40: 0 | BR40: 0 | BS40: 0 | BT40: 0 | BU40: 0
E41: 0 | F41: 0 | G41: 0 | H41: 0 | I41: 0 | J41: 0 | K41: 0 | L41: 0 | O41: 0 | U41: 0 | V41: 0 | W41: 0 | X41: 0 | Y41: 0 | Z41: 0 | AA41: 0 | AB41: 0 | AC41: 0 | AD41: 0 | AE41: 0 | AF41: 0 | AG41: 0 | AH41: 0 | AI41: 0 | AS41: 0 | AT41: 0 | AU41: 0 | AV41: 0 | AW41: 0 | AX41: 0 | AY41: 0 | AZ41: 0 | BA41: 0 | BB41: 0 | BC41: 0 | BE41: 0 | BJ41: 0 | BK41: 0 | BL41: 0 | BM41: 0 | BN41: 0 | BO41: 0 | BR41: 0 | BS41: 0 | BT41: 0 | BU41: 0
E42: 0 | F42: 0 | G42: 0 | H42: 0 | I42: 0 | J42: 0 | K42: 0 | L42: 0 | O42: 0 | U42: 0 | V42: 0 | W42: 0 | X42: 0 | Y42: 0 | Z42: 0 | AA42: 0 | AB42: 0 | AC42: 0 | AD42: 0 | AE42: 0 | AF42: 0 | AG42: 0 | AH42: 0 | AI42: 0 | AS42: 0 | AT42: 0 | AU42: 0 | AV42: 0 | AW42: 0 | AX42: 0 | AY42: 0 | AZ42: 0 | BA42: 0 | BB42: 0 | BC42: 0 | BE42: 0 | BJ42: 0 | BK42: 0 | BL42: 0 | BM42: 0 | BN42: 0 | BO42: 0 | BR42: 0 | BS42: 0 | BT42: 0 | BU42: 0
E43: 0 | F43: 0 | G43: 0 | H43: 0 | I43: 0 | J43: 0 | K43: 0 | L43: 0 | O43: 0 | U43: 0 | V43: 0 | W43: 0 | X43: 0 | Y43: 0 | Z43: 0 | AA43: 0 | AB43: 0 | AC43: 0 | AD43: 0 | AE43: 0 | AF43: 0 | AG43: 0 | AH43: 0 | AI43: 0 | AS43: 0 | AT43: 0 | AU43: 0 | AV43: 0 | AW43: 0 | AX43: 0 | AY43: 0 | AZ43: 0 | BA43: 0 | BB43: 0 | BC43: 0 | BE43: 0 | BJ43: 0 | BK43: 0 | BL43: 0 | BM43: 0 | BN43: 0 | BO43: 0 | BR43: 0 | BS43: 0 | BT43: 0 | BU43: 0
E44: 0 | F44: 0 | G44: 0 | H44: 0 | I44: 0 | J44: 0 | K44: 0 | L44: 0 | O44: 0 | U44: 0 | V44: 0 | W44: 0 | X44: 0 | Y44: 0 | Z44: 0 | AA44: 0 | AB44: 0 | AC44: 0 | AD44: 0 | AE44: 0 | AF44: 0 | AG44: 0 | AH44: 0 | AI44: 0 | AS44: 0 | AT44: 0 | AU44: 0 | AV44: 0 | AW44: 0 | AX44: 0 | AY44: 0 | AZ44: 0 | BA44: 0 | BB44: 0 | BC44: 0 | BE44: 0 | BJ44: 0 | BK44: 0 | BL44: 0 | BM44: 0 | BN44: 0 | BO44: 0 | BR44: 0 | BS44: 0 | BT44: 0 | BU44: 0
E45: 0 | F45: 0 | G45: 0 | H45: 0 | I45: 0 | J45: 0 | K45: 0 | L45: 0 | O45: 0 | U45: 0 | V45: 0 | W45: 0 | X45: 0 | Y45: 0 | Z45: 0 | AA45: 0 | AB45: 0 | AC45: 0 | AD45: 0 | AE45: 0 | AF45: 0 | AG45: 0 | AH45: 0 | AI45: 0 | AS45: 0 | AT45: 0 | AU45: 0 | AV45: 0 | AW45: 0 | AX45: 0 | AY45: 0 | AZ45: 0 | BA45: 0 | BB45: 0 | BC45: 0 | BE45: 0 | BJ45: 0 | BK45: 0 | BL45: 0 | BM45: 0 | BN45: 0 | BO45: 0 | BR45: 0 | BS45: 0 | BT45: 0 | BU45: 0
E46: 0 | F46: 0 | G46: 0 | H46: 0 | I46: 0 | J46: 0 | K46: 0 | L46: 0 | O46: 0 | U46: 0 | V46: 0 | W46: 0 | X46: 0 | Y46: 0 | Z46: 0 | AA46: 0 | AB46: 0 | AC46: 0 | AD46: 0 | AE46: 0 | AF46: 0 | AG46: 0 | AH46: 0 | AI46: 0 | AS46: 0 | AT46: 0 | AU46: 0 | AV46: 0 | AW46: 0 | AX46: 0 | AY46: 0 | AZ46: 0 | BA46: 0 | BB46: 0 | BC46: 0 | BE46: 0 | BJ46: 0 | BK46: 0 | BL46: 0 | BM46: 0 | BN46: 0 | BO46: 0 | BR46: 0 | BS46: 0 | BT46: 0 | BU46: 0
E47: 0 | F47: 0 | G47: 0 | H47: 0 | I47: 0 | J47: 0 | K47: 0 | L47: 0 | O47: 0 | U47: 0 | V47: 0 | W47: 0 | X47: 0 | Y47: 0 | Z47: 0 | AA47: 0 | AB47: 0 | AC47: 0 | AD47: 0 | AE47: 0 | AF47: 0 | AG47: 0 | AH47: 0 | AI47: 0 | AS47: 0 | AT47: 0 | AU47: 0 | AV47: 0 | AW47: 0 | AX47: 0 | AY47: 0 | AZ47: 0 | BA47: 0 | BB47: 0 | BC47: 0 | BE47: 0 | BJ47: 0 | BK47: 0 | BL47: 0 | BM47: 0 | BN47: 0 | BO47: 0 | BR47: 0 | BS47: 0 | BT47: 0 | BU47: 0
E48: 0 | F48: 0 | G48: 0 | H48: 0 | I48: 0 | J48: 0 | K48: 0 | L48: 0 | O48: 0 | U48: 0 | V48: 0 | W48: 0 | X48: 0 | Y48: 0 | Z48: 0 | AA48: 0 | AB48: 0 | AC48: 0 | AD48: 0 | AE48: 0 | AF48: 0 | AG48: 0 | AH48: 0 | AI48: 0 | AS48: 0 | AT48: 0 | AU48: 0 | AV48: 0 | AW48: 0 | AX48: 0 | AY48: 0 | AZ48: 0 | BA48: 0 | BB48: 0 | BC48: 0 | BE48: 0 | BJ48: 0 | BK48: 0 | BL48: 0 | BM48: 0 | BN48: 0 | BO48: 0 | BR48: 0 | BS48: 0 | BT48: 0 | BU48: 0
E49: 0 | F49: 0 | G49: 0 | H49: 0 | I49: 0 | J49: 0 | K49: 0 | L49: 0 | O49: 0 | U49: 0 | V49: 0 | W49: 0 | X49: 0 | Y49: 0 | Z49: 0 | AA49: 0 | AB49: 0 | AC49: 0 | AD49: 0 | AE49: 0 | AF49: 0 | AG49: 0 | AH49: 0 | AI49: 0 | AS49: 0 | AT49: 0 | AU49: 0 | AV49: 0 | AW49: 0 | AX49: 0 | AY49: 0 | AZ49: 0 | BA49: 0 | BB49: 0 | BC49: 0 | BE49: 0 | BJ49: 0 | BK49: 0 | BL49: 0 | BM49: 0 | BN49: 0 | BO49: 0 | BR49: 0 | BS49: 0 | BT49: 0 | BU49: 0
E50: 0 | F50: 0 | G50: 0 | H50: 0 | I50: 0 | J50: 0 | K50: 0 | L50: 0 | O50: 0 | U50: 0 | V50: 0 | W50: 0 | X50: 0 | Y50: 0 | Z50: 0 | AA50: 0 | AB50: 0 | AC50: 0 | AD50: 0 | AE50: 0 | AF50: 0 | AG50: 0 | AH50: 0 | AI50: 0 | AS50: 0 | AT50: 0 | AU50: 0 | AV50: 0 | AW50: 0 | AX50: 0 | AY50: 0 | AZ50: 0 | BA50: 0 | BB50: 0 | BC50: 0 | BE50: 0 | BJ50: 0 | BK50: 0 | BL50: 0 | BM50: 0 | BN50: 0 | BO50: 0 | BR50: 0 | BS50: 0 | BT50: 0 | BU50: 0
E51: 0 | F51: 0 | G51: 0 | H51: 0 | I51: 0 | J51: 0 | K51: 0 | L51: 0 | O51: 0 | U51: 0 | V51: 0 | W51: 0 | X51: 0 | Y51: 0 | Z51: 0 | AA51: 0 | AB51: 0 | AC51: 0 | AD51: 0 | AE51: 0 | AF51: 0 | AG51: 0 | AH51: 0 | AI51: 0 | AS51: 0 | AT51: 0 | AU51: 0 | AV51: 0 | AW51: 0 | AX51: 0 | AY51: 0 | AZ51: 0 | BA51: 0 | BB51: 0 | BC51: 0 | BE51: 0 | BJ51: 0 | BK51: 0 | BL51: 0 | BM51: 0 | BN51: 0 | BO51: 0 | BR51: 0 | BS51: 0 | BT51: 0 | BU51: 0
E52: 0 | F52: 0 | G52: 0 | H52: 0 | I52: 0 | J52: 0 | K52: 0 | L52: 0 | O52: 0 | U52: 0 | V52: 0 | W52: 0 | X52: 0 | Y52: 0 | Z52: 0 | AA52: 0 | AB52: 0 | AC52: 0 | AD52: 0 | AE52: 0 | AF52: 0 | AG52: 0 | AH52: 0 | AI52: 0 | AS52: 0 | AT52: 0 | AU52: 0 | AV52: 0 | AW52: 0 | AX52: 0 | AY52: 0 | AZ52: 0 | BA52: 0 | BB52: 0 | BC52: 0 | BE52: 0 | BJ52: 0 | BK52: 0 | BL52: 0 | BM52: 0 | BN52: 0 | BO52: 0 | BR52: 0 | BS52: 0 | BT52: 0 | BU52: 0
E53: 0 | F53: 0 | G53: 0 | H53: 0 | I53: 0 | J53: 0 | K53: 0 | L53: 0 | O53: 0 | U53: 0 | V53: 0 | W53: 0 | X53: 0 | Y53: 0 | Z53: 0 | AA53: 0 | AB53: 0 | AC53: 0 | AD53: 0 | AE53: 0 | AF53: 0 | AG53: 0 | AH53: 0 | AI53: 0 | AS53: 0 | AT53: 0 | AU53: 0 | AV53: 0 | AW53: 0 | AX53: 0 | AY53: 0 | AZ53: 0 | BA53: 0 | BB53: 0 | BC53: 0 | BE53: 0 | BJ53: 0 | BK53: 0 | BL53: 0 | BM53: 0 | BN53: 0 | BO53: 0 | BR53: 0 | BS53: 0 | BT53: 0 | BU53: 0
E54: 0 | F54: 0 | G54: 0 | H54: 0 | I54: 0 | J54: 0 | K54: 0 | L54: 0 | O54: 0 | U54: 0 | V54: 0 | W54: 0 | X54: 0 | Y54: 0 | Z54: 0 | AA54: 0 | AB54: 0 | AC54: 0 | AD54: 0 | AE54: 0 | AF54: 0 | AG54: 0 | AH54: 0 | AI54: 0 | AS54: 0 | AT54: 0 | AU54: 0 | AV54: 0 | AW54: 0 | AX54: 0 | AY54: 0 | AZ54: 0 | BA54: 0 | BB54: 0 | BC54: 0 | BE54: 0 | BJ54: 0 | BK54: 0 | BL54: 0 | BM54: 0 | BN54: 0 | BO54: 0 | BR54: 0 | BS54: 0 | BT54: 0 | BU54: 0
E55: 0 | F55: 0 | G55: 0 | H55: 0 | I55: 0 | J55: 0 | K55: 0 | L55: 0 | O55: 0 | U55: 0 | V55: 0 | W55: 0 | X55: 0 | Y55: 0 | Z55: 0 | AA55: 0 | AB55: 0 | AC55: 0 | AD55: 0 | AE55: 0 | AF55: 0 | AG55: 0 | AH55: 0 | AI55: 0 | AS55: 0 | AT55: 0 | AU55: 0 | AV55: 0 | AW55: 0 | AX55: 0 | AY55: 0 | AZ55: 0 | BA55: 0 | BB55: 0 | BC55: 0 | BE55: 0 | BJ55: 0 | BK55: 0 | BL55: 0 | BM55: 0 | BN55: 0 | BO55: 0 | BR55: 0 | BS55: 0 | BT55: 0 | BU55: 0
E56: 0 | F56: 0 | G56: 0 | H56: 0 | I56: 0 | J56: 0 | K56: 0 | L56: 0 | O56: 0 | U56: 0 | V56: 0 | W56: 0 | X56: 0 | Y56: 0 | Z56: 0 | AA56: 0 | AB56: 0 | AC56: 0 | AD56: 0 | AE56: 0 | AF56: 0 | AG56: 0 | AH56: 0 | AI56: 0 | AS56: 0 | AT56: 0 | AU56: 0 | AV56: 0 | AW56: 0 | AX56: 0 | AY56: 0 | AZ56: 0 | BA56: 0 | BB56: 0 | BC56: 0 | BE56: 0 | BJ56: 0 | BK56: 0 | BL56: 0 | BM56: 0 | BN56: 0 | BO56: 0 | BR56: 0 | BS56: 0 | BT56: 0 | BU56: 0
E57: 0 | F57: 0 | G57: 0 | H57: 0 | I57: 0 | J57: 0 | K57: 0 | L57: 0 | O57: 0 | U57: 0 | V57: 0 | W57: 0 | X57: 0 | Y57: 0 | Z57: 0 | AA57: 0 | AB57: 0 | AC57: 0 | AD57: 0 | AE57: 0 | AF57: 0 | AG57: 0 | AH57: 0 | AI57: 0 | AS57: 0 | AT57: 0 | AU57: 0 | AV57: 0 | AW57: 0 | AX57: 0 | AY57: 0 | AZ57: 0 | BA57: 0 | BB57: 0 | BC57: 0 | BE57: 0 | BJ57: 0 | BK57: 0 | BL57: 0 | BM57: 0 | BN57: 0 | BO57: 0 | BR57: 0 | BS57: 0 | BT57: 0 | BU57: 0
E58: 0 | F58: 0 | G58: 0 | H58: 0 | I58: 0 | J58: 0 | K58: 0 | L58: 0 | O58: 0 | U58: 0 | V58: 0 | W58: 0 | X58: 0 | Y58: 0 | Z58: 0 | AA58: 0 | AB58: 0 | AC58: 0 | AD58: 0 | AE58: 0 | AF58: 0 | AG58: 0 | AH58: 0 | AI58: 0 | AS58: 0 | AT58: 0 | AU58: 0 | AV58: 0 | AW58: 0 | AX58: 0 | AY58: 0 | AZ58: 0 | BA58: 0 | BB58: 0 | BC58: 0 | BE58: 0 | BJ58: 0 | BK58: 0 | BL58: 0 | BM58: 0 | BN58: 0 | BO58: 0 | BR58: 0 | BS58: 0 | BT58: 0 | BU58: 0
E59: 0 | F59: 0 | G59: 0 | H59: 0 | I59: 0 | J59: 0 | K59: 0 | L59: 0 | O59: 0 | U59: 0 | V59: 0 | W59: 0 | X59: 0 | Y59: 0 | Z59: 0 | AA59: 0 | AB59: 0 | AC59: 0 | AD59: 0 | AE59: 0 | AF59: 0 | AG59: 0 | AH59: 0 | AI59: 0 | AS59: 0 | AT59: 0 | AU59: 0 | AV59: 0 | AW59: 0 | AX59: 0 | AY59: 0 | AZ59: 0 | BA59: 0 | BB59: 0 | BC59: 0 | BE59: 0 | BJ59: 0 | BK59: 0 | BL59: 0 | BM59: 0 | BN59: 0 | BO59: 0 | BR59: 0 | BS59: 0 | BT59: 0 | BU59: 0
E60: 0 | F60: 0 | G60: 0 | H60: 0 | I60: 0 | J60: 0 | K60: 0 | L60: 0 | O60: 0 | U60: 0 | V60: 0 | W60: 0 | X60: 0 | Y60: 0 | Z60: 0 | AA60: 0 | AB60: 0 | AC60: 0 | AD60: 0 | AE60: 0 | AF60: 0 | AG60: 0 | AH60: 0 | AI60: 0 | AS60: 0 | AT60: 0 | AU60: 0 | AV60: 0 | AW60: 0 | AX60: 0 | AY60: 0 | AZ60: 0 | BA60: 0 | BB60: 0 | BC60: 0 | BE60: 0 | BJ60: 0 | BK60: 0 | BL60: 0 | BM60: 0 | BN60: 0 | BO60: 0 | BR60: 0 | BS60: 0 | BT60: 0 | BU60: 0
E61: 0 | F61: 0 | G61: 0 | H61: 0 | I61: 0 | J61: 0 | K61: 0 | L61: 0 | O61: 0 | U61: 0 | V61: 0 | W61: 0 | X61: 0 | Y61: 0 | Z61: 0 | AA61: 0 | AB61: 0 | AC61: 0 | AD61: 0 | AE61: 0 | AF61: 0 | AG61: 0 | AH61: 0 | AI61: 0 | AS61: 0 | AT61: 0 | AU61: 0 | AV61: 0 | AW61: 0 | AX61: 0 | AY61: 0 | AZ61: 0 | BA61: 0 | BB61: 0 | BC61: 0 | BE61: 0 | BJ61: 0 | BK61: 0 | BL61: 0 | BM61: 0 | BN61: 0 | BO61: 0 | BR61: 0 | BS61: 0 | BT61: 0 | BU61: 0
E62: 0 | F62: 0 | G62: 0 | H62: 0 | I62: 0 | J62: 0 | K62: 0 | L62: 0 | O62: 0 | U62: 0 | V62: 0 | W62: 0 | X62: 0 | Y62: 0 | Z62: 0 | AA62: 0 | AB62: 0 | AC62: 0 | AD62: 0 | AE62: 0 | AF62: 0 | AG62: 0 | AH62: 0 | AI62: 0 | AS62: 0 | AT62: 0 | AU62: 0 | AV62: 0 | AW62: 0 | AX62: 0 | AY62: 0 | AZ62: 0 | BA62: 0 | BB62: 0 | BC62: 0 | BE62: 0 | BJ62: 0 | BK62: 0 | BL62: 0 | BM62: 0 | BN62: 0 | BO62: 0 | BR62: 0 | BS62: 0 | BT62: 0 | BU62: 0
E63: 0 | F63: 0 | G63: 0 | H63: 0 | I63: 0 | J63: 0 | K63: 0 | L63: 0 | O63: 0 | U63: 0 | V63: 0 | W63: 0 | X63: 0 | Y63: 0 | Z63: 0 | AA63: 0 | AB63: 0 | AC63: 0 | AD63: 0 | AE63: 0 | AF63: 0 | AG63: 0 | AH63: 0 | AI63: 0 | AS63: 0 | AT63: 0 | AU63: 0 | AV63: 0 | AW63: 0 | AX63: 0 | AY63: 0 | AZ63: 0 | BA63: 0 | BB63: 0 | BC63: 0 | BE63: 0 | BJ63: 0 | BK63: 0 | BL63: 0 | BM63: 0 | BN63: 0 | BO63: 0 | BR63: 0 | BS63: 0 | BT63: 0 | BU63: 0
E64: 0 | F64: 0 | G64: 0 | H64: 0 | I64: 0 | J64: 0 | K64: 0 | L64: 0 | O64: 0 | U64: 0 | V64: 0 | W64: 0 | X64: 0 | Y64: 0 | Z64: 0 | AA64: 0 | AB64: 0 | AC64: 0 | AD64: 0 | AE64: 0 | AF64: 0 | AG64: 0 | AH64: 0 | AI64: 0 | AS64: 0 | AT64: 0 | AU64: 0 | AV64: 0 | AW64: 0 | AX64: 0 | AY64: 0 | AZ64: 0 | BA64: 0 | BB64: 0 | BC64: 0 | BE64: 0 | BJ64: 0 | BK64: 0 | BL64: 0 | BM64: 0 | BN64: 0 | BO64: 0 | BR64: 0 | BS64: 0 | BT64: 0 | BU64: 0
E65: 0 | F65: 0 | G65: 0 | H65: 0 | I65: 0 | J65: 0 | K65: 0 | L65: 0 | O65: 0 | U65: 0 | V65: 0 | W65: 0 | X65: 0 | Y65: 0 | Z65: 0 | AA65: 0 | AB65: 0 | AC65: 0 | AD65: 0 | AE65: 0 | AF65: 0 | AG65: 0 | AH65: 0 | AI65: 0 | AS65: 0 | AT65: 0 | AU65: 0 | AV65: 0 | AW65: 0 | AX65: 0 | AY65: 0 | AZ65: 0 | BA65: 0 | BB65: 0 | BC65: 0 | BE65: 0 | BJ65: 0 | BK65: 0 | BL65: 0 | BM65: 0 | BN65: 0 | BO65: 0 | BR65: 0 | BS65: 0 | BT65: 0 | BU65: 0
E66: 0 | F66: 0 | G66: 0 | H66: 0 | I66: 0 | J66: 0 | K66: 0 | L66: 0 | O66: 0 | U66: 0 | V66: 0 | W66: 0 | X66: 0 | Y66: 0 | Z66: 0 | AA66: 0 | AB66: 0 | AC66: 0 | AD66: 0 | AE66: 0 | AF66: 0 | AG66: 0 | AH66: 0 | AI66: 0 | AS66: 0 | AT66: 0 | AU66: 0 | AV66: 0 | AW66: 0 | AX66: 0 | AY66: 0 | AZ66: 0 | BA66: 0 | BB66: 0 | BC66: 0 | BE66: 0 | BJ66: 0 | BK66: 0 | BL66: 0 | BM66: 0 | BN66: 0 | BO66: 0 | BR66: 0 | BS66: 0 | BT66: 0 | BU66: 0
E67: 0 | F67: 0 | G67: 0 | H67: 0 | I67: 0 | J67: 0 | K67: 0 | L67: 0 | O67: 0 | U67: 0 | V67: 0 | W67: 0 | X67: 0 | Y67: 0 | Z67: 0 | AA67: 0 | AB67: 0 | AC67: 0 | AD67: 0 | AE67: 0 | AF67: 0 | AG67: 0 | AH67: 0 | AI67: 0 | AS67: 0 | AT67: 0 | AU67: 0 | AV67: 0 | AW67: 0 | AX67: 0 | AY67: 0 | AZ67: 0 | BA67: 0 | BB67: 0 | BC67: 0 | BE67: 0 | BJ67: 0 | BK67: 0 | BL67: 0 | BM67: 0 | BN67: 0 | BO67: 0 | BR67: 0 | BS67: 0 | BT67: 0 | BU67: 0
E68: 0 | F68: 0 | G68: 0 | H68: 0 | I68: 0 | J68: 0 | K68: 0 | L68: 0 | O68: 0 | U68: 0 | V68: 0 | W68: 0 | X68: 0 | Y68: 0 | Z68: 0 | AA68: 0 | AB68: 0 | AC68: 0 | AD68: 0 | AE68: 0 | AF68: 0 | AG68: 0 | AH68: 0 | AI68: 0 | AS68: 0 | AT68: 0 | AU68: 0 | AV68: 0 | AW68: 0 | AX68: 0 | AY68: 0 | AZ68: 0 | BA68: 0 | BB68: 0 | BC68: 0 | BE68: 0 | BJ68: 0 | BK68: 0 | BL68: 0 | BM68: 0 | BN68: 0 | BO68: 0 | BR68: 0 | BS68: 0 | BT68: 0 | BU68: 0
E69: 0 | F69: 0 | G69: 0 | H69: 0 | I69: 0 | J69: 0 | K69: 0 | L69: 0 | O69: 0 | U69: 0 | V69: 0 | W69: 0 | X69: 0 | Y69: 0 | Z69: 0 | AA69: 0 | AB69: 0 | AC69: 0 | AD69: 0 | AE69: 0 | AF69: 0 | AG69: 0 | AH69: 0 | AI69: 0 | AS69: 0 | AT69: 0 | AU69: 0 | AV69: 0 | AW69: 0 | AX69: 0 | AY69: 0 | AZ69: 0 | BA69: 0 | BB69: 0 | BC69: 0 | BE69: 0 | BJ69: 0 | BK69: 0 | BL69: 0 | BM69: 0 | BN69: 0 | BO69: 0 | BR69: 0 | BS69: 0 | BT69: 0 | BU69: 0
E70: 0 | F70: 0 | G70: 0 | H70: 0 | I70: 0 | J70: 0 | K70: 0 | L70: 0 | O70: 0 | U70: 0 | V70: 0 | W70: 0 | X70: 0 | Y70: 0 | Z70: 0 | AA70: 0 | AB70: 0 | AC70: 0 | AD70: 0 | AE70: 0 | AF70: 0 | AG70: 0 | AH70: 0 | AI70: 0 | AS70: 0 | AT70: 0 | AU70: 0 | AV70: 0 | AW70: 0 | AX70: 0 | AY70: 0 | AZ70: 0 | BA70: 0 | BB70: 0 | BC70: 0 | BE70: 0 | BJ70: 0 | BK70: 0 | BL70: 0 | BM70: 0 | BN70: 0 | BO70: 0 | BR70: 0 | BS70: 0 | BT70: 0 | BU70: 0
... 16 more rows

Sheet Pitcher temp (hidden)
R1: Season | U1: Last 14 days | X1: Home or Away | AN1: Weather | AW1: ours | BE1: theirs
A2: Player | B2: Pitchers | C2: Team | D2: FD Salary | E2: FD PPG YTD | F2: FD PPG Last 15 days | G2: FD PPG Last Gm | H2: DK Salary | I2: DK PPG YTD | J2: DK PPG Last 15 days | K2: DK PPG Last Gm | L2: odds team | M2: Opponent | N2: Home Away | O2: Odds | P2: Over Under | Q2: Throws | R2: IP | S2: ERA | T2: WHIP | U2: IP | V2: ERA | W2: WHIP | X2: AB | Y2: OPS | Z2: Oppo Rank Runs scored L7 | AA2: Oppo OPS L7 | AB2: Team stats team | AC2: Oppo Rank verse LHP or RHP | AD2: Oppo OPS vs LHP or RHP | AE2: Oppo Rank at Home/Away | AF2: Oppo OPS Home/Away | AG2: Team | AH2: home team | AI2: Stadium | AJ2: Ballpark rank for runs scores | AK2: Runs ratio | AL2: Ballpark rank for HR | AM2: HR Ratio | AN2: weather team | AO2: Temp | AP2: weather | AQ2: Our FD Projection | AR2: Our DK Projection | AS2: Your FD Projection | AT2: Your DK Projection | AU2: proj1 | AV2: proj2 | AW2: proj 3 | AX2: proj 4 | AY2: proj 5 | AZ2: proj 6 | BA2: proj 7 | BB2: proj1 | BC2: proj2 | BD2: proj 3 | BE2: proj 4 | BF2: proj 5 | BG2: proj 6 | BH2: proj 7 | BI2: Opponent K's Rank | BJ2: GB/FB | BK2: SO/9 | BL2: Woba Vs LHB | BM2: Woba Vs RHB | BN2: Gametime | BO2: BABIP vs LHB | BP2: BABIP vs RHB | BQ2: K/AB vs LHB | BR2: K/AB vs RHB | BS2: BABIP home away | BT2: K/AB Home Away | BU2: Weather4 team | BV2: Players team | BW2: Humidity | BX2: Forecast | BY2: Chance of rain at start | BZ2: Chance of rain 1 hr in | CA2: Chance of rain 2 hrs in | CB2: Wind | CC2: Temp | CD2: 2014 Woba Vs LHB | CE2: 2014 Woba Vs RHB | CF2: Opponent team | CG2: HR/AB vs LHB | CH2: HR/AB vs RHB | CI2: 2014 xFIP Vs LHB | CJ2: 2014 xFIP Vs RHB | CK2: 2015 xFIP Vs LHB | CL2: 2015 xFIP Vs RHB | CM2: 2015 xFIP | CN2: 2015 SIERA | CO2: FG Name | CP2: name2 | CQ2: Our FD Projection $ per Pt | CR2: Our DK Projection $ per Pt | CS2: Your FD Projection $ per Pt | CT2: Your DK Projection $ per Pt
A3: =IF(OR('FD pit'!$C5="",'FD pit'!$C5="Name"),"",'FD pit'!$C5) -> Price, David | B3: =IF(A3="","",VLOOKUP(A3,names!F:G,2,FALSE)) -> David Price | C3: =IF($A3="","",VLOOKUP($A3,'FD pit'!$C:P,4,FALSE)) -> Tor | D3: =IF($A3="",0,VLOOKUP($A3,'FD pit'!$C:AP,5,FALSE)) -> 12300 | E3: =IF($A3="",0,VLOOKUP($A3,'FD pit'!$C:AQ,MATCH("/GP",'FD pit'!$C$4:$N$4,0),FALSE)) -> 14.3 | F3: =IF($A3="",0,VLOOKUP($A3,'FD pit'!$C:AR,MATCH("/GP",'FD pit'!$C$4:$N$4,0)+2,FALSE)) -> 17 | G3: =IF($A3="",0,VLOOKUP($A3,'FD pit'!$C:AS,MATCH("/GP",'FD pit'!$C$4:$N$4,0)+3,FALSE)) -> 18 | H3: =IFERROR(VLOOKUP($A3,'DK pit'!$C:R,5,FALSE),0) -> 12100 | I3: =IFERROR(VLOOKUP($A3,'DK pit'!$C:S,MATCH("/GP",'DK pit'!$C$4:$N$4,0),FALSE),0) -> 24 | J3: =IFERROR(VLOOKUP($A3,'DK pit'!$C:T,MATCH("/GP",'FD pit'!$C$4:$N$4,0)+2,FALSE),0) -> 27.8 | K3: =IFERROR(VLOOKUP($A3,'DK pit'!$C:U,MATCH("/GP",'DK pit'!$C$4:$N$4,0)+3,FALSE),0) -> 31.9 | L3: =IFERROR(VLOOKUP(C3,team!A:B,2,FALSE),"") -> TOR | M3: =IFERROR(VLOOKUP(L3,Games!A:B,2,FALSE),"") -> TB | N3: =IFERROR(VLOOKUP($L3,Games!$A:C,3,FALSE),"") -> Home | O3: =IF(A3="",0,IFERROR(VALUE(IFERROR(VLOOKUP($L3,Games!$A:F,4,FALSE),"")),110)) -> -188 | P3: =IFERROR(VALUE(LEFT(VLOOKUP($L3,Games!$A:E,5,FALSE),4)),"") -> 7.5 | Q3: =VLOOKUP(B3,names!J:M,4,FALSE) -> L | R3: =IFERROR(IF($A3="",0,VLOOKUP($B3,pitchers!$B:AM,12,FALSE)),"") -> 215.1 | S3: =IF($A3="",0,VLOOKUP($B3,pitchers!$B:AN,20,FALSE)) -> 2.34 | T3: =IF($A3="",0,VLOOKUP($B3,pitchers!$B:AO,38,FALSE)) -> 1.068 | U3: =IFERROR(IF($A3="",0,VLOOKUP($B3,pitchersL14!$B:AP,12,FALSE)),0) -> 14 | V3: =IFERROR(IF($A3="",0,VLOOKUP($B3,pitchersL14!$B:AQ,20,FALSE)),"---") -> 0.64 | W3: =IFERROR(IF($A3="",0,VLOOKUP($B3,pitchersL14!$B:AR,38,FALSE)),0) -> 0.857 | X3: =IFERROR(IF($A3="",0,IF($N3="home",VLOOKUP('Pitcher temp'!$CP3,'P-home'!$B:AF,7,FALSE),VLOOKUP('Pitcher temp'!$CP3,'P-road'!$B:AF,7,FALSE))),"") -> 397 | Y3: =IFERROR(IF($A3="",0,IF($N3="home",VLOOKUP('Pitcher temp'!$CP3,'P-home'!$B:AG,31,FALSE),VLOOKUP('Pitcher temp'!$CP3,'P-road'!$B:AG,31,FALSE))),"") -> 0.623 | Z3: =IF($A3="",0,INDEX('Team B L7'!$A:$A,MATCH('Pitcher temp'!$AG3,'Team B L7'!$B:$B,0),0)) -> 4 | AA3: =IF($A3="",0,INDEX('Team B L7'!$O:$O,MATCH('Pitcher temp'!$AG3,'Team B L7'!$B:$B,0),0)) -> 0.847 | AB3: =INDEX(team!C:C,MATCH('Pitcher temp'!M3,team!B:B,0),0) -> Tampa Bay | AC3: =IF($Q3="R",INDEX(TeamBVR!$A:$A,MATCH('Pitcher temp'!$AB3,TeamBVR!$B:$B,0),0),INDEX(TeamBVL!$A:$A,MATCH('Pitcher temp'!$AB3,TeamBVR!$B:$B,0),0)) -> 30 | AD3: =IF($Q3="R",INDEX(TeamBVR!$O:$O,MATCH('Pitcher temp'!$AB3,TeamBVR!$B:$B,0),0),INDEX(TeamBVL!$O:$O,MATCH('Pitcher temp'!$AB3,TeamBVR!$B:$B,0),0)) -> 0.646 | AE3: =IF($A3="","",IF($N3="home",INDEX(TeamBroad!$A:$A,MATCH('Pitcher temp'!$AG3,TeamBroad!$B:$B,0),0),INDEX(TeamBhome!$A:$A,MATCH('Pitcher temp'!$AG3,TeamBhome!$B:$B,0),0))) -> 18 | AF3: =IF($A3="","",IF($N3="home",INDEX(TeamBroad!$O:$O,MATCH('Pitcher temp'!$AG3,TeamBroad!$B:$B,0),0),INDEX(TeamBroad!$O:$O,MATCH('Pitcher temp'!$AG3,TeamBroad!$B:$B,0),0))) -> 0.74 | AG3: =IF(A3="","",VLOOKUP(M3,team!B:C,2,FALSE)) -> Tampa Bay | AH3: =IF(N3="home",VLOOKUP(L3,team!B:C,2,FALSE),VLOOKUP('Pitcher temp'!M3,team!B:C,2,FALSE)) -> Toronto | AI3: =VLOOKUP($AH3,team!$E:G,3,FALSE) -> Rogers Centre (Toronto, Ontario) | AJ3: =VLOOKUP($AH3,team!$E:H,2,FALSE) -> 9 | AK3: =VLOOKUP($AH3,team!$E:I,4,FALSE) -> 1.042 | AL3: =VLOOKUP($AH3,team!$J:P,2,FALSE) -> 3 | AM3: =VLOOKUP($AH3,team!$J:Q,4,FALSE) -> 1.31 | AN3: =VLOOKUP(AH3,team!C:O,13,FALSE) -> Toronto Blue Jays | AO3: =INDEX(weather!$F:$F,MATCH('Pitcher temp'!$AN3,weather!$B:$B,0),0) -> 0 | AP3: =INDEX(weather!$F:$F,(MATCH('Pitcher temp'!$AN3,weather!$B:$B,0))+1,0) -> 0 | AQ3: =IFERROR(IFERROR($E3+($E3*$AU3)+($E3*$AV3)+($E3*$AW3)+($E3*$AX3)+($E3*$AY3)+($E3*$AZ3)+($E3*$BA3),"")*(IF(R3<(0.25*MAX(R:R)),0.7,1)),"") -> 16.731 | AR3: =IFERROR(IFERROR($I3+($I3*$AU3)+($I3*$AV3)+($I3*$AW3)+($I3*$AX3)+($I3*$AY3)+($I3*$AZ3)+($I3*$BA3),"")*(IF(R3<(0.25*MAX(R:R)),0.7,1)),"") -> 28.08 | AS3: =IFERROR(IFERROR($E3+($E3*$BB3)+($E3*$BC3)+($E3*$BD3)+($E3*$BE3)+($E3*$BF3)+($E3*$BG3)+($E3*$BH3),"")*(IF(R3<(0.25*MAX(R:R)),0.7,1)),"") -> 14.3 | AT3: =IFERROR(IFERROR($I3+($I3*$BB3)+($I3*$BC3)+($I3*$BD3)+($I3*$BE3)+($I3*$BF3)+($I3*$BG3)+($I3*$BH3),"")*(IF(R3<(0.25*MAX(R:R)),0.7,1)),"") -> 24 | AU3: =IF($V3>9,Projections!$H$4,IF('Pitcher temp'!$V3>5,Projections!$H$5,IF('Pitcher temp'!$V3<1.8,Projections!$H$6,0))) -> 0.12 | AV3: =IF($Z3<6,Projections!$H$9,IF($Z3>24,Projections!$H$10,0)) -> -0.12 | AW3: =IF($AC3<6,Projections!$H$13,IF($AC3>24,Projections!$H$14,0)) -> 0.08 | AX3: =IF($AE3<6,Projections!$H$17,IF($AE3>24,Projections!$H$18,0)) -> 0 | AY3: =IF($AJ3<6,Projections!$H$21,IF($AJ3>24,Projections!$H$22,0)) -> 0 | AZ3: =IF($P3>9.5,Projections!$H$25,IF('Pitcher temp'!$P3>8,Projections!$H$26,IF(AND('Pitcher temp'!$P3<7,'Pitcher temp'!$P3>1),Projections!$H$27,0))) -> 0 | BA3: =IF($O3<-190,Projections!$H$30,IF('Pitcher temp'!$O3<-149,Projections!$H$31,IF('Pitcher temp'!$O3>145,Projections!$H$32,0)))+(IF($BI3<7,Projections!$H$35,IF($BI3>23,Projections!$H$36,0))) -> 0.09 | BB3: =IF($V3>9,Projections!$I$4,IF('Pitcher temp'!$V3>5,Projections!$I$5,IF('Pitcher temp'!$V3<1.8,Projections!$I$6,0))) -> 0 | BC3: =IF($Z3<6,Projections!$I$9,IF($Z3>24,Projections!$I$10,0)) -> 0 | BD3: =IF($AC3<6,Projections!$I$13,IF($AC3>24,Projections!$I$14,0)) -> 0 | BE3: =IF($AE3<6,Projections!$I$17,IF($AE3>24,Projections!$I$18,0)) -> 0 | BF3: =IF($AJ3<6,Projections!$I$21,IF($AJ3>24,Projections!$I$22,0)) -> 0 | BG3: =IF($P3>9.5,Projections!$I$25,IF('Pitcher temp'!$P3>8,Projections!$I$26,IF(AND('Pitcher temp'!$P3<7,'Pitcher temp'!$P3>1),Projections!$I$27,0))) -> 0 | BH3: =IF($O3<-190,Projections!$I$30,IF('Pitcher temp'!$O3<-149,Projections!$I$31,IF('Pitcher temp'!$O3>145,Projections!$I$32,0)))+(IF($BI3<7,Projections!$I$35,IF($BI3>23,Projections!$I$36,0))) -> 0 | BI3: =IF(A3="",0,INDEX(teamk!A:A,MATCH('Pitcher temp'!AB3,teamk!B:B,0),0)) -> 9 | BJ3: =IF($A3="",0,VLOOKUP($B3,pitchers!$B:CE,35,FALSE)) -> 0.71 | BK3: =IF($A3="",0,VLOOKUP($B3,pitchers!$B:CF,40,FALSE)) -> 9.2 | BL3: =IFERROR(IF($A3="",0,VLOOKUP($CO3,FG!$N:BH,6,FALSE)),0) -> 0.289 | BM3: =IFERROR(IF($A3="",0,VLOOKUP($CO3,FG!$AP:BI,6,FALSE)),0) -> 0.269 | BN3: =VLOOKUP(B3,'batters-temp'!V:CG,64,FALSE) -> 13:05:00 | BO3: =IFERROR(IF($A3="",0,VLOOKUP($CP3,PVLHB!$B:AQ,42,FALSE)),0) -> 0.3128834356 | BP3: =IFERROR(IF($A3="",0,VLOOKUP($CP3,PVRHB!$B:AR,42,FALSE)),0) -> 0.2819277108 | BQ3: =IFERROR(IF($A3="",0,VLOOKUP($B3,PVLHB!$B:AS,43,FALSE)),0) -> 0.2117117117 | BR3: =IFERROR(IF($A3="",0,VLOOKUP($B3,PVRHB!$B:AT,43,FALSE)),0) -> 0.2670807453 | BS3: =IFERROR(IF($A3="",0,IF($N3="home",VLOOKUP('Pitcher temp'!$CP3,'P-home'!$B:BZ,32,FALSE),VLOOKUP('Pitcher temp'!$CP3,'P-road'!$B:BZ,32,FALSE))),"") -> 0.3074204947 | BT3: =IFERROR(IF($A3="",0,IF($N3="home",VLOOKUP('Pitcher temp'!$CP3,'P-home'!$B:CA,33,FALSE),VLOOKUP('Pitcher temp'!$CP3,'P-road'!$B:CA,33,FALSE))),"") -> 0.274559194 | BU3: =IF(N3="Home",VLOOKUP(M3,team!B:D,3,FALSE),VLOOKUP('Pitcher temp'!BV3,team!B:D,3,FALSE)) -> Tampa Bay Rays | BV3: =VLOOKUP(C3,team!A:B,2,FALSE) -> TOR | BW3: =IF(A3="",0,VLOOKUP($BU3,weather4!$T:AA,2,FALSE)) -> 0.68 | BX3: =VLOOKUP($BU3,weather4!$T:AB,3,FALSE) -> Partly Cloudy | BY3: =IF(A3="",0,VLOOKUP($BU3,weather4!$T:AC,4,FALSE)) -> 0 | BZ3: =VLOOKUP($BU3,weather4!$T:AD,5,FALSE) -> 0 | CA3: =VLOOKUP($BU3,weather4!$T:AE,6,FALSE) -> 0 | CB3: =VLOOKUP($BU3,weather4!$T:AF,7,FALSE) -> ENE 14 mph | CC3: =VLOOKUP($BU3,weather4!$T:AG,8,FALSE) -> 62° | CD3: =IFERROR(IF($A3="",0,VLOOKUP($CO3,PVLHB2014!$AX:BZ,6,FALSE)),0) -> 0.292 | CE3: =IFERROR(IF($A3="",0,VLOOKUP($CO3,PVRHB2014!$AW:CA,6,FALSE)),0) -> 0.283 | CF3: =INDEX(team!A:A,(MATCH('Pitcher temp'!M3,team!B:B,0))) -> Tam | CG3: =IFERROR(IF($A3="",0,VLOOKUP($B3,PVLHB!$B:BJ,44,FALSE)),0) -> 0.01428571429 | CH3: =IFERROR(IF($A3="",0,VLOOKUP($B3,PVRHB!$B:BJ,44,FALSE)),0) -> 0.02181208054 | CI3: =IFERROR(IF($A3="",0,VLOOKUP($CO3,PVLHB2014!$AX:CE,9,FALSE)),0) -> 2.86 | CJ3: =IFERROR(IF($A3="",0,VLOOKUP($CO3,PVRHB2014!$AW:CF,9,FALSE)),0) -> 2.72 | CK3: =IFERROR(IF($A3="",0,VLOOKUP($CO3,FG!$N:CG,10,FALSE)),0) -> 3.16 | CL3: =IFERROR(IF($A3="",0,VLOOKUP($CO3,FG!$AP:CH,10,FALSE)),0) -> 3.28 | CM3: =IFERROR(IF($A3="",0,VLOOKUP($CO3,FG!$A:CI,8,FALSE)),0) -> 3.25 | CN3: =IFERROR(IF($A3="",0,VLOOKUP($CO3,FG!$A:CJ,10,FALSE)),0) -> 3.29 | CO3: =IF($B3="","",VLOOKUP($B3,names!$J:AB,7,FALSE)) -> David Price | CP3: =IF($B3="","",VLOOKUP($B3,names!$J:AB,8,FALSE)) -> David Price | CQ3: =IFERROR(VALUE(FIXED($D3/AQ3,0)),0) -> 735 | CR3: =IFERROR(VALUE(FIXED($H3/AR3,0)),0) -> 431 | CS3: =IFERROR(VALUE(FIXED($D3/AS3,0)),0) -> 860 | CT3: =IFERROR(VALUE(FIXED($H3/AT3,0)),0) -> 504
A4: =IF(OR('FD pit'!$C6="",'FD pit'!$C6="Name"),"",'FD pit'!$C6) -> Archer, Chris | B4: =IF(A4="","",VLOOKUP(A4,names!F:G,2,FALSE)) -> Chris Archer | C4: =IF($A4="","",VLOOKUP($A4,'FD pit'!$C:P,4,FALSE)) -> Tam | D4: =IF($A4="",0,VLOOKUP($A4,'FD pit'!$C:AP,5,FALSE)) -> 12000 | E4: =IF($A4="",0,VLOOKUP($A4,'FD pit'!$C:AQ,MATCH("/GP",'FD pit'!$C$4:$N$4,0),FALSE)) -> 13.4 | F4: =IF($A4="",0,VLOOKUP($A4,'FD pit'!$C:AR,MATCH("/GP",'FD pit'!$C$4:$N$4,0)+2,FALSE)) -> 9.3 | G4: =IF($A4="",0,VLOOKUP($A4,'FD pit'!$C:AS,MATCH("/GP",'FD pit'!$C$4:$N$4,0)+3,FALSE)) -> 7 | H4: =IFERROR(VLOOKUP($A4,'DK pit'!$C:R,5,FALSE),0) -> 11000 | I4: =IFERROR(VLOOKUP($A4,'DK pit'!$C:S,MATCH("/GP",'DK pit'!$C$4:$N$4,0),FALSE),0) -> 22.9 | J4: =IFERROR(VLOOKUP($A4,'DK pit'!$C:T,MATCH("/GP",'FD pit'!$C$4:$N$4,0)+2,FALSE),0) -> 15.4 | K4: =IFERROR(VLOOKUP($A4,'DK pit'!$C:U,MATCH("/GP",'DK pit'!$C$4:$N$4,0)+3,FALSE),0) -> 10.4 | L4: =IFERROR(VLOOKUP(C4,team!A:B,2,FALSE),"") -> TB | M4: =IFERROR(VLOOKUP(L4,Games!A:B,2,FALSE),"") -> TOR | N4: =IFERROR(VLOOKUP($L4,Games!$A:C,3,FALSE),"") -> Away | O4: =IF(A4="",0,IFERROR(VALUE(IFERROR(VLOOKUP($L4,Games!$A:F,4,FALSE),"")),110)) -> 178 | P4: =IFERROR(VALUE(LEFT(VLOOKUP($L4,Games!$A:E,5,FALSE),4)),"") -> 7.5 | Q4: =VLOOKUP(B4,names!J:M,4,FALSE) -> R | R4: =IFERROR(IF($A4="",0,VLOOKUP($B4,pitchers!$B:AM,12,FALSE)),"") -> 203.1 | S4: =IF($A4="",0,VLOOKUP($B4,pitchers!$B:AN,20,FALSE)) -> 2.92 | T4: =IF($A4="",0,VLOOKUP($B4,pitchers!$B:AO,38,FALSE)) -> 1.082 | U4: =IFERROR(IF($A4="",0,VLOOKUP($B4,pitchersL14!$B:AP,12,FALSE)),0) -> 11 | V4: =IFERROR(IF($A4="",0,VLOOKUP($B4,pitchersL14!$B:AQ,20,FALSE)),"---") -> 2.45 | W4: =IFERROR(IF($A4="",0,VLOOKUP($B4,pitchersL14!$B:AR,38,FALSE)),0) -> 1.455 | X4: =IFERROR(IF($A4="",0,IF($N4="home",VLOOKUP('Pitcher temp'!$CP4,'P-home'!$B:AF,7,FALSE),VLOOKUP('Pitcher temp'!$CP4,'P-road'!$B:AF,7,FALSE))),"") -> 385 | Y4: =IFERROR(IF($A4="",0,IF($N4="home",VLOOKUP('Pitcher temp'!$CP4,'P-home'!$B:AG,31,FALSE),VLOOKUP('Pitcher temp'!$CP4,'P-road'!$B:AG,31,FALSE))),"") -> 0.608 | Z4: =IF($A4="",0,INDEX('Team B L7'!$A:$A,MATCH('Pitcher temp'!$AG4,'Team B L7'!$B:$B,0),0)) -> 15 | AA4: =IF($A4="",0,INDEX('Team B L7'!$O:$O,MATCH('Pitcher temp'!$AG4,'Team B L7'!$B:$B,0),0)) -> 0.807 | AB4: =INDEX(team!C:C,MATCH('Pitcher temp'!M4,team!B:B,0),0) -> Toronto | AC4: =IF(Q4="R",INDEX(TeamBVR!A:A,MATCH('Pitcher temp'!AB4,TeamBVR!B:B,0),0),INDEX(TeamBVL!A:A,MATCH('Pitcher temp'!AB4,TeamBVR!B:B,0),0)) -> 1 | AD4: =IF($Q4="R",INDEX(TeamBVR!$O:$O,MATCH('Pitcher temp'!$AB4,TeamBVR!$B:$B,0),0),INDEX(TeamBVL!$O:$O,MATCH('Pitcher temp'!$AB4,TeamBVR!$B:$B,0),0)) -> 0.782 | AE4: =IF($A4="","",IF($N4="home",INDEX(TeamBroad!$A:$A,MATCH('Pitcher temp'!$AG4,TeamBroad!$B:$B,0),0),INDEX(TeamBhome!$A:$A,MATCH('Pitcher temp'!$AG4,TeamBhome!$B:$B,0),0))) -> 1 | AF4: =IF($A4="","",IF($N4="home",INDEX(TeamBroad!$O:$O,MATCH('Pitcher temp'!$AG4,TeamBroad!$B:$B,0),0),INDEX(TeamBroad!$O:$O,MATCH('Pitcher temp'!$AG4,TeamBroad!$B:$B,0),0))) -> 0.749 | AG4: =IF(A4="","",VLOOKUP(M4,team!B:C,2,FALSE)) -> Toronto | AH4: =IF(N4="home",VLOOKUP(L4,team!B:C,2,FALSE),VLOOKUP('Pitcher temp'!M4,team!B:C,2,FALSE)) -> Toronto | AI4: =VLOOKUP($AH4,team!$E:G,3,FALSE) -> Rogers Centre (Toronto, Ontario) | AJ4: =VLOOKUP($AH4,team!$E:H,2,FALSE) -> 9 | AK4: =VLOOKUP($AH4,team!$E:I,4,FALSE) -> 1.042 | AL4: =VLOOKUP($AH4,team!$J:P,2,FALSE) -> 3 | AM4: =VLOOKUP($AH4,team!$J:Q,4,FALSE) -> 1.31 | AN4: =VLOOKUP(AH4,team!C:O,13,FALSE) -> Toronto Blue Jays | AO4: =INDEX(weather!$F:$F,MATCH('Pitcher temp'!$AN4,weather!$B:$B,0),0) -> 0 | AP4: =INDEX(weather!$F:$F,(MATCH('Pitcher temp'!$AN4,weather!$B:$B,0))+1,0) -> 0 | AQ4: =IFERROR(IFERROR($E4+($E4*$AU4)+($E4*$AV4)+($E4*$AW4)+($E4*$AX4)+($E4*$AY4)+($E4*$AZ4)+($E4*$BA4),"")*(IF(R4<(0.25*MAX(R:R)),0.7,1)),"") -> 9.38 | AR4: =IFERROR(IFERROR($I4+($I4*$AU4)+($I4*$AV4)+($I4*$AW4)+($I4*$AX4)+($I4*$AY4)+($I4*$AZ4)+($I4*$BA4),"")*(IF(R4<(0.25*MAX(R:R)),0.7,1)),"") -> 16.03 | AS4: =IFERROR(IFERROR($E4+($E4*$BB4)+($E4*$BC4)+($E4*$BD4)+($E4*$BE4)+($E4*$BF4)+($E4*$BG4)+($E4*$BH4),"")*(IF(R4<(0.25*MAX(R:R)),0.7,1)),"") -> 13.4 | AT4: =IFERROR(IFERROR($I4+($I4*$BB4)+($I4*$BC4)+($I4*$BD4)+($I4*$BE4)+($I4*$BF4)+($I4*$BG4)+($I4*$BH4),"")*(IF(R4<(0.25*MAX(R:R)),0.7,1)),"") -> 22.9 | AU4: =IF($V4>9,Projections!$H$4,IF('Pitcher temp'!$V4>5,Projections!$H$5,IF('Pitcher temp'!$V4<1.8,Projections!$H$6,0))) -> 0 | AV4: =IF($Z4<6,Projections!$H$9,IF($Z4>24,Projections!$H$10,0)) -> 0 | AW4: =IF($AC4<6,Projections!$H$13,IF($AC4>24,Projections!$H$14,0)) -> -0.08 | AX4: =IF($AE4<6,Projections!$H$17,IF($AE4>24,Projections!$H$18,0)) -> -0.07 | AY4: =IF($AJ4<6,Projections!$H$21,IF($AJ4>24,Projections!$H$22,0)) -> 0 | AZ4: =IF($P4>9.5,Projections!$H$25,IF('Pitcher temp'!$P4>8,Projections!$H$26,IF(AND('Pitcher temp'!$P4<7,'Pitcher temp'!$P4>1),Projections!$H$27,0))) -> 0 | BA4: =IF($O4<-190,Projections!$H$30,IF('Pitcher temp'!$O4<-149,Projections!$H$31,IF('Pitcher temp'!$O4>145,Projections!$H$32,0)))+(IF($BI4<7,Projections!$H$35,IF($BI4>23,Projections!$H$36,0))) -> -0.15 | BB4: =IF($V4>9,Projections!$I$4,IF('Pitcher temp'!$V4>5,Projections!$I$5,IF('Pitcher temp'!$V4<1.8,Projections!$I$6,0))) -> 0 | BC4: =IF($Z4<6,Projections!$I$9,IF($Z4>24,Projections!$I$10,0)) -> 0 | BD4: =IF($AC4<6,Projections!$I$13,IF($AC4>24,Projections!$I$14,0)) -> 0 | BE4: =IF($AE4<6,Projections!$I$17,IF($AE4>24,Projections!$I$18,0)) -> 0 | BF4: =IF($AJ4<6,Projections!$I$21,IF($AJ4>24,Projections!$I$22,0)) -> 0 | BG4: =IF($P4>9.5,Projections!$I$25,IF('Pitcher temp'!$P4>8,Projections!$I$26,IF(AND('Pitcher temp'!$P4<7,'Pitcher temp'!$P4>1),Projections!$I$27,0))) -> 0 | BH4: =IF($O4<-190,Projections!$I$30,IF('Pitcher temp'!$O4<-149,Projections!$I$31,IF('Pitcher temp'!$O4>145,Projections!$I$32,0)))+(IF($BI4<7,Projections!$I$35,IF($BI4>23,Projections!$I$36,0))) -> 0 | BI4: =IF(A4="",0,INDEX(teamk!A:A,MATCH('Pitcher temp'!AB4,teamk!B:B,0),0)) -> 25 | BJ4: =IF($A4="",0,VLOOKUP($B4,pitchers!$B:CE,35,FALSE)) -> 0.89 | BK4: =IF($A4="",0,VLOOKUP($B4,pitchers!$B:CF,40,FALSE)) -> 10.9 | BL4: =IFERROR(IF($A4="",0,VLOOKUP($CO4,FG!$N:BH,6,FALSE)),0) -> 0.258 | BM4: =IFERROR(IF($A4="",0,VLOOKUP($CO4,FG!$AP:BI,6,FALSE)),0) -> 0.264 | BN4: =VLOOKUP(B4,'batters-temp'!V:CG,64,FALSE) -> 13:05:00 | BO4: =IFERROR(IF($A4="",0,VLOOKUP($CP4,PVLHB!$B:AQ,42,FALSE)),0) -> 0.2894736842 | BP4: =IFERROR(IF($A4="",0,VLOOKUP($CP4,PVRHB!$B:AR,42,FALSE)),0) -> 0.2894736842 | BQ4: =IFERROR(IF($A4="",0,VLOOKUP($B4,PVLHB!$B:AS,43,FALSE)),0) -> 0.3004587156 | BR4: =IFERROR(IF($A4="",0,VLOOKUP($B4,PVRHB!$B:AT,43,FALSE)),0) -> 0.2961038961 | BS4: =IFERROR(IF($A4="",0,IF($N4="home",VLOOKUP('Pitcher temp'!$CP4,'P-home'!$B:BZ,32,FALSE),VLOOKUP('Pitcher temp'!$CP4,'P-road'!$B:BZ,32,FALSE))),"") -> 0.2781954887 | BT4: =IFERROR(IF($A4="",0,IF($N4="home",VLOOKUP('Pitcher temp'!$CP4,'P-home'!$B:CA,33,FALSE),VLOOKUP('Pitcher temp'!$CP4,'P-road'!$B:CA,33,FALSE))),"") -> 0.2857142857 | BU4: =IF(N4="Home",VLOOKUP(M4,team!B:D,3,FALSE),VLOOKUP('Pitcher temp'!BV4,team!B:D,3,FALSE)) -> Tampa Bay Rays | BV4: =VLOOKUP(C4,team!A:B,2,FALSE) -> TB | BW4: =IF(A4="",0,VLOOKUP($BU4,weather4!$T:AA,2,FALSE)) -> 0.68 | BX4: =VLOOKUP($BU4,weather4!$T:AB,3,FALSE) -> Partly Cloudy | BY4: =IF(A4="",0,VLOOKUP($BU4,weather4!$T:AC,4,FALSE)) -> 0 | BZ4: =VLOOKUP($BU4,weather4!$T:AD,5,FALSE) -> 0 | CA4: =VLOOKUP($BU4,weather4!$T:AE,6,FALSE) -> 0 | CB4: =VLOOKUP($BU4,weather4!$T:AF,7,FALSE) -> ENE 14 mph | CC4: =VLOOKUP($BU4,weather4!$T:AG,8,FALSE) -> 62° | CD4: =IFERROR(IF($A4="",0,VLOOKUP($CO4,PVLHB2014!$AX:BZ,6,FALSE)),0) -> 0.283 | CE4: =IFERROR(IF($A4="",0,VLOOKUP($CO4,PVRHB2014!$AW:CA,6,FALSE)),0) -> 0.307 | CF4: =INDEX(team!A:A,(MATCH('Pitcher temp'!M4,team!B:B,0))) -> Tor | CG4: =IFERROR(IF($A4="",0,VLOOKUP($B4,PVLHB!$B:BJ,44,FALSE)),0) -> 0.02222222222 | CH4: =IFERROR(IF($A4="",0,VLOOKUP($B4,PVRHB!$B:BJ,44,FALSE)),0) -> 0.02285714286 | CI4: =IFERROR(IF($A4="",0,VLOOKUP($CO4,PVLHB2014!$AX:CE,9,FALSE)),0) -> 3.89 | CJ4: =IFERROR(IF($A4="",0,VLOOKUP($CO4,PVRHB2014!$AW:CF,9,FALSE)),0) -> 3.44 | CK4: =IFERROR(IF($A4="",0,VLOOKUP($CO4,FG!$N:CG,10,FALSE)),0) -> 2.74 | CL4: =IFERROR(IF($A4="",0,VLOOKUP($CO4,FG!$AP:CH,10,FALSE)),0) -> 2.97 | CM4: =IFERROR(IF($A4="",0,VLOOKUP($CO4,FG!$A:CI,8,FALSE)),0) -> 2.84 | CN4: =IFERROR(IF($A4="",0,VLOOKUP($CO4,FG!$A:CJ,10,FALSE)),0) -> 2.88 | CO4: =IF($B4="","",VLOOKUP($B4,names!$J:AB,7,FALSE)) -> Chris Archer | CP4: =IF($B4="","",VLOOKUP($B4,names!$J:AB,8,FALSE)) -> Chris Archer | CQ4: =IFERROR(VALUE(FIXED($D4/AQ4,0)),0) -> 1279 | CR4: =IFERROR(VALUE(FIXED($H4/AR4,0)),0) -> 686 | CS4: =IFERROR(VALUE(FIXED($D4/AS4,0)),0) -> 896 | CT4: =IFERROR(VALUE(FIXED($H4/AT4,0)),0) -> 480
A5: =IF(OR('FD pit'!$C7="",'FD pit'!$C7="Name"),"",'FD pit'!$C7) -> Hernandez, Felix | B5: =IF(A5="","",VLOOKUP(A5,names!F:G,2,FALSE)) -> Felix Hernandez | C5: =IF($A5="","",VLOOKUP($A5,'FD pit'!$C:P,4,FALSE)) -> Sea | D5: =IF($A5="",0,VLOOKUP($A5,'FD pit'!$C:AP,5,FALSE)) -> 11000 | E5: =IF($A5="",0,VLOOKUP($A5,'FD pit'!$C:AQ,MATCH("/GP",'FD pit'!$C$4:$N$4,0),FALSE)) -> 12.5 | F5: =IF($A5="",0,VLOOKUP($A5,'FD pit'!$C:AR,MATCH("/GP",'FD pit'!$C$4:$N$4,0)+2,FALSE)) -> 10.3 | G5: =IF($A5="",0,VLOOKUP($A5,'FD pit'!$C:AS,MATCH("/GP",'FD pit'!$C$4:$N$4,0)+3,FALSE)) -> 12.7 | H5: =IFERROR(VLOOKUP($A5,'DK pit'!$C:R,5,FALSE),0) -> 11100 | I5: =IFERROR(VLOOKUP($A5,'DK pit'!$C:S,MATCH("/GP",'DK pit'!$C$4:$N$4,0),FALSE),0) -> 19.9 | J5: =IFERROR(VLOOKUP($A5,'DK pit'!$C:T,MATCH("/GP",'FD pit'!$C$4:$N$4,0)+2,FALSE),0) -> 15.2 | K5: =IFERROR(VLOOKUP($A5,'DK pit'!$C:U,MATCH("/GP",'DK pit'!$C$4:$N$4,0)+3,FALSE),0) -> 17.4 | L5: =IFERROR(VLOOKUP(C5,team!A:B,2,FALSE),"") -> SEA | M5: =IFERROR(VLOOKUP(L5,Games!A:B,2,FALSE),"") -> LAA | N5: =IFERROR(VLOOKUP($L5,Games!$A:C,3,FALSE),"") -> Away | O5: =IF(A5="",0,IFERROR(VALUE(IFERROR(VLOOKUP($L5,Games!$A:F,4,FALSE),"")),110)) -> -112 | P5: =IFERROR(VALUE(LEFT(VLOOKUP($L5,Games!$A:E,5,FALSE),4)),"") -> 7.5 | Q5: =VLOOKUP(B5,names!J:M,4,FALSE) -> R | R5: =IFERROR(IF($A5="",0,VLOOKUP($B5,pitchers!$B:AM,12,FALSE)),"") -> 195.2 | S5: =IF($A5="",0,VLOOKUP($B5,pitchers!$B:AN,20,FALSE)) -> 3.54 | T5: =IF($A5="",0,VLOOKUP($B5,pitchers!$B:AO,38,FALSE)) -> 1.165 | U5: =IFERROR(IF($A5="",0,VLOOKUP($B5,pitchersL14!$B:AP,12,FALSE)),0) -> 12.2 | V5: =IFERROR(IF($A5="",0,VLOOKUP($B5,pitchersL14!$B:AQ,20,FALSE)),"---") -> 4.26 | W5: =IFERROR(IF($A5="",0,VLOOKUP($B5,pitchersL14!$B:AR,38,FALSE)),0) -> 1.263 | X5: =IFERROR(IF($A5="",0,IF($N5="home",VLOOKUP('Pitcher temp'!$CP5,'P-home'!$B:AF,7,FALSE),VLOOKUP('Pitcher temp'!$CP5,'P-road'!$B:AF,7,FALSE))),"") -> 292 | Y5: =IFERROR(IF($A5="",0,IF($N5="home",VLOOKUP('Pitcher temp'!$CP5,'P-home'!$B:AG,31,FALSE),VLOOKUP('Pitcher temp'!$CP5,'P-road'!$B:AG,31,FALSE))),"") -> 0.764 | Z5: =IF($A5="",0,INDEX('Team B L7'!$A:$A,MATCH('Pitcher temp'!$AG5,'Team B L7'!$B:$B,0),0)) -> 17 | AA5: =IF($A5="",0,INDEX('Team B L7'!$O:$O,MATCH('Pitcher temp'!$AG5,'Team B L7'!$B:$B,0),0)) -> 0.709 | AB5: =INDEX(team!C:C,MATCH('Pitcher temp'!M5,team!B:B,0),0) -> LA Angels | AC5: =IF(Q5="R",INDEX(TeamBVR!A:A,MATCH('Pitcher temp'!AB5,TeamBVR!B:B,0),0),INDEX(TeamBVL!A:A,MATCH('Pitcher temp'!AB5,TeamBVR!B:B,0),0)) -> 15 | AD5: =IF($Q5="R",INDEX(TeamBVR!$O:$O,MATCH('Pitcher temp'!$AB5,TeamBVR!$B:$B,0),0),INDEX(TeamBVL!$O:$O,MATCH('Pitcher temp'!$AB5,TeamBVR!$B:$B,0),0)) -> 0.705 | AE5: =IF($A5="","",IF($N5="home",INDEX(TeamBroad!$A:$A,MATCH('Pitcher temp'!$AG5,TeamBroad!$B:$B,0),0),INDEX(TeamBhome!$A:$A,MATCH('Pitcher temp'!$AG5,TeamBhome!$B:$B,0),0))) -> 25 | AF5: =IF($A5="","",IF($N5="home",INDEX(TeamBroad!$O:$O,MATCH('Pitcher temp'!$AG5,TeamBroad!$B:$B,0),0),INDEX(TeamBroad!$O:$O,MATCH('Pitcher temp'!$AG5,TeamBroad!$B:$B,0),0))) -> 0.686 | AG5: =IF(A5="","",VLOOKUP(M5,team!B:C,2,FALSE)) -> LA Angels | AH5: =IF(N5="home",VLOOKUP(L5,team!B:C,2,FALSE),VLOOKUP('Pitcher temp'!M5,team!B:C,2,FALSE)) -> LA Angels | AI5: =VLOOKUP($AH5,team!$E:G,3,FALSE) -> Angel Stadium of Anaheim (Anaheim, California) | AJ5: =VLOOKUP($AH5,team!$E:H,2,FALSE) -> 26 | AK5: =VLOOKUP($AH5,team!$E:I,4,FALSE) -> 0.919 | AL5: =VLOOKUP($AH5,team!$J:P,2,FALSE) -> 23 | AM5: =VLOOKUP($AH5,team!$J:Q,4,FALSE) -> 0.837 | AN5: =VLOOKUP(AH5,team!C:O,13,FALSE) -> Los Angeles Angels | AO5: =INDEX(weather!$F:$F,MATCH('Pitcher temp'!$AN5,weather!$B:$B,0),0) -> 88° F/ 31° C | AP5: =INDEX(weather!$F:$F,(MATCH('Pitcher temp'!$AN5,weather!$B:$B,0))+1,0) -> Clear | AQ5: =IFERROR(IFERROR($E5+($E5*$AU5)+($E5*$AV5)+($E5*$AW5)+($E5*$AX5)+($E5*$AY5)+($E5*$AZ5)+($E5*$BA5),"")*(IF(R5<(0.25*MAX(R:R)),0.7,1)),"") -> 14.875 | AR5: =IFERROR(IFERROR($I5+($I5*$AU5)+($I5*$AV5)+($I5*$AW5)+($I5*$AX5)+($I5*$AY5)+($I5*$AZ5)+($I5*$BA5),"")*(IF(R5<(0.25*MAX(R:R)),0.7,1)),"") -> 23.681 | AS5: =IFERROR(IFERROR($E5+($E5*$BB5)+($E5*$BC5)+($E5*$BD5)+($E5*$BE5)+($E5*$BF5)+($E5*$BG5)+($E5*$BH5),"")*(IF(R5<(0.25*MAX(R:R)),0.7,1)),"") -> 12.5 | AT5: =IFERROR(IFERROR($I5+($I5*$BB5)+($I5*$BC5)+($I5*$BD5)+($I5*$BE5)+($I5*$BF5)+($I5*$BG5)+($I5*$BH5),"")*(IF(R5<(0.25*MAX(R:R)),0.7,1)),"") -> 19.9 | AU5: =IF($V5>9,Projections!$H$4,IF('Pitcher temp'!$V5>5,Projections!$H$5,IF('Pitcher temp'!$V5<1.8,Projections!$H$6,0))) -> 0 | AV5: =IF($Z5<6,Projections!$H$9,IF($Z5>24,Projections!$H$10,0)) -> 0 | AW5: =IF($AC5<6,Projections!$H$13,IF($AC5>24,Projections!$H$14,0)) -> 0 | AX5: =IF($AE5<6,Projections!$H$17,IF($AE5>24,Projections!$H$18,0)) -> 0.07 | AY5: =IF($AJ5<6,Projections!$H$21,IF($AJ5>24,Projections!$H$22,0)) -> 0.12 | AZ5: =IF($P5>9.5,Projections!$H$25,IF('Pitcher temp'!$P5>8,Projections!$H$26,IF(AND('Pitcher temp'!$P5<7,'Pitcher temp'!$P5>1),Projections!$H$27,0))) -> 0 | BA5: =IF($O5<-190,Projections!$H$30,IF('Pitcher temp'!$O5<-149,Projections!$H$31,IF('Pitcher temp'!$O5>145,Projections!$H$32,0)))+(IF($BI5<7,Projections!$H$35,IF($BI5>23,Projections!$H$36,0))) -> 0 | BB5: =IF($V5>9,Projections!$I$4,IF('Pitcher temp'!$V5>5,Projections!$I$5,IF('Pitcher temp'!$V5<1.8,Projections!$I$6,0))) -> 0 | BC5: =IF($Z5<6,Projections!$I$9,IF($Z5>24,Projections!$I$10,0)) -> 0 | BD5: =IF($AC5<6,Projections!$I$13,IF($AC5>24,Projections!$I$14,0)) -> 0 | BE5: =IF($AE5<6,Projections!$I$17,IF($AE5>24,Projections!$I$18,0)) -> 0 | BF5: =IF($AJ5<6,Projections!$I$21,IF($AJ5>24,Projections!$I$22,0)) -> 0 | BG5: =IF($P5>9.5,Projections!$I$25,IF('Pitcher temp'!$P5>8,Projections!$I$26,IF(AND('Pitcher temp'!$P5<7,'Pitcher temp'!$P5>1),Projections!$I$27,0))) -> 0 | BH5: =IF($O5<-190,Projections!$I$30,IF('Pitcher temp'!$O5<-149,Projections!$I$31,IF('Pitcher temp'!$O5>145,Projections!$I$32,0)))+(IF($BI5<7,Projections!$I$35,IF($BI5>23,Projections!$I$36,0))) -> 0 | BI5: =IF(A5="",0,INDEX(teamk!A:A,MATCH('Pitcher temp'!AB5,teamk!B:B,0),0)) -> 23 | BJ5: =IF($A5="",0,VLOOKUP($B5,pitchers!$B:CE,35,FALSE)) -> 1.34 | BK5: =IF($A5="",0,VLOOKUP($B5,pitchers!$B:CF,40,FALSE)) -> 8.5 | BL5: =IFERROR(IF($A5="",0,VLOOKUP($CO5,FG!$N:BH,6,FALSE)),0) -> 0.301 | BM5: =IFERROR(IF($A5="",0,VLOOKUP($CO5,FG!$AP:BI,6,FALSE)),0) -> 0.287 | BN5: =VLOOKUP(B5,'batters-temp'!V:CG,64,FALSE) -> 21:05:00 | BO5: =IFERROR(IF($A5="",0,VLOOKUP($CP5,PVLHB!$B:AQ,42,FALSE)),0) -> 0.2614840989 | BP5: =IFERROR(IF($A5="",0,VLOOKUP($CP5,PVRHB!$B:AR,42,FALSE)),0) -> 0.3166666667 | BQ5: =IFERROR(IF($A5="",0,VLOOKUP($B5,PVLHB!$B:AS,43,FALSE)),0) -> 0.1923076923 | BR5: =IFERROR(IF($A5="",0,VLOOKUP($B5,PVRHB!$B:AT,43,FALSE)),0) -> 0.274151436 | BS5: =IFERROR(IF($A5="",0,IF($N5="home",VLOOKUP('Pitcher temp'!$CP5,'P-home'!$B:BZ,32,FALSE),VLOOKUP('Pitcher temp'!$CP5,'P-road'!$B:BZ,32,FALSE))),"") -> 0.3412322275 | BT5: =IFERROR(IF($A5="",0,IF($N5="home",VLOOKUP('Pitcher temp'!$CP5,'P-home'!$B:CA,33,FALSE),VLOOKUP('Pitcher temp'!$CP5,'P-road'!$B:CA,33,FALSE))),"") -> 0.2534246575 | BU5: =IF(N5="Home",VLOOKUP(M5,team!B:D,3,FALSE),VLOOKUP('Pitcher temp'!BV5,team!B:D,3,FALSE)) -> Seattle Mariners | BV5: =VLOOKUP(C5,team!A:B,2,FALSE) -> SEA | BW5: =IF(A5="",0,VLOOKUP($BU5,weather4!$T:AA,2,FALSE)) -> 0.38 | BX5: =VLOOKUP($BU5,weather4!$T:AB,3,FALSE) -> Clear | BY5: =IF(A5="",0,VLOOKUP($BU5,weather4!$T:AC,4,FALSE)) -> 0 | BZ5: =VLOOKUP($BU5,weather4!$T:AD,5,FALSE) -> 0 | CA5: =VLOOKUP($BU5,weather4!$T:AE,6,FALSE) -> 0 | CB5: =VLOOKUP($BU5,weather4!$T:AF,7,FALSE) -> WSW 9 mph | CC5: =VLOOKUP($BU5,weather4!$T:AG,8,FALSE) -> 90° | CD5: =IFERROR(IF($A5="",0,VLOOKUP($CO5,PVLHB2014!$AX:BZ,6,FALSE)),0) -> 0.233 | CE5: =IFERROR(IF($A5="",0,VLOOKUP($CO5,PVRHB2014!$AW:CA,6,FALSE)),0) -> 0.259 | CF5: =INDEX(team!A:A,(MATCH('Pitcher temp'!M5,team!B:B,0))) -> Ana | CG5: =IFERROR(IF($A5="",0,VLOOKUP($B5,PVLHB!$B:BJ,44,FALSE)),0) -> 0.03225806452 | CH5: =IFERROR(IF($A5="",0,VLOOKUP($B5,PVRHB!$B:BJ,44,FALSE)),0) -> 0.02816901408 | CI5: =IFERROR(IF($A5="",0,VLOOKUP($CO5,PVLHB2014!$AX:CE,9,FALSE)),0) -> 2.64 | CJ5: =IFERROR(IF($A5="",0,VLOOKUP($CO5,PVRHB2014!$AW:CF,9,FALSE)),0) -> 2.34 | CK5: =IFERROR(IF($A5="",0,VLOOKUP($CO5,FG!$N:CG,10,FALSE)),0) -> 3.85 | CL5: =IFERROR(IF($A5="",0,VLOOKUP($CO5,FG!$AP:CH,10,FALSE)),0) -> 2.67 | CM5: =IFERROR(IF($A5="",0,VLOOKUP($CO5,FG!$A:CI,8,FALSE)),0) -> 3.28 | CN5: =IFERROR(IF($A5="",0,VLOOKUP($CO5,FG!$A:CJ,10,FALSE)),0) -> 3.3 | CO5: =IF($B5="","",VLOOKUP($B5,names!$J:AB,7,FALSE)) -> Felix Hernandez | CP5: =IF($B5="","",VLOOKUP($B5,names!$J:AB,8,FALSE)) -> Felix Hernandez | CQ5: =IFERROR(VALUE(FIXED($D5/AQ5,0)),0) -> 739 | CR5: =IFERROR(VALUE(FIXED($H5/AR5,0)),0) -> 469 | CS5: =IFERROR(VALUE(FIXED($D5/AS5,0)),0) -> 880 | CT5: =IFERROR(VALUE(FIXED($H5/AT5,0)),0) -> 558
A6: =IF(OR('FD pit'!$C8="",'FD pit'!$C8="Name"),"",'FD pit'!$C8) -> Harvey, Matt | B6: =IF(A6="","",VLOOKUP(A6,names!F:G,2,FALSE)) -> Matt Harvey | C6: =IF($A6="","",VLOOKUP($A6,'FD pit'!$C:P,4,FALSE)) -> NYM | D6: =IF($A6="",0,VLOOKUP($A6,'FD pit'!$C:AP,5,FALSE)) -> 10000 | E6: =IF($A6="",0,VLOOKUP($A6,'FD pit'!$C:AQ,MATCH("/GP",'FD pit'!$C$4:$N$4,0),FALSE)) -> 12.3 | F6: =IF($A6="",0,VLOOKUP($A6,'FD pit'!$C:AR,MATCH("/GP",'FD pit'!$C$4:$N$4,0)+2,FALSE)) -> 12 | G6: =IF($A6="",0,VLOOKUP($A6,'FD pit'!$C:AS,MATCH("/GP",'FD pit'!$C$4:$N$4,0)+3,FALSE)) -> 12 | H6: =IFERROR(VLOOKUP($A6,'DK pit'!$C:R,5,FALSE),0) -> 10500 | I6: =IFERROR(VLOOKUP($A6,'DK pit'!$C:S,MATCH("/GP",'DK pit'!$C$4:$N$4,0),FALSE),0) -> 20.5 | J6: =IFERROR(VLOOKUP($A6,'DK pit'!$C:T,MATCH("/GP",'FD pit'!$C$4:$N$4,0)+2,FALSE),0) -> 24.1 | K6: =IFERROR(VLOOKUP($A6,'DK pit'!$C:U,MATCH("/GP",'DK pit'!$C$4:$N$4,0)+3,FALSE),0) -> 24.1 | L6: =IFERROR(VLOOKUP(C6,team!A:B,2,FALSE),"") -> NYM | M6: =IFERROR(VLOOKUP(L6,Games!A:B,2,FALSE),"") -> CIN | N6: =IFERROR(VLOOKUP($L6,Games!$A:C,3,FALSE),"") -> Away | O6: =IF(A6="",0,IFERROR(VALUE(IFERROR(VLOOKUP($L6,Games!$A:F,4,FALSE),"")),110)) -> -149 | P6: =IFERROR(VALUE(LEFT(VLOOKUP($L6,Games!$A:E,5,FALSE),4)),"") -> 7.5 | Q6: =VLOOKUP(B6,names!J:M,4,FALSE) -> R | R6: =IFERROR(IF($A6="",0,VLOOKUP($B6,pitchers!$B:AM,12,FALSE)),"") -> 176.2 | S6: =IF($A6="",0,VLOOKUP($B6,pitchers!$B:AN,20,FALSE)) -> 2.8 | T6: =IF($A6="",0,VLOOKUP($B6,pitchers!$B:AO,38,FALSE)) -> 1.019 | U6: =IFERROR(IF($A6="",0,VLOOKUP($B6,pitchersL14!$B:AP,12,FALSE)),0) -> 5 | V6: =IFERROR(IF($A6="",0,VLOOKUP($B6,pitchersL14!$B:AQ,20,FALSE)),"---") -> 0 | W6: =IFERROR(IF($A6="",0,VLOOKUP($B6,pitchersL14!$B:AR,38,FALSE)),0) -> 0.4 | X6: =IFERROR(IF($A6="",0,IF($N6="home",VLOOKUP('Pitcher temp'!$CP6,'P-home'!$B:AF,7,FALSE),VLOOKUP('Pitcher temp'!$CP6,'P-road'!$B:AF,7,FALSE))),"") -> 259 | Y6: =IFERROR(IF($A6="",0,IF($N6="home",VLOOKUP('Pitcher temp'!$CP6,'P-home'!$B:AG,31,FALSE),VLOOKUP('Pitcher temp'!$CP6,'P-road'!$B:AG,31,FALSE))),"") -> 0.62 | Z6: =IF($A6="",0,INDEX('Team B L7'!$A:$A,MATCH('Pitcher temp'!$AG6,'Team B L7'!$B:$B,0),0)) -> 19 | AA6: =IF($A6="",0,INDEX('Team B L7'!$O:$O,MATCH('Pitcher temp'!$AG6,'Team B L7'!$B:$B,0),0)) -> 0.76 | AB6: =INDEX(team!C:C,MATCH('Pitcher temp'!M6,team!B:B,0),0) -> Cincinnati | AC6: =IF(Q6="R",INDEX(TeamBVR!A:A,MATCH('Pitcher temp'!AB6,TeamBVR!B:B,0),0),INDEX(TeamBVL!A:A,MATCH('Pitcher temp'!AB6,TeamBVR!B:B,0),0)) -> 21 | AD6: =IF($Q6="R",INDEX(TeamBVR!$O:$O,MATCH('Pitcher temp'!$AB6,TeamBVR!$B:$B,0),0),INDEX(TeamBVL!$O:$O,MATCH('Pitcher temp'!$AB6,TeamBVR!$B:$B,0),0)) -> 0.715 | AE6: =IF($A6="","",IF($N6="home",INDEX(TeamBroad!$A:$A,MATCH('Pitcher temp'!$AG6,TeamBroad!$B:$B,0),0),INDEX(TeamBhome!$A:$A,MATCH('Pitcher temp'!$AG6,TeamBhome!$B:$B,0),0))) -> 16 | AF6: =IF($A6="","",IF($N6="home",INDEX(TeamBroad!$O:$O,MATCH('Pitcher temp'!$AG6,TeamBroad!$B:$B,0),0),INDEX(TeamBroad!$O:$O,MATCH('Pitcher temp'!$AG6,TeamBroad!$B:$B,0),0))) -> 0.693 | AG6: =IF(A6="","",VLOOKUP(M6,team!B:C,2,FALSE)) -> Cincinnati | AH6: =IF(N6="home",VLOOKUP(L6,team!B:C,2,FALSE),VLOOKUP('Pitcher temp'!M6,team!B:C,2,FALSE)) -> Cincinnati | AI6: =VLOOKUP($AH6,team!$E:G,3,FALSE) -> Great American Ball Park (Cincinnati, Ohio) | AJ6: =VLOOKUP($AH6,team!$E:H,2,FALSE) -> 18 | AK6: =VLOOKUP($AH6,team!$E:I,4,FALSE) -> 0.963 | AL6: =VLOOKUP($AH6,team!$J:P,2,FALSE) -> 4 | AM6: =VLOOKUP($AH6,team!$J:Q,4,FALSE) -> 1.279 | AN6: =VLOOKUP(AH6,team!C:O,13,FALSE) -> Cincinnati Reds | AO6: =INDEX(weather!$F:$F,MATCH('Pitcher temp'!$AN6,weather!$B:$B,0),0) -> 68° F/ 20° C | AP6: =INDEX(weather!$F:$F,(MATCH('Pitcher temp'!$AN6,weather!$B:$B,0))+1,0) -> Chance of Rain | AQ6: =IFERROR(IFERROR($E6+($E6*$AU6)+($E6*$AV6)+($E6*$AW6)+($E6*$AX6)+($E6*$AY6)+($E6*$AZ6)+($E6*$BA6),"")*(IF(R6<(0.25*MAX(R:R)),0.7,1)),"") -> 13.776 | AR6: =IFERROR(IFERROR($I6+($I6*$AU6)+($I6*$AV6)+($I6*$AW6)+($I6*$AX6)+($I6*$AY6)+($I6*$AZ6)+($I6*$BA6),"")*(IF(R6<(0.25*MAX(R:R)),0.7,1)),"") -> 22.96 | AS6: =IFERROR(IFERROR($E6+($E6*$BB6)+($E6*$BC6)+($E6*$BD6)+($E6*$BE6)+($E6*$BF6)+($E6*$BG6)+($E6*$BH6),"")*(IF(R6<(0.25*MAX(R:R)),0.7,1)),"") -> 12.3 | AT6: =IFERROR(IFERROR($I6+($I6*$BB6)+($I6*$BC6)+($I6*$BD6)+($I6*$BE6)+($I6*$BF6)+($I6*$BG6)+($I6*$BH6),"")*(IF(R6<(0.25*MAX(R:R)),0.7,1)),"") -> 20.5 | AU6: =IF($V6>9,Projections!$H$4,IF('Pitcher temp'!$V6>5,Projections!$H$5,IF('Pitcher temp'!$V6<1.8,Projections!$H$6,0))) -> 0.12 | AV6: =IF($Z6<6,Projections!$H$9,IF($Z6>24,Projections!$H$10,0)) -> 0 | AW6: =IF($AC6<6,Projections!$H$13,IF($AC6>24,Projections!$H$14,0)) -> 0 | AX6: =IF($AE6<6,Projections!$H$17,IF($AE6>24,Projections!$H$18,0)) -> 0 | AY6: =IF($AJ6<6,Projections!$H$21,IF($AJ6>24,Projections!$H$22,0)) -> 0 | AZ6: =IF($P6>9.5,Projections!$H$25,IF('Pitcher temp'!$P6>8,Projections!$H$26,IF(AND('Pitcher temp'!$P6<7,'Pitcher temp'!$P6>1),Projections!$H$27,0))) -> 0 | BA6: =IF($O6<-190,Projections!$H$30,IF('Pitcher temp'!$O6<-149,Projections!$H$31,IF('Pitcher temp'!$O6>145,Projections!$H$32,0)))+(IF($BI6<7,Projections!$H$35,IF($BI6>23,Projections!$H$36,0))) -> 0 | BB6: =IF($V6>9,Projections!$I$4,IF('Pitcher temp'!$V6>5,Projections!$I$5,IF('Pitcher temp'!$V6<1.8,Projections!$I$6,0))) -> 0 | BC6: =IF($Z6<6,Projections!$I$9,IF($Z6>24,Projections!$I$10,0)) -> 0 | BD6: =IF($AC6<6,Projections!$I$13,IF($AC6>24,Projections!$I$14,0)) -> 0 | BE6: =IF($AE6<6,Projections!$I$17,IF($AE6>24,Projections!$I$18,0)) -> 0 | BF6: =IF($AJ6<6,Projections!$I$21,IF($AJ6>24,Projections!$I$22,0)) -> 0 | BG6: =IF($P6>9.5,Projections!$I$25,IF('Pitcher temp'!$P6>8,Projections!$I$26,IF(AND('Pitcher temp'!$P6<7,'Pitcher temp'!$P6>1),Projections!$I$27,0))) -> 0 | BH6: =IF($O6<-190,Projections!$I$30,IF('Pitcher temp'!$O6<-149,Projections!$I$31,IF('Pitcher temp'!$O6>145,Projections!$I$32,0)))+(IF($BI6<7,Projections!$I$35,IF($BI6>23,Projections!$I$36,0))) -> 0 | BI6: =IF(A6="",0,INDEX(teamk!A:A,MATCH('Pitcher temp'!AB6,teamk!B:B,0),0)) -> 19 | BJ6: =IF($A6="",0,VLOOKUP($B6,pitchers!$B:CE,35,FALSE)) -> 0.91 | BK6: =IF($A6="",0,VLOOKUP($B6,pitchers!$B:CF,40,FALSE)) -> 8.7 | BL6: =IFERROR(IF($A6="",0,VLOOKUP($CO6,FG!$N:BH,6,FALSE)),0) -> 0.303 | BM6: =IFERROR(IF($A6="",0,VLOOKUP($CO6,FG!$AP:BI,6,FALSE)),0) -> 0.241 | BN6: =VLOOKUP(B6,'batters-temp'!V:CG,64,FALSE) -> 16:10:00 | BO6: =IFERROR(IF($A6="",0,VLOOKUP($CP6,PVLHB!$B:AQ,42,FALSE)),0) -> 0.2511210762 | BP6: =IFERROR(IF($A6="",0,VLOOKUP($CP6,PVRHB!$B:AR,42,FALSE)),0) -> 0.2851239669 | BQ6: =IFERROR(IF($A6="",0,VLOOKUP($B6,PVLHB!$B:AS,43,FALSE)),0) -> 0.2479108635 | BR6: =IFERROR(IF($A6="",0,VLOOKUP($B6,PVRHB!$B:AT,43,FALSE)),0) -> 0.238372093 | BS6: =IFERROR(IF($A6="",0,IF($N6="home",VLOOKUP('Pitcher temp'!$CP6,'P-home'!$B:BZ,32,FALSE),VLOOKUP('Pitcher temp'!$CP6,'P-road'!$B:BZ,32,FALSE))),"") -> 0.2673796791 | BT6: =IFERROR(IF($A6="",0,IF($N6="home",VLOOKUP('Pitcher temp'!$CP6,'P-home'!$B:CA,33,FALSE),VLOOKUP('Pitcher temp'!$CP6,'P-road'!$B:CA,33,FALSE))),"") -> 0.2548262548 | BU6: =IF(N6="Home",VLOOKUP(M6,team!B:D,3,FALSE),VLOOKUP('Pitcher temp'!BV6,team!B:D,3,FALSE)) -> New York Mets | BV6: =VLOOKUP(C6,team!A:B,2,FALSE) -> NYM | BW6: =IF(A6="",0,VLOOKUP($BU6,weather4!$T:AA,2,FALSE)) -> 0.68 | BX6: =VLOOKUP($BU6,weather4!$T:AB,3,FALSE) -> Overcast | BY6: =IF(A6="",0,VLOOKUP($BU6,weather4!$T:AC,4,FALSE)) -> 0.15 | BZ6: =VLOOKUP($BU6,weather4!$T:AD,5,FALSE) -> 0.15 | CA6: =VLOOKUP($BU6,weather4!$T:AE,6,FALSE) -> 0.15 | CB6: =VLOOKUP($BU6,weather4!$T:AF,7,FALSE) -> E 11 mph | CC6: =VLOOKUP($BU6,weather4!$T:AG,8,FALSE) -> 70° | CD6: =IFERROR(IF($A6="",0,VLOOKUP($CO6,PVLHB2014!$AX:BZ,6,FALSE)),0) -> 0 | CE6: =IFERROR(IF($A6="",0,VLOOKUP($CO6,PVRHB2014!$AW:CA,6,FALSE)),0) -> 0 | CF6: =INDEX(team!A:A,(MATCH('Pitcher temp'!M6,team!B:B,0))) -> Cin | CG6: =IFERROR(IF($A6="",0,VLOOKUP($B6,PVLHB!$B:BJ,44,FALSE)),0) -> 0.04587155963 | CH6: =IFERROR(IF($A6="",0,VLOOKUP($B6,PVRHB!$B:BJ,44,FALSE)),0) -> 0.009202453988 | CI6: =IFERROR(IF($A6="",0,VLOOKUP($CO6,PVLHB2014!$AX:CE,9,FALSE)),0) -> 0 | CJ6: =IFERROR(IF($A6="",0,VLOOKUP($CO6,PVRHB2014!$AW:CF,9,FALSE)),0) -> 0 | CK6: =IFERROR(IF($A6="",0,VLOOKUP($CO6,FG!$N:CG,10,FALSE)),0) -> 4.08 | CL6: =IFERROR(IF($A6="",0,VLOOKUP($CO6,FG!$AP:CH,10,FALSE)),0) -> 2.71 | CM6: =IFERROR(IF($A6="",0,VLOOKUP($CO6,FG!$A:CI,8,FALSE)),0) -> 3.37 | CN6: =IFERROR(IF($A6="",0,VLOOKUP($CO6,FG!$A:CJ,10,FALSE)),0) -> 3.37 | CO6: =IF($B6="","",VLOOKUP($B6,names!$J:AB,7,FALSE)) -> Matt Harvey | CP6: =IF($B6="","",VLOOKUP($B6,names!$J:AB,8,FALSE)) -> Matt Harvey | CQ6: =IFERROR(VALUE(FIXED($D6/AQ6,0)),0) -> 726 | CR6: =IFERROR(VALUE(FIXED($H6/AR6,0)),0) -> 457 | CS6: =IFERROR(VALUE(FIXED($D6/AS6,0)),0) -> 813 | CT6: =IFERROR(VALUE(FIXED($H6/AT6,0)),0) -> 512
A7: =IF(OR('FD pit'!$C9="",'FD pit'!$C9="Name"),"",'FD pit'!$C9) -> Liriano, Francisco | B7: =IF(A7="","",VLOOKUP(A7,names!F:G,2,FALSE)) -> Francisco Liriano | C7: =IF($A7="","",VLOOKUP($A7,'FD pit'!$C:P,4,FALSE)) -> Pit | D7: =IF($A7="",0,VLOOKUP($A7,'FD pit'!$C:AP,5,FALSE)) -> 9600 | E7: =IF($A7="",0,VLOOKUP($A7,'FD pit'!$C:AQ,MATCH("/GP",'FD pit'!$C$4:$N$4,0),FALSE)) -> 11.8 | F7: =IF($A7="",0,VLOOKUP($A7,'FD pit'!$C:AR,MATCH("/GP",'FD pit'!$C$4:$N$4,0)+2,FALSE)) -> 10.2 | G7: =IF($A7="",0,VLOOKUP($A7,'FD pit'!$C:AS,MATCH("/GP",'FD pit'!$C$4:$N$4,0)+3,FALSE)) -> 18 | H7: =IFERROR(VLOOKUP($A7,'DK pit'!$C:R,5,FALSE),0) -> 9700 | I7: =IFERROR(VLOOKUP($A7,'DK pit'!$C:S,MATCH("/GP",'DK pit'!$C$4:$N$4,0),FALSE),0) -> 19.2 | J7: =IFERROR(VLOOKUP($A7,'DK pit'!$C:T,MATCH("/GP",'FD pit'!$C$4:$N$4,0)+2,FALSE),0) -> 14.7 | K7: =IFERROR(VLOOKUP($A7,'DK pit'!$C:U,MATCH("/GP",'DK pit'!$C$4:$N$4,0)+3,FALSE),0) -> 29.6 | L7: =IFERROR(VLOOKUP(C7,team!A:B,2,FALSE),"") -> PIT | M7: =IFERROR(VLOOKUP(L7,Games!A:B,2,FALSE),"") -> CHC | N7: =IFERROR(VLOOKUP($L7,Games!$A:C,3,FALSE),"") -> Away | O7: =IF(A7="",0,IFERROR(VALUE(IFERROR(VLOOKUP($L7,Games!$A:F,4,FALSE),"")),110)) -> -108 | P7: =IFERROR(VALUE(LEFT(VLOOKUP($L7,Games!$A:E,5,FALSE),4)),"") -> 7.5 | Q7: =VLOOKUP(B7,names!J:M,4,FALSE) -> L | R7: =IFERROR(IF($A7="",0,VLOOKUP($B7,pitchers!$B:AM,12,FALSE)),"") -> 174 | S7: =IF($A7="",0,VLOOKUP($B7,pitchers!$B:AN,20,FALSE)) -> 3.41 | T7: =IF($A7="",0,VLOOKUP($B7,pitchers!$B:AO,38,FALSE)) -> 1.213 | U7: =IFERROR(IF($A7="",0,VLOOKUP($B7,pitchersL14!$B:AP,12,FALSE)),0) -> 9.1 | V7: =IFERROR(IF($A7="",0,VLOOKUP($B7,pitchersL14!$B:AQ,20,FALSE)),"---") -> 5.79 | W7: =IFERROR(IF($A7="",0,VLOOKUP($B7,pitchersL14!$B:AR,38,FALSE)),0) -> 1.714 | X7: =IFERROR(IF($A7="",0,IF($N7="home",VLOOKUP('Pitcher temp'!$CP7,'P-home'!$B:AF,7,FALSE),VLOOKUP('Pitcher temp'!$CP7,'P-road'!$B:AF,7,FALSE))),"") -> 303 | Y7: =IFERROR(IF($A7="",0,IF($N7="home",VLOOKUP('Pitcher temp'!$CP7,'P-home'!$B:AG,31,FALSE),VLOOKUP('Pitcher temp'!$CP7,'P-road'!$B:AG,31,FALSE))),"") -> 0.576 | Z7: =IF($A7="",0,INDEX('Team B L7'!$A:$A,MATCH('Pitcher temp'!$AG7,'Team B L7'!$B:$B,0),0)) -> 16 | AA7: =IF($A7="",0,INDEX('Team B L7'!$O:$O,MATCH('Pitcher temp'!$AG7,'Team B L7'!$B:$B,0),0)) -> 0.765 | AB7: =INDEX(team!C:C,MATCH('Pitcher temp'!M7,team!B:B,0),0) -> Chicago Cubs | AC7: =IF(Q7="R",INDEX(TeamBVR!A:A,MATCH('Pitcher temp'!AB7,TeamBVR!B:B,0),0),INDEX(TeamBVL!A:A,MATCH('Pitcher temp'!AB7,TeamBVR!B:B,0),0)) -> 9 | AD7: =IF($Q7="R",INDEX(TeamBVR!$O:$O,MATCH('Pitcher temp'!$AB7,TeamBVR!$B:$B,0),0),INDEX(TeamBVL!$O:$O,MATCH('Pitcher temp'!$AB7,TeamBVR!$B:$B,0),0)) -> 0.757 | AE7: =IF($A7="","",IF($N7="home",INDEX(TeamBroad!$A:$A,MATCH('Pitcher temp'!$AG7,TeamBroad!$B:$B,0),0),INDEX(TeamBhome!$A:$A,MATCH('Pitcher temp'!$AG7,TeamBhome!$B:$B,0),0))) -> 19 | AF7: =IF($A7="","",IF($N7="home",INDEX(TeamBroad!$O:$O,MATCH('Pitcher temp'!$AG7,TeamBroad!$B:$B,0),0),INDEX(TeamBroad!$O:$O,MATCH('Pitcher temp'!$AG7,TeamBroad!$B:$B,0),0))) -> 0.718 | AG7: =IF(A7="","",VLOOKUP(M7,team!B:C,2,FALSE)) -> Chicago Cubs | AH7: =IF(N7="home",VLOOKUP(L7,team!B:C,2,FALSE),VLOOKUP('Pitcher temp'!M7,team!B:C,2,FALSE)) -> Chicago Cubs | AI7: =VLOOKUP($AH7,team!$E:G,3,FALSE) -> Wrigley Field (Chicago, Illinois) | AJ7: =VLOOKUP($AH7,team!$E:H,2,FALSE) -> 23 | AK7: =VLOOKUP($AH7,team!$E:I,4,FALSE) -> 0.931 | AL7: =VLOOKUP($AH7,team!$J:P,2,FALSE) -> 19 | AM7: =VLOOKUP($AH7,team!$J:Q,4,FALSE) -> 0.943 | AN7: =VLOOKUP(AH7,team!C:O,13,FALSE) -> Chicago Cubs | AO7: =INDEX(weather!$F:$F,MATCH('Pitcher temp'!$AN7,weather!$B:$B,0),0) -> 69° F/ 21° C | AP7: =INDEX(weather!$F:$F,(MATCH('Pitcher temp'!$AN7,weather!$B:$B,0))+1,0) -> Partly Cloudy | AQ7: =IFERROR(IFERROR($E7+($E7*$AU7)+($E7*$AV7)+($E7*$AW7)+($E7*$AX7)+($E7*$AY7)+($E7*$AZ7)+($E7*$BA7),"")*(IF(R7<(0.25*MAX(R:R)),0.7,1)),"") -> 12.626 | AR7: =IFERROR(IFERROR($I7+($I7*$AU7)+($I7*$AV7)+($I7*$AW7)+($I7*$AX7)+($I7*$AY7)+($I7*$AZ7)+($I7*$BA7),"")*(IF(R7<(0.25*MAX(R:R)),0.7,1)),"") -> 20.544 | AS7: =IFERROR(IFERROR($E7+($E7*$BB7)+($E7*$BC7)+($E7*$BD7)+($E7*$BE7)+($E7*$BF7)+($E7*$BG7)+($E7*$BH7),"")*(IF(R7<(0.25*MAX(R:R)),0.7,1)),"") -> 11.8 | AT7: =IFERROR(IFERROR($I7+($I7*$BB7)+($I7*$BC7)+($I7*$BD7)+($I7*$BE7)+($I7*$BF7)+($I7*$BG7)+($I7*$BH7),"")*(IF(R7<(0.25*MAX(R:R)),0.7,1)),"") -> 19.2 | AU7: =IF($V7>9,Projections!$H$4,IF('Pitcher temp'!$V7>5,Projections!$H$5,IF('Pitcher temp'!$V7<1.8,Projections!$H$6,0))) -> -0.05 | AV7: =IF($Z7<6,Projections!$H$9,IF($Z7>24,Projections!$H$10,0)) -> 0 | AW7: =IF($AC7<6,Projections!$H$13,IF($AC7>24,Projections!$H$14,0)) -> 0 | AX7: =IF($AE7<6,Projections!$H$17,IF($AE7>24,Projections!$H$18,0)) -> 0 | AY7: =IF($AJ7<6,Projections!$H$21,IF($AJ7>24,Projections!$H$22,0)) -> 0 | AZ7: =IF($P7>9.5,Projections!$H$25,IF('Pitcher temp'!$P7>8,Projections!$H$26,IF(AND('Pitcher temp'!$P7<7,'Pitcher temp'!$P7>1),Projections!$H$27,0))) -> 0 | BA7: =IF($O7<-190,Projections!$H$30,IF('Pitcher temp'!$O7<-149,Projections!$H$31,IF('Pitcher temp'!$O7>145,Projections!$H$32,0)))+(IF($BI7<7,Projections!$H$35,IF($BI7>23,Projections!$H$36,0))) -> 0.12 | BB7: =IF($V7>9,Projections!$I$4,IF('Pitcher temp'!$V7>5,Projections!$I$5,IF('Pitcher temp'!$V7<1.8,Projections!$I$6,0))) -> 0 | BC7: =IF($Z7<6,Projections!$I$9,IF($Z7>24,Projections!$I$10,0)) -> 0 | BD7: =IF($AC7<6,Projections!$I$13,IF($AC7>24,Projections!$I$14,0)) -> 0 | BE7: =IF($AE7<6,Projections!$I$17,IF($AE7>24,Projections!$I$18,0)) -> 0 | BF7: =IF($AJ7<6,Projections!$I$21,IF($AJ7>24,Projections!$I$22,0)) -> 0 | BG7: =IF($P7>9.5,Projections!$I$25,IF('Pitcher temp'!$P7>8,Projections!$I$26,IF(AND('Pitcher temp'!$P7<7,'Pitcher temp'!$P7>1),Projections!$I$27,0))) -> 0 | BH7: =IF($O7<-190,Projections!$I$30,IF('Pitcher temp'!$O7<-149,Projections!$I$31,IF('Pitcher temp'!$O7>145,Projections!$I$32,0)))+(IF($BI7<7,Projections!$I$35,IF($BI7>23,Projections!$I$36,0))) -> 0 | BI7: =IF(A7="",0,INDEX(teamk!A:A,MATCH('Pitcher temp'!AB7,teamk!B:B,0),0)) -> 1 | BJ7: =IF($A7="",0,VLOOKUP($B7,pitchers!$B:CE,35,FALSE)) -> 1.14 | BK7: =IF($A7="",0,VLOOKUP($B7,pitchers!$B:CF,40,FALSE)) -> 9.9 | BL7: =IFERROR(IF($A7="",0,VLOOKUP($CO7,FG!$N:BH,6,FALSE)),0) -> 0.276 | BM7: =IFERROR(IF($A7="",0,VLOOKUP($CO7,FG!$AP:BI,6,FALSE)),0) -> 0.287 | BN7: =VLOOKUP(B7,'batters-temp'!V:CG,64,FALSE) -> 13:05:00 | BO7: =IFERROR(IF($A7="",0,VLOOKUP($CP7,PVLHB!$B:AQ,42,FALSE)),0) -> 0.2551020408 | BP7: =IFERROR(IF($A7="",0,VLOOKUP($CP7,PVRHB!$B:AR,42,FALSE)),0) -> 0.306122449 | BQ7: =IFERROR(IF($A7="",0,VLOOKUP($B7,PVLHB!$B:AS,43,FALSE)),0) -> 0.251572327 | BR7: =IFERROR(IF($A7="",0,VLOOKUP($B7,PVRHB!$B:AT,43,FALSE)),0) -> 0.2691622103 | BS7: =IFERROR(IF($A7="",0,IF($N7="home",VLOOKUP('Pitcher temp'!$CP7,'P-home'!$B:BZ,32,FALSE),VLOOKUP('Pitcher temp'!$CP7,'P-road'!$B:BZ,32,FALSE))),"") -> 0.2844036697 | BT7: =IFERROR(IF($A7="",0,IF($N7="home",VLOOKUP('Pitcher temp'!$CP7,'P-home'!$B:CA,33,FALSE),VLOOKUP('Pitcher temp'!$CP7,'P-road'!$B:CA,33,FALSE))),"") -> 0.2772277228 | BU7: =IF(N7="Home",VLOOKUP(M7,team!B:D,3,FALSE),VLOOKUP('Pitcher temp'!BV7,team!B:D,3,FALSE)) -> Pittsburgh Pirates | BV7: =VLOOKUP(C7,team!A:B,2,FALSE) -> PIT | BW7: =IF(A7="",0,VLOOKUP($BU7,weather4!$T:AA,2,FALSE)) -> 0.61 | BX7: =VLOOKUP($BU7,weather4!$T:AB,3,FALSE) -> Partly Cloudy | BY7: =IF(A7="",0,VLOOKUP($BU7,weather4!$T:AC,4,FALSE)) -> 0 | BZ7: =VLOOKUP($BU7,weather4!$T:AD,5,FALSE) -> 0 | CA7: =VLOOKUP($BU7,weather4!$T:AE,6,FALSE) -> 0 | CB7: =VLOOKUP($BU7,weather4!$T:AF,7,FALSE) -> E 7 mph | CC7: =VLOOKUP($BU7,weather4!$T:AG,8,FALSE) -> 71° | CD7: =IFERROR(IF($A7="",0,VLOOKUP($CO7,PVLHB2014!$AX:BZ,6,FALSE)),0) -> 0.331 | CE7: =IFERROR(IF($A7="",0,VLOOKUP($CO7,PVRHB2014!$AW:CA,6,FALSE)),0) -> 0.284 | CF7: =INDEX(team!A:A,(MATCH('Pitcher temp'!M7,team!B:B,0))) -> ChC | CG7: =IFERROR(IF($A7="",0,VLOOKUP($B7,PVLHB!$B:BJ,44,FALSE)),0) -> 0.02127659574 | CH7: =IFERROR(IF($A7="",0,VLOOKUP($B7,PVRHB!$B:BJ,44,FALSE)),0) -> 0.02182539683 | CI7: =IFERROR(IF($A7="",0,VLOOKUP($CO7,PVLHB2014!$AX:CE,9,FALSE)),0) -> 2.57 | CJ7: =IFERROR(IF($A7="",0,VLOOKUP($CO7,PVRHB2014!$AW:CF,9,FALSE)),0) -> 3.59 | CK7: =IFERROR(IF($A7="",0,VLOOKUP($CO7,FG!$N:CG,10,FALSE)),0) -> 3.11 | CL7: =IFERROR(IF($A7="",0,VLOOKUP($CO7,FG!$AP:CH,10,FALSE)),0) -> 3.31 | CM7: =IFERROR(IF($A7="",0,VLOOKUP($CO7,FG!$A:CI,8,FALSE)),0) -> 3.27 | CN7: =IFERROR(IF($A7="",0,VLOOKUP($CO7,FG!$A:CJ,10,FALSE)),0) -> 3.48 | CO7: =IF($B7="","",VLOOKUP($B7,names!$J:AB,7,FALSE)) -> Francisco Liriano | CP7: =IF($B7="","",VLOOKUP($B7,names!$J:AB,8,FALSE)) -> Francisco Liriano | CQ7: =IFERROR(VALUE(FIXED($D7/AQ7,0)),0) -> 760 | CR7: =IFERROR(VALUE(FIXED($H7/AR7,0)),0) -> 472 | CS7: =IFERROR(VALUE(FIXED($D7/AS7,0)),0) -> 814 | CT7: =IFERROR(VALUE(FIXED($H7/AT7,0)),0) -> 505
A8: =IF(OR('FD pit'!$C10="",'FD pit'!$C10="Name"),"",'FD pit'!$C10) -> McHugh, Collin | B8: =IF(A8="","",VLOOKUP(A8,names!F:G,2,FALSE)) -> Collin McHugh | C8: =IF($A8="","",VLOOKUP($A8,'FD pit'!$C:P,4,FALSE)) -> Hou | D8: =IF($A8="",0,VLOOKUP($A8,'FD pit'!$C:AP,5,FALSE)) -> 9000 | E8: =IF($A8="",0,VLOOKUP($A8,'FD pit'!$C:AQ,MATCH("/GP",'FD pit'!$C$4:$N$4,0),FALSE)) -> 11.3 | F8: =IF($A8="",0,VLOOKUP($A8,'FD pit'!$C:AR,MATCH("/GP",'FD pit'!$C$4:$N$4,0)+2,FALSE)) -> 10.8 | G8: =IF($A8="",0,VLOOKUP($A8,'FD pit'!$C:AS,MATCH("/GP",'FD pit'!$C$4:$N$4,0)+3,FALSE)) -> 19 | H8: =IFERROR(VLOOKUP($A8,'DK pit'!$C:R,5,FALSE),0) -> 8100 | I8: =IFERROR(VLOOKUP($A8,'DK pit'!$C:S,MATCH("/GP",'DK pit'!$C$4:$N$4,0),FALSE),0) -> 16.8 | J8: =IFERROR(VLOOKUP($A8,'DK pit'!$C:T,MATCH("/GP",'FD pit'!$C$4:$N$4,0)+2,FALSE),0) -> 15.7 | K8: =IFERROR(VLOOKUP($A8,'DK pit'!$C:U,MATCH("/GP",'DK pit'!$C$4:$N$4,0)+3,FALSE),0) -> 32.4 | L8: =IFERROR(VLOOKUP(C8,team!A:B,2,FALSE),"") -> HOU | M8: =IFERROR(VLOOKUP(L8,Games!A:B,2,FALSE),"") -> TEX | N8: =IFERROR(VLOOKUP($L8,Games!$A:C,3,FALSE),"") -> Home | O8: =IF(A8="",0,IFERROR(VALUE(IFERROR(VLOOKUP($L8,Games!$A:F,4,FALSE),"")),110)) -> -142 | P8: =IFERROR(VALUE(LEFT(VLOOKUP($L8,Games!$A:E,5,FALSE),4)),"") -> 8 | Q8: =VLOOKUP(B8,names!J:M,4,FALSE) -> R | R8: =IFERROR(IF($A8="",0,VLOOKUP($B8,pitchers!$B:AM,12,FALSE)),"") -> 190 | S8: =IF($A8="",0,VLOOKUP($B8,pitchers!$B:AN,20,FALSE)) -> 3.93 | T8: =IF($A8="",0,VLOOKUP($B8,pitchers!$B:AO,38,FALSE)) -> 1.284 | U8: =IFERROR(IF($A8="",0,VLOOKUP($B8,pitchersL14!$B:AP,12,FALSE)),0) -> 11.2 | V8: =IFERROR(IF($A8="",0,VLOOKUP($B8,pitchersL14!$B:AQ,20,FALSE)),"---") -> 4.63 | W8: =IFERROR(IF($A8="",0,VLOOKUP($B8,pitchersL14!$B:AR,38,FALSE)),0) -> 1.457 | X8: =IFERROR(IF($A8="",0,IF($N8="home",VLOOKUP('Pitcher temp'!$CP8,'P-home'!$B:AF,7,FALSE),VLOOKUP('Pitcher temp'!$CP8,'P-road'!$B:AF,7,FALSE))),"") -> 370 | Y8: =IFERROR(IF($A8="",0,IF($N8="home",VLOOKUP('Pitcher temp'!$CP8,'P-home'!$B:AG,31,FALSE),VLOOKUP('Pitcher temp'!$CP8,'P-road'!$B:AG,31,FALSE))),"") -> 0.685 | Z8: =IF($A8="",0,INDEX('Team B L7'!$A:$A,MATCH('Pitcher temp'!$AG8,'Team B L7'!$B:$B,0),0)) -> 1 | AA8: =IF($A8="",0,INDEX('Team B L7'!$O:$O,MATCH('Pitcher temp'!$AG8,'Team B L7'!$B:$B,0),0)) -> 0.858 | AB8: =INDEX(team!C:C,MATCH('Pitcher temp'!M8,team!B:B,0),0) -> Texas | AC8: =IF(Q8="R",INDEX(TeamBVR!A:A,MATCH('Pitcher temp'!AB8,TeamBVR!B:B,0),0),INDEX(TeamBVL!A:A,MATCH('Pitcher temp'!AB8,TeamBVR!B:B,0),0)) -> 25 | AD8: =IF($Q8="R",INDEX(TeamBVR!$O:$O,MATCH('Pitcher temp'!$AB8,TeamBVR!$B:$B,0),0),INDEX(TeamBVL!$O:$O,MATCH('Pitcher temp'!$AB8,TeamBVR!$B:$B,0),0)) -> 0.745 | AE8: =IF($A8="","",IF($N8="home",INDEX(TeamBroad!$A:$A,MATCH('Pitcher temp'!$AG8,TeamBroad!$B:$B,0),0),INDEX(TeamBhome!$A:$A,MATCH('Pitcher temp'!$AG8,TeamBhome!$B:$B,0),0))) -> 8 | AF8: =IF($A8="","",IF($N8="home",INDEX(TeamBroad!$O:$O,MATCH('Pitcher temp'!$AG8,TeamBroad!$B:$B,0),0),INDEX(TeamBroad!$O:$O,MATCH('Pitcher temp'!$AG8,TeamBroad!$B:$B,0),0))) -> 0.695 | AG8: =IF(A8="","",VLOOKUP(M8,team!B:C,2,FALSE)) -> Texas | AH8: =IF(N8="home",VLOOKUP(L8,team!B:C,2,FALSE),VLOOKUP('Pitcher temp'!M8,team!B:C,2,FALSE)) -> Houston | AI8: =VLOOKUP($AH8,team!$E:G,3,FALSE) -> Minute Maid Park (Houston, Texas) | AJ8: =VLOOKUP($AH8,team!$E:H,2,FALSE) -> 13 | AK8: =VLOOKUP($AH8,team!$E:I,4,FALSE) -> 1.012 | AL8: =VLOOKUP($AH8,team!$J:P,2,FALSE) -> 8 | AM8: =VLOOKUP($AH8,team!$J:Q,4,FALSE) -> 1.173 | AN8: =VLOOKUP(AH8,team!C:O,13,FALSE) -> Houston Astros | AO8: =INDEX(weather!$F:$F,MATCH('Pitcher temp'!$AN8,weather!$B:$B,0),0) -> 87° F/ 31° C | AP8: =INDEX(weather!$F:$F,(MATCH('Pitcher temp'!$AN8,weather!$B:$B,0))+1,0) -> Chance of a Thunderstorm | AQ8: 10.848 | AR8: 16.128 | AS8: 11.3 | AT8: 16.8 | AU8: =IF($V8>9,Projections!$H$4,IF('Pitcher temp'!$V8>5,Projections!$H$5,IF('Pitcher temp'!$V8<1.8,Projections!$H$6,0))) -> 0 | AV8: =IF($Z8<6,Projections!$H$9,IF($Z8>24,Projections!$H$10,0)) -> -0.12 | AW8: =IF($AC8<6,Projections!$H$13,IF($AC8>24,Projections!$H$14,0)) -> 0.08 | AX8: =IF($AE8<6,Projections!$H$17,IF($AE8>24,Projections!$H$18,0)) -> 0 | AY8: =IF($AJ8<6,Projections!$H$21,IF($AJ8>24,Projections!$H$22,0)) -> 0 | AZ8: =IF($P8>9.5,Projections!$H$25,IF('Pitcher temp'!$P8>8,Projections!$H$26,IF(AND('Pitcher temp'!$P8<7,'Pitcher temp'!$P8>1),Projections!$H$27,0))) -> 0 | BA8: =IF($O8<-190,Projections!$H$30,IF('Pitcher temp'!$O8<-149,Projections!$H$31,IF('Pitcher temp'!$O8>145,Projections!$H$32,0)))+(IF($BI8<7,Projections!$H$35,IF($BI8>23,Projections!$H$36,0))) -> 0 | BB8: =IF($V8>9,Projections!$I$4,IF('Pitcher temp'!$V8>5,Projections!$I$5,IF('Pitcher temp'!$V8<1.8,Projections!$I$6,0))) -> 0 | BC8: =IF($Z8<6,Projections!$I$9,IF($Z8>24,Projections!$I$10,0)) -> 0 | BD8: =IF($AC8<6,Projections!$I$13,IF($AC8>24,Projections!$I$14,0)) -> 0 | BE8: =IF($AE8<6,Projections!$I$17,IF($AE8>24,Projections!$I$18,0)) -> 0 | BF8: =IF($AJ8<6,Projections!$I$21,IF($AJ8>24,Projections!$I$22,0)) -> 0 | BG8: =IF($P8>9.5,Projections!$I$25,IF('Pitcher temp'!$P8>8,Projections!$I$26,IF(AND('Pitcher temp'!$P8<7,'Pitcher temp'!$P8>1),Projections!$I$27,0))) -> 0 | BH8: =IF($O8<-190,Projections!$I$30,IF('Pitcher temp'!$O8<-149,Projections!$I$31,IF('Pitcher temp'!$O8>145,Projections!$I$32,0)))+(IF($BI8<7,Projections!$I$35,IF($BI8>23,Projections!$I$36,0))) -> 0 | BI8: =IF(A8="",0,INDEX(teamk!A:A,MATCH('Pitcher temp'!AB8,teamk!B:B,0),0)) -> 20 | BJ8: =IF($A8="",0,VLOOKUP($B8,pitchers!$B:CE,35,FALSE)) -> 0.88 | BK8: =IF($A8="",0,VLOOKUP($B8,pitchers!$B:CF,40,FALSE)) -> 7.5 | BL8: =IFERROR(IF($A8="",0,VLOOKUP($CO8,FG!$N:BH,6,FALSE)),0) -> 0.283 | BM8: =IFERROR(IF($A8="",0,VLOOKUP($CO8,FG!$AP:BI,6,FALSE)),0) -> 0.344 | BN8: =VLOOKUP(B8,'batters-temp'!V:CG,64,FALSE) -> 13:05:00 | BO8: =IFERROR(IF($A8="",0,VLOOKUP($CP8,PVLHB!$B:AQ,42,FALSE)),0) -> 0.2679245283 | BP8: =IFERROR(IF($A8="",0,VLOOKUP($CP8,PVRHB!$B:AR,42,FALSE)),0) -> 0.3513513514 | BQ8: =IFERROR(IF($A8="",0,VLOOKUP($B8,PVLHB!$B:AS,43,FALSE)),0) -> 0.2041884817 | BR8: =IFERROR(IF($A8="",0,VLOOKUP($B8,PVRHB!$B:AT,43,FALSE)),0) -> 0.1923990499 | BS8: =IFERROR(IF($A8="",0,IF($N8="home",VLOOKUP('Pitcher temp'!$CP8,'P-home'!$B:BZ,32,FALSE),VLOOKUP('Pitcher temp'!$CP8,'P-road'!$B:BZ,32,FALSE))),"") -> 0.3156028369 | BT8: =IFERROR(IF($A8="",0,IF($N8="home",VLOOKUP('Pitcher temp'!$CP8,'P-home'!$B:CA,33,FALSE),VLOOKUP('Pitcher temp'!$CP8,'P-road'!$B:CA,33,FALSE))),"") -> 0.227027027 | BU8: =IF(N8="Home",VLOOKUP(M8,team!B:D,3,FALSE),VLOOKUP('Pitcher temp'!BV8,team!B:D,3,FALSE)) -> Texas Rangers | BV8: =VLOOKUP(C8,team!A:B,2,FALSE) -> HOU | BW8: =IF(A8="",0,VLOOKUP($BU8,weather4!$T:AA,2,FALSE)) -> 0.45 | BX8: =VLOOKUP($BU8,weather4!$T:AB,3,FALSE) -> Clear | BY8: =IF(A8="",0,VLOOKUP($BU8,weather4!$T:AC,4,FALSE)) -> 0 | BZ8: =VLOOKUP($BU8,weather4!$T:AD,5,FALSE) -> 0 | CA8: =VLOOKUP($BU8,weather4!$T:AE,6,FALSE) -> 0.15 | CB8: =VLOOKUP($BU8,weather4!$T:AF,7,FALSE) -> NNE 6 mph | CC8: =VLOOKUP($BU8,weather4!$T:AG,8,FALSE) -> 87° | CD8: =IFERROR(IF($A8="",0,VLOOKUP($CO8,PVLHB2014!$AX:BZ,6,FALSE)),0) -> 0.272 | CE8: =IFERROR(IF($A8="",0,VLOOKUP($CO8,PVRHB2014!$AW:CA,6,FALSE)),0) -> 0.252 | CF8: =INDEX(team!A:A,(MATCH('Pitcher temp'!M8,team!B:B,0))) -> Tex | CG8: =IFERROR(IF($A8="",0,VLOOKUP($B8,PVLHB!$B:BJ,44,FALSE)),0) -> 0.02011494253 | CH8: =IFERROR(IF($A8="",0,VLOOKUP($B8,PVRHB!$B:BJ,44,FALSE)),0) -> 0.02849740933 | CI8: =IFERROR(IF($A8="",0,VLOOKUP($CO8,PVLHB2014!$AX:CE,9,FALSE)),0) -> 3.49 | CJ8: =IFERROR(IF($A8="",0,VLOOKUP($CO8,PVRHB2014!$AW:CF,9,FALSE)),0) -> 2.56 | CK8: =IFERROR(IF($A8="",0,VLOOKUP($CO8,FG!$N:CG,10,FALSE)),0) -> 3.98 | CL8: =IFERROR(IF($A8="",0,VLOOKUP($CO8,FG!$AP:CH,10,FALSE)),0) -> 4.02 | CM8: =IFERROR(IF($A8="",0,VLOOKUP($CO8,FG!$A:CI,8,FALSE)),0) -> 4 | CN8: =IFERROR(IF($A8="",0,VLOOKUP($CO8,FG!$A:CJ,10,FALSE)),0) -> 3.98 | CO8: =IF($B8="","",VLOOKUP($B8,names!$J:AB,7,FALSE)) -> Collin McHugh | CP8: =IF($B8="","",VLOOKUP($B8,names!$J:AB,8,FALSE)) -> Collin McHugh | CQ8: 830 | CR8: 502 | CS8: 796 | CT8: 482
A9: =IF(OR('FD pit'!$C11="",'FD pit'!$C11="Name"),"",'FD pit'!$C11) -> Teheran, Julio | B9: =IF(A9="","",VLOOKUP(A9,names!F:G,2,FALSE)) -> Julio Teheran | C9: =IF($A9="","",VLOOKUP($A9,'FD pit'!$C:P,4,FALSE)) -> Atl | D9: =IF($A9="",0,VLOOKUP($A9,'FD pit'!$C:AP,5,FALSE)) -> 8600 | E9: =IF($A9="",0,VLOOKUP($A9,'FD pit'!$C:AQ,MATCH("/GP",'FD pit'!$C$4:$N$4,0),FALSE)) -> 9.8 | F9: =IF($A9="",0,VLOOKUP($A9,'FD pit'!$C:AR,MATCH("/GP",'FD pit'!$C$4:$N$4,0)+2,FALSE)) -> 13 | G9: =IF($A9="",0,VLOOKUP($A9,'FD pit'!$C:AS,MATCH("/GP",'FD pit'!$C$4:$N$4,0)+3,FALSE)) -> 15.3 | H9: =IFERROR(VLOOKUP($A9,'DK pit'!$C:R,5,FALSE),0) -> 8300 | I9: =IFERROR(VLOOKUP($A9,'DK pit'!$C:S,MATCH("/GP",'DK pit'!$C$4:$N$4,0),FALSE),0) -> 14.8 | J9: =IFERROR(VLOOKUP($A9,'DK pit'!$C:T,MATCH("/GP",'FD pit'!$C$4:$N$4,0)+2,FALSE),0) -> 23.2 | K9: =IFERROR(VLOOKUP($A9,'DK pit'!$C:U,MATCH("/GP",'DK pit'!$C$4:$N$4,0)+3,FALSE),0) -> 29.1 | L9: =IFERROR(VLOOKUP(C9,team!A:B,2,FALSE),"") -> ATL | M9: =IFERROR(VLOOKUP(L9,Games!A:B,2,FALSE),"") -> MIA | N9: =IFERROR(VLOOKUP($L9,Games!$A:C,3,FALSE),"") -> Away | O9: =IF(A9="",0,IFERROR(VALUE(IFERROR(VLOOKUP($L9,Games!$A:F,4,FALSE),"")),110)) -> -103 | P9: =IFERROR(VALUE(LEFT(VLOOKUP($L9,Games!$A:E,5,FALSE),4)),"") -> 7.5 | Q9: =VLOOKUP(B9,names!J:M,4,FALSE) -> R | R9: =IFERROR(IF($A9="",0,VLOOKUP($B9,pitchers!$B:AM,12,FALSE)),"") -> 188.2 | S9: =IF($A9="",0,VLOOKUP($B9,pitchers!$B:AN,20,FALSE)) -> 4.2 | T9: =IF($A9="",0,VLOOKUP($B9,pitchers!$B:AO,38,FALSE)) -> 1.304 | U9: =IFERROR(IF($A9="",0,VLOOKUP($B9,pitchersL14!$B:AP,12,FALSE)),0) -> 14 | V9: =IFERROR(IF($A9="",0,VLOOKUP($B9,pitchersL14!$B:AQ,20,FALSE)),"---") -> 1.93 | W9: =IFERROR(IF($A9="",0,VLOOKUP($B9,pitchersL14!$B:AR,38,FALSE)),0) -> 1.071 | X9: =IFERROR(IF($A9="",0,IF($N9="home",VLOOKUP('Pitcher temp'!$CP9,'P-home'!$B:AF,7,FALSE),VLOOKUP('Pitcher temp'!$CP9,'P-road'!$B:AF,7,FALSE))),"") -> 337 | Y9: =IFERROR(IF($A9="",0,IF($N9="home",VLOOKUP('Pitcher temp'!$CP9,'P-home'!$B:AG,31,FALSE),VLOOKUP('Pitcher temp'!$CP9,'P-road'!$B:AG,31,FALSE))),"") -> 0 | Z9: =IF($A9="",0,INDEX('Team B L7'!$A:$A,MATCH('Pitcher temp'!$AG9,'Team B L7'!$B:$B,0),0)) -> 24 | AA9: =IF($A9="",0,INDEX('Team B L7'!$O:$O,MATCH('Pitcher temp'!$AG9,'Team B L7'!$B:$B,0),0)) -> 0.765 | AB9: =INDEX(team!C:C,MATCH('Pitcher temp'!M9,team!B:B,0),0) -> Miami | AC9: =IF(Q9="R",INDEX(TeamBVR!A:A,MATCH('Pitcher temp'!AB9,TeamBVR!B:B,0),0),INDEX(TeamBVL!A:A,MATCH('Pitcher temp'!AB9,TeamBVR!B:B,0),0)) -> 26 | AD9: =IF($Q9="R",INDEX(TeamBVR!$O:$O,MATCH('Pitcher temp'!$AB9,TeamBVR!$B:$B,0),0),INDEX(TeamBVL!$O:$O,MATCH('Pitcher temp'!$AB9,TeamBVR!$B:$B,0),0)) -> 0.679 | AE9: =IF($A9="","",IF($N9="home",INDEX(TeamBroad!$A:$A,MATCH('Pitcher temp'!$AG9,TeamBroad!$B:$B,0),0),INDEX(TeamBhome!$A:$A,MATCH('Pitcher temp'!$AG9,TeamBhome!$B:$B,0),0))) -> 26 | AF9: =IF($A9="","",IF($N9="home",INDEX(TeamBroad!$O:$O,MATCH('Pitcher temp'!$AG9,TeamBroad!$B:$B,0),0),INDEX(TeamBroad!$O:$O,MATCH('Pitcher temp'!$AG9,TeamBroad!$B:$B,0),0))) -> 0.701 | AG9: =IF(A9="","",VLOOKUP(M9,team!B:C,2,FALSE)) -> Miami | AH9: =IF(N9="home",VLOOKUP(L9,team!B:C,2,FALSE),VLOOKUP('Pitcher temp'!M9,team!B:C,2,FALSE)) -> Miami | AI9: =VLOOKUP($AH9,team!$E:G,3,FALSE) -> Marlins Park (Miami, Florida) | AJ9: =VLOOKUP($AH9,team!$E:H,2,FALSE) -> 12 | AK9: =VLOOKUP($AH9,team!$E:I,4,FALSE) -> 1.014 | AL9: =VLOOKUP($AH9,team!$J:P,2,FALSE) -> 26 | AM9: =VLOOKUP($AH9,team!$J:Q,4,FALSE) -> 0.788 | AN9: =VLOOKUP(AH9,team!C:O,13,FALSE) -> Miami Marlins | AO9: =INDEX(weather!$F:$F,MATCH('Pitcher temp'!$AN9,weather!$B:$B,0),0) -> 80° F/ 27° C | AP9: =INDEX(weather!$F:$F,(MATCH('Pitcher temp'!$AN9,weather!$B:$B,0))+1,0) -> Thunderstorm | AQ9: 10.29 | AR9: 15.54 | AS9: 9.8 | AT9: 14.8 | AU9: =IF($V9>9,Projections!$H$4,IF('Pitcher temp'!$V9>5,Projections!$H$5,IF('Pitcher temp'!$V9<1.8,Projections!$H$6,0))) -> 0 | AV9: =IF($Z9<6,Projections!$H$9,IF($Z9>24,Projections!$H$10,0)) -> 0 | AW9: =IF($AC9<6,Projections!$H$13,IF($AC9>24,Projections!$H$14,0)) -> 0.08 | AX9: =IF($AE9<6,Projections!$H$17,IF($AE9>24,Projections!$H$18,0)) -> 0.07 | AY9: =IF($AJ9<6,Projections!$H$21,IF($AJ9>24,Projections!$H$22,0)) -> 0 | AZ9: =IF($P9>9.5,Projections!$H$25,IF('Pitcher temp'!$P9>8,Projections!$H$26,IF(AND('Pitcher temp'!$P9<7,'Pitcher temp'!$P9>1),Projections!$H$27,0))) -> 0 | BA9: =IF($O9<-190,Projections!$H$30,IF('Pitcher temp'!$O9<-149,Projections!$H$31,IF('Pitcher temp'!$O9>145,Projections!$H$32,0)))+(IF($BI9<7,Projections!$H$35,IF($BI9>23,Projections!$H$36,0))) -> -0.1 | BB9: =IF($V9>9,Projections!$I$4,IF('Pitcher temp'!$V9>5,Projections!$I$5,IF('Pitcher temp'!$V9<1.8,Projections!$I$6,0))) -> 0 | BC9: =IF($Z9<6,Projections!$I$9,IF($Z9>24,Projections!$I$10,0)) -> 0 | BD9: =IF($AC9<6,Projections!$I$13,IF($AC9>24,Projections!$I$14,0)) -> 0 | BE9: =IF($AE9<6,Projections!$I$17,IF($AE9>24,Projections!$I$18,0)) -> 0 | BF9: =IF($AJ9<6,Projections!$I$21,IF($AJ9>24,Projections!$I$22,0)) -> 0 | BG9: =IF($P9>9.5,Projections!$I$25,IF('Pitcher temp'!$P9>8,Projections!$I$26,IF(AND('Pitcher temp'!$P9<7,'Pitcher temp'!$P9>1),Projections!$I$27,0))) -> 0 | BH9: =IF($O9<-190,Projections!$I$30,IF('Pitcher temp'!$O9<-149,Projections!$I$31,IF('Pitcher temp'!$O9>145,Projections!$I$32,0)))+(IF($BI9<7,Projections!$I$35,IF($BI9>23,Projections!$I$36,0))) -> 0 | BI9: =IF(A9="",0,INDEX(teamk!A:A,MATCH('Pitcher temp'!AB9,teamk!B:B,0),0)) -> 24 | BJ9: =IF($A9="",0,VLOOKUP($B9,pitchers!$B:CE,35,FALSE)) -> 0.66 | BK9: =IF($A9="",0,VLOOKUP($B9,pitchers!$B:CF,40,FALSE)) -> 7.7 | BL9: =IFERROR(IF($A9="",0,VLOOKUP($CO9,FG!$N:BH,6,FALSE)),0) -> 0.391 | BM9: =IFERROR(IF($A9="",0,VLOOKUP($CO9,FG!$AP:BI,6,FALSE)),0) -> 0.264 | BN9: =VLOOKUP(B9,'batters-temp'!V:CG,64,FALSE) -> 19:10:00 | BO9: =IFERROR(IF($A9="",0,VLOOKUP($CP9,PVLHB!$B:AQ,42,FALSE)),0) -> 0.3220973783 | BP9: =IFERROR(IF($A9="",0,VLOOKUP($CP9,PVRHB!$B:AR,42,FALSE)),0) -> 0.2619047619 | BQ9: =IFERROR(IF($A9="",0,VLOOKUP($B9,PVLHB!$B:AS,43,FALSE)),0) -> 0.1536523929 | BR9: =IFERROR(IF($A9="",0,VLOOKUP($B9,PVRHB!$B:AT,43,FALSE)),0) -> 0.2550505051 | BS9: =IFERROR(IF($A9="",0,IF($N9="home",VLOOKUP('Pitcher temp'!$CP9,'P-home'!$B:BZ,32,FALSE),VLOOKUP('Pitcher temp'!$CP9,'P-road'!$B:BZ,32,FALSE))),"") -> 0 | BT9: =IFERROR(IF($A9="",0,IF($N9="home",VLOOKUP('Pitcher temp'!$CP9,'P-home'!$B:CA,33,FALSE),VLOOKUP('Pitcher temp'!$CP9,'P-road'!$B:CA,33,FALSE))),"") -> 0 | BU9: =IF(N9="Home",VLOOKUP(M9,team!B:D,3,FALSE),VLOOKUP('Pitcher temp'!BV9,team!B:D,3,FALSE)) -> Atlanta Braves | BV9: =VLOOKUP(C9,team!A:B,2,FALSE) -> ATL | BW9: =IF(A9="",0,VLOOKUP($BU9,weather4!$T:AA,2,FALSE)) -> 0.7 | BX9: =VLOOKUP($BU9,weather4!$T:AB,3,FALSE) -> Overcast | BY9: =IF(A9="",0,VLOOKUP($BU9,weather4!$T:AC,4,FALSE)) -> 0.15 | BZ9: =VLOOKUP($BU9,weather4!$T:AD,5,FALSE) -> 0.09 | CA9: =VLOOKUP($BU9,weather4!$T:AE,6,FALSE) -> 0.07 | CB9: =VLOOKUP($BU9,weather4!$T:AF,7,FALSE) -> ENE 7 mph | CC9: =VLOOKUP($BU9,weather4!$T:AG,8,FALSE) -> 84° | CD9: =IFERROR(IF($A9="",0,VLOOKUP($CO9,PVLHB2014!$AX:BZ,6,FALSE)),0) -> 0.301 | CE9: =IFERROR(IF($A9="",0,VLOOKUP($CO9,PVRHB2014!$AW:CA,6,FALSE)),0) -> 0.262 | CF9: =INDEX(team!A:A,(MATCH('Pitcher temp'!M9,team!B:B,0))) -> Fla | CG9: =IFERROR(IF($A9="",0,VLOOKUP($B9,PVLHB!$B:BJ,44,FALSE)),0) -> 0.04927536232 | CH9: =IFERROR(IF($A9="",0,VLOOKUP($B9,PVRHB!$B:BJ,44,FALSE)),0) -> 0.02506963788 | CI9: =IFERROR(IF($A9="",0,VLOOKUP($CO9,PVLHB2014!$AX:CE,9,FALSE)),0) -> 3.94 | CJ9: =IFERROR(IF($A9="",0,VLOOKUP($CO9,PVRHB2014!$AW:CF,9,FALSE)),0) -> 3.5 | CK9: =IFERROR(IF($A9="",0,VLOOKUP($CO9,FG!$N:CG,10,FALSE)),0) -> 5.11 | CL9: =IFERROR(IF($A9="",0,VLOOKUP($CO9,FG!$AP:CH,10,FALSE)),0) -> 3.51 | CM9: =IFERROR(IF($A9="",0,VLOOKUP($CO9,FG!$A:CI,8,FALSE)),0) -> 4.23 | CN9: =IFERROR(IF($A9="",0,VLOOKUP($CO9,FG!$A:CJ,10,FALSE)),0) -> 4.27 | CO9: =IF($B9="","",VLOOKUP($B9,names!$J:AB,7,FALSE)) -> Julio Teheran | CP9: =IF($B9="","",VLOOKUP($B9,names!$J:AB,8,FALSE)) -> Julio Teheran | CQ9: 836 | CR9: 534 | CS9: 878 | CT9: 561
A10: =IF(OR('FD pit'!$C12="",'FD pit'!$C12="Name"),"",'FD pit'!$C12) -> Chen, Wei-Yin | B10: =IF(A10="","",VLOOKUP(A10,names!F:G,2,FALSE)) -> Wei-Yin Chen | C10: =IF($A10="","",VLOOKUP($A10,'FD pit'!$C:P,4,FALSE)) -> Bal | D10: =IF($A10="",0,VLOOKUP($A10,'FD pit'!$C:AP,5,FALSE)) -> 8300 | E10: =IF($A10="",0,VLOOKUP($A10,'FD pit'!$C:AQ,MATCH("/GP",'FD pit'!$C$4:$N$4,0),FALSE)) -> 10.2 | F10: =IF($A10="",0,VLOOKUP($A10,'FD pit'!$C:AR,MATCH("/GP",'FD pit'!$C$4:$N$4,0)+2,FALSE)) -> 14 | G10: =IF($A10="",0,VLOOKUP($A10,'FD pit'!$C:AS,MATCH("/GP",'FD pit'!$C$4:$N$4,0)+3,FALSE)) -> 17 | H10: =IFERROR(VLOOKUP($A10,'DK pit'!$C:R,5,FALSE),0) -> 7600 | I10: =IFERROR(VLOOKUP($A10,'DK pit'!$C:S,MATCH("/GP",'DK pit'!$C$4:$N$4,0),FALSE),0) -> 15.9 | J10: =IFERROR(VLOOKUP($A10,'DK pit'!$C:T,MATCH("/GP",'FD pit'!$C$4:$N$4,0)+2,FALSE),0) -> 21.9 | K10: =IFERROR(VLOOKUP($A10,'DK pit'!$C:U,MATCH("/GP",'DK pit'!$C$4:$N$4,0)+3,FALSE),0) -> 27.6 | L10: =IFERROR(VLOOKUP(C10,team!A:B,2,FALSE),"") -> BAL | M10: =IFERROR(VLOOKUP(L10,Games!A:B,2,FALSE),"") -> BOS | N10: =IFERROR(VLOOKUP($L10,Games!$A:C,3,FALSE),"") -> Away | O10: =IF(A10="",0,IFERROR(VALUE(IFERROR(VLOOKUP($L10,Games!$A:F,4,FALSE),"")),110)) -> 110 | P10: =IFERROR(VALUE(LEFT(VLOOKUP($L10,Games!$A:E,5,FALSE),4)),"") -> 7.5 | Q10: =VLOOKUP(B10,names!J:M,4,FALSE) -> L | R10: =IFERROR(IF($A10="",0,VLOOKUP($B10,pitchers!$B:AM,12,FALSE)),"") -> 179.2 | S10: =IF($A10="",0,VLOOKUP($B10,pitchers!$B:AN,20,FALSE)) -> 3.36 | T10: =IF($A10="",0,VLOOKUP($B10,pitchers!$B:AO,38,FALSE)) -> 1.219 | U10: =IFERROR(IF($A10="",0,VLOOKUP($B10,pitchersL14!$B:AP,12,FALSE)),0) -> 14 | V10: =IFERROR(IF($A10="",0,VLOOKUP($B10,pitchersL14!$B:AQ,20,FALSE)),"---") -> 1.93 | W10: =IFERROR(IF($A10="",0,VLOOKUP($B10,pitchersL14!$B:AR,38,FALSE)),0) -> 0.857 | X10: =IFERROR(IF($A10="",0,IF($N10="home",VLOOKUP('Pitcher temp'!$CP10,'P-home'!$B:AF,7,FALSE),VLOOKUP('Pitcher temp'!$CP10,'P-road'!$B:AF,7,FALSE))),"") -> 271 | Y10: =IFERROR(IF($A10="",0,IF($N10="home",VLOOKUP('Pitcher temp'!$CP10,'P-home'!$B:AG,31,FALSE),VLOOKUP('Pitcher temp'!$CP10,'P-road'!$B:AG,31,FALSE))),"") -> 0.75 | Z10: =IF($A10="",0,INDEX('Team B L7'!$A:$A,MATCH('Pitcher temp'!$AG10,'Team B L7'!$B:$B,0),0)) -> 13 | AA10: =IF($A10="",0,INDEX('Team B L7'!$O:$O,MATCH('Pitcher temp'!$AG10,'Team B L7'!$B:$B,0),0)) -> 0.691 | AB10: =INDEX(team!C:C,MATCH('Pitcher temp'!M10,team!B:B,0),0) -> Boston | AC10: =IF(Q10="R",INDEX(TeamBVR!A:A,MATCH('Pitcher temp'!AB10,TeamBVR!B:B,0),0),INDEX(TeamBVL!A:A,MATCH('Pitcher temp'!AB10,TeamBVR!B:B,0),0)) -> 8 | AD10: =IF($Q10="R",INDEX(TeamBVR!$O:$O,MATCH('Pitcher temp'!$AB10,TeamBVR!$B:$B,0),0),INDEX(TeamBVL!$O:$O,MATCH('Pitcher temp'!$AB10,TeamBVR!$B:$B,0),0)) -> 0.759 | AE10: =IF($A10="","",IF($N10="home",INDEX(TeamBroad!$A:$A,MATCH('Pitcher temp'!$AG10,TeamBroad!$B:$B,0),0),INDEX(TeamBhome!$A:$A,MATCH('Pitcher temp'!$AG10,TeamBhome!$B:$B,0),0))) -> 3 | AF10: =IF($A10="","",IF($N10="home",INDEX(TeamBroad!$O:$O,MATCH('Pitcher temp'!$AG10,TeamBroad!$B:$B,0),0),INDEX(TeamBroad!$O:$O,MATCH('Pitcher temp'!$AG10,TeamBroad!$B:$B,0),0))) -> 0.68 | AG10: =IF(A10="","",VLOOKUP(M10,team!B:C,2,FALSE)) -> Boston | AH10: =IF(N10="home",VLOOKUP(L10,team!B:C,2,FALSE),VLOOKUP('Pitcher temp'!M10,team!B:C,2,FALSE)) -> Boston | AI10: =VLOOKUP($AH10,team!$E:G,3,FALSE) -> Fenway Park (Boston, Massachusetts) | AJ10: =VLOOKUP($AH10,team!$E:H,2,FALSE) -> 5 | AK10: =VLOOKUP($AH10,team!$E:I,4,FALSE) -> 1.072 | AL10: =VLOOKUP($AH10,team!$J:P,2,FALSE) -> 27 | AM10: =VLOOKUP($AH10,team!$J:Q,4,FALSE) -> 0.72 | AN10: =VLOOKUP(AH10,team!C:O,13,FALSE) -> Boston Red Sox | AO10: =INDEX(weather!$F:$F,MATCH('Pitcher temp'!$AN10,weather!$B:$B,0),0) -> 60° F/ 16° C | AP10: =INDEX(weather!$F:$F,(MATCH('Pitcher temp'!$AN10,weather!$B:$B,0))+1,0) -> Clear | AQ10: 7.446 | AR10: 11.607 | AS10: 10.2 | AT10: 15.9 | AU10: =IF($V10>9,Projections!$H$4,IF('Pitcher temp'!$V10>5,Projections!$H$5,IF('Pitcher temp'!$V10<1.8,Projections!$H$6,0))) -> 0 | AV10: =IF($Z10<6,Projections!$H$9,IF($Z10>24,Projections!$H$10,0)) -> 0 | AW10: =IF($AC10<6,Projections!$H$13,IF($AC10>24,Projections!$H$14,0)) -> 0 | AX10: =IF($AE10<6,Projections!$H$17,IF($AE10>24,Projections!$H$18,0)) -> -0.07 | AY10: =IF($AJ10<6,Projections!$H$21,IF($AJ10>24,Projections!$H$22,0)) -> -0.1 | AZ10: =IF($P10>9.5,Projections!$H$25,IF('Pitcher temp'!$P10>8,Projections!$H$26,IF(AND('Pitcher temp'!$P10<7,'Pitcher temp'!$P10>1),Projections!$H$27,0))) -> 0 | BA10: =IF($O10<-190,Projections!$H$30,IF('Pitcher temp'!$O10<-149,Projections!$H$31,IF('Pitcher temp'!$O10>145,Projections!$H$32,0)))+(IF($BI10<7,Projections!$H$35,IF($BI10>23,Projections!$H$36,0))) -> -0.1 | BB10: =IF($V10>9,Projections!$I$4,IF('Pitcher temp'!$V10>5,Projections!$I$5,IF('Pitcher temp'!$V10<1.8,Projections!$I$6,0))) -> 0 | BC10: =IF($Z10<6,Projections!$I$9,IF($Z10>24,Projections!$I$10,0)) -> 0 | BD10: =IF($AC10<6,Projections!$I$13,IF($AC10>24,Projections!$I$14,0)) -> 0 | BE10: =IF($AE10<6,Projections!$I$17,IF($AE10>24,Projections!$I$18,0)) -> 0 | BF10: =IF($AJ10<6,Projections!$I$21,IF($AJ10>24,Projections!$I$22,0)) -> 0 | BG10: =IF($P10>9.5,Projections!$I$25,IF('Pitcher temp'!$P10>8,Projections!$I$26,IF(AND('Pitcher temp'!$P10<7,'Pitcher temp'!$P10>1),Projections!$I$27,0))) -> 0 | BH10: =IF($O10<-190,Projections!$I$30,IF('Pitcher temp'!$O10<-149,Projections!$I$31,IF('Pitcher temp'!$O10>145,Projections!$I$32,0)))+(IF($BI10<7,Projections!$I$35,IF($BI10>23,Projections!$I$36,0))) -> 0 | BI10: =IF(A10="",0,INDEX(teamk!A:A,MATCH('Pitcher temp'!AB10,teamk!B:B,0),0)) -> 27 | BJ10: =IF($A10="",0,VLOOKUP($B10,pitchers!$B:CE,35,FALSE)) -> 0.7 | BK10: =IF($A10="",0,VLOOKUP($B10,pitchers!$B:CF,40,FALSE)) -> 7.2 | BL10: =IFERROR(IF($A10="",0,VLOOKUP($CO10,FG!$N:BH,6,FALSE)),0) -> 0.256 | BM10: =IFERROR(IF($A10="",0,VLOOKUP($CO10,FG!$AP:BI,6,FALSE)),0) -> 0.355 | BN10: =VLOOKUP(B10,'batters-temp'!V:CG,64,FALSE) -> 16:05:00 | BO10: =IFERROR(IF($A10="",0,VLOOKUP($CP10,PVLHB!$B:AQ,42,FALSE)),0) -> 0.25 | BP10: =IFERROR(IF($A10="",0,VLOOKUP($CP10,PVRHB!$B:AR,42,FALSE)),0) -> 0.3102564103 | BQ10: =IFERROR(IF($A10="",0,VLOOKUP($B10,PVLHB!$B:AS,43,FALSE)),0) -> 0.1590909091 | BR10: =IFERROR(IF($A10="",0,VLOOKUP($B10,PVRHB!$B:AT,43,FALSE)),0) -> 0.2028218695 | BS10: =IFERROR(IF($A10="",0,IF($N10="home",VLOOKUP('Pitcher temp'!$CP10,'P-home'!$B:BZ,32,FALSE),VLOOKUP('Pitcher temp'!$CP10,'P-road'!$B:BZ,32,FALSE))),"") -> 0.2884615385 | BT10: =IFERROR(IF($A10="",0,IF($N10="home",VLOOKUP('Pitcher temp'!$CP10,'P-home'!$B:CA,33,FALSE),VLOOKUP('Pitcher temp'!$CP10,'P-road'!$B:CA,33,FALSE))),"") -> 0.2177121771 | BU10: =IF(N10="Home",VLOOKUP(M10,team!B:D,3,FALSE),VLOOKUP('Pitcher temp'!BV10,team!B:D,3,FALSE)) -> Baltimore Orioles | BV10: =VLOOKUP(C10,team!A:B,2,FALSE) -> BAL | BW10: =IF(A10="",0,VLOOKUP($BU10,weather4!$T:AA,2,FALSE)) -> 0.51 | BX10: =VLOOKUP($BU10,weather4!$T:AB,3,FALSE) -> Clear | BY10: =IF(A10="",0,VLOOKUP($BU10,weather4!$T:AC,4,FALSE)) -> 0 | BZ10: =VLOOKUP($BU10,weather4!$T:AD,5,FALSE) -> 0 | CA10: =VLOOKUP($BU10,weather4!$T:AE,6,FALSE) -> 0 | CB10: =VLOOKUP($BU10,weather4!$T:AF,7,FALSE) -> ENE 13 mph | CC10: =VLOOKUP($BU10,weather4!$T:AG,8,FALSE) -> 63° | CD10: =IFERROR(IF($A10="",0,VLOOKUP($CO10,PVLHB2014!$AX:BZ,6,FALSE)),0) -> 0.298 | CE10: =IFERROR(IF($A10="",0,VLOOKUP($CO10,PVRHB2014!$AW:CA,6,FALSE)),0) -> 0.326 | CF10: =INDEX(team!A:A,(MATCH('Pitcher temp'!M10,team!B:B,0))) -> Bos | CG10: =IFERROR(IF($A10="",0,VLOOKUP($B10,PVLHB!$B:BJ,44,FALSE)),0) -> 0.01818181818 | CH10: =IFERROR(IF($A10="",0,VLOOKUP($B10,PVRHB!$B:BJ,44,FALSE)),0) -> 0.04770992366 | CI10: =IFERROR(IF($A10="",0,VLOOKUP($CO10,PVLHB2014!$AX:CE,9,FALSE)),0) -> 3.22 | CJ10: =IFERROR(IF($A10="",0,VLOOKUP($CO10,PVRHB2014!$AW:CF,9,FALSE)),0) -> 3.92 | CK10: =IFERROR(IF($A10="",0,VLOOKUP($CO10,FG!$N:CG,10,FALSE)),0) -> 3.65 | CL10: =IFERROR(IF($A10="",0,VLOOKUP($CO10,FG!$AP:CH,10,FALSE)),0) -> 4.22 | CM10: =IFERROR(IF($A10="",0,VLOOKUP($CO10,FG!$A:CI,8,FALSE)),0) -> 4.07 | CN10: =IFERROR(IF($A10="",0,VLOOKUP($CO10,FG!$A:CJ,10,FALSE)),0) -> 4.01 | CO10: =IF($B10="","",VLOOKUP($B10,names!$J:AB,7,FALSE)) -> Wei-Yin Chen | CP10: =IF($B10="","",VLOOKUP($B10,names!$J:AB,8,FALSE)) -> Wei-Yin Chen | CQ10: 1115 | CR10: 655 | CS10: 814 | CT10: 478
A11: =IF(OR('FD pit'!$C13="",'FD pit'!$C13="Name"),"",'FD pit'!$C13) -> Hammel, Jason | B11: =IF(A11="","",VLOOKUP(A11,names!F:G,2,FALSE)) -> Jason Hammel | C11: =IF($A11="","",VLOOKUP($A11,'FD pit'!$C:P,4,FALSE)) -> ChC | D11: =IF($A11="",0,VLOOKUP($A11,'FD pit'!$C:AP,5,FALSE)) -> 8100 | E11: =IF($A11="",0,VLOOKUP($A11,'FD pit'!$C:AQ,MATCH("/GP",'FD pit'!$C$4:$N$4,0),FALSE)) -> 9.8 | F11: =IF($A11="",0,VLOOKUP($A11,'FD pit'!$C:AR,MATCH("/GP",'FD pit'!$C$4:$N$4,0)+2,FALSE)) -> 8.3 | G11: =IF($A11="",0,VLOOKUP($A11,'FD pit'!$C:AS,MATCH("/GP",'FD pit'!$C$4:$N$4,0)+3,FALSE)) -> 12 | H11: =IFERROR(VLOOKUP($A11,'DK pit'!$C:R,5,FALSE),0) -> 7700 | I11: =IFERROR(VLOOKUP($A11,'DK pit'!$C:S,MATCH("/GP",'DK pit'!$C$4:$N$4,0),FALSE),0) -> 16 | J11: =IFERROR(VLOOKUP($A11,'DK pit'!$C:T,MATCH("/GP",'FD pit'!$C$4:$N$4,0)+2,FALSE),0) -> 11.2 | K11: =IFERROR(VLOOKUP($A11,'DK pit'!$C:U,MATCH("/GP",'DK pit'!$C$4:$N$4,0)+3,FALSE),0) -> 17.6 | L11: =IFERROR(VLOOKUP(C11,team!A:B,2,FALSE),"") -> CHC | M11: =IFERROR(VLOOKUP(L11,Games!A:B,2,FALSE),"") -> PIT | N11: =IFERROR(VLOOKUP($L11,Games!$A:C,3,FALSE),"") -> Home | O11: =IF(A11="",0,IFERROR(VALUE(IFERROR(VLOOKUP($L11,Games!$A:F,4,FALSE),"")),110)) -> -102 | P11: =IFERROR(VALUE(LEFT(VLOOKUP($L11,Games!$A:E,5,FALSE),4)),"") -> 7.5 | Q11: =VLOOKUP(B11,names!J:M,4,FALSE) -> R | R11: =IFERROR(IF($A11="",0,VLOOKUP($B11,pitchers!$B:AM,12,FALSE)),"") -> 161.2 | S11: =IF($A11="",0,VLOOKUP($B11,pitchers!$B:AN,20,FALSE)) -> 3.79 | T11: =IF($A11="",0,VLOOKUP($B11,pitchers!$B:AO,38,FALSE)) -> 1.151 | U11: =IFERROR(IF($A11="",0,VLOOKUP($B11,pitchersL14!$B:AP,12,FALSE)),0) -> 8.2 | V11: =IFERROR(IF($A11="",0,VLOOKUP($B11,pitchersL14!$B:AQ,20,FALSE)),"---") -> 7.27 | W11: =IFERROR(IF($A11="",0,VLOOKUP($B11,pitchersL14!$B:AR,38,FALSE)),0) -> 1.615 | X11: =IFERROR(IF($A11="",0,IF($N11="home",VLOOKUP('Pitcher temp'!$CP11,'P-home'!$B:AF,7,FALSE),VLOOKUP('Pitcher temp'!$CP11,'P-road'!$B:AF,7,FALSE))),"") -> 313 | Y11: =IFERROR(IF($A11="",0,IF($N11="home",VLOOKUP('Pitcher temp'!$CP11,'P-home'!$B:AG,31,FALSE),VLOOKUP('Pitcher temp'!$CP11,'P-road'!$B:AG,31,FALSE))),"") -> 0.737 | Z11: =IF($A11="",0,INDEX('Team B L7'!$A:$A,MATCH('Pitcher temp'!$AG11,'Team B L7'!$B:$B,0),0)) -> 2 | AA11: =IF($A11="",0,INDEX('Team B L7'!$O:$O,MATCH('Pitcher temp'!$AG11,'Team B L7'!$B:$B,0),0)) -> 0.821 | AB11: =INDEX(team!C:C,MATCH('Pitcher temp'!M11,team!B:B,0),0) -> Pittsburgh | AC11: =IF(Q11="R",INDEX(TeamBVR!A:A,MATCH('Pitcher temp'!AB11,TeamBVR!B:B,0),0),INDEX(TeamBVL!A:A,MATCH('Pitcher temp'!AB11,TeamBVR!B:B,0),0)) -> 3 | AD11: =IF($Q11="R",INDEX(TeamBVR!$O:$O,MATCH('Pitcher temp'!$AB11,TeamBVR!$B:$B,0),0),INDEX(TeamBVL!$O:$O,MATCH('Pitcher temp'!$AB11,TeamBVR!$B:$B,0),0)) -> 0.729 | AE11: =IF($A11="","",IF($N11="home",INDEX(TeamBroad!$A:$A,MATCH('Pitcher temp'!$AG11,TeamBroad!$B:$B,0),0),INDEX(TeamBhome!$A:$A,MATCH('Pitcher temp'!$AG11,TeamBhome!$B:$B,0),0))) -> 3 | AF11: =IF($A11="","",IF($N11="home",INDEX(TeamBroad!$O:$O,MATCH('Pitcher temp'!$AG11,TeamBroad!$B:$B,0),0),INDEX(TeamBroad!$O:$O,MATCH('Pitcher temp'!$AG11,TeamBroad!$B:$B,0),0))) -> 0.724 | AG11: =IF(A11="","",VLOOKUP(M11,team!B:C,2,FALSE)) -> Pittsburgh | AH11: =IF(N11="home",VLOOKUP(L11,team!B:C,2,FALSE),VLOOKUP('Pitcher temp'!M11,team!B:C,2,FALSE)) -> Chicago Cubs | AI11: =VLOOKUP($AH11,team!$E:G,3,FALSE) -> Wrigley Field (Chicago, Illinois) | AJ11: =VLOOKUP($AH11,team!$E:H,2,FALSE) -> 23 | AK11: =VLOOKUP($AH11,team!$E:I,4,FALSE) -> 0.931 | AL11: =VLOOKUP($AH11,team!$J:P,2,FALSE) -> 19 | AM11: =VLOOKUP($AH11,team!$J:Q,4,FALSE) -> 0.943 | AN11: =VLOOKUP(AH11,team!C:O,13,FALSE) -> Chicago Cubs | AO11: =INDEX(weather!$F:$F,MATCH('Pitcher temp'!$AN11,weather!$B:$B,0),0) -> 69° F/ 21° C | AP11: =INDEX(weather!$F:$F,(MATCH('Pitcher temp'!$AN11,weather!$B:$B,0))+1,0) -> Partly Cloudy | AQ11: 6.664 | AR11: 10.88 | AS11: 9.8 | AT11: 16 | AU11: =IF($V11>9,Projections!$H$4,IF('Pitcher temp'!$V11>5,Projections!$H$5,IF('Pitcher temp'!$V11<1.8,Projections!$H$6,0))) -> -0.05 | AV11: =IF($Z11<6,Projections!$H$9,IF($Z11>24,Projections!$H$10,0)) -> -0.12 | AW11: =IF($AC11<6,Projections!$H$13,IF($AC11>24,Projections!$H$14,0)) -> -0.08 | AX11: =IF($AE11<6,Projections!$H$17,IF($AE11>24,Projections!$H$18,0)) -> -0.07 | AY11: =IF($AJ11<6,Projections!$H$21,IF($AJ11>24,Projections!$H$22,0)) -> 0 | AZ11: =IF($P11>9.5,Projections!$H$25,IF('Pitcher temp'!$P11>8,Projections!$H$26,IF(AND('Pitcher temp'!$P11<7,'Pitcher temp'!$P11>1),Projections!$H$27,0))) -> 0 | BA11: =IF($O11<-190,Projections!$H$30,IF('Pitcher temp'!$O11<-149,Projections!$H$31,IF('Pitcher temp'!$O11>145,Projections!$H$32,0)))+(IF($BI11<7,Projections!$H$35,IF($BI11>23,Projections!$H$36,0))) -> 0 | BB11: =IF($V11>9,Projections!$I$4,IF('Pitcher temp'!$V11>5,Projections!$I$5,IF('Pitcher temp'!$V11<1.8,Projections!$I$6,0))) -> 0 | BC11: =IF($Z11<6,Projections!$I$9,IF($Z11>24,Projections!$I$10,0)) -> 0 | BD11: =IF($AC11<6,Projections!$I$13,IF($AC11>24,Projections!$I$14,0)) -> 0 | BE11: =IF($AE11<6,Projections!$I$17,IF($AE11>24,Projections!$I$18,0)) -> 0 | BF11: =IF($AJ11<6,Projections!$I$21,IF($AJ11>24,Projections!$I$22,0)) -> 0 | BG11: =IF($P11>9.5,Projections!$I$25,IF('Pitcher temp'!$P11>8,Projections!$I$26,IF(AND('Pitcher temp'!$P11<7,'Pitcher temp'!$P11>1),Projections!$I$27,0))) -> 0 | BH11: =IF($O11<-190,Projections!$I$30,IF('Pitcher temp'!$O11<-149,Projections!$I$31,IF('Pitcher temp'!$O11>145,Projections!$I$32,0)))+(IF($BI11<7,Projections!$I$35,IF($BI11>23,Projections!$I$36,0))) -> 0 | BI11: =IF(A11="",0,INDEX(teamk!A:A,MATCH('Pitcher temp'!AB11,teamk!B:B,0),0)) -> 8 | BJ11: =IF($A11="",0,VLOOKUP($B11,pitchers!$B:CE,35,FALSE)) -> 0.64 | BK11: =IF($A11="",0,VLOOKUP($B11,pitchers!$B:CF,40,FALSE)) -> 9.2 | BL11: =IFERROR(IF($A11="",0,VLOOKUP($CO11,FG!$N:BH,6,FALSE)),0) -> 0.294 | BM11: =IFERROR(IF($A11="",0,VLOOKUP($CO11,FG!$AP:BI,6,FALSE)),0) -> 0.313 | BN11: =VLOOKUP(B11,'batters-temp'!V:CG,64,FALSE) -> 13:05:00 | BO11: =IFERROR(IF($A11="",0,VLOOKUP($CP11,PVLHB!$B:AQ,42,FALSE)),0) -> 0.2893401015 | BP11: =IFERROR(IF($A11="",0,VLOOKUP($CP11,PVRHB!$B:AR,42,FALSE)),0) -> 0.2827004219 | BQ11: =IFERROR(IF($A11="",0,VLOOKUP($B11,PVLHB!$B:AS,43,FALSE)),0) -> 0.2377850163 | BR11: =IFERROR(IF($A11="",0,VLOOKUP($B11,PVRHB!$B:AT,43,FALSE)),0) -> 0.2527472527 | BS11: =IFERROR(IF($A11="",0,IF($N11="home",VLOOKUP('Pitcher temp'!$CP11,'P-home'!$B:BZ,32,FALSE),VLOOKUP('Pitcher temp'!$CP11,'P-road'!$B:BZ,32,FALSE))),"") -> 0.2743362832 | BT11: =IFERROR(IF($A11="",0,IF($N11="home",VLOOKUP('Pitcher temp'!$CP11,'P-home'!$B:CA,33,FALSE),VLOOKUP('Pitcher temp'!$CP11,'P-road'!$B:CA,33,FALSE))),"") -> 0.2364217252 | BU11: =IF(N11="Home",VLOOKUP(M11,team!B:D,3,FALSE),VLOOKUP('Pitcher temp'!BV11,team!B:D,3,FALSE)) -> Pittsburgh Pirates | BV11: =VLOOKUP(C11,team!A:B,2,FALSE) -> CHC | BW11: =IF(A11="",0,VLOOKUP($BU11,weather4!$T:AA,2,FALSE)) -> 0.61 | BX11: =VLOOKUP($BU11,weather4!$T:AB,3,FALSE) -> Partly Cloudy | BY11: =IF(A11="",0,VLOOKUP($BU11,weather4!$T:AC,4,FALSE)) -> 0 | BZ11: =VLOOKUP($BU11,weather4!$T:AD,5,FALSE) -> 0 | CA11: =VLOOKUP($BU11,weather4!$T:AE,6,FALSE) -> 0 | CB11: =VLOOKUP($BU11,weather4!$T:AF,7,FALSE) -> E 7 mph | CC11: =VLOOKUP($BU11,weather4!$T:AG,8,FALSE) -> 71° | CD11: =IFERROR(IF($A11="",0,VLOOKUP($CO11,PVLHB2014!$AX:BZ,6,FALSE)),0) -> 0.305 | CE11: =IFERROR(IF($A11="",0,VLOOKUP($CO11,PVRHB2014!$AW:CA,6,FALSE)),0) -> 0.297 | CF11: =INDEX(team!A:A,(MATCH('Pitcher temp'!M11,team!B:B,0))) -> Pit | CG11: =IFERROR(IF($A11="",0,VLOOKUP($B11,PVLHB!$B:BJ,44,FALSE)),0) -> 0.02536231884 | CH11: =IFERROR(IF($A11="",0,VLOOKUP($B11,PVRHB!$B:BJ,44,FALSE)),0) -> 0.04424778761 | CI11: =IFERROR(IF($A11="",0,VLOOKUP($CO11,PVLHB2014!$AX:CE,9,FALSE)),0) -> 3.81 | CJ11: =IFERROR(IF($A11="",0,VLOOKUP($CO11,PVRHB2014!$AW:CF,9,FALSE)),0) -> 3.38 | CK11: =IFERROR(IF($A11="",0,VLOOKUP($CO11,FG!$N:CG,10,FALSE)),0) -> 3.85 | CL11: =IFERROR(IF($A11="",0,VLOOKUP($CO11,FG!$AP:CH,10,FALSE)),0) -> 3.25 | CM11: =IFERROR(IF($A11="",0,VLOOKUP($CO11,FG!$A:CI,8,FALSE)),0) -> 3.52 | CN11: =IFERROR(IF($A11="",0,VLOOKUP($CO11,FG!$A:CJ,10,FALSE)),0) -> 3.46 | CO11: =IF($B11="","",VLOOKUP($B11,names!$J:AB,7,FALSE)) -> Jason Hammel | CP11: =IF($B11="","",VLOOKUP($B11,names!$J:AB,8,FALSE)) -> Jason Hammel | CQ11: 1215 | CR11: 708 | CS11: 827 | CT11: 481
A12: =IF(OR('FD pit'!$C14="",'FD pit'!$C14="Name"),"",'FD pit'!$C14) -> Anderson, Brett | B12: =IF(A12="","",VLOOKUP(A12,names!F:G,2,FALSE)) -> Brett Anderson | C12: =IF($A12="","",VLOOKUP($A12,'FD pit'!$C:P,4,FALSE)) -> Los | D12: =IF($A12="",0,VLOOKUP($A12,'FD pit'!$C:AP,5,FALSE)) -> 6800 | E12: =IF($A12="",0,VLOOKUP($A12,'FD pit'!$C:AQ,MATCH("/GP",'FD pit'!$C$4:$N$4,0),FALSE)) -> 8.6 | F12: =IF($A12="",0,VLOOKUP($A12,'FD pit'!$C:AR,MATCH("/GP",'FD pit'!$C$4:$N$4,0)+2,FALSE)) -> 5.8 | G12: =IF($A12="",0,VLOOKUP($A12,'FD pit'!$C:AS,MATCH("/GP",'FD pit'!$C$4:$N$4,0)+3,FALSE)) -> 0.7 | H12: =IFERROR(VLOOKUP($A12,'DK pit'!$C:R,5,FALSE),0) -> 5800 | I12: =IFERROR(VLOOKUP($A12,'DK pit'!$C:S,MATCH("/GP",'DK pit'!$C$4:$N$4,0),FALSE),0) -> 12.8 | J12: =IFERROR(VLOOKUP($A12,'DK pit'!$C:T,MATCH("/GP",'FD pit'!$C$4:$N$4,0)+2,FALSE),0) -> 7.6 | K12: =IFERROR(VLOOKUP($A12,'DK pit'!$C:U,MATCH("/GP",'DK pit'!$C$4:$N$4,0)+3,FALSE),0) -> -4.1 | L12: =IFERROR(VLOOKUP(C12,team!A:B,2,FALSE),"") -> LAD | M12: =IFERROR(VLOOKUP(L12,Games!A:B,2,FALSE),"") -> COL | N12: =IFERROR(VLOOKUP($L12,Games!$A:C,3,FALSE),"") -> Away | O12: =IF(A12="",0,IFERROR(VALUE(IFERROR(VLOOKUP($L12,Games!$A:F,4,FALSE),"")),110)) -> -166 | P12: =IFERROR(VALUE(LEFT(VLOOKUP($L12,Games!$A:E,5,FALSE),4)),"") -> 11.5 | Q12: =VLOOKUP(B12,names!J:M,4,FALSE) -> L | R12: =IFERROR(IF($A12="",0,VLOOKUP($B12,pitchers!$B:AM,12,FALSE)),"") -> 168.2 | S12: =IF($A12="",0,VLOOKUP($B12,pitchers!$B:AN,20,FALSE)) -> 3.52 | T12: =IF($A12="",0,VLOOKUP($B12,pitchers!$B:AO,38,FALSE)) -> 1.334 | U12: =IFERROR(IF($A12="",0,VLOOKUP($B12,pitchersL14!$B:AP,12,FALSE)),0) -> 10.2 | V12: =IFERROR(IF($A12="",0,VLOOKUP($B12,pitchersL14!$B:AQ,20,FALSE)),"---") -> 5.91 | W12: =IFERROR(IF($A12="",0,VLOOKUP($B12,pitchersL14!$B:AR,38,FALSE)),0) -> 1.688 | X12: =IFERROR(IF($A12="",0,IF($N12="home",VLOOKUP('Pitcher temp'!$CP12,'P-home'!$B:AF,7,FALSE),VLOOKUP('Pitcher temp'!$CP12,'P-road'!$B:AF,7,FALSE))),"") -> 291 | Y12: =IFERROR(IF($A12="",0,IF($N12="home",VLOOKUP('Pitcher temp'!$CP12,'P-home'!$B:AG,31,FALSE),VLOOKUP('Pitcher temp'!$CP12,'P-road'!$B:AG,31,FALSE))),"") -> 0.688 | Z12: =IF($A12="",0,INDEX('Team B L7'!$A:$A,MATCH('Pitcher temp'!$AG12,'Team B L7'!$B:$B,0),0)) -> 3 | AA12: =IF($A12="",0,INDEX('Team B L7'!$O:$O,MATCH('Pitcher temp'!$AG12,'Team B L7'!$B:$B,0),0)) -> 0.786 | AB12: =INDEX(team!C:C,MATCH('Pitcher temp'!M12,team!B:B,0),0) -> Colorado | AC12: =IF(Q12="R",INDEX(TeamBVR!A:A,MATCH('Pitcher temp'!AB12,TeamBVR!B:B,0),0),INDEX(TeamBVL!A:A,MATCH('Pitcher temp'!AB12,TeamBVR!B:B,0),0)) -> 2 | AD12: =IF($Q12="R",INDEX(TeamBVR!$O:$O,MATCH('Pitcher temp'!$AB12,TeamBVR!$B:$B,0),0),INDEX(TeamBVL!$O:$O,MATCH('Pitcher temp'!$AB12,TeamBVR!$B:$B,0),0)) -> 0.754 | AE12: =IF($A12="","",IF($N12="home",INDEX(TeamBroad!$A:$A,MATCH('Pitcher temp'!$AG12,TeamBroad!$B:$B,0),0),INDEX(TeamBhome!$A:$A,MATCH('Pitcher temp'!$AG12,TeamBhome!$B:$B,0),0))) -> 2 | AF12: =IF($A12="","",IF($N12="home",INDEX(TeamBroad!$O:$O,MATCH('Pitcher temp'!$AG12,TeamBroad!$B:$B,0),0),INDEX(TeamBroad!$O:$O,MATCH('Pitcher temp'!$AG12,TeamBroad!$B:$B,0),0))) -> 0.65 | AG12: =IF(A12="","",VLOOKUP(M12,team!B:C,2,FALSE)) -> Colorado | AH12: =IF(N12="home",VLOOKUP(L12,team!B:C,2,FALSE),VLOOKUP('Pitcher temp'!M12,team!B:C,2,FALSE)) -> Colorado | AI12: =VLOOKUP($AH12,team!$E:G,3,FALSE) -> Coors Field (Denver, Colorado) | AJ12: =VLOOKUP($AH12,team!$E:H,2,FALSE) -> 1 | AK12: =VLOOKUP($AH12,team!$E:I,4,FALSE) -> 1.501 | AL12: =VLOOKUP($AH12,team!$J:P,2,FALSE) -> 2 | AM12: =VLOOKUP($AH12,team!$J:Q,4,FALSE) -> 1.393 | AN12: =VLOOKUP(AH12,team!C:O,13,FALSE) -> Colorado Rockies | AO12: =INDEX(weather!$F:$F,MATCH('Pitcher temp'!$AN12,weather!$B:$B,0),0) -> 80° F/ 27° C | AP12: =INDEX(weather!$F:$F,(MATCH('Pitcher temp'!$AN12,weather!$B:$B,0))+1,0) -> Clear | AQ12: 4.472 | AR12: 6.656 | AS12: 8.6 | AT12: 12.8 | AU12: =IF($V12>9,Projections!$H$4,IF('Pitcher temp'!$V12>5,Projections!$H$5,IF('Pitcher temp'!$V12<1.8,Projections!$H$6,0))) -> -0.05 | AV12: =IF($Z12<6,Projections!$H$9,IF($Z12>24,Projections!$H$10,0)) -> -0.12 | AW12: =IF($AC12<6,Projections!$H$13,IF($AC12>24,Projections!$H$14,0)) -> -0.08 | AX12: =IF($AE12<6,Projections!$H$17,IF($AE12>24,Projections!$H$18,0)) -> -0.07 | AY12: =IF($AJ12<6,Projections!$H$21,IF($AJ12>24,Projections!$H$22,0)) -> -0.1 | AZ12: =IF($P12>9.5,Projections!$H$25,IF('Pitcher temp'!$P12>8,Projections!$H$26,IF(AND('Pitcher temp'!$P12<7,'Pitcher temp'!$P12>1),Projections!$H$27,0))) -> -0.15 | BA12: =IF($O12<-190,Projections!$H$30,IF('Pitcher temp'!$O12<-149,Projections!$H$31,IF('Pitcher temp'!$O12>145,Projections!$H$32,0)))+(IF($BI12<7,Projections!$H$35,IF($BI12>23,Projections!$H$36,0))) -> 0.09 | BB12: =IF($V12>9,Projections!$I$4,IF('Pitcher temp'!$V12>5,Projections!$I$5,IF('Pitcher temp'!$V12<1.8,Projections!$I$6,0))) -> 0 | BC12: =IF($Z12<6,Projections!$I$9,IF($Z12>24,Projections!$I$10,0)) -> 0 | BD12: =IF($AC12<6,Projections!$I$13,IF($AC12>24,Projections!$I$14,0)) -> 0 | BE12: =IF($AE12<6,Projections!$I$17,IF($AE12>24,Projections!$I$18,0)) -> 0 | BF12: =IF($AJ12<6,Projections!$I$21,IF($AJ12>24,Projections!$I$22,0)) -> 0 | BG12: =IF($P12>9.5,Projections!$I$25,IF('Pitcher temp'!$P12>8,Projections!$I$26,IF(AND('Pitcher temp'!$P12<7,'Pitcher temp'!$P12>1),Projections!$I$27,0))) -> 0 | BH12: =IF($O12<-190,Projections!$I$30,IF('Pitcher temp'!$O12<-149,Projections!$I$31,IF('Pitcher temp'!$O12>145,Projections!$I$32,0)))+(IF($BI12<7,Projections!$I$35,IF($BI12>23,Projections!$I$36,0))) -> 0 | BI12: =IF(A12="",0,INDEX(teamk!A:A,MATCH('Pitcher temp'!AB12,teamk!B:B,0),0)) -> 10 | BJ12: =IF($A12="",0,VLOOKUP($B12,pitchers!$B:CE,35,FALSE)) -> 1.95 | BK12: =IF($A12="",0,VLOOKUP($B12,pitchers!$B:CF,40,FALSE)) -> 6 | BL12: =IFERROR(IF($A12="",0,VLOOKUP($CO12,FG!$N:BH,6,FALSE)),0) -> 0.289 | BM12: =IFERROR(IF($A12="",0,VLOOKUP($CO12,FG!$AP:BI,6,FALSE)),0) -> 0.317 | BN12: =VLOOKUP(B12,'batters-temp'!V:CG,64,FALSE) -> 20:10:00 | BO12: =IFERROR(IF($A12="",0,VLOOKUP($CP12,PVLHB!$B:AQ,42,FALSE)),0) -> 0.3245033113 | BP12: =IFERROR(IF($A12="",0,VLOOKUP($CP12,PVRHB!$B:AR,42,FALSE)),0) -> 0.3064516129 | BQ12: =IFERROR(IF($A12="",0,VLOOKUP($B12,PVLHB!$B:AS,43,FALSE)),0) -> 0.1804878049 | BR12: =IFERROR(IF($A12="",0,VLOOKUP($B12,PVRHB!$B:AT,43,FALSE)),0) -> 0.1509054326 | BS12: =IFERROR(IF($A12="",0,IF($N12="home",VLOOKUP('Pitcher temp'!$CP12,'P-home'!$B:BZ,32,FALSE),VLOOKUP('Pitcher temp'!$CP12,'P-road'!$B:BZ,32,FALSE))),"") -> 0.3097345133 | BT12: =IFERROR(IF($A12="",0,IF($N12="home",VLOOKUP('Pitcher temp'!$CP12,'P-home'!$B:CA,33,FALSE),VLOOKUP('Pitcher temp'!$CP12,'P-road'!$B:CA,33,FALSE))),"") -> 0.2027491409 | BU12: =IF(N12="Home",VLOOKUP(M12,team!B:D,3,FALSE),VLOOKUP('Pitcher temp'!BV12,team!B:D,3,FALSE)) -> Los Angeles Dodgers | BV12: =VLOOKUP(C12,team!A:B,2,FALSE) -> LAD | BW12: =IF(A12="",0,VLOOKUP($BU12,weather4!$T:AA,2,FALSE)) -> 0.14 | BX12: =VLOOKUP($BU12,weather4!$T:AB,3,FALSE) -> Clear | BY12: =IF(A12="",0,VLOOKUP($BU12,weather4!$T:AC,4,FALSE)) -> 0 | BZ12: =VLOOKUP($BU12,weather4!$T:AD,5,FALSE) -> 0 | CA12: =VLOOKUP($BU12,weather4!$T:AE,6,FALSE) -> 0 | CB12: =VLOOKUP($BU12,weather4!$T:AF,7,FALSE) -> ENE 8 mph | CC12: =VLOOKUP($BU12,weather4!$T:AG,8,FALSE) -> 84° | CD12: =IFERROR(IF($A12="",0,VLOOKUP($CO12,PVLHB2014!$AX:BZ,6,FALSE)),0) -> 0.324 | CE12: =IFERROR(IF($A12="",0,VLOOKUP($CO12,PVRHB2014!$AW:CA,6,FALSE)),0) -> 0.291 | CF12: =INDEX(team!A:A,(MATCH('Pitcher temp'!M12,team!B:B,0))) -> Col | CG12: =IFERROR(IF($A12="",0,VLOOKUP($B12,PVLHB!$B:BJ,44,FALSE)),0) -> 0.005319148936 | CH12: =IFERROR(IF($A12="",0,VLOOKUP($B12,PVRHB!$B:BJ,44,FALSE)),0) -> 0.03463203463 | CI12: =IFERROR(IF($A12="",0,VLOOKUP($CO12,PVLHB2014!$AX:CE,9,FALSE)),0) -> 3.15 | CJ12: =IFERROR(IF($A12="",0,VLOOKUP($CO12,PVRHB2014!$AW:CF,9,FALSE)),0) -> 3.7 | CK12: =IFERROR(IF($A12="",0,VLOOKUP($CO12,FG!$N:CG,10,FALSE)),0) -> 3.24 | CL12: =IFERROR(IF($A12="",0,VLOOKUP($CO12,FG!$AP:CH,10,FALSE)),0) -> 3.6 | CM12: =IFERROR(IF($A12="",0,VLOOKUP($CO12,FG!$A:CI,8,FALSE)),0) -> 3.49 | CN12: =IFERROR(IF($A12="",0,VLOOKUP($CO12,FG!$A:CJ,10,FALSE)),0) -> 3.45 | CO12: =IF($B12="","",VLOOKUP($B12,names!$J:AB,7,FALSE)) -> Brett Anderson | CP12: =IF($B12="","",VLOOKUP($B12,names!$J:AB,8,FALSE)) -> Brett Anderson | CQ12: 1521 | CR12: 871 | CS12: 791 | CT12: 453
A13: =IF(OR('FD pit'!$C15="",'FD pit'!$C15="Name"),"",'FD pit'!$C15) -> Strasburg, Stephen | B13: =IF(A13="","",VLOOKUP(A13,names!F:G,2,FALSE)) -> Stephen Strasburg | C13: =IF($A13="","",VLOOKUP($A13,'FD pit'!$C:P,4,FALSE)) -> Was | D13: =IF($A13="",0,VLOOKUP($A13,'FD pit'!$C:AP,5,FALSE)) -> 11000 | E13: =IF($A13="",0,VLOOKUP($A13,'FD pit'!$C:AQ,MATCH("/GP",'FD pit'!$C$4:$N$4,0),FALSE)) -> 11.4 | F13: =IF($A13="",0,VLOOKUP($A13,'FD pit'!$C:AR,MATCH("/GP",'FD pit'!$C$4:$N$4,0)+2,FALSE)) -> 23 | G13: =IF($A13="",0,VLOOKUP($A13,'FD pit'!$C:AS,MATCH("/GP",'FD pit'!$C$4:$N$4,0)+3,FALSE)) -> 20 | H13: =IFERROR(VLOOKUP($A13,'DK pit'!$C:R,5,FALSE),0) -> 10700 | I13: =IFERROR(VLOOKUP($A13,'DK pit'!$C:S,MATCH("/GP",'DK pit'!$C$4:$N$4,0),FALSE),0) -> 18.5 | J13: =IFERROR(VLOOKUP($A13,'DK pit'!$C:T,MATCH("/GP",'FD pit'!$C$4:$N$4,0)+2,FALSE),0) -> 41.2 | K13: =IFERROR(VLOOKUP($A13,'DK pit'!$C:U,MATCH("/GP",'DK pit'!$C$4:$N$4,0)+3,FALSE),0) -> 33.5 | L13: =IFERROR(VLOOKUP(C13,team!A:B,2,FALSE),"") -> WSH | M13: =IFERROR(VLOOKUP(L13,Games!A:B,2,FALSE),"") -> PHI | N13: =IFERROR(VLOOKUP($L13,Games!$A:C,3,FALSE),"") -> Home | O13: =IF(A13="",0,IFERROR(VALUE(IFERROR(VLOOKUP($L13,Games!$A:F,4,FALSE),"")),110)) -> -275 | P13: =IFERROR(VALUE(LEFT(VLOOKUP($L13,Games!$A:E,5,FALSE),4)),"") -> 7 | Q13: =VLOOKUP(B13,names!J:M,4,FALSE) -> R | R13: =IFERROR(IF($A13="",0,VLOOKUP($B13,pitchers!$B:AM,12,FALSE)),"") -> 113.1 | S13: =IF($A13="",0,VLOOKUP($B13,pitchers!$B:AN,20,FALSE)) -> 3.81 | T13: =IF($A13="",0,VLOOKUP($B13,pitchers!$B:AO,38,FALSE)) -> 1.147 | U13: =IFERROR(IF($A13="",0,VLOOKUP($B13,pitchersL14!$B:AP,12,FALSE)),0) -> 15 | V13: =IFERROR(IF($A13="",0,VLOOKUP($B13,pitchersL14!$B:AQ,20,FALSE)),"---") -> 0.6 | W13: =IFERROR(IF($A13="",0,VLOOKUP($B13,pitchersL14!$B:AR,38,FALSE)),0) -> 0.6 | X13: =IFERROR(IF($A13="",0,IF($N13="home",VLOOKUP('Pitcher temp'!$CP13,'P-home'!$B:AF,7,FALSE),VLOOKUP('Pitcher temp'!$CP13,'P-road'!$B:AF,7,FALSE))),"") -> 229 | Y13: =IFERROR(IF($A13="",0,IF($N13="home",VLOOKUP('Pitcher temp'!$CP13,'P-home'!$B:AG,31,FALSE),VLOOKUP('Pitcher temp'!$CP13,'P-road'!$B:AG,31,FALSE))),"") -> 0.666 | Z13: =IF($A13="",0,INDEX('Team B L7'!$A:$A,MATCH('Pitcher temp'!$AG13,'Team B L7'!$B:$B,0),0)) -> 30 | AA13: =IF($A13="",0,INDEX('Team B L7'!$O:$O,MATCH('Pitcher temp'!$AG13,'Team B L7'!$B:$B,0),0)) -> 0.608 | AB13: =INDEX(team!C:C,MATCH('Pitcher temp'!M13,team!B:B,0),0) -> Philadelphia | AC13: =IF(Q13="R",INDEX(TeamBVR!A:A,MATCH('Pitcher temp'!AB13,TeamBVR!B:B,0),0),INDEX(TeamBVL!A:A,MATCH('Pitcher temp'!AB13,TeamBVR!B:B,0),0)) -> 23 | AD13: =IF($Q13="R",INDEX(TeamBVR!$O:$O,MATCH('Pitcher temp'!$AB13,TeamBVR!$B:$B,0),0),INDEX(TeamBVL!$O:$O,MATCH('Pitcher temp'!$AB13,TeamBVR!$B:$B,0),0)) -> 0.678 | AE13: =IF($A13="","",IF($N13="home",INDEX(TeamBroad!$A:$A,MATCH('Pitcher temp'!$AG13,TeamBroad!$B:$B,0),0),INDEX(TeamBhome!$A:$A,MATCH('Pitcher temp'!$AG13,TeamBhome!$B:$B,0),0))) -> 29 | AF13: =IF($A13="","",IF($N13="home",INDEX(TeamBroad!$O:$O,MATCH('Pitcher temp'!$AG13,TeamBroad!$B:$B,0),0),INDEX(TeamBroad!$O:$O,MATCH('Pitcher temp'!$AG13,TeamBroad!$B:$B,0),0))) -> 0.675 | AG13: =IF(A13="","",VLOOKUP(M13,team!B:C,2,FALSE)) -> Philadelphia | AH13: =IF(N13="home",VLOOKUP(L13,team!B:C,2,FALSE),VLOOKUP('Pitcher temp'!M13,team!B:C,2,FALSE)) -> Washington | AI13: =VLOOKUP($AH13,team!$E:G,3,FALSE) -> Nationals Park (Washington, D.C.) | AJ13: =VLOOKUP($AH13,team!$E:H,2,FALSE) -> 6 | AK13: =VLOOKUP($AH13,team!$E:I,4,FALSE) -> 1.068 | AL13: =VLOOKUP($AH13,team!$J:P,2,FALSE) -> 29 | AM13: =VLOOKUP($AH13,team!$J:Q,4,FALSE) -> 0.701 | AN13: =VLOOKUP(AH13,team!C:O,13,FALSE) -> Washington Nationals | AO13: =INDEX(weather!$F:$F,MATCH('Pitcher temp'!$AN13,weather!$B:$B,0),0) -> 71° F/ 22° C | AP13: =INDEX(weather!$F:$F,(MATCH('Pitcher temp'!$AN13,weather!$B:$B,0))+1,0) -> Overcast | AQ13: 16.758 | AR13: 27.195 | AS13: 11.4 | AT13: 18.5 | AU13: =IF($V13>9,Projections!$H$4,IF('Pitcher temp'!$V13>5,Projections!$H$5,IF('Pitcher temp'!$V13<1.8,Projections!$H$6,0))) -> 0.12 | AV13: =IF($Z13<6,Projections!$H$9,IF($Z13>24,Projections!$H$10,0)) -> 0.1 | AW13: =IF($AC13<6,Projections!$H$13,IF($AC13>24,Projections!$H$14,0)) -> 0 | AX13: =IF($AE13<6,Projections!$H$17,IF($AE13>24,Projections!$H$18,0)) -> 0.07 | AY13: =IF($AJ13<6,Projections!$H$21,IF($AJ13>24,Projections!$H$22,0)) -> 0 | AZ13: =IF($P13>9.5,Projections!$H$25,IF('Pitcher temp'!$P13>8,Projections!$H$26,IF(AND('Pitcher temp'!$P13<7,'Pitcher temp'!$P13>1),Projections!$H$27,0))) -> 0 | BA13: =IF($O13<-190,Projections!$H$30,IF('Pitcher temp'!$O13<-149,Projections!$H$31,IF('Pitcher temp'!$O13>145,Projections!$H$32,0)))+(IF($BI13<7,Projections!$H$35,IF($BI13>23,Projections!$H$36,0))) -> 0.18 | BB13: =IF($V13>9,Projections!$I$4,IF('Pitcher temp'!$V13>5,Projections!$I$5,IF('Pitcher temp'!$V13<1.8,Projections!$I$6,0))) -> 0 | BC13: =IF($Z13<6,Projections!$I$9,IF($Z13>24,Projections!$I$10,0)) -> 0 | BD13: =IF($AC13<6,Projections!$I$13,IF($AC13>24,Projections!$I$14,0)) -> 0 | BE13: =IF($AE13<6,Projections!$I$17,IF($AE13>24,Projections!$I$18,0)) -> 0 | BF13: =IF($AJ13<6,Projections!$I$21,IF($AJ13>24,Projections!$I$22,0)) -> 0 | BG13: =IF($P13>9.5,Projections!$I$25,IF('Pitcher temp'!$P13>8,Projections!$I$26,IF(AND('Pitcher temp'!$P13<7,'Pitcher temp'!$P13>1),Projections!$I$27,0))) -> 0 | BH13: =IF($O13<-190,Projections!$I$30,IF('Pitcher temp'!$O13<-149,Projections!$I$31,IF('Pitcher temp'!$O13>145,Projections!$I$32,0)))+(IF($BI13<7,Projections!$I$35,IF($BI13>23,Projections!$I$36,0))) -> 0 | BI13: =IF(A13="",0,INDEX(teamk!A:A,MATCH('Pitcher temp'!AB13,teamk!B:B,0),0)) -> 13 | BJ13: =IF($A13="",0,VLOOKUP($B13,pitchers!$B:CE,35,FALSE)) -> 0.78 | BK13: =IF($A13="",0,VLOOKUP($B13,pitchers!$B:CF,40,FALSE)) -> 10.7 | BL13: =IFERROR(IF($A13="",0,VLOOKUP($CO13,FG!$N:BH,6,FALSE)),0) -> 0.281 | BM13: =IFERROR(IF($A13="",0,VLOOKUP($CO13,FG!$AP:BI,6,FALSE)),0) -> 0.313 | BN13: =VLOOKUP(B13,'batters-temp'!V:CG,64,FALSE) -> 16:05:00 | BO13: =IFERROR(IF($A13="",0,VLOOKUP($CP13,PVLHB!$B:AQ,42,FALSE)),0) -> 0.2925170068 | BP13: =IFERROR(IF($A13="",0,VLOOKUP($CP13,PVRHB!$B:AR,42,FALSE)),0) -> 0.3379310345 | BQ13: =IFERROR(IF($A13="",0,VLOOKUP($B13,PVLHB!$B:AS,43,FALSE)),0) -> 0.2897959184 | BR13: =IFERROR(IF($A13="",0,VLOOKUP($B13,PVRHB!$B:AT,43,FALSE)),0) -> 0.281938326 | BS13: =IFERROR(IF($A13="",0,IF($N13="home",VLOOKUP('Pitcher temp'!$CP13,'P-home'!$B:BZ,32,FALSE),VLOOKUP('Pitcher temp'!$CP13,'P-road'!$B:BZ,32,FALSE))),"") -> 0.3 | BT13: =IFERROR(IF($A13="",0,IF($N13="home",VLOOKUP('Pitcher temp'!$CP13,'P-home'!$B:CA,33,FALSE),VLOOKUP('Pitcher temp'!$CP13,'P-road'!$B:CA,33,FALSE))),"") -> 0.3100436681 | BU13: =IF(N13="Home",VLOOKUP(M13,team!B:D,3,FALSE),VLOOKUP('Pitcher temp'!BV13,team!B:D,3,FALSE)) -> Philadelphia Phillies | BV13: =VLOOKUP(C13,team!A:B,2,FALSE) -> WSH | BW13: =IF(A13="",0,VLOOKUP($BU13,weather4!$T:AA,2,FALSE)) -> 0.57 | BX13: =VLOOKUP($BU13,weather4!$T:AB,3,FALSE) -> Overcast | BY13: =IF(A13="",0,VLOOKUP($BU13,weather4!$T:AC,4,FALSE)) -> 0 | BZ13: =VLOOKUP($BU13,weather4!$T:AD,5,FALSE) -> 0 | CA13: =VLOOKUP($BU13,weather4!$T:AE,6,FALSE) -> 0 | CB13: =VLOOKUP($BU13,weather4!$T:AF,7,FALSE) -> ENE 15 mph | CC13: =VLOOKUP($BU13,weather4!$T:AG,8,FALSE) -> 72° | CD13: =IFERROR(IF($A13="",0,VLOOKUP($CO13,PVLHB2014!$AX:BZ,6,FALSE)),0) -> 0.287 | CE13: =IFERROR(IF($A13="",0,VLOOKUP($CO13,PVRHB2014!$AW:CA,6,FALSE)),0) -> 0.302 | CF13: =INDEX(team!A:A,(MATCH('Pitcher temp'!M13,team!B:B,0))) -> Phi | CG13: =IFERROR(IF($A13="",0,VLOOKUP($B13,PVLHB!$B:BJ,44,FALSE)),0) -> 0.02252252252 | CH13: =IFERROR(IF($A13="",0,VLOOKUP($B13,PVRHB!$B:BJ,44,FALSE)),0) -> 0.04128440367 | CI13: =IFERROR(IF($A13="",0,VLOOKUP($CO13,PVLHB2014!$AX:CE,9,FALSE)),0) -> 2.94 | CJ13: =IFERROR(IF($A13="",0,VLOOKUP($CO13,PVRHB2014!$AW:CF,9,FALSE)),0) -> 2.26 | CK13: =IFERROR(IF($A13="",0,VLOOKUP($CO13,FG!$N:CG,10,FALSE)),0) -> 3.19 | CL13: =IFERROR(IF($A13="",0,VLOOKUP($CO13,FG!$AP:CH,10,FALSE)),0) -> 2.69 | CM13: =IFERROR(IF($A13="",0,VLOOKUP($CO13,FG!$A:CI,8,FALSE)),0) -> 2.94 | CN13: =IFERROR(IF($A13="",0,VLOOKUP($CO13,FG!$A:CJ,10,FALSE)),0) -> 2.95 | CO13: =IF($B13="","",VLOOKUP($B13,names!$J:AB,7,FALSE)) -> Stephen Strasburg | CP13: =IF($B13="","",VLOOKUP($B13,names!$J:AB,8,FALSE)) -> Stephen Strasburg | CQ13: 656 | CR13: 393 | CS13: 965 | CT13: 578
A14: =IF(OR('FD pit'!$C16="",'FD pit'!$C16="Name"),"",'FD pit'!$C16) -> Simon, Alfredo | B14: =IF(A14="","",VLOOKUP(A14,names!F:G,2,FALSE)) -> Alfredo Simon | C14: =IF($A14="","",VLOOKUP($A14,'FD pit'!$C:P,4,FALSE)) -> Det | D14: =IF($A14="",0,VLOOKUP($A14,'FD pit'!$C:AP,5,FALSE)) -> 7800 | E14: =IF($A14="",0,VLOOKUP($A14,'FD pit'!$C:AQ,MATCH("/GP",'FD pit'!$C$4:$N$4,0),FALSE)) -> 8.1 | F14: =IF($A14="",0,VLOOKUP($A14,'FD pit'!$C:AR,MATCH("/GP",'FD pit'!$C$4:$N$4,0)+2,FALSE)) -> 5.3 | G14: =IF($A14="",0,VLOOKUP($A14,'FD pit'!$C:AS,MATCH("/GP",'FD pit'!$C$4:$N$4,0)+3,FALSE)) -> -0.7 | H14: =IFERROR(VLOOKUP($A14,'DK pit'!$C:R,5,FALSE),0) -> 5400 | I14: =IFERROR(VLOOKUP($A14,'DK pit'!$C:S,MATCH("/GP",'DK pit'!$C$4:$N$4,0),FALSE),0) -> 10.8 | J14: =IFERROR(VLOOKUP($A14,'DK pit'!$C:T,MATCH("/GP",'FD pit'!$C$4:$N$4,0)+2,FALSE),0) -> 1.9 | K14: =IFERROR(VLOOKUP($A14,'DK pit'!$C:U,MATCH("/GP",'DK pit'!$C$4:$N$4,0)+3,FALSE),0) -> -9.8 | L14: =IFERROR(VLOOKUP(C14,team!A:B,2,FALSE),"") -> DET | M14: =IFERROR(VLOOKUP(L14,Games!A:B,2,FALSE),"") -> MIN | N14: =IFERROR(VLOOKUP($L14,Games!$A:C,3,FALSE),"") -> Home | O14: =IF(A14="",0,IFERROR(VALUE(IFERROR(VLOOKUP($L14,Games!$A:F,4,FALSE),"")),110)) -> 113 | P14: =IFERROR(VALUE(LEFT(VLOOKUP($L14,Games!$A:E,5,FALSE),4)),"") -> 8.5 | Q14: =VLOOKUP(B14,names!J:M,4,FALSE) -> R | R14: =IFERROR(IF($A14="",0,VLOOKUP($B14,pitchers!$B:AM,12,FALSE)),"") -> 171 | S14: =IF($A14="",0,VLOOKUP($B14,pitchers!$B:AN,20,FALSE)) -> 5.21 | T14: =IF($A14="",0,VLOOKUP($B14,pitchers!$B:AO,38,FALSE)) -> 1.485 | U14: =IFERROR(IF($A14="",0,VLOOKUP($B14,pitchersL14!$B:AP,12,FALSE)),0) -> 10.2 | V14: =IFERROR(IF($A14="",0,VLOOKUP($B14,pitchersL14!$B:AQ,20,FALSE)),"---") -> 9.28 | W14: =IFERROR(IF($A14="",0,VLOOKUP($B14,pitchersL14!$B:AR,38,FALSE)),0) -> 2.344 | X14: =IFERROR(IF($A14="",0,IF($N14="home",VLOOKUP('Pitcher temp'!$CP14,'P-home'!$B:AF,7,FALSE),VLOOKUP('Pitcher temp'!$CP14,'P-road'!$B:AF,7,FALSE))),"") -> 340 | Y14: =IFERROR(IF($A14="",0,IF($N14="home",VLOOKUP('Pitcher temp'!$CP14,'P-home'!$B:AG,31,FALSE),VLOOKUP('Pitcher temp'!$CP14,'P-road'!$B:AG,31,FALSE))),"") -> 0.746 | Z14: =IF($A14="",0,INDEX('Team B L7'!$A:$A,MATCH('Pitcher temp'!$AG14,'Team B L7'!$B:$B,0),0)) -> 26 | AA14: =IF($A14="",0,INDEX('Team B L7'!$O:$O,MATCH('Pitcher temp'!$AG14,'Team B L7'!$B:$B,0),0)) -> 0.708 | AB14: =INDEX(team!C:C,MATCH('Pitcher temp'!M14,team!B:B,0),0) -> Minnesota | AC14: =IF(Q14="R",INDEX(TeamBVR!A:A,MATCH('Pitcher temp'!AB14,TeamBVR!B:B,0),0),INDEX(TeamBVL!A:A,MATCH('Pitcher temp'!AB14,TeamBVR!B:B,0),0)) -> 24 | AD14: =IF($Q14="R",INDEX(TeamBVR!$O:$O,MATCH('Pitcher temp'!$AB14,TeamBVR!$B:$B,0),0),INDEX(TeamBVL!$O:$O,MATCH('Pitcher temp'!$AB14,TeamBVR!$B:$B,0),0)) -> 0.699 | AE14: =IF($A14="","",IF($N14="home",INDEX(TeamBroad!$A:$A,MATCH('Pitcher temp'!$AG14,TeamBroad!$B:$B,0),0),INDEX(TeamBhome!$A:$A,MATCH('Pitcher temp'!$AG14,TeamBhome!$B:$B,0),0))) -> 24 | AF14: =IF($A14="","",IF($N14="home",INDEX(TeamBroad!$O:$O,MATCH('Pitcher temp'!$AG14,TeamBroad!$B:$B,0),0),INDEX(TeamBroad!$O:$O,MATCH('Pitcher temp'!$AG14,TeamBroad!$B:$B,0),0))) -> 0.658 | AG14: =IF(A14="","",VLOOKUP(M14,team!B:C,2,FALSE)) -> Minnesota | AH14: =IF(N14="home",VLOOKUP(L14,team!B:C,2,FALSE),VLOOKUP('Pitcher temp'!M14,team!B:C,2,FALSE)) -> Detroit | AI14: =VLOOKUP($AH14,team!$E:G,3,FALSE) -> Comerica Park (Detroit, Michigan) | AJ14: =VLOOKUP($AH14,team!$E:H,2,FALSE) -> 14 | AK14: =VLOOKUP($AH14,team!$E:I,4,FALSE) -> 1.003 | AL14: =VLOOKUP($AH14,team!$J:P,2,FALSE) -> 15 | AM14: =VLOOKUP($AH14,team!$J:Q,4,FALSE) -> 1.014 | AN14: =VLOOKUP(AH14,team!C:O,13,FALSE) -> Detroit Tigers | AO14: =INDEX(weather!$F:$F,MATCH('Pitcher temp'!$AN14,weather!$B:$B,0),0) -> 67° F/ 19° C | AP14: =INDEX(weather!$F:$F,(MATCH('Pitcher temp'!$AN14,weather!$B:$B,0))+1,0) -> Partly Cloudy | AQ14: 7.695 | AR14: 10.26 | AS14: 8.1 | AT14: 10.8 | AU14: =IF($V14>9,Projections!$H$4,IF('Pitcher temp'!$V14>5,Projections!$H$5,IF('Pitcher temp'!$V14<1.8,Projections!$H$6,0))) -> -0.1 | AV14: =IF($Z14<6,Projections!$H$9,IF($Z14>24,Projections!$H$10,0)) -> 0.1 | AW14: =IF($AC14<6,Projections!$H$13,IF($AC14>24,Projections!$H$14,0)) -> 0 | AX14: =IF($AE14<6,Projections!$H$17,IF($AE14>24,Projections!$H$18,0)) -> 0 | AY14: =IF($AJ14<6,Projections!$H$21,IF($AJ14>24,Projections!$H$22,0)) -> 0 | AZ14: =IF($P14>9.5,Projections!$H$25,IF('Pitcher temp'!$P14>8,Projections!$H$26,IF(AND('Pitcher temp'!$P14<7,'Pitcher temp'!$P14>1),Projections!$H$27,0))) -> -0.05 | BA14: =IF($O14<-190,Projections!$H$30,IF('Pitcher temp'!$O14<-149,Projections!$H$31,IF('Pitcher temp'!$O14>145,Projections!$H$32,0)))+(IF($BI14<7,Projections!$H$35,IF($BI14>23,Projections!$H$36,0))) -> 0 | BB14: =IF($V14>9,Projections!$I$4,IF('Pitcher temp'!$V14>5,Projections!$I$5,IF('Pitcher temp'!$V14<1.8,Projections!$I$6,0))) -> 0 | BC14: =IF($Z14<6,Projections!$I$9,IF($Z14>24,Projections!$I$10,0)) -> 0 | BD14: =IF($AC14<6,Projections!$I$13,IF($AC14>24,Projections!$I$14,0)) -> 0 | BE14: =IF($AE14<6,Projections!$I$17,IF($AE14>24,Projections!$I$18,0)) -> 0 | BF14: =IF($AJ14<6,Projections!$I$21,IF($AJ14>24,Projections!$I$22,0)) -> 0 | BG14: =IF($P14>9.5,Projections!$I$25,IF('Pitcher temp'!$P14>8,Projections!$I$26,IF(AND('Pitcher temp'!$P14<7,'Pitcher temp'!$P14>1),Projections!$I$27,0))) -> 0 | BH14: =IF($O14<-190,Projections!$I$30,IF('Pitcher temp'!$O14<-149,Projections!$I$31,IF('Pitcher temp'!$O14>145,Projections!$I$32,0)))+(IF($BI14<7,Projections!$I$35,IF($BI14>23,Projections!$I$36,0))) -> 0 | BI14: =IF(A14="",0,INDEX(teamk!A:A,MATCH('Pitcher temp'!AB14,teamk!B:B,0),0)) -> 17 | BJ14: =IF($A14="",0,VLOOKUP($B14,pitchers!$B:CE,35,FALSE)) -> 0.78 | BK14: =IF($A14="",0,VLOOKUP($B14,pitchers!$B:CF,40,FALSE)) -> 5.9 | BL14: =IFERROR(IF($A14="",0,VLOOKUP($CO14,FG!$N:BH,6,FALSE)),0) -> 0.367 | BM14: =IFERROR(IF($A14="",0,VLOOKUP($CO14,FG!$AP:BI,6,FALSE)),0) -> 0.309 | BN14: =VLOOKUP(B14,'batters-temp'!V:CG,64,FALSE) -> 19:05:00 | BO14: =IFERROR(IF($A14="",0,VLOOKUP($CP14,PVLHB!$B:AQ,42,FALSE)),0) -> 0.3055555556 | BP14: =IFERROR(IF($A14="",0,VLOOKUP($CP14,PVRHB!$B:AR,42,FALSE)),0) -> 0.2995391705 | BQ14: =IFERROR(IF($A14="",0,VLOOKUP($B14,PVLHB!$B:AS,43,FALSE)),0) -> 0.1218961625 | BR14: =IFERROR(IF($A14="",0,VLOOKUP($B14,PVRHB!$B:AT,43,FALSE)),0) -> 0.1815286624 | BS14: =IFERROR(IF($A14="",0,IF($N14="home",VLOOKUP('Pitcher temp'!$CP14,'P-home'!$B:BZ,32,FALSE),VLOOKUP('Pitcher temp'!$CP14,'P-road'!$B:BZ,32,FALSE))),"") -> 0.3025830258 | BT14: =IFERROR(IF($A14="",0,IF($N14="home",VLOOKUP('Pitcher temp'!$CP14,'P-home'!$B:CA,33,FALSE),VLOOKUP('Pitcher temp'!$CP14,'P-road'!$B:CA,33,FALSE))),"") -> 0.1852941176 | BU14: =IF(N14="Home",VLOOKUP(M14,team!B:D,3,FALSE),VLOOKUP('Pitcher temp'!BV14,team!B:D,3,FALSE)) -> Minnesota Twins | BV14: =VLOOKUP(C14,team!A:B,2,FALSE) -> DET | BW14: =IF(A14="",0,VLOOKUP($BU14,weather4!$T:AA,2,FALSE)) -> 0.55 | BX14: =VLOOKUP($BU14,weather4!$T:AB,3,FALSE) -> Partly Cloudy | BY14: =IF(A14="",0,VLOOKUP($BU14,weather4!$T:AC,4,FALSE)) -> 0 | BZ14: =VLOOKUP($BU14,weather4!$T:AD,5,FALSE) -> 0 | CA14: =VLOOKUP($BU14,weather4!$T:AE,6,FALSE) -> 0.01 | CB14: =VLOOKUP($BU14,weather4!$T:AF,7,FALSE) -> ESE 11 mph | CC14: =VLOOKUP($BU14,weather4!$T:AG,8,FALSE) -> 72° | CD14: =IFERROR(IF($A14="",0,VLOOKUP($CO14,PVLHB2014!$AX:BZ,6,FALSE)),0) -> 0.313 | CE14: =IFERROR(IF($A14="",0,VLOOKUP($CO14,PVRHB2014!$AW:CA,6,FALSE)),0) -> 0.296 | CF14: =INDEX(team!A:A,(MATCH('Pitcher temp'!M14,team!B:B,0))) -> Min | CG14: =IFERROR(IF($A14="",0,VLOOKUP($B14,PVLHB!$B:BJ,44,FALSE)),0) -> 0.04092071611 | CH14: =IFERROR(IF($A14="",0,VLOOKUP($B14,PVRHB!$B:BJ,44,FALSE)),0) -> 0.02857142857 | CI14: =IFERROR(IF($A14="",0,VLOOKUP($CO14,PVLHB2014!$AX:CE,9,FALSE)),0) -> 3.98 | CJ14: =IFERROR(IF($A14="",0,VLOOKUP($CO14,PVRHB2014!$AW:CF,9,FALSE)),0) -> 4.13 | CK14: =IFERROR(IF($A14="",0,VLOOKUP($CO14,FG!$N:CG,10,FALSE)),0) -> 4.95 | CL14: =IFERROR(IF($A14="",0,VLOOKUP($CO14,FG!$AP:CH,10,FALSE)),0) -> 4.51 | CM14: =IFERROR(IF($A14="",0,VLOOKUP($CO14,FG!$A:CI,8,FALSE)),0) -> 4.77 | CN14: =IFERROR(IF($A14="",0,VLOOKUP($CO14,FG!$A:CJ,10,FALSE)),0) -> 4.86 | CO14: =IF($B14="","",VLOOKUP($B14,names!$J:AB,7,FALSE)) -> Alfredo Simon | CP14: =IF($B14="","",VLOOKUP($B14,names!$J:AB,8,FALSE)) -> Alfredo Simon | CQ14: 1014 | CR14: 526 | CS14: 963 | CT14: 500
A15: =IF(OR('FD pit'!$C17="",'FD pit'!$C17="Name"),"",'FD pit'!$C17) -> Danks, John | B15: =IF(A15="","",VLOOKUP(A15,names!F:G,2,FALSE)) -> John Danks | C15: =IF($A15="","",VLOOKUP($A15,'FD pit'!$C:P,4,FALSE)) -> ChW | D15: =IF($A15="",0,VLOOKUP($A15,'FD pit'!$C:AP,5,FALSE)) -> 6100 | E15: =IF($A15="",0,VLOOKUP($A15,'FD pit'!$C:AQ,MATCH("/GP",'FD pit'!$C$4:$N$4,0),FALSE)) -> 8.2 | F15: =IF($A15="",0,VLOOKUP($A15,'FD pit'!$C:AR,MATCH("/GP",'FD pit'!$C$4:$N$4,0)+2,FALSE)) -> 7.5 | G15: =IF($A15="",0,VLOOKUP($A15,'FD pit'!$C:AS,MATCH("/GP",'FD pit'!$C$4:$N$4,0)+3,FALSE)) -> 5 | H15: =IFERROR(VLOOKUP($A15,'DK pit'!$C:R,5,FALSE),0) -> 6200 | I15: =IFERROR(VLOOKUP($A15,'DK pit'!$C:S,MATCH("/GP",'DK pit'!$C$4:$N$4,0),FALSE),0) -> 12.1 | J15: =IFERROR(VLOOKUP($A15,'DK pit'!$C:T,MATCH("/GP",'FD pit'!$C$4:$N$4,0)+2,FALSE),0) -> 12 | K15: =IFERROR(VLOOKUP($A15,'DK pit'!$C:U,MATCH("/GP",'DK pit'!$C$4:$N$4,0)+3,FALSE),0) -> 5.8 | L15: =IFERROR(VLOOKUP(C15,team!A:B,2,FALSE),"") -> CHW | M15: =IFERROR(VLOOKUP(L15,Games!A:B,2,FALSE),"") -> NYY | N15: =IFERROR(VLOOKUP($L15,Games!$A:C,3,FALSE),"") -> Away | O15: =IF(A15="",0,IFERROR(VALUE(IFERROR(VLOOKUP($L15,Games!$A:F,4,FALSE),"")),110)) -> 140 | P15: =IFERROR(VALUE(LEFT(VLOOKUP($L15,Games!$A:E,5,FALSE),4)),"") -> 8.5 | Q15: =VLOOKUP(B15,names!J:M,4,FALSE) -> L | R15: =IFERROR(IF($A15="",0,VLOOKUP($B15,pitchers!$B:AM,12,FALSE)),"") -> 166.2 | S15: =IF($A15="",0,VLOOKUP($B15,pitchers!$B:AN,20,FALSE)) -> 4.59 | T15: =IF($A15="",0,VLOOKUP($B15,pitchers!$B:AO,38,FALSE)) -> 1.368 | U15: =IFERROR(IF($A15="",0,VLOOKUP($B15,pitchersL14!$B:AP,12,FALSE)),0) -> 12 | V15: =IFERROR(IF($A15="",0,VLOOKUP($B15,pitchersL14!$B:AQ,20,FALSE)),"---") -> 4.5 | W15: =IFERROR(IF($A15="",0,VLOOKUP($B15,pitchersL14!$B:AR,38,FALSE)),0) -> 1.25 | X15: =IFERROR(IF($A15="",0,IF($N15="home",VLOOKUP('Pitcher temp'!$CP15,'P-home'!$B:AF,7,FALSE),VLOOKUP('Pitcher temp'!$CP15,'P-road'!$B:AF,7,FALSE))),"") -> 326 | Y15: =IFERROR(IF($A15="",0,IF($N15="home",VLOOKUP('Pitcher temp'!$CP15,'P-home'!$B:AG,31,FALSE),VLOOKUP('Pitcher temp'!$CP15,'P-road'!$B:AG,31,FALSE))),"") -> 0 | Z15: =IF($A15="",0,INDEX('Team B L7'!$A:$A,MATCH('Pitcher temp'!$AG15,'Team B L7'!$B:$B,0),0)) -> 21 | AA15: =IF($A15="",0,INDEX('Team B L7'!$O:$O,MATCH('Pitcher temp'!$AG15,'Team B L7'!$B:$B,0),0)) -> 0.658 | AB15: =INDEX(team!C:C,MATCH('Pitcher temp'!M15,team!B:B,0),0) -> NY Yankees | AC15: =IF(Q15="R",INDEX(TeamBVR!A:A,MATCH('Pitcher temp'!AB15,TeamBVR!B:B,0),0),INDEX(TeamBVL!A:A,MATCH('Pitcher temp'!AB15,TeamBVR!B:B,0),0)) -> 12 | AD15: =IF($Q15="R",INDEX(TeamBVR!$O:$O,MATCH('Pitcher temp'!$AB15,TeamBVR!$B:$B,0),0),INDEX(TeamBVL!$O:$O,MATCH('Pitcher temp'!$AB15,TeamBVR!$B:$B,0),0)) -> 0.705 | AE15: =IF($A15="","",IF($N15="home",INDEX(TeamBroad!$A:$A,MATCH('Pitcher temp'!$AG15,TeamBroad!$B:$B,0),0),INDEX(TeamBhome!$A:$A,MATCH('Pitcher temp'!$AG15,TeamBhome!$B:$B,0),0))) -> 8 | AF15: =IF($A15="","",IF($N15="home",INDEX(TeamBroad!$O:$O,MATCH('Pitcher temp'!$AG15,TeamBroad!$B:$B,0),0),INDEX(TeamBroad!$O:$O,MATCH('Pitcher temp'!$AG15,TeamBroad!$B:$B,0),0))) -> 0.733 | AG15: =IF(A15="","",VLOOKUP(M15,team!B:C,2,FALSE)) -> NY Yankees | AH15: =IF(N15="home",VLOOKUP(L15,team!B:C,2,FALSE),VLOOKUP('Pitcher temp'!M15,team!B:C,2,FALSE)) -> NY Yankees | AI15: =VLOOKUP($AH15,team!$E:G,3,FALSE) -> Yankee Stadium (New York, New York) | AJ15: =VLOOKUP($AH15,team!$E:H,2,FALSE) -> 20 | AK15: =VLOOKUP($AH15,team!$E:I,4,FALSE) -> 0.945 | AL15: =VLOOKUP($AH15,team!$J:P,2,FALSE) -> 1 | AM15: =VLOOKUP($AH15,team!$J:Q,4,FALSE) -> 1.468 | AN15: =VLOOKUP(AH15,team!C:O,13,FALSE) -> New York Yankees | AO15: =INDEX(weather!$F:$F,MATCH('Pitcher temp'!$AN15,weather!$B:$B,0),0) -> 68° F/ 20° C | AP15: =INDEX(weather!$F:$F,(MATCH('Pitcher temp'!$AN15,weather!$B:$B,0))+1,0) -> Partly Cloudy | AQ15: 7.79 | AR15: 11.495 | AS15: 8.2 | AT15: 12.1 | AU15: =IF($V15>9,Projections!$H$4,IF('Pitcher temp'!$V15>5,Projections!$H$5,IF('Pitcher temp'!$V15<1.8,Projections!$H$6,0))) -> 0 | AV15: =IF($Z15<6,Projections!$H$9,IF($Z15>24,Projections!$H$10,0)) -> 0 | AW15: =IF($AC15<6,Projections!$H$13,IF($AC15>24,Projections!$H$14,0)) -> 0 | AX15: =IF($AE15<6,Projections!$H$17,IF($AE15>24,Projections!$H$18,0)) -> 0 | AY15: =IF($AJ15<6,Projections!$H$21,IF($AJ15>24,Projections!$H$22,0)) -> 0 | AZ15: =IF($P15>9.5,Projections!$H$25,IF('Pitcher temp'!$P15>8,Projections!$H$26,IF(AND('Pitcher temp'!$P15<7,'Pitcher temp'!$P15>1),Projections!$H$27,0))) -> -0.05 | BA15: =IF($O15<-190,Projections!$H$30,IF('Pitcher temp'!$O15<-149,Projections!$H$31,IF('Pitcher temp'!$O15>145,Projections!$H$32,0)))+(IF($BI15<7,Projections!$H$35,IF($BI15>23,Projections!$H$36,0))) -> 0 | BB15: =IF($V15>9,Projections!$I$4,IF('Pitcher temp'!$V15>5,Projections!$I$5,IF('Pitcher temp'!$V15<1.8,Projections!$I$6,0))) -> 0 | BC15: =IF($Z15<6,Projections!$I$9,IF($Z15>24,Projections!$I$10,0)) -> 0 | BD15: =IF($AC15<6,Projections!$I$13,IF($AC15>24,Projections!$I$14,0)) -> 0 | BE15: =IF($AE15<6,Projections!$I$17,IF($AE15>24,Projections!$I$18,0)) -> 0 | BF15: =IF($AJ15<6,Projections!$I$21,IF($AJ15>24,Projections!$I$22,0)) -> 0 | BG15: =IF($P15>9.5,Projections!$I$25,IF('Pitcher temp'!$P15>8,Projections!$I$26,IF(AND('Pitcher temp'!$P15<7,'Pitcher temp'!$P15>1),Projections!$I$27,0))) -> 0 | BH15: =IF($O15<-190,Projections!$I$30,IF('Pitcher temp'!$O15<-149,Projections!$I$31,IF('Pitcher temp'!$O15>145,Projections!$I$32,0)))+(IF($BI15<7,Projections!$I$35,IF($BI15>23,Projections!$I$36,0))) -> 0 | BI15: =IF(A15="",0,INDEX(teamk!A:A,MATCH('Pitcher temp'!AB15,teamk!B:B,0),0)) -> 21 | BJ15: =IF($A15="",0,VLOOKUP($B15,pitchers!$B:CE,35,FALSE)) -> 0.63 | BK15: =IF($A15="",0,VLOOKUP($B15,pitchers!$B:CF,40,FALSE)) -> 6.3 | BL15: =IFERROR(IF($A15="",0,VLOOKUP($CO15,FG!$N:BH,6,FALSE)),0) -> 0.294 | BM15: =IFERROR(IF($A15="",0,VLOOKUP($CO15,FG!$AP:BI,6,FALSE)),0) -> 0.351 | BN15: =VLOOKUP(B15,'batters-temp'!V:CG,64,FALSE) -> 16:05:00 | BO15: =IFERROR(IF($A15="",0,VLOOKUP($CP15,PVLHB!$B:AQ,42,FALSE)),0) -> 0.2086956522 | BP15: =IFERROR(IF($A15="",0,VLOOKUP($CP15,PVRHB!$B:AR,42,FALSE)),0) -> 0.3258145363 | BQ15: =IFERROR(IF($A15="",0,VLOOKUP($B15,PVLHB!$B:AS,43,FALSE)),0) -> 0.1552795031 | BR15: =IFERROR(IF($A15="",0,VLOOKUP($B15,PVRHB!$B:AT,43,FALSE)),0) -> 0.1657657658 | BS15: =IFERROR(IF($A15="",0,IF($N15="home",VLOOKUP('Pitcher temp'!$CP15,'P-home'!$B:BZ,32,FALSE),VLOOKUP('Pitcher temp'!$CP15,'P-road'!$B:BZ,32,FALSE))),"") -> 0.3283018868 | BT15: =IFERROR(IF($A15="",0,IF($N15="home",VLOOKUP('Pitcher temp'!$CP15,'P-home'!$B:CA,33,FALSE),VLOOKUP('Pitcher temp'!$CP15,'P-road'!$B:CA,33,FALSE))),"") -> 0.1595092025 | BU15: =IF(N15="Home",VLOOKUP(M15,team!B:D,3,FALSE),VLOOKUP('Pitcher temp'!BV15,team!B:D,3,FALSE)) -> Chicago White Sox | BV15: =VLOOKUP(C15,team!A:B,2,FALSE) -> CHW | BW15: =IF(A15="",0,VLOOKUP($BU15,weather4!$T:AA,2,FALSE)) -> 0.43 | BX15: =VLOOKUP($BU15,weather4!$T:AB,3,FALSE) -> Partly Cloudy | BY15: =IF(A15="",0,VLOOKUP($BU15,weather4!$T:AC,4,FALSE)) -> 0 | BZ15: =VLOOKUP($BU15,weather4!$T:AD,5,FALSE) -> 0 | CA15: =VLOOKUP($BU15,weather4!$T:AE,6,FALSE) -> 0 | CB15: =VLOOKUP($BU15,weather4!$T:AF,7,FALSE) -> ENE 13 mph | CC15: =VLOOKUP($BU15,weather4!$T:AG,8,FALSE) -> 71° | CD15: =IFERROR(IF($A15="",0,VLOOKUP($CO15,PVLHB2014!$AX:BZ,6,FALSE)),0) -> 0.317 | CE15: =IFERROR(IF($A15="",0,VLOOKUP($CO15,PVRHB2014!$AW:CA,6,FALSE)),0) -> 0.355 | CF15: =INDEX(team!A:A,(MATCH('Pitcher temp'!M15,team!B:B,0))) -> NYY | CG15: =IFERROR(IF($A15="",0,VLOOKUP($B15,PVLHB!$B:BJ,44,FALSE)),0) -> 0.05442176871 | CH15: =IFERROR(IF($A15="",0,VLOOKUP($B15,PVRHB!$B:BJ,44,FALSE)),0) -> 0.03180914513 | CI15: =IFERROR(IF($A15="",0,VLOOKUP($CO15,PVLHB2014!$AX:CE,9,FALSE)),0) -> 4.73 | CJ15: =IFERROR(IF($A15="",0,VLOOKUP($CO15,PVRHB2014!$AW:CF,9,FALSE)),0) -> 4.59 | CK15: =IFERROR(IF($A15="",0,VLOOKUP($CO15,FG!$N:CG,10,FALSE)),0) -> 4.54 | CL15: =IFERROR(IF($A15="",0,VLOOKUP($CO15,FG!$AP:CH,10,FALSE)),0) -> 4.58 | CM15: =IFERROR(IF($A15="",0,VLOOKUP($CO15,FG!$A:CI,8,FALSE)),0) -> 4.57 | CN15: =IFERROR(IF($A15="",0,VLOOKUP($CO15,FG!$A:CJ,10,FALSE)),0) -> 4.55 | CO15: =IF($B15="","",VLOOKUP($B15,names!$J:AB,7,FALSE)) -> John Danks | CP15: =IF($B15="","",VLOOKUP($B15,names!$J:AB,8,FALSE)) -> John Danks | CQ15: 783 | CR15: 539 | CS15: 744 | CT15: 512
A16: =IF(OR('FD pit'!$C18="",'FD pit'!$C18="Name"),"",'FD pit'!$C18) -> Hellickson, Jeremy | B16: =IF(A16="","",VLOOKUP(A16,names!F:G,2,FALSE)) -> Jeremy Hellickson | C16: =IF($A16="","",VLOOKUP($A16,'FD pit'!$C:P,4,FALSE)) -> Ari | D16: =IF($A16="",0,VLOOKUP($A16,'FD pit'!$C:AP,5,FALSE)) -> 6800 | E16: =IF($A16="",0,VLOOKUP($A16,'FD pit'!$C:AQ,MATCH("/GP",'FD pit'!$C$4:$N$4,0),FALSE)) -> 7.9 | F16: =IF($A16="",0,VLOOKUP($A16,'FD pit'!$C:AR,MATCH("/GP",'FD pit'!$C$4:$N$4,0)+2,FALSE)) -> 3.5 | G16: =IF($A16="",0,VLOOKUP($A16,'FD pit'!$C:AS,MATCH("/GP",'FD pit'!$C$4:$N$4,0)+3,FALSE)) -> 8 | H16: =IFERROR(VLOOKUP($A16,'DK pit'!$C:R,5,FALSE),0) -> 6200 | I16: =IFERROR(VLOOKUP($A16,'DK pit'!$C:S,MATCH("/GP",'DK pit'!$C$4:$N$4,0),FALSE),0) -> 11.6 | J16: =IFERROR(VLOOKUP($A16,'DK pit'!$C:T,MATCH("/GP",'FD pit'!$C$4:$N$4,0)+2,FALSE),0) -> 4.8 | K16: =IFERROR(VLOOKUP($A16,'DK pit'!$C:U,MATCH("/GP",'DK pit'!$C$4:$N$4,0)+3,FALSE),0) -> 14.2 | L16: =IFERROR(VLOOKUP(C16,team!A:B,2,FALSE),"") -> ARI | M16: =IFERROR(VLOOKUP(L16,Games!A:B,2,FALSE),"") -> SD | N16: =IFERROR(VLOOKUP($L16,Games!$A:C,3,FALSE),"") -> Away | O16: =IF(A16="",0,IFERROR(VALUE(IFERROR(VLOOKUP($L16,Games!$A:F,4,FALSE),"")),110)) -> 100 | P16: =IFERROR(VALUE(LEFT(VLOOKUP($L16,Games!$A:E,5,FALSE),4)),"") -> 7.5 | Q16: =VLOOKUP(B16,names!J:M,4,FALSE) -> R | R16: =IFERROR(IF($A16="",0,VLOOKUP($B16,pitchers!$B:AM,12,FALSE)),"") -> 135 | S16: =IF($A16="",0,VLOOKUP($B16,pitchers!$B:AN,20,FALSE)) -> 4.73 | T16: =IF($A16="",0,VLOOKUP($B16,pitchers!$B:AO,38,FALSE)) -> 1.341 | U16: =IFERROR(IF($A16="",0,VLOOKUP($B16,pitchersL14!$B:AP,12,FALSE)),0) -> 6 | V16: =IFERROR(IF($A16="",0,VLOOKUP($B16,pitchersL14!$B:AQ,20,FALSE)),"---") -> 7.5 | W16: =IFERROR(IF($A16="",0,VLOOKUP($B16,pitchersL14!$B:AR,38,FALSE)),0) -> 1.667 | X16: =IFERROR(IF($A16="",0,IF($N16="home",VLOOKUP('Pitcher temp'!$CP16,'P-home'!$B:AF,7,FALSE),VLOOKUP('Pitcher temp'!$CP16,'P-road'!$B:AF,7,FALSE))),"") -> 272 | Y16: =IFERROR(IF($A16="",0,IF($N16="home",VLOOKUP('Pitcher temp'!$CP16,'P-home'!$B:AG,31,FALSE),VLOOKUP('Pitcher temp'!$CP16,'P-road'!$B:AG,31,FALSE))),"") -> 0 | Z16: =IF($A16="",0,INDEX('Team B L7'!$A:$A,MATCH('Pitcher temp'!$AG16,'Team B L7'!$B:$B,0),0)) -> 20 | AA16: =IF($A16="",0,INDEX('Team B L7'!$O:$O,MATCH('Pitcher temp'!$AG16,'Team B L7'!$B:$B,0),0)) -> 0.755 | AB16: =INDEX(team!C:C,MATCH('Pitcher temp'!M16,team!B:B,0),0) -> San Diego | AC16: =IF(Q16="R",INDEX(TeamBVR!A:A,MATCH('Pitcher temp'!AB16,TeamBVR!B:B,0),0),INDEX(TeamBVL!A:A,MATCH('Pitcher temp'!AB16,TeamBVR!B:B,0),0)) -> 14 | AD16: =IF($Q16="R",INDEX(TeamBVR!$O:$O,MATCH('Pitcher temp'!$AB16,TeamBVR!$B:$B,0),0),INDEX(TeamBVL!$O:$O,MATCH('Pitcher temp'!$AB16,TeamBVR!$B:$B,0),0)) -> 0.693 | AE16: =IF($A16="","",IF($N16="home",INDEX(TeamBroad!$A:$A,MATCH('Pitcher temp'!$AG16,TeamBroad!$B:$B,0),0),INDEX(TeamBhome!$A:$A,MATCH('Pitcher temp'!$AG16,TeamBhome!$B:$B,0),0))) -> 22 | AF16: =IF($A16="","",IF($N16="home",INDEX(TeamBroad!$O:$O,MATCH('Pitcher temp'!$AG16,TeamBroad!$B:$B,0),0),INDEX(TeamBroad!$O:$O,MATCH('Pitcher temp'!$AG16,TeamBroad!$B:$B,0),0))) -> 0.678 | AG16: =IF(A16="","",VLOOKUP(M16,team!B:C,2,FALSE)) -> San Diego | AH16: =IF(N16="home",VLOOKUP(L16,team!B:C,2,FALSE),VLOOKUP('Pitcher temp'!M16,team!B:C,2,FALSE)) -> San Diego | AI16: =VLOOKUP($AH16,team!$E:G,3,FALSE) -> Petco Park (San Diego, California) | AJ16: =VLOOKUP($AH16,team!$E:H,2,FALSE) -> 29 | AK16: =VLOOKUP($AH16,team!$E:I,4,FALSE) -> 0.826 | AL16: =VLOOKUP($AH16,team!$J:P,2,FALSE) -> 24 | AM16: =VLOOKUP($AH16,team!$J:Q,4,FALSE) -> 0.808 | AN16: =VLOOKUP(AH16,team!C:O,13,FALSE) -> San Diego Padres | AO16: =INDEX(weather!$F:$F,MATCH('Pitcher temp'!$AN16,weather!$B:$B,0),0) -> 79° F/ 26° C | AP16: =INDEX(weather!$F:$F,(MATCH('Pitcher temp'!$AN16,weather!$B:$B,0))+1,0) -> Clear | AQ16: 9.401 | AR16: 13.804 | AS16: 7.9 | AT16: 11.6 | AU16: =IF($V16>9,Projections!$H$4,IF('Pitcher temp'!$V16>5,Projections!$H$5,IF('Pitcher temp'!$V16<1.8,Projections!$H$6,0))) -> -0.05 | AV16: =IF($Z16<6,Projections!$H$9,IF($Z16>24,Projections!$H$10,0)) -> 0 | AW16: =IF($AC16<6,Projections!$H$13,IF($AC16>24,Projections!$H$14,0)) -> 0 | AX16: =IF($AE16<6,Projections!$H$17,IF($AE16>24,Projections!$H$18,0)) -> 0 | AY16: =IF($AJ16<6,Projections!$H$21,IF($AJ16>24,Projections!$H$22,0)) -> 0.12 | AZ16: =IF($P16>9.5,Projections!$H$25,IF('Pitcher temp'!$P16>8,Projections!$H$26,IF(AND('Pitcher temp'!$P16<7,'Pitcher temp'!$P16>1),Projections!$H$27,0))) -> 0 | BA16: =IF($O16<-190,Projections!$H$30,IF('Pitcher temp'!$O16<-149,Projections!$H$31,IF('Pitcher temp'!$O16>145,Projections!$H$32,0)))+(IF($BI16<7,Projections!$H$35,IF($BI16>23,Projections!$H$36,0))) -> 0.12 | BB16: =IF($V16>9,Projections!$I$4,IF('Pitcher temp'!$V16>5,Projections!$I$5,IF('Pitcher temp'!$V16<1.8,Projections!$I$6,0))) -> 0 | BC16: =IF($Z16<6,Projections!$I$9,IF($Z16>24,Projections!$I$10,0)) -> 0 | BD16: =IF($AC16<6,Projections!$I$13,IF($AC16>24,Projections!$I$14,0)) -> 0 | BE16: =IF($AE16<6,Projections!$I$17,IF($AE16>24,Projections!$I$18,0)) -> 0 | BF16: =IF($AJ16<6,Projections!$I$21,IF($AJ16>24,Projections!$I$22,0)) -> 0 | BG16: =IF($P16>9.5,Projections!$I$25,IF('Pitcher temp'!$P16>8,Projections!$I$26,IF(AND('Pitcher temp'!$P16<7,'Pitcher temp'!$P16>1),Projections!$I$27,0))) -> 0 | BH16: =IF($O16<-190,Projections!$I$30,IF('Pitcher temp'!$O16<-149,Projections!$I$31,IF('Pitcher temp'!$O16>145,Projections!$I$32,0)))+(IF($BI16<7,Projections!$I$35,IF($BI16>23,Projections!$I$36,0))) -> 0 | BI16: =IF(A16="",0,INDEX(teamk!A:A,MATCH('Pitcher temp'!AB16,teamk!B:B,0),0)) -> 6 | BJ16: =IF($A16="",0,VLOOKUP($B16,pitchers!$B:CE,35,FALSE)) -> 0.79 | BK16: =IF($A16="",0,VLOOKUP($B16,pitchers!$B:CF,40,FALSE)) -> 7.5 | BL16: =IFERROR(IF($A16="",0,VLOOKUP($CO16,FG!$N:BH,6,FALSE)),0) -> 0.346 | BM16: =IFERROR(IF($A16="",0,VLOOKUP($CO16,FG!$AP:BI,6,FALSE)),0) -> 0.329 | BN16: =VLOOKUP(B16,'batters-temp'!V:CG,64,FALSE) -> 20:40:00 | BO16: =IFERROR(IF($A16="",0,VLOOKUP($CP16,PVLHB!$B:AQ,42,FALSE)),0) -> 0.312849162 | BP16: =IFERROR(IF($A16="",0,VLOOKUP($CP16,PVRHB!$B:AR,42,FALSE)),0) -> 0.2844444444 | BQ16: =IFERROR(IF($A16="",0,VLOOKUP($B16,PVLHB!$B:AS,43,FALSE)),0) -> 0.168627451 | BR16: =IFERROR(IF($A16="",0,VLOOKUP($B16,PVRHB!$B:AT,43,FALSE)),0) -> 0.2089552239 | BS16: =IFERROR(IF($A16="",0,IF($N16="home",VLOOKUP('Pitcher temp'!$CP16,'P-home'!$B:BZ,32,FALSE),VLOOKUP('Pitcher temp'!$CP16,'P-road'!$B:BZ,32,FALSE))),"") -> 0.3024390244 | BT16: =IFERROR(IF($A16="",0,IF($N16="home",VLOOKUP('Pitcher temp'!$CP16,'P-home'!$B:CA,33,FALSE),VLOOKUP('Pitcher temp'!$CP16,'P-road'!$B:CA,33,FALSE))),"") -> 0.2095588235 | BU16: =IF(N16="Home",VLOOKUP(M16,team!B:D,3,FALSE),VLOOKUP('Pitcher temp'!BV16,team!B:D,3,FALSE)) -> Arizona Diamondbacks | BV16: =VLOOKUP(C16,team!A:B,2,FALSE) -> ARI | BW16: =IF(A16="",0,VLOOKUP($BU16,weather4!$T:AA,2,FALSE)) -> 0.57 | BX16: =VLOOKUP($BU16,weather4!$T:AB,3,FALSE) -> Clear | BY16: =IF(A16="",0,VLOOKUP($BU16,weather4!$T:AC,4,FALSE)) -> 0 | BZ16: =VLOOKUP($BU16,weather4!$T:AD,5,FALSE) -> 0 | CA16: =VLOOKUP($BU16,weather4!$T:AE,6,FALSE) -> 0 | CB16: =VLOOKUP($BU16,weather4!$T:AF,7,FALSE) -> W 8 mph | CC16: =VLOOKUP($BU16,weather4!$T:AG,8,FALSE) -> 80° | CD16: =IFERROR(IF($A16="",0,VLOOKUP($CO16,PVLHB2014!$AX:BZ,6,FALSE)),0) -> 0.261 | CE16: =IFERROR(IF($A16="",0,VLOOKUP($CO16,PVRHB2014!$AW:CA,6,FALSE)),0) -> 0.423 | CF16: =INDEX(team!A:A,(MATCH('Pitcher temp'!M16,team!B:B,0))) -> Sdg | CG16: =IFERROR(IF($A16="",0,VLOOKUP($B16,PVLHB!$B:BJ,44,FALSE)),0) -> 0.03083700441 | CH16: =IFERROR(IF($A16="",0,VLOOKUP($B16,PVRHB!$B:BJ,44,FALSE)),0) -> 0.04248366013 | CI16: =IFERROR(IF($A16="",0,VLOOKUP($CO16,PVLHB2014!$AX:CE,9,FALSE)),0) -> 3.73 | CJ16: =IFERROR(IF($A16="",0,VLOOKUP($CO16,PVRHB2014!$AW:CF,9,FALSE)),0) -> 4.74 | CK16: =IFERROR(IF($A16="",0,VLOOKUP($CO16,FG!$N:CG,10,FALSE)),0) -> 4.79 | CL16: =IFERROR(IF($A16="",0,VLOOKUP($CO16,FG!$AP:CH,10,FALSE)),0) -> 3.82 | CM16: =IFERROR(IF($A16="",0,VLOOKUP($CO16,FG!$A:CI,8,FALSE)),0) -> 4.22 | CN16: =IFERROR(IF($A16="",0,VLOOKUP($CO16,FG!$A:CJ,10,FALSE)),0) -> 4.17 | CO16: =IF($B16="","",VLOOKUP($B16,names!$J:AB,7,FALSE)) -> Jeremy Hellickson | CP16: =IF($B16="","",VLOOKUP($B16,names!$J:AB,8,FALSE)) -> Jeremy Hellickson | CQ16: 723 | CR16: 449 | CS16: 861 | CT16: 534
A17: =IF(OR('FD pit'!$C19="",'FD pit'!$C19="Name"),"",'FD pit'!$C19) -> Garcia, Jaime | B17: =IF(A17="","",VLOOKUP(A17,names!F:G,2,FALSE)) -> Jaime Garcia | C17: =IF($A17="","",VLOOKUP($A17,'FD pit'!$C:P,4,FALSE)) -> StL | D17: =IF($A17="",0,VLOOKUP($A17,'FD pit'!$C:AP,5,FALSE)) -> 8800 | E17: =IF($A17="",0,VLOOKUP($A17,'FD pit'!$C:AQ,MATCH("/GP",'FD pit'!$C$4:$N$4,0),FALSE)) -> 11.4 | F17: =IF($A17="",0,VLOOKUP($A17,'FD pit'!$C:AR,MATCH("/GP",'FD pit'!$C$4:$N$4,0)+2,FALSE)) -> 10.7 | G17: =IF($A17="",0,VLOOKUP($A17,'FD pit'!$C:AS,MATCH("/GP",'FD pit'!$C$4:$N$4,0)+3,FALSE)) -> 11 | H17: =IFERROR(VLOOKUP($A17,'DK pit'!$C:R,5,FALSE),0) -> 9600 | I17: =IFERROR(VLOOKUP($A17,'DK pit'!$C:S,MATCH("/GP",'DK pit'!$C$4:$N$4,0),FALSE),0) -> 18.4 | J17: =IFERROR(VLOOKUP($A17,'DK pit'!$C:T,MATCH("/GP",'FD pit'!$C$4:$N$4,0)+2,FALSE),0) -> 16.2 | K17: =IFERROR(VLOOKUP($A17,'DK pit'!$C:U,MATCH("/GP",'DK pit'!$C$4:$N$4,0)+3,FALSE),0) -> 19.6 | L17: =IFERROR(VLOOKUP(C17,team!A:B,2,FALSE),"") -> STL | M17: =IFERROR(VLOOKUP(L17,Games!A:B,2,FALSE),"") -> MIL | N17: =IFERROR(VLOOKUP($L17,Games!$A:C,3,FALSE),"") -> Home | O17: =IF(A17="",0,IFERROR(VALUE(IFERROR(VLOOKUP($L17,Games!$A:F,4,FALSE),"")),110)) -> -240 | P17: =IFERROR(VALUE(LEFT(VLOOKUP($L17,Games!$A:E,5,FALSE),4)),"") -> 7.5 | Q17: =VLOOKUP(B17,names!J:M,4,FALSE) -> L | R17: =IFERROR(IF($A17="",0,VLOOKUP($B17,pitchers!$B:AM,12,FALSE)),"") -> 117.2 | S17: =IF($A17="",0,VLOOKUP($B17,pitchers!$B:AN,20,FALSE)) -> 2.45 | T17: =IF($A17="",0,VLOOKUP($B17,pitchers!$B:AO,38,FALSE)) -> 1.028 | U17: =IFERROR(IF($A17="",0,VLOOKUP($B17,pitchersL14!$B:AP,12,FALSE)),0) -> 13.1 | V17: =IFERROR(IF($A17="",0,VLOOKUP($B17,pitchersL14!$B:AQ,20,FALSE)),"---") -> 3.38 | W17: =IFERROR(IF($A17="",0,VLOOKUP($B17,pitchersL14!$B:AR,38,FALSE)),0) -> 1.2 | X17: =IFERROR(IF($A17="",0,IF($N17="home",VLOOKUP('Pitcher temp'!$CP17,'P-home'!$B:AF,7,FALSE),VLOOKUP('Pitcher temp'!$CP17,'P-road'!$B:AF,7,FALSE))),"") -> 216 | Y17: =IFERROR(IF($A17="",0,IF($N17="home",VLOOKUP('Pitcher temp'!$CP17,'P-home'!$B:AG,31,FALSE),VLOOKUP('Pitcher temp'!$CP17,'P-road'!$B:AG,31,FALSE))),"") -> 0.497 | Z17: =IF($A17="",0,INDEX('Team B L7'!$A:$A,MATCH('Pitcher temp'!$AG17,'Team B L7'!$B:$B,0),0)) -> 10 | AA17: =IF($A17="",0,INDEX('Team B L7'!$O:$O,MATCH('Pitcher temp'!$AG17,'Team B L7'!$B:$B,0),0)) -> 0.679 | AB17: =INDEX(team!C:C,MATCH('Pitcher temp'!M17,team!B:B,0),0) -> Milwaukee | AC17: =IF(Q17="R",INDEX(TeamBVR!A:A,MATCH('Pitcher temp'!AB17,TeamBVR!B:B,0),0),INDEX(TeamBVL!A:A,MATCH('Pitcher temp'!AB17,TeamBVR!B:B,0),0)) -> 10 | AD17: =IF($Q17="R",INDEX(TeamBVR!$O:$O,MATCH('Pitcher temp'!$AB17,TeamBVR!$B:$B,0),0),INDEX(TeamBVL!$O:$O,MATCH('Pitcher temp'!$AB17,TeamBVR!$B:$B,0),0)) -> 0.818 | AE17: =IF($A17="","",IF($N17="home",INDEX(TeamBroad!$A:$A,MATCH('Pitcher temp'!$AG17,TeamBroad!$B:$B,0),0),INDEX(TeamBhome!$A:$A,MATCH('Pitcher temp'!$AG17,TeamBhome!$B:$B,0),0))) -> 22 | AF17: =IF($A17="","",IF($N17="home",INDEX(TeamBroad!$O:$O,MATCH('Pitcher temp'!$AG17,TeamBroad!$B:$B,0),0),INDEX(TeamBroad!$O:$O,MATCH('Pitcher temp'!$AG17,TeamBroad!$B:$B,0),0))) -> 0.688 | AG17: =IF(A17="","",VLOOKUP(M17,team!B:C,2,FALSE)) -> Milwaukee | AH17: =IF(N17="home",VLOOKUP(L17,team!B:C,2,FALSE),VLOOKUP('Pitcher temp'!M17,team!B:C,2,FALSE)) -> St. Louis | AI17: =VLOOKUP($AH17,team!$E:G,3,FALSE) -> Busch Stadium (St. Louis, Missouri) | AJ17: =VLOOKUP($AH17,team!$E:H,2,FALSE) -> 4 | AK17: =VLOOKUP($AH17,team!$E:I,4,FALSE) -> 1.1 | AL17: =VLOOKUP($AH17,team!$J:P,2,FALSE) -> 16 | AM17: =VLOOKUP($AH17,team!$J:Q,4,FALSE) -> 0.966 | AN17: =VLOOKUP(AH17,team!C:O,13,FALSE) -> St. Louis Cardinals | AO17: =INDEX(weather!$F:$F,MATCH('Pitcher temp'!$AN17,weather!$B:$B,0),0) -> 70° F/ 21° C | AP17: =INDEX(weather!$F:$F,(MATCH('Pitcher temp'!$AN17,weather!$B:$B,0))+1,0) -> Chance of Rain | AQ17: 12.312 | AR17: 19.872 | AS17: 11.4 | AT17: 18.4 | AU17: =IF($V17>9,Projections!$H$4,IF('Pitcher temp'!$V17>5,Projections!$H$5,IF('Pitcher temp'!$V17<1.8,Projections!$H$6,0))) -> 0 | AV17: =IF($Z17<6,Projections!$H$9,IF($Z17>24,Projections!$H$10,0)) -> 0 | AW17: =IF($AC17<6,Projections!$H$13,IF($AC17>24,Projections!$H$14,0)) -> 0 | AX17: =IF($AE17<6,Projections!$H$17,IF($AE17>24,Projections!$H$18,0)) -> 0 | AY17: =IF($AJ17<6,Projections!$H$21,IF($AJ17>24,Projections!$H$22,0)) -> -0.1 | AZ17: =IF($P17>9.5,Projections!$H$25,IF('Pitcher temp'!$P17>8,Projections!$H$26,IF(AND('Pitcher temp'!$P17<7,'Pitcher temp'!$P17>1),Projections!$H$27,0))) -> 0 | BA17: =IF($O17<-190,Projections!$H$30,IF('Pitcher temp'!$O17<-149,Projections!$H$31,IF('Pitcher temp'!$O17>145,Projections!$H$32,0)))+(IF($BI17<7,Projections!$H$35,IF($BI17>23,Projections!$H$36,0))) -> 0.18 | BB17: =IF($V17>9,Projections!$I$4,IF('Pitcher temp'!$V17>5,Projections!$I$5,IF('Pitcher temp'!$V17<1.8,Projections!$I$6,0))) -> 0 | BC17: =IF($Z17<6,Projections!$I$9,IF($Z17>24,Projections!$I$10,0)) -> 0 | BD17: =IF($AC17<6,Projections!$I$13,IF($AC17>24,Projections!$I$14,0)) -> 0 | BE17: =IF($AE17<6,Projections!$I$17,IF($AE17>24,Projections!$I$18,0)) -> 0 | BF17: =IF($AJ17<6,Projections!$I$21,IF($AJ17>24,Projections!$I$22,0)) -> 0 | BG17: =IF($P17>9.5,Projections!$I$25,IF('Pitcher temp'!$P17>8,Projections!$I$26,IF(AND('Pitcher temp'!$P17<7,'Pitcher temp'!$P17>1),Projections!$I$27,0))) -> 0 | BH17: =IF($O17<-190,Projections!$I$30,IF('Pitcher temp'!$O17<-149,Projections!$I$31,IF('Pitcher temp'!$O17>145,Projections!$I$32,0)))+(IF($BI17<7,Projections!$I$35,IF($BI17>23,Projections!$I$36,0))) -> 0 | BI17: =IF(A17="",0,INDEX(teamk!A:A,MATCH('Pitcher temp'!AB17,teamk!B:B,0),0)) -> 11 | BJ17: =IF($A17="",0,VLOOKUP($B17,pitchers!$B:CE,35,FALSE)) -> 1.72 | BK17: =IF($A17="",0,VLOOKUP($B17,pitchers!$B:CF,40,FALSE)) -> 6.4 | BL17: =IFERROR(IF($A17="",0,VLOOKUP($CO17,FG!$N:BH,6,FALSE)),0) -> 0.283 | BM17: =IFERROR(IF($A17="",0,VLOOKUP($CO17,FG!$AP:BI,6,FALSE)),0) -> 0.243 | BN17: =VLOOKUP(B17,'batters-temp'!V:CG,64,FALSE) -> 19:15:00 | BO17: =IFERROR(IF($A17="",0,VLOOKUP($CP17,PVLHB!$B:AQ,42,FALSE)),0) -> 0.301369863 | BP17: =IFERROR(IF($A17="",0,VLOOKUP($CP17,PVRHB!$B:AR,42,FALSE)),0) -> 0.2509505703 | BQ17: =IFERROR(IF($A17="",0,VLOOKUP($B17,PVLHB!$B:AS,43,FALSE)),0) -> 0.2095238095 | BR17: =IFERROR(IF($A17="",0,VLOOKUP($B17,PVRHB!$B:AT,43,FALSE)),0) -> 0.1751412429 | BS17: =IFERROR(IF($A17="",0,IF($N17="home",VLOOKUP('Pitcher temp'!$CP17,'P-home'!$B:BZ,32,FALSE),VLOOKUP('Pitcher temp'!$CP17,'P-road'!$B:BZ,32,FALSE))),"") -> 0.2469879518 | BT17: =IFERROR(IF($A17="",0,IF($N17="home",VLOOKUP('Pitcher temp'!$CP17,'P-home'!$B:CA,33,FALSE),VLOOKUP('Pitcher temp'!$CP17,'P-road'!$B:CA,33,FALSE))),"") -> 0.2268518519 | BU17: =IF(N17="Home",VLOOKUP(M17,team!B:D,3,FALSE),VLOOKUP('Pitcher temp'!BV17,team!B:D,3,FALSE)) -> Milwaukee Brewers | BV17: =VLOOKUP(C17,team!A:B,2,FALSE) -> STL | BW17: =IF(A17="",0,VLOOKUP($BU17,weather4!$T:AA,2,FALSE)) -> 0.62 | BX17: =VLOOKUP($BU17,weather4!$T:AB,3,FALSE) -> Overcast | BY17: =IF(A17="",0,VLOOKUP($BU17,weather4!$T:AC,4,FALSE)) -> 0.15 | BZ17: =VLOOKUP($BU17,weather4!$T:AD,5,FALSE) -> 0.01 | CA17: =VLOOKUP($BU17,weather4!$T:AE,6,FALSE) -> 0.01 | CB17: =VLOOKUP($BU17,weather4!$T:AF,7,FALSE) -> E 9 mph | CC17: =VLOOKUP($BU17,weather4!$T:AG,8,FALSE) -> 74° | CD17: =IFERROR(IF($A17="",0,VLOOKUP($CO17,PVLHB2014!$AX:BZ,6,FALSE)),0) -> 0.389 | CE17: =IFERROR(IF($A17="",0,VLOOKUP($CO17,PVRHB2014!$AW:CA,6,FALSE)),0) -> 0.278 | CF17: =INDEX(team!A:A,(MATCH('Pitcher temp'!M17,team!B:B,0))) -> Mil | CG17: =IFERROR(IF($A17="",0,VLOOKUP($B17,PVLHB!$B:BJ,44,FALSE)),0) -> 0.0206185567 | CH17: =IFERROR(IF($A17="",0,VLOOKUP($B17,PVRHB!$B:BJ,44,FALSE)),0) -> 0.009230769231 | CI17: =IFERROR(IF($A17="",0,VLOOKUP($CO17,PVLHB2014!$AX:CE,9,FALSE)),0) -> 2.33 | CJ17: =IFERROR(IF($A17="",0,VLOOKUP($CO17,PVRHB2014!$AW:CF,9,FALSE)),0) -> 3.12 | CK17: =IFERROR(IF($A17="",0,VLOOKUP($CO17,FG!$N:CG,10,FALSE)),0) -> 3.02 | CL17: =IFERROR(IF($A17="",0,VLOOKUP($CO17,FG!$AP:CH,10,FALSE)),0) -> 3.51 | CM17: =IFERROR(IF($A17="",0,VLOOKUP($CO17,FG!$A:CI,8,FALSE)),0) -> 3.41 | CN17: =IFERROR(IF($A17="",0,VLOOKUP($CO17,FG!$A:CJ,10,FALSE)),0) -> 3.41 | CO17: =IF($B17="","",VLOOKUP($B17,names!$J:AB,7,FALSE)) -> Jaime Garcia | CP17: =IF($B17="","",VLOOKUP($B17,names!$J:AB,8,FALSE)) -> Jaime Garcia | CQ17: 715 | CR17: 483 | CS17: 772 | CT17: 522
A18: =IF(OR('FD pit'!$C20="",'FD pit'!$C20="Name"),"",'FD pit'!$C20) -> Warren, Adam | B18: =IF(A18="","",VLOOKUP(A18,names!F:G,2,FALSE)) -> Adam Warren | C18: =IF($A18="","",VLOOKUP($A18,'FD pit'!$C:P,4,FALSE)) -> NYY | D18: =IF($A18="",0,VLOOKUP($A18,'FD pit'!$C:AP,5,FALSE)) -> 5800 | E18: =IF($A18="",0,VLOOKUP($A18,'FD pit'!$C:AQ,MATCH("/GP",'FD pit'!$C$4:$N$4,0),FALSE)) -> 4.8 | F18: =IF($A18="",0,VLOOKUP($A18,'FD pit'!$C:AR,MATCH("/GP",'FD pit'!$C$4:$N$4,0)+2,FALSE)) -> 5.7 | G18: =IF($A18="",0,VLOOKUP($A18,'FD pit'!$C:AS,MATCH("/GP",'FD pit'!$C$4:$N$4,0)+3,FALSE)) -> 5.3 | H18: =IFERROR(VLOOKUP($A18,'DK pit'!$C:R,5,FALSE),0) -> 4500 | I18: =IFERROR(VLOOKUP($A18,'DK pit'!$C:S,MATCH("/GP",'DK pit'!$C$4:$N$4,0),FALSE),0) -> 7.5 | J18: =IFERROR(VLOOKUP($A18,'DK pit'!$C:T,MATCH("/GP",'FD pit'!$C$4:$N$4,0)+2,FALSE),0) -> 8.3 | K18: =IFERROR(VLOOKUP($A18,'DK pit'!$C:U,MATCH("/GP",'DK pit'!$C$4:$N$4,0)+3,FALSE),0) -> 7.3 | L18: =IFERROR(VLOOKUP(C18,team!A:B,2,FALSE),"") -> NYY | M18: =IFERROR(VLOOKUP(L18,Games!A:B,2,FALSE),"") -> CHW | N18: =IFERROR(VLOOKUP($L18,Games!$A:C,3,FALSE),"") -> Home | O18: =IF(A18="",0,IFERROR(VALUE(IFERROR(VLOOKUP($L18,Games!$A:F,4,FALSE),"")),110)) -> -150 | P18: =IFERROR(VALUE(LEFT(VLOOKUP($L18,Games!$A:E,5,FALSE),4)),"") -> 8.5 | Q18: =VLOOKUP(B18,names!J:M,4,FALSE) -> R | R18: =IFERROR(IF($A18="",0,VLOOKUP($B18,pitchers!$B:AM,12,FALSE)),"") -> 122.1 | S18: =IF($A18="",0,VLOOKUP($B18,pitchers!$B:AN,20,FALSE)) -> 3.46 | T18: =IF($A18="",0,VLOOKUP($B18,pitchers!$B:AO,38,FALSE)) -> 1.185 | U18: =IFERROR(IF($A18="",0,VLOOKUP($B18,pitchersL14!$B:AP,12,FALSE)),0) -> 7.1 | V18: =IFERROR(IF($A18="",0,VLOOKUP($B18,pitchersL14!$B:AQ,20,FALSE)),"---") -> 6.14 | W18: =IFERROR(IF($A18="",0,VLOOKUP($B18,pitchersL14!$B:AR,38,FALSE)),0) -> 1.636 | X18: =IFERROR(IF($A18="",0,IF($N18="home",VLOOKUP('Pitcher temp'!$CP18,'P-home'!$B:AF,7,FALSE),VLOOKUP('Pitcher temp'!$CP18,'P-road'!$B:AF,7,FALSE))),"") -> 193 | Y18: =IFERROR(IF($A18="",0,IF($N18="home",VLOOKUP('Pitcher temp'!$CP18,'P-home'!$B:AG,31,FALSE),VLOOKUP('Pitcher temp'!$CP18,'P-road'!$B:AG,31,FALSE))),"") -> 0.591 | Z18: =IF($A18="",0,INDEX('Team B L7'!$A:$A,MATCH('Pitcher temp'!$AG18,'Team B L7'!$B:$B,0),0)) -> 28 | AA18: =IF($A18="",0,INDEX('Team B L7'!$O:$O,MATCH('Pitcher temp'!$AG18,'Team B L7'!$B:$B,0),0)) -> 0.63 | AB18: =INDEX(team!C:C,MATCH('Pitcher temp'!M18,team!B:B,0),0) -> Chicago Sox | AC18: =IF(Q18="R",INDEX(TeamBVR!A:A,MATCH('Pitcher temp'!AB18,TeamBVR!B:B,0),0),INDEX(TeamBVL!A:A,MATCH('Pitcher temp'!AB18,TeamBVR!B:B,0),0)) -> 19 | AD18: =IF($Q18="R",INDEX(TeamBVR!$O:$O,MATCH('Pitcher temp'!$AB18,TeamBVR!$B:$B,0),0),INDEX(TeamBVL!$O:$O,MATCH('Pitcher temp'!$AB18,TeamBVR!$B:$B,0),0)) -> 0.705 | AE18: =IF($A18="","",IF($N18="home",INDEX(TeamBroad!$A:$A,MATCH('Pitcher temp'!$AG18,TeamBroad!$B:$B,0),0),INDEX(TeamBhome!$A:$A,MATCH('Pitcher temp'!$AG18,TeamBhome!$B:$B,0),0))) -> 11 | AF18: =IF($A18="","",IF($N18="home",INDEX(TeamBroad!$O:$O,MATCH('Pitcher temp'!$AG18,TeamBroad!$B:$B,0),0),INDEX(TeamBroad!$O:$O,MATCH('Pitcher temp'!$AG18,TeamBroad!$B:$B,0),0))) -> 0.691 | AG18: =IF(A18="","",VLOOKUP(M18,team!B:C,2,FALSE)) -> Chicago Sox | AH18: =IF(N18="home",VLOOKUP(L18,team!B:C,2,FALSE),VLOOKUP('Pitcher temp'!M18,team!B:C,2,FALSE)) -> NY Yankees | AI18: =VLOOKUP($AH18,team!$E:G,3,FALSE) -> Yankee Stadium (New York, New York) | AJ18: =VLOOKUP($AH18,team!$E:H,2,FALSE) -> 20 | AK18: =VLOOKUP($AH18,team!$E:I,4,FALSE) -> 0.945 | AL18: =VLOOKUP($AH18,team!$J:P,2,FALSE) -> 1 | AM18: =VLOOKUP($AH18,team!$J:Q,4,FALSE) -> 1.468 | AN18: =VLOOKUP(AH18,team!C:O,13,FALSE) -> New York Yankees | AO18: =INDEX(weather!$F:$F,MATCH('Pitcher temp'!$AN18,weather!$B:$B,0),0) -> 68° F/ 20° C | AP18: =INDEX(weather!$F:$F,(MATCH('Pitcher temp'!$AN18,weather!$B:$B,0))+1,0) -> Partly Cloudy | AQ18: 5.232 | AR18: 8.175 | AS18: 4.8 | AT18: 7.5 | AU18: =IF($V18>9,Projections!$H$4,IF('Pitcher temp'!$V18>5,Projections!$H$5,IF('Pitcher temp'!$V18<1.8,Projections!$H$6,0))) -> -0.05 | AV18: =IF($Z18<6,Projections!$H$9,IF($Z18>24,Projections!$H$10,0)) -> 0.1 | AW18: =IF($AC18<6,Projections!$H$13,IF($AC18>24,Projections!$H$14,0)) -> 0 | AX18: =IF($AE18<6,Projections!$H$17,IF($AE18>24,Projections!$H$18,0)) -> 0 | AY18: =IF($AJ18<6,Projections!$H$21,IF($AJ18>24,Projections!$H$22,0)) -> 0 | AZ18: =IF($P18>9.5,Projections!$H$25,IF('Pitcher temp'!$P18>8,Projections!$H$26,IF(AND('Pitcher temp'!$P18<7,'Pitcher temp'!$P18>1),Projections!$H$27,0))) -> -0.05 | BA18: =IF($O18<-190,Projections!$H$30,IF('Pitcher temp'!$O18<-149,Projections!$H$31,IF('Pitcher temp'!$O18>145,Projections!$H$32,0)))+(IF($BI18<7,Projections!$H$35,IF($BI18>23,Projections!$H$36,0))) -> 0.09 | BB18: =IF($V18>9,Projections!$I$4,IF('Pitcher temp'!$V18>5,Projections!$I$5,IF('Pitcher temp'!$V18<1.8,Projections!$I$6,0))) -> 0 | BC18: =IF($Z18<6,Projections!$I$9,IF($Z18>24,Projections!$I$10,0)) -> 0 | BD18: =IF($AC18<6,Projections!$I$13,IF($AC18>24,Projections!$I$14,0)) -> 0 | BE18: =IF($AE18<6,Projections!$I$17,IF($AE18>24,Projections!$I$18,0)) -> 0 | BF18: =IF($AJ18<6,Projections!$I$21,IF($AJ18>24,Projections!$I$22,0)) -> 0 | BG18: =IF($P18>9.5,Projections!$I$25,IF('Pitcher temp'!$P18>8,Projections!$I$26,IF(AND('Pitcher temp'!$P18<7,'Pitcher temp'!$P18>1),Projections!$I$27,0))) -> 0 | BH18: =IF($O18<-190,Projections!$I$30,IF('Pitcher temp'!$O18<-149,Projections!$I$31,IF('Pitcher temp'!$O18>145,Projections!$I$32,0)))+(IF($BI18<7,Projections!$I$35,IF($BI18>23,Projections!$I$36,0))) -> 0 | BI18: =IF(A18="",0,INDEX(teamk!A:A,MATCH('Pitcher temp'!AB18,teamk!B:B,0),0)) -> 18 | BJ18: =IF($A18="",0,VLOOKUP($B18,pitchers!$B:CE,35,FALSE)) -> 0.8 | BK18: =IF($A18="",0,VLOOKUP($B18,pitchers!$B:CF,40,FALSE)) -> 7.1 | BL18: =IFERROR(IF($A18="",0,VLOOKUP($CO18,FG!$N:BH,6,FALSE)),0) -> 0.27 | BM18: =IFERROR(IF($A18="",0,VLOOKUP($CO18,FG!$AP:BI,6,FALSE)),0) -> 0.307 | BN18: =VLOOKUP(B18,'batters-temp'!V:CG,64,FALSE) -> 16:05:00 | BO18: =IFERROR(IF($A18="",0,VLOOKUP($CP18,PVLHB!$B:AQ,42,FALSE)),0) -> 0.2649006623 | BP18: =IFERROR(IF($A18="",0,VLOOKUP($CP18,PVRHB!$B:AR,42,FALSE)),0) -> 0.303030303 | BQ18: =IFERROR(IF($A18="",0,VLOOKUP($B18,PVLHB!$B:AS,43,FALSE)),0) -> 0.1674876847 | BR18: =IFERROR(IF($A18="",0,VLOOKUP($B18,PVRHB!$B:AT,43,FALSE)),0) -> 0.2121212121 | BS18: =IFERROR(IF($A18="",0,IF($N18="home",VLOOKUP('Pitcher temp'!$CP18,'P-home'!$B:BZ,32,FALSE),VLOOKUP('Pitcher temp'!$CP18,'P-road'!$B:BZ,32,FALSE))),"") -> 0.2551724138 | BT18: =IFERROR(IF($A18="",0,IF($N18="home",VLOOKUP('Pitcher temp'!$CP18,'P-home'!$B:CA,33,FALSE),VLOOKUP('Pitcher temp'!$CP18,'P-road'!$B:CA,33,FALSE))),"") -> 0.2331606218 | BU18: =IF(N18="Home",VLOOKUP(M18,team!B:D,3,FALSE),VLOOKUP('Pitcher temp'!BV18,team!B:D,3,FALSE)) -> Chicago White Sox | BV18: =VLOOKUP(C18,team!A:B,2,FALSE) -> NYY | BW18: =IF(A18="",0,VLOOKUP($BU18,weather4!$T:AA,2,FALSE)) -> 0.43 | BX18: =VLOOKUP($BU18,weather4!$T:AB,3,FALSE) -> Partly Cloudy | BY18: =IF(A18="",0,VLOOKUP($BU18,weather4!$T:AC,4,FALSE)) -> 0 | BZ18: =VLOOKUP($BU18,weather4!$T:AD,5,FALSE) -> 0 | CA18: =VLOOKUP($BU18,weather4!$T:AE,6,FALSE) -> 0 | CB18: =VLOOKUP($BU18,weather4!$T:AF,7,FALSE) -> ENE 13 mph | CC18: =VLOOKUP($BU18,weather4!$T:AG,8,FALSE) -> 71° | CD18: =IFERROR(IF($A18="",0,VLOOKUP($CO18,PVLHB2014!$AX:BZ,6,FALSE)),0) -> 0.236 | CE18: =IFERROR(IF($A18="",0,VLOOKUP($CO18,PVRHB2014!$AW:CA,6,FALSE)),0) -> 0.307 | CF18: =INDEX(team!A:A,(MATCH('Pitcher temp'!M18,team!B:B,0))) -> ChW | CG18: =IFERROR(IF($A18="",0,VLOOKUP($B18,PVLHB!$B:BJ,44,FALSE)),0) -> 0.01075268817 | CH18: =IFERROR(IF($A18="",0,VLOOKUP($B18,PVRHB!$B:BJ,44,FALSE)),0) -> 0.02985074627 | CI18: =IFERROR(IF($A18="",0,VLOOKUP($CO18,PVLHB2014!$AX:CE,9,FALSE)),0) -> 2.77 | CJ18: =IFERROR(IF($A18="",0,VLOOKUP($CO18,PVRHB2014!$AW:CF,9,FALSE)),0) -> 3.73 | CK18: =IFERROR(IF($A18="",0,VLOOKUP($CO18,FG!$N:CG,10,FALSE)),0) -> 4.13 | CL18: =IFERROR(IF($A18="",0,VLOOKUP($CO18,FG!$AP:CH,10,FALSE)),0) -> 3.98 | CM18: =IFERROR(IF($A18="",0,VLOOKUP($CO18,FG!$A:CI,8,FALSE)),0) -> 4.04 | CN18: =IFERROR(IF($A18="",0,VLOOKUP($CO18,FG!$A:CJ,10,FALSE)),0) -> 4.02 | CO18: =IF($B18="","",VLOOKUP($B18,names!$J:AB,7,FALSE)) -> Adam Warren | CP18: =IF($B18="","",VLOOKUP($B18,names!$J:AB,8,FALSE)) -> Adam Warren | CQ18: 1109 | CR18: 550 | CS18: 1208 | CT18: 600
A19: =IF(OR('FD pit'!$C21="",'FD pit'!$C21="Name"),"",'FD pit'!$C21) -> Hudson, Tim | B19: =IF(A19="","",VLOOKUP(A19,names!F:G,2,FALSE)) -> Tim Hudson | C19: =IF($A19="","",VLOOKUP($A19,'FD pit'!$C:P,4,FALSE)) -> Sfo | D19: =IF($A19="",0,VLOOKUP($A19,'FD pit'!$C:AP,5,FALSE)) -> 5800 | E19: =IF($A19="",0,VLOOKUP($A19,'FD pit'!$C:AQ,MATCH("/GP",'FD pit'!$C$4:$N$4,0),FALSE)) -> 7.2 | F19: =IF($A19="",0,VLOOKUP($A19,'FD pit'!$C:AR,MATCH("/GP",'FD pit'!$C$4:$N$4,0)+2,FALSE)) -> 8.7 | G19: =IF($A19="",0,VLOOKUP($A19,'FD pit'!$C:AS,MATCH("/GP",'FD pit'!$C$4:$N$4,0)+3,FALSE)) -> 13 | H19: =IFERROR(VLOOKUP($A19,'DK pit'!$C:R,5,FALSE),0) -> 5500 | I19: =IFERROR(VLOOKUP($A19,'DK pit'!$C:S,MATCH("/GP",'DK pit'!$C$4:$N$4,0),FALSE),0) -> 9.8 | J19: =IFERROR(VLOOKUP($A19,'DK pit'!$C:T,MATCH("/GP",'FD pit'!$C$4:$N$4,0)+2,FALSE),0) -> 12.7 | K19: =IFERROR(VLOOKUP($A19,'DK pit'!$C:U,MATCH("/GP",'DK pit'!$C$4:$N$4,0)+3,FALSE),0) -> 19.3 | L19: =IFERROR(VLOOKUP(C19,team!A:B,2,FALSE),"") -> SF | M19: =IFERROR(VLOOKUP(L19,Games!A:B,2,FALSE),"") -> OAK | N19: =IFERROR(VLOOKUP($L19,Games!$A:C,3,FALSE),"") -> Away | O19: =IF(A19="",0,IFERROR(VALUE(IFERROR(VLOOKUP($L19,Games!$A:F,4,FALSE),"")),110)) -> -112 | P19: =IFERROR(VALUE(LEFT(VLOOKUP($L19,Games!$A:E,5,FALSE),4)),"") -> 8.5 | Q19: =VLOOKUP(B19,names!J:M,4,FALSE) -> R | R19: =IFERROR(IF($A19="",0,VLOOKUP($B19,pitchers!$B:AM,12,FALSE)),"") -> 120.2 | S19: =IF($A19="",0,VLOOKUP($B19,pitchers!$B:AN,20,FALSE)) -> 4.18 | T19: =IF($A19="",0,VLOOKUP($B19,pitchers!$B:AO,38,FALSE)) -> 1.343 | U19: =IFERROR(IF($A19="",0,VLOOKUP($B19,pitchersL14!$B:AP,12,FALSE)),0) -> 10.1 | V19: =IFERROR(IF($A19="",0,VLOOKUP($B19,pitchersL14!$B:AQ,20,FALSE)),"---") -> 0.87 | W19: =IFERROR(IF($A19="",0,VLOOKUP($B19,pitchersL14!$B:AR,38,FALSE)),0) -> 1.258 | X19: =IFERROR(IF($A19="",0,IF($N19="home",VLOOKUP('Pitcher temp'!$CP19,'P-home'!$B:AF,7,FALSE),VLOOKUP('Pitcher temp'!$CP19,'P-road'!$B:AF,7,FALSE))),"") -> 175 | Y19: =IFERROR(IF($A19="",0,IF($N19="home",VLOOKUP('Pitcher temp'!$CP19,'P-home'!$B:AG,31,FALSE),VLOOKUP('Pitcher temp'!$CP19,'P-road'!$B:AG,31,FALSE))),"") -> 0.814 | Z19: =IF($A19="",0,INDEX('Team B L7'!$A:$A,MATCH('Pitcher temp'!$AG19,'Team B L7'!$B:$B,0),0)) -> 27 | AA19: =IF($A19="",0,INDEX('Team B L7'!$O:$O,MATCH('Pitcher temp'!$AG19,'Team B L7'!$B:$B,0),0)) -> 0.724 | AB19: =INDEX(team!C:C,MATCH('Pitcher temp'!M19,team!B:B,0),0) -> Oakland | AC19: =IF(Q19="R",INDEX(TeamBVR!A:A,MATCH('Pitcher temp'!AB19,TeamBVR!B:B,0),0),INDEX(TeamBVL!A:A,MATCH('Pitcher temp'!AB19,TeamBVR!B:B,0),0)) -> 16 | AD19: =IF($Q19="R",INDEX(TeamBVR!$O:$O,MATCH('Pitcher temp'!$AB19,TeamBVR!$B:$B,0),0),INDEX(TeamBVL!$O:$O,MATCH('Pitcher temp'!$AB19,TeamBVR!$B:$B,0),0)) -> 0.708 | AE19: =IF($A19="","",IF($N19="home",INDEX(TeamBroad!$A:$A,MATCH('Pitcher temp'!$AG19,TeamBroad!$B:$B,0),0),INDEX(TeamBhome!$A:$A,MATCH('Pitcher temp'!$AG19,TeamBhome!$B:$B,0),0))) -> 14 | AF19: =IF($A19="","",IF($N19="home",INDEX(TeamBroad!$O:$O,MATCH('Pitcher temp'!$AG19,TeamBroad!$B:$B,0),0),INDEX(TeamBroad!$O:$O,MATCH('Pitcher temp'!$AG19,TeamBroad!$B:$B,0),0))) -> 0.704 | AG19: =IF(A19="","",VLOOKUP(M19,team!B:C,2,FALSE)) -> Oakland | AH19: =IF(N19="home",VLOOKUP(L19,team!B:C,2,FALSE),VLOOKUP('Pitcher temp'!M19,team!B:C,2,FALSE)) -> Oakland | AI19: =VLOOKUP($AH19,team!$E:G,3,FALSE) -> O.co Coliseum (Oakland, California) | AJ19: =VLOOKUP($AH19,team!$E:H,2,FALSE) -> 10 | AK19: =VLOOKUP($AH19,team!$E:I,4,FALSE) -> 1.023 | AL19: =VLOOKUP($AH19,team!$J:P,2,FALSE) -> 21 | AM19: =VLOOKUP($AH19,team!$J:Q,4,FALSE) -> 0.903 | AN19: =VLOOKUP(AH19,team!C:O,13,FALSE) -> Oakland Athletics | AO19: =INDEX(weather!$F:$F,MATCH('Pitcher temp'!$AN19,weather!$B:$B,0),0) -> 76° F/ 24° C | AP19: =INDEX(weather!$F:$F,(MATCH('Pitcher temp'!$AN19,weather!$B:$B,0))+1,0) -> Partly Cloudy | AQ19: 7.704 | AR19: 10.486 | AS19: 7.2 | AT19: 9.8 | AU19: =IF($V19>9,Projections!$H$4,IF('Pitcher temp'!$V19>5,Projections!$H$5,IF('Pitcher temp'!$V19<1.8,Projections!$H$6,0))) -> 0.12 | AV19: =IF($Z19<6,Projections!$H$9,IF($Z19>24,Projections!$H$10,0)) -> 0.1 | AW19: =IF($AC19<6,Projections!$H$13,IF($AC19>24,Projections!$H$14,0)) -> 0 | AX19: =IF($AE19<6,Projections!$H$17,IF($AE19>24,Projections!$H$18,0)) -> 0 | AY19: =IF($AJ19<6,Projections!$H$21,IF($AJ19>24,Projections!$H$22,0)) -> 0 | AZ19: =IF($P19>9.5,Projections!$H$25,IF('Pitcher temp'!$P19>8,Projections!$H$26,IF(AND('Pitcher temp'!$P19<7,'Pitcher temp'!$P19>1),Projections!$H$27,0))) -> -0.05 | BA19: =IF($O19<-190,Projections!$H$30,IF('Pitcher temp'!$O19<-149,Projections!$H$31,IF('Pitcher temp'!$O19>145,Projections!$H$32,0)))+(IF($BI19<7,Projections!$H$35,IF($BI19>23,Projections!$H$36,0))) -> -0.1 | BB19: =IF($V19>9,Projections!$I$4,IF('Pitcher temp'!$V19>5,Projections!$I$5,IF('Pitcher temp'!$V19<1.8,Projections!$I$6,0))) -> 0 | BC19: =IF($Z19<6,Projections!$I$9,IF($Z19>24,Projections!$I$10,0)) -> 0 | BD19: =IF($AC19<6,Projections!$I$13,IF($AC19>24,Projections!$I$14,0)) -> 0 | BE19: =IF($AE19<6,Projections!$I$17,IF($AE19>24,Projections!$I$18,0)) -> 0 | BF19: =IF($AJ19<6,Projections!$I$21,IF($AJ19>24,Projections!$I$22,0)) -> 0 | BG19: =IF($P19>9.5,Projections!$I$25,IF('Pitcher temp'!$P19>8,Projections!$I$26,IF(AND('Pitcher temp'!$P19<7,'Pitcher temp'!$P19>1),Projections!$I$27,0))) -> 0 | BH19: =IF($O19<-190,Projections!$I$30,IF('Pitcher temp'!$O19<-149,Projections!$I$31,IF('Pitcher temp'!$O19>145,Projections!$I$32,0)))+(IF($BI19<7,Projections!$I$35,IF($BI19>23,Projections!$I$36,0))) -> 0 | BI19: =IF(A19="",0,INDEX(teamk!A:A,MATCH('Pitcher temp'!AB19,teamk!B:B,0),0)) -> 29 | BJ19: =IF($A19="",0,VLOOKUP($B19,pitchers!$B:CE,35,FALSE)) -> 1.32 | BK19: =IF($A19="",0,VLOOKUP($B19,pitchers!$B:CF,40,FALSE)) -> 4.7 | BL19: =IFERROR(IF($A19="",0,VLOOKUP($CO19,FG!$N:BH,6,FALSE)),0) -> 0.351 | BM19: =IFERROR(IF($A19="",0,VLOOKUP($CO19,FG!$AP:BI,6,FALSE)),0) -> 0.305 | BN19: =VLOOKUP(B19,'batters-temp'!V:CG,64,FALSE) -> 16:05:00 | BO19: =IFERROR(IF($A19="",0,VLOOKUP($CP19,PVLHB!$B:AQ,42,FALSE)),0) -> 0.3333333333 | BP19: =IFERROR(IF($A19="",0,VLOOKUP($CP19,PVRHB!$B:AR,42,FALSE)),0) -> 0.2740384615 | BQ19: =IFERROR(IF($A19="",0,VLOOKUP($B19,PVLHB!$B:AS,43,FALSE)),0) -> 0.06363636364 | BR19: =IFERROR(IF($A19="",0,VLOOKUP($B19,PVRHB!$B:AT,43,FALSE)),0) -> 0.1731448763 | BS19: =IFERROR(IF($A19="",0,IF($N19="home",VLOOKUP('Pitcher temp'!$CP19,'P-home'!$B:BZ,32,FALSE),VLOOKUP('Pitcher temp'!$CP19,'P-road'!$B:BZ,32,FALSE))),"") -> 0.2905405405 | BT19: =IFERROR(IF($A19="",0,IF($N19="home",VLOOKUP('Pitcher temp'!$CP19,'P-home'!$B:CA,33,FALSE),VLOOKUP('Pitcher temp'!$CP19,'P-road'!$B:CA,33,FALSE))),"") -> 0.12 | BU19: =IF(N19="Home",VLOOKUP(M19,team!B:D,3,FALSE),VLOOKUP('Pitcher temp'!BV19,team!B:D,3,FALSE)) -> San Francisco Giants | BV19: =VLOOKUP(C19,team!A:B,2,FALSE) -> SF | BW19: =IF(A19="",0,VLOOKUP($BU19,weather4!$T:AA,2,FALSE)) -> 0.57 | BX19: =VLOOKUP($BU19,weather4!$T:AB,3,FALSE) -> Partly Cloudy | BY19: =IF(A19="",0,VLOOKUP($BU19,weather4!$T:AC,4,FALSE)) -> 0 | BZ19: =VLOOKUP($BU19,weather4!$T:AD,5,FALSE) -> 0 | CA19: =VLOOKUP($BU19,weather4!$T:AE,6,FALSE) -> 0 | CB19: =VLOOKUP($BU19,weather4!$T:AF,7,FALSE) -> W 8 mph | CC19: =VLOOKUP($BU19,weather4!$T:AG,8,FALSE) -> 72° | CD19: =IFERROR(IF($A19="",0,VLOOKUP($CO19,PVLHB2014!$AX:BZ,6,FALSE)),0) -> 0.331 | CE19: =IFERROR(IF($A19="",0,VLOOKUP($CO19,PVRHB2014!$AW:CA,6,FALSE)),0) -> 0.292 | CF19: =INDEX(team!A:A,(MATCH('Pitcher temp'!M19,team!B:B,0))) -> Oak | CG19: =IFERROR(IF($A19="",0,VLOOKUP($B19,PVLHB!$B:BJ,44,FALSE)),0) -> 0.02030456853 | CH19: =IFERROR(IF($A19="",0,VLOOKUP($B19,PVRHB!$B:BJ,44,FALSE)),0) -> 0.03396226415 | CI19: =IFERROR(IF($A19="",0,VLOOKUP($CO19,PVLHB2014!$AX:CE,9,FALSE)),0) -> 4.06 | CJ19: =IFERROR(IF($A19="",0,VLOOKUP($CO19,PVRHB2014!$AW:CF,9,FALSE)),0) -> 3.05 | CK19: =IFERROR(IF($A19="",0,VLOOKUP($CO19,FG!$N:CG,10,FALSE)),0) -> 5.07 | CL19: =IFERROR(IF($A19="",0,VLOOKUP($CO19,FG!$AP:CH,10,FALSE)),0) -> 3.41 | CM19: =IFERROR(IF($A19="",0,VLOOKUP($CO19,FG!$A:CI,8,FALSE)),0) -> 4.08 | CN19: =IFERROR(IF($A19="",0,VLOOKUP($CO19,FG!$A:CJ,10,FALSE)),0) -> 4.22 | CO19: =IF($B19="","",VLOOKUP($B19,names!$J:AB,7,FALSE)) -> Tim Hudson | CP19: =IF($B19="","",VLOOKUP($B19,names!$J:AB,8,FALSE)) -> Tim Hudson | CQ19: 753 | CR19: 525 | CS19: 806 | CT19: 561
A20: =IF(OR('FD pit'!$C22="",'FD pit'!$C22="Name"),"",'FD pit'!$C22) -> Heaney, Andrew | B20: =IF(A20="","",VLOOKUP(A20,names!F:G,2,FALSE)) -> Andrew Heaney | C20: =IF($A20="","",VLOOKUP($A20,'FD pit'!$C:P,4,FALSE)) -> Ana | D20: =IF($A20="",0,VLOOKUP($A20,'FD pit'!$C:AP,5,FALSE)) -> 7000 | E20: =IF($A20="",0,VLOOKUP($A20,'FD pit'!$C:AQ,MATCH("/GP",'FD pit'!$C$4:$N$4,0),FALSE)) -> 9.8 | F20: =IF($A20="",0,VLOOKUP($A20,'FD pit'!$C:AR,MATCH("/GP",'FD pit'!$C$4:$N$4,0)+2,FALSE)) -> 9.5 | G20: =IF($A20="",0,VLOOKUP($A20,'FD pit'!$C:AS,MATCH("/GP",'FD pit'!$C$4:$N$4,0)+3,FALSE)) -> 10 | H20: =IFERROR(VLOOKUP($A20,'DK pit'!$C:R,5,FALSE),0) -> 7500 | I20: =IFERROR(VLOOKUP($A20,'DK pit'!$C:S,MATCH("/GP",'DK pit'!$C$4:$N$4,0),FALSE),0) -> 15.2 | J20: =IFERROR(VLOOKUP($A20,'DK pit'!$C:T,MATCH("/GP",'FD pit'!$C$4:$N$4,0)+2,FALSE),0) -> 16.5 | K20: =IFERROR(VLOOKUP($A20,'DK pit'!$C:U,MATCH("/GP",'DK pit'!$C$4:$N$4,0)+3,FALSE),0) -> 19.1 | L20: =IFERROR(VLOOKUP(C20,team!A:B,2,FALSE),"") -> LAA | M20: =IFERROR(VLOOKUP(L20,Games!A:B,2,FALSE),"") -> SEA | N20: =IFERROR(VLOOKUP($L20,Games!$A:C,3,FALSE),"") -> Home | O20: =IF(A20="",0,IFERROR(VALUE(IFERROR(VLOOKUP($L20,Games!$A:F,4,FALSE),"")),110)) -> 102 | P20: =IFERROR(VALUE(LEFT(VLOOKUP($L20,Games!$A:E,5,FALSE),4)),"") -> 7.5 | Q20: =VLOOKUP(B20,names!J:M,4,FALSE) -> L | R20: =IFERROR(IF($A20="",0,VLOOKUP($B20,pitchers!$B:AM,12,FALSE)),"") -> 95.1 | S20: =IF($A20="",0,VLOOKUP($B20,pitchers!$B:AN,20,FALSE)) -> 3.3 | T20: =IF($A20="",0,VLOOKUP($B20,pitchers!$B:AO,38,FALSE)) -> 1.154 | U20: =IFERROR(IF($A20="",0,VLOOKUP($B20,pitchersL14!$B:AP,12,FALSE)),0) -> 11 | V20: =IFERROR(IF($A20="",0,VLOOKUP($B20,pitchersL14!$B:AQ,20,FALSE)),"---") -> 1.64 | W20: =IFERROR(IF($A20="",0,VLOOKUP($B20,pitchersL14!$B:AR,38,FALSE)),0) -> 1.091 | X20: =IFERROR(IF($A20="",0,IF($N20="home",VLOOKUP('Pitcher temp'!$CP20,'P-home'!$B:AF,7,FALSE),VLOOKUP('Pitcher temp'!$CP20,'P-road'!$B:AF,7,FALSE))),"") -> 197 | Y20: =IFERROR(IF($A20="",0,IF($N20="home",VLOOKUP('Pitcher temp'!$CP20,'P-home'!$B:AG,31,FALSE),VLOOKUP('Pitcher temp'!$CP20,'P-road'!$B:AG,31,FALSE))),"") -> 0.724 | Z20: =IF($A20="",0,INDEX('Team B L7'!$A:$A,MATCH('Pitcher temp'!$AG20,'Team B L7'!$B:$B,0),0)) -> 8 | AA20: =IF($A20="",0,INDEX('Team B L7'!$O:$O,MATCH('Pitcher temp'!$AG20,'Team B L7'!$B:$B,0),0)) -> 0.814 | AB20: =INDEX(team!C:C,MATCH('Pitcher temp'!M20,team!B:B,0),0) -> Seattle | AC20: =IF(Q20="R",INDEX(TeamBVR!A:A,MATCH('Pitcher temp'!AB20,TeamBVR!B:B,0),0),INDEX(TeamBVL!A:A,MATCH('Pitcher temp'!AB20,TeamBVR!B:B,0),0)) -> 29 | AD20: =IF($Q20="R",INDEX(TeamBVR!$O:$O,MATCH('Pitcher temp'!$AB20,TeamBVR!$B:$B,0),0),INDEX(TeamBVL!$O:$O,MATCH('Pitcher temp'!$AB20,TeamBVR!$B:$B,0),0)) -> 0.701 | AE20: =IF($A20="","",IF($N20="home",INDEX(TeamBroad!$A:$A,MATCH('Pitcher temp'!$AG20,TeamBroad!$B:$B,0),0),INDEX(TeamBhome!$A:$A,MATCH('Pitcher temp'!$AG20,TeamBhome!$B:$B,0),0))) -> 7 | AF20: =IF($A20="","",IF($N20="home",INDEX(TeamBroad!$O:$O,MATCH('Pitcher temp'!$AG20,TeamBroad!$B:$B,0),0),INDEX(TeamBroad!$O:$O,MATCH('Pitcher temp'!$AG20,TeamBroad!$B:$B,0),0))) -> 0.732 | AG20: =IF(A20="","",VLOOKUP(M20,team!B:C,2,FALSE)) -> Seattle | AH20: =IF(N20="home",VLOOKUP(L20,team!B:C,2,FALSE),VLOOKUP('Pitcher temp'!M20,team!B:C,2,FALSE)) -> LA Angels | AI20: =VLOOKUP($AH20,team!$E:G,3,FALSE) -> Angel Stadium of Anaheim (Anaheim, California) | AJ20: =VLOOKUP($AH20,team!$E:H,2,FALSE) -> 26 | AK20: =VLOOKUP($AH20,team!$E:I,4,FALSE) -> 0.919 | AL20: =VLOOKUP($AH20,team!$J:P,2,FALSE) -> 23 | AM20: =VLOOKUP($AH20,team!$J:Q,4,FALSE) -> 0.837 | AN20: =VLOOKUP(AH20,team!C:O,13,FALSE) -> Los Angeles Angels | AO20: =INDEX(weather!$F:$F,MATCH('Pitcher temp'!$AN20,weather!$B:$B,0),0) -> 88° F/ 31° C | AP20: =INDEX(weather!$F:$F,(MATCH('Pitcher temp'!$AN20,weather!$B:$B,0))+1,0) -> Clear | AQ20: 14.112 | AR20: 21.888 | AS20: 9.8 | AT20: 15.2 | AU20: =IF($V20>9,Projections!$H$4,IF('Pitcher temp'!$V20>5,Projections!$H$5,IF('Pitcher temp'!$V20<1.8,Projections!$H$6,0))) -> 0.12 | AV20: =IF($Z20<6,Projections!$H$9,IF($Z20>24,Projections!$H$10,0)) -> 0 | AW20: =IF($AC20<6,Projections!$H$13,IF($AC20>24,Projections!$H$14,0)) -> 0.08 | AX20: =IF($AE20<6,Projections!$H$17,IF($AE20>24,Projections!$H$18,0)) -> 0 | AY20: =IF($AJ20<6,Projections!$H$21,IF($AJ20>24,Projections!$H$22,0)) -> 0.12 | AZ20: =IF($P20>9.5,Projections!$H$25,IF('Pitcher temp'!$P20>8,Projections!$H$26,IF(AND('Pitcher temp'!$P20<7,'Pitcher temp'!$P20>1),Projections!$H$27,0))) -> 0 | BA20: =IF($O20<-190,Projections!$H$30,IF('Pitcher temp'!$O20<-149,Projections!$H$31,IF('Pitcher temp'!$O20>145,Projections!$H$32,0)))+(IF($BI20<7,Projections!$H$35,IF($BI20>23,Projections!$H$36,0))) -> 0.12 | BB20: =IF($V20>9,Projections!$I$4,IF('Pitcher temp'!$V20>5,Projections!$I$5,IF('Pitcher temp'!$V20<1.8,Projections!$I$6,0))) -> 0 | BC20: =IF($Z20<6,Projections!$I$9,IF($Z20>24,Projections!$I$10,0)) -> 0 | BD20: =IF($AC20<6,Projections!$I$13,IF($AC20>24,Projections!$I$14,0)) -> 0 | BE20: =IF($AE20<6,Projections!$I$17,IF($AE20>24,Projections!$I$18,0)) -> 0 | BF20: =IF($AJ20<6,Projections!$I$21,IF($AJ20>24,Projections!$I$22,0)) -> 0 | BG20: =IF($P20>9.5,Projections!$I$25,IF('Pitcher temp'!$P20>8,Projections!$I$26,IF(AND('Pitcher temp'!$P20<7,'Pitcher temp'!$P20>1),Projections!$I$27,0))) -> 0 | BH20: =IF($O20<-190,Projections!$I$30,IF('Pitcher temp'!$O20<-149,Projections!$I$31,IF('Pitcher temp'!$O20>145,Projections!$I$32,0)))+(IF($BI20<7,Projections!$I$35,IF($BI20>23,Projections!$I$36,0))) -> 0 | BI20: =IF(A20="",0,INDEX(teamk!A:A,MATCH('Pitcher temp'!AB20,teamk!B:B,0),0)) -> 4 | BJ20: =IF($A20="",0,VLOOKUP($B20,pitchers!$B:CE,35,FALSE)) -> 0.67 | BK20: =IF($A20="",0,VLOOKUP($B20,pitchers!$B:CF,40,FALSE)) -> 6.8 | BL20: =IFERROR(IF($A20="",0,VLOOKUP($CO20,FG!$N:BH,6,FALSE)),0) -> 0.258 | BM20: =IFERROR(IF($A20="",0,VLOOKUP($CO20,FG!$AP:BI,6,FALSE)),0) -> 0.31 | BN20: =VLOOKUP(B20,'batters-temp'!V:CG,64,FALSE) -> 21:05:00 | BO20: =IFERROR(IF($A20="",0,VLOOKUP($CP20,PVLHB!$B:AQ,42,FALSE)),0) -> 0.3333333333 | BP20: =IFERROR(IF($A20="",0,VLOOKUP($CP20,PVRHB!$B:AR,42,FALSE)),0) -> 0.2676056338 | BQ20: =IFERROR(IF($A20="",0,VLOOKUP($B20,PVLHB!$B:AS,43,FALSE)),0) -> 0.2596153846 | BR20: =IFERROR(IF($A20="",0,VLOOKUP($B20,PVRHB!$B:AT,43,FALSE)),0) -> 0.1557093426 | BS20: =IFERROR(IF($A20="",0,IF($N20="home",VLOOKUP('Pitcher temp'!$CP20,'P-home'!$B:BZ,32,FALSE),VLOOKUP('Pitcher temp'!$CP20,'P-road'!$B:BZ,32,FALSE))),"") -> 0.2941176471 | BT20: =IFERROR(IF($A20="",0,IF($N20="home",VLOOKUP('Pitcher temp'!$CP20,'P-home'!$B:CA,33,FALSE),VLOOKUP('Pitcher temp'!$CP20,'P-road'!$B:CA,33,FALSE))),"") -> 0.1979695431 | BU20: =IF(N20="Home",VLOOKUP(M20,team!B:D,3,FALSE),VLOOKUP('Pitcher temp'!BV20,team!B:D,3,FALSE)) -> Seattle Mariners | BV20: =VLOOKUP(C20,team!A:B,2,FALSE) -> LAA | BW20: =IF(A20="",0,VLOOKUP($BU20,weather4!$T:AA,2,FALSE)) -> 0.38 | BX20: =VLOOKUP($BU20,weather4!$T:AB,3,FALSE) -> Clear | BY20: =IF(A20="",0,VLOOKUP($BU20,weather4!$T:AC,4,FALSE)) -> 0 | BZ20: =VLOOKUP($BU20,weather4!$T:AD,5,FALSE) -> 0 | CA20: =VLOOKUP($BU20,weather4!$T:AE,6,FALSE) -> 0 | CB20: =VLOOKUP($BU20,weather4!$T:AF,7,FALSE) -> WSW 9 mph | CC20: =VLOOKUP($BU20,weather4!$T:AG,8,FALSE) -> 90° | CD20: =IFERROR(IF($A20="",0,VLOOKUP($CO20,PVLHB2014!$AX:BZ,6,FALSE)),0) -> 0.273 | CE20: =IFERROR(IF($A20="",0,VLOOKUP($CO20,PVRHB2014!$AW:CA,6,FALSE)),0) -> 0.411 | CF20: =INDEX(team!A:A,(MATCH('Pitcher temp'!M20,team!B:B,0))) -> Sea | CG20: =IFERROR(IF($A20="",0,VLOOKUP($B20,PVLHB!$B:BJ,44,FALSE)),0) -> 0.01 | CH20: =IFERROR(IF($A20="",0,VLOOKUP($B20,PVRHB!$B:BJ,44,FALSE)),0) -> 0.02671755725 | CI20: =IFERROR(IF($A20="",0,VLOOKUP($CO20,PVLHB2014!$AX:CE,9,FALSE)),0) -> 3.66 | CJ20: =IFERROR(IF($A20="",0,VLOOKUP($CO20,PVRHB2014!$AW:CF,9,FALSE)),0) -> 4.43 | CK20: =IFERROR(IF($A20="",0,VLOOKUP($CO20,FG!$N:CG,10,FALSE)),0) -> 2.51 | CL20: =IFERROR(IF($A20="",0,VLOOKUP($CO20,FG!$AP:CH,10,FALSE)),0) -> 5.06 | CM20: =IFERROR(IF($A20="",0,VLOOKUP($CO20,FG!$A:CI,8,FALSE)),0) -> 4.34 | CN20: =IFERROR(IF($A20="",0,VLOOKUP($CO20,FG!$A:CJ,10,FALSE)),0) -> 4.19 | CO20: =IF($B20="","",VLOOKUP($B20,names!$J:AB,7,FALSE)) -> Andrew Heaney | CP20: =IF($B20="","",VLOOKUP($B20,names!$J:AB,8,FALSE)) -> Andrew Heaney | CQ20: 496 | CR20: 343 | CS20: 714 | CT20: 493
A21: =IF(OR('FD pit'!$C23="",'FD pit'!$C23="Name"),"",'FD pit'!$C23) -> Kendrick, Kyle | B21: =IF(A21="","",VLOOKUP(A21,names!F:G,2,FALSE)) -> Kyle Kendrick | C21: =IF($A21="","",VLOOKUP($A21,'FD pit'!$C:P,4,FALSE)) -> Col | D21: =IF($A21="",0,VLOOKUP($A21,'FD pit'!$C:AP,5,FALSE)) -> 4800 | E21: =IF($A21="",0,VLOOKUP($A21,'FD pit'!$C:AQ,MATCH("/GP",'FD pit'!$C$4:$N$4,0),FALSE)) -> 5.4 | F21: =IF($A21="",0,VLOOKUP($A21,'FD pit'!$C:AR,MATCH("/GP",'FD pit'!$C$4:$N$4,0)+2,FALSE)) -> 6 | G21: =IF($A21="",0,VLOOKUP($A21,'FD pit'!$C:AS,MATCH("/GP",'FD pit'!$C$4:$N$4,0)+3,FALSE)) -> 1 | H21: =IFERROR(VLOOKUP($A21,'DK pit'!$C:R,5,FALSE),0) -> 4200 | I21: =IFERROR(VLOOKUP($A21,'DK pit'!$C:S,MATCH("/GP",'DK pit'!$C$4:$N$4,0),FALSE),0) -> 6.1 | J21: =IFERROR(VLOOKUP($A21,'DK pit'!$C:T,MATCH("/GP",'FD pit'!$C$4:$N$4,0)+2,FALSE),0) -> 7.5 | K21: =IFERROR(VLOOKUP($A21,'DK pit'!$C:U,MATCH("/GP",'DK pit'!$C$4:$N$4,0)+3,FALSE),0) -> -1.2 | L21: =IFERROR(VLOOKUP(C21,team!A:B,2,FALSE),"") -> COL | M21: =IFERROR(VLOOKUP(L21,Games!A:B,2,FALSE),"") -> LAD | N21: =IFERROR(VLOOKUP($L21,Games!$A:C,3,FALSE),"") -> Home | O21: =IF(A21="",0,IFERROR(VALUE(IFERROR(VLOOKUP($L21,Games!$A:F,4,FALSE),"")),110)) -> 156 | P21: =IFERROR(VALUE(LEFT(VLOOKUP($L21,Games!$A:E,5,FALSE),4)),"") -> 11.5 | Q21: =VLOOKUP(B21,names!J:M,4,FALSE) -> R | R21: =IFERROR(IF($A21="",0,VLOOKUP($B21,pitchers!$B:AM,12,FALSE)),"") -> 131.1 | S21: =IF($A21="",0,VLOOKUP($B21,pitchers!$B:AN,20,FALSE)) -> 6.37 | T21: =IF($A21="",0,VLOOKUP($B21,pitchers!$B:AO,38,FALSE)) -> 1.53 | U21: =IFERROR(IF($A21="",0,VLOOKUP($B21,pitchersL14!$B:AP,12,FALSE)),0) -> 9 | V21: =IFERROR(IF($A21="",0,VLOOKUP($B21,pitchersL14!$B:AQ,20,FALSE)),"---") -> 8 | W21: =IFERROR(IF($A21="",0,VLOOKUP($B21,pitchersL14!$B:AR,38,FALSE)),0) -> 1.333 | X21: =IFERROR(IF($A21="",0,IF($N21="home",VLOOKUP('Pitcher temp'!$CP21,'P-home'!$B:AF,7,FALSE),VLOOKUP('Pitcher temp'!$CP21,'P-road'!$B:AF,7,FALSE))),"") -> 243 | Y21: =IFERROR(IF($A21="",0,IF($N21="home",VLOOKUP('Pitcher temp'!$CP21,'P-home'!$B:AG,31,FALSE),VLOOKUP('Pitcher temp'!$CP21,'P-road'!$B:AG,31,FALSE))),"") -> 0 | Z21: =IF($A21="",0,INDEX('Team B L7'!$A:$A,MATCH('Pitcher temp'!$AG21,'Team B L7'!$B:$B,0),0)) -> 23 | AA21: =IF($A21="",0,INDEX('Team B L7'!$O:$O,MATCH('Pitcher temp'!$AG21,'Team B L7'!$B:$B,0),0)) -> 0.662 | AB21: =INDEX(team!C:C,MATCH('Pitcher temp'!M21,team!B:B,0),0) -> LA Dodgers | AC21: =IF(Q21="R",INDEX(TeamBVR!A:A,MATCH('Pitcher temp'!AB21,TeamBVR!B:B,0),0),INDEX(TeamBVL!A:A,MATCH('Pitcher temp'!AB21,TeamBVR!B:B,0),0)) -> 22 | AD21: =IF($Q21="R",INDEX(TeamBVR!$O:$O,MATCH('Pitcher temp'!$AB21,TeamBVR!$B:$B,0),0),INDEX(TeamBVL!$O:$O,MATCH('Pitcher temp'!$AB21,TeamBVR!$B:$B,0),0)) -> 0.74 | AE21: =IF($A21="","",IF($N21="home",INDEX(TeamBroad!$A:$A,MATCH('Pitcher temp'!$AG21,TeamBroad!$B:$B,0),0),INDEX(TeamBhome!$A:$A,MATCH('Pitcher temp'!$AG21,TeamBhome!$B:$B,0),0))) -> 21 | AF21: =IF($A21="","",IF($N21="home",INDEX(TeamBroad!$O:$O,MATCH('Pitcher temp'!$AG21,TeamBroad!$B:$B,0),0),INDEX(TeamBroad!$O:$O,MATCH('Pitcher temp'!$AG21,TeamBroad!$B:$B,0),0))) -> 0.737 | AG21: =IF(A21="","",VLOOKUP(M21,team!B:C,2,FALSE)) -> LA Dodgers | AH21: =IF(N21="home",VLOOKUP(L21,team!B:C,2,FALSE),VLOOKUP('Pitcher temp'!M21,team!B:C,2,FALSE)) -> Colorado | AI21: =VLOOKUP($AH21,team!$E:G,3,FALSE) -> Coors Field (Denver, Colorado) | AJ21: =VLOOKUP($AH21,team!$E:H,2,FALSE) -> 1 | AK21: =VLOOKUP($AH21,team!$E:I,4,FALSE) -> 1.501 | AL21: =VLOOKUP($AH21,team!$J:P,2,FALSE) -> 2 | AM21: =VLOOKUP($AH21,team!$J:Q,4,FALSE) -> 1.393 | AN21: =VLOOKUP(AH21,team!C:O,13,FALSE) -> Colorado Rockies | AO21: =INDEX(weather!$F:$F,MATCH('Pitcher temp'!$AN21,weather!$B:$B,0),0) -> 80° F/ 27° C | AP21: =INDEX(weather!$F:$F,(MATCH('Pitcher temp'!$AN21,weather!$B:$B,0))+1,0) -> Clear | AQ21: 3.51 | AR21: 3.965 | AS21: 5.4 | AT21: 6.1 | AU21: =IF($V21>9,Projections!$H$4,IF('Pitcher temp'!$V21>5,Projections!$H$5,IF('Pitcher temp'!$V21<1.8,Projections!$H$6,0))) -> -0.05 | AV21: =IF($Z21<6,Projections!$H$9,IF($Z21>24,Projections!$H$10,0)) -> 0 | AW21: =IF($AC21<6,Projections!$H$13,IF($AC21>24,Projections!$H$14,0)) -> 0 | AX21: =IF($AE21<6,Projections!$H$17,IF($AE21>24,Projections!$H$18,0)) -> 0 | AY21: =IF($AJ21<6,Projections!$H$21,IF($AJ21>24,Projections!$H$22,0)) -> -0.1 | AZ21: =IF($P21>9.5,Projections!$H$25,IF('Pitcher temp'!$P21>8,Projections!$H$26,IF(AND('Pitcher temp'!$P21<7,'Pitcher temp'!$P21>1),Projections!$H$27,0))) -> -0.15 | BA21: =IF($O21<-190,Projections!$H$30,IF('Pitcher temp'!$O21<-149,Projections!$H$31,IF('Pitcher temp'!$O21>145,Projections!$H$32,0)))+(IF($BI21<7,Projections!$H$35,IF($BI21>23,Projections!$H$36,0))) -> -0.05 | BB21: =IF($V21>9,Projections!$I$4,IF('Pitcher temp'!$V21>5,Projections!$I$5,IF('Pitcher temp'!$V21<1.8,Projections!$I$6,0))) -> 0 | BC21: =IF($Z21<6,Projections!$I$9,IF($Z21>24,Projections!$I$10,0)) -> 0 | BD21: =IF($AC21<6,Projections!$I$13,IF($AC21>24,Projections!$I$14,0)) -> 0 | BE21: =IF($AE21<6,Projections!$I$17,IF($AE21>24,Projections!$I$18,0)) -> 0 | BF21: =IF($AJ21<6,Projections!$I$21,IF($AJ21>24,Projections!$I$22,0)) -> 0 | BG21: =IF($P21>9.5,Projections!$I$25,IF('Pitcher temp'!$P21>8,Projections!$I$26,IF(AND('Pitcher temp'!$P21<7,'Pitcher temp'!$P21>1),Projections!$I$27,0))) -> 0 | BH21: =IF($O21<-190,Projections!$I$30,IF('Pitcher temp'!$O21<-149,Projections!$I$31,IF('Pitcher temp'!$O21>145,Projections!$I$32,0)))+(IF($BI21<7,Projections!$I$35,IF($BI21>23,Projections!$I$36,0))) -> 0 | BI21: =IF(A21="",0,INDEX(teamk!A:A,MATCH('Pitcher temp'!AB21,teamk!B:B,0),0)) -> 16 | BJ21: =IF($A21="",0,VLOOKUP($B21,pitchers!$B:CE,35,FALSE)) -> 0.66 | BK21: =IF($A21="",0,VLOOKUP($B21,pitchers!$B:CF,40,FALSE)) -> 4.9 | BL21: =IFERROR(IF($A21="",0,VLOOKUP($CO21,FG!$N:BH,6,FALSE)),0) -> 0.411 | BM21: =IFERROR(IF($A21="",0,VLOOKUP($CO21,FG!$AP:BI,6,FALSE)),0) -> 0.366 | BN21: =VLOOKUP(B21,'batters-temp'!V:CG,64,FALSE) -> 20:10:00 | BO21: =IFERROR(IF($A21="",0,VLOOKUP($CP21,PVLHB!$B:AQ,42,FALSE)),0) -> 0.3333333333 | BP21: =IFERROR(IF($A21="",0,VLOOKUP($CP21,PVRHB!$B:AR,42,FALSE)),0) -> 0.2742616034 | BQ21: =IFERROR(IF($A21="",0,VLOOKUP($B21,PVLHB!$B:AS,43,FALSE)),0) -> 0.1338289963 | BR21: =IFERROR(IF($A21="",0,VLOOKUP($B21,PVRHB!$B:AT,43,FALSE)),0) -> 0.1146496815 | BS21: =IFERROR(IF($A21="",0,IF($N21="home",VLOOKUP('Pitcher temp'!$CP21,'P-home'!$B:BZ,32,FALSE),VLOOKUP('Pitcher temp'!$CP21,'P-road'!$B:BZ,32,FALSE))),"") -> 0 | BT21: =IFERROR(IF($A21="",0,IF($N21="home",VLOOKUP('Pitcher temp'!$CP21,'P-home'!$B:CA,33,FALSE),VLOOKUP('Pitcher temp'!$CP21,'P-road'!$B:CA,33,FALSE))),"") -> 0 | BU21: =IF(N21="Home",VLOOKUP(M21,team!B:D,3,FALSE),VLOOKUP('Pitcher temp'!BV21,team!B:D,3,FALSE)) -> Los Angeles Dodgers | BV21: =VLOOKUP(C21,team!A:B,2,FALSE) -> COL | BW21: =IF(A21="",0,VLOOKUP($BU21,weather4!$T:AA,2,FALSE)) -> 0.14 | BX21: =VLOOKUP($BU21,weather4!$T:AB,3,FALSE) -> Clear | BY21: =IF(A21="",0,VLOOKUP($BU21,weather4!$T:AC,4,FALSE)) -> 0 | BZ21: =VLOOKUP($BU21,weather4!$T:AD,5,FALSE) -> 0 | CA21: =VLOOKUP($BU21,weather4!$T:AE,6,FALSE) -> 0 | CB21: =VLOOKUP($BU21,weather4!$T:AF,7,FALSE) -> ENE 8 mph | CC21: =VLOOKUP($BU21,weather4!$T:AG,8,FALSE) -> 84° | CD21: =IFERROR(IF($A21="",0,VLOOKUP($CO21,PVLHB2014!$AX:BZ,6,FALSE)),0) -> 0.36 | CE21: =IFERROR(IF($A21="",0,VLOOKUP($CO21,PVRHB2014!$AW:CA,6,FALSE)),0) -> 0.321 | CF21: =INDEX(team!A:A,(MATCH('Pitcher temp'!M21,team!B:B,0))) -> Los | CG21: =IFERROR(IF($A21="",0,VLOOKUP($B21,PVLHB!$B:BJ,44,FALSE)),0) -> 0.05882352941 | CH21: =IFERROR(IF($A21="",0,VLOOKUP($B21,PVRHB!$B:BJ,44,FALSE)),0) -> 0.06206896552 | CI21: =IFERROR(IF($A21="",0,VLOOKUP($CO21,PVLHB2014!$AX:CE,9,FALSE)),0) -> 4.28 | CJ21: =IFERROR(IF($A21="",0,VLOOKUP($CO21,PVRHB2014!$AW:CF,9,FALSE)),0) -> 4.4 | CK21: =IFERROR(IF($A21="",0,VLOOKUP($CO21,FG!$N:CG,10,FALSE)),0) -> 5.56 | CL21: =IFERROR(IF($A21="",0,VLOOKUP($CO21,FG!$AP:CH,10,FALSE)),0) -> 4.72 | CM21: =IFERROR(IF($A21="",0,VLOOKUP($CO21,FG!$A:CI,8,FALSE)),0) -> 5.09 | CN21: =IFERROR(IF($A21="",0,VLOOKUP($CO21,FG!$A:CJ,10,FALSE)),0) -> 5.1 | CO21: =IF($B21="","",VLOOKUP($B21,names!$J:AB,7,FALSE)) -> Kyle Kendrick | CP21: =IF($B21="","",VLOOKUP($B21,names!$J:AB,8,FALSE)) -> Kyle Kendrick | CQ21: 1368 | CR21: 1059 | CS21: 889 | CT21: 689
A22: =IF(OR('FD pit'!$C24="",'FD pit'!$C24="Name"),"",'FD pit'!$C24) -> Nola, Aaron | B22: =IF(A22="","",VLOOKUP(A22,names!F:G,2,FALSE)) -> Aaron Nola | C22: =IF($A22="","",VLOOKUP($A22,'FD pit'!$C:P,4,FALSE)) -> Phi | D22: =IF($A22="",0,VLOOKUP($A22,'FD pit'!$C:AP,5,FALSE)) -> 6500 | E22: =IF($A22="",0,VLOOKUP($A22,'FD pit'!$C:AQ,MATCH("/GP",'FD pit'!$C$4:$N$4,0),FALSE)) -> 10.7 | F22: =IF($A22="",0,VLOOKUP($A22,'FD pit'!$C:AR,MATCH("/GP",'FD pit'!$C$4:$N$4,0)+2,FALSE)) -> 8.5 | G22: =IF($A22="",0,VLOOKUP($A22,'FD pit'!$C:AS,MATCH("/GP",'FD pit'!$C$4:$N$4,0)+3,FALSE)) -> 10 | H22: =IFERROR(VLOOKUP($A22,'DK pit'!$C:R,5,FALSE),0) -> 8400 | I22: =IFERROR(VLOOKUP($A22,'DK pit'!$C:S,MATCH("/GP",'DK pit'!$C$4:$N$4,0),FALSE),0) -> 16.5 | J22: =IFERROR(VLOOKUP($A22,'DK pit'!$C:T,MATCH("/GP",'FD pit'!$C$4:$N$4,0)+2,FALSE),0) -> 13.1 | K22: =IFERROR(VLOOKUP($A22,'DK pit'!$C:U,MATCH("/GP",'DK pit'!$C$4:$N$4,0)+3,FALSE),0) -> 16.9 | L22: =IFERROR(VLOOKUP(C22,team!A:B,2,FALSE),"") -> PHI | M22: =IFERROR(VLOOKUP(L22,Games!A:B,2,FALSE),"") -> WSH | N22: =IFERROR(VLOOKUP($L22,Games!$A:C,3,FALSE),"") -> Away | O22: =IF(A22="",0,IFERROR(VALUE(IFERROR(VLOOKUP($L22,Games!$A:F,4,FALSE),"")),110)) -> 250 | P22: =IFERROR(VALUE(LEFT(VLOOKUP($L22,Games!$A:E,5,FALSE),4)),"") -> 7 | Q22: =VLOOKUP(B22,names!J:M,4,FALSE) -> R | R22: =IFERROR(IF($A22="",0,VLOOKUP($B22,pitchers!$B:AM,12,FALSE)),"") -> 72.2 | S22: =IF($A22="",0,VLOOKUP($B22,pitchers!$B:AN,20,FALSE)) -> 3.84 | T22: =IF($A22="",0,VLOOKUP($B22,pitchers!$B:AO,38,FALSE)) -> 1.197 | U22: =IFERROR(IF($A22="",0,VLOOKUP($B22,pitchersL14!$B:AP,12,FALSE)),0) -> 12 | V22: =IFERROR(IF($A22="",0,VLOOKUP($B22,pitchersL14!$B:AQ,20,FALSE)),"---") -> 5.25 | W22: =IFERROR(IF($A22="",0,VLOOKUP($B22,pitchersL14!$B:AR,38,FALSE)),0) -> 1.5 | X22: =IFERROR(IF($A22="",0,IF($N22="home",VLOOKUP('Pitcher temp'!$CP22,'P-home'!$B:AF,7,FALSE),VLOOKUP('Pitcher temp'!$CP22,'P-road'!$B:AF,7,FALSE))),"") -> 141 | Y22: =IFERROR(IF($A22="",0,IF($N22="home",VLOOKUP('Pitcher temp'!$CP22,'P-home'!$B:AG,31,FALSE),VLOOKUP('Pitcher temp'!$CP22,'P-road'!$B:AG,31,FALSE))),"") -> 0.722 | Z22: =IF($A22="",0,INDEX('Team B L7'!$A:$A,MATCH('Pitcher temp'!$AG22,'Team B L7'!$B:$B,0),0)) -> 14 | AA22: =IF($A22="",0,INDEX('Team B L7'!$O:$O,MATCH('Pitcher temp'!$AG22,'Team B L7'!$B:$B,0),0)) -> 0.707 | AB22: =INDEX(team!C:C,MATCH('Pitcher temp'!M22,team!B:B,0),0) -> Washington | AC22: =IF(Q22="R",INDEX(TeamBVR!A:A,MATCH('Pitcher temp'!AB22,TeamBVR!B:B,0),0),INDEX(TeamBVL!A:A,MATCH('Pitcher temp'!AB22,TeamBVR!B:B,0),0)) -> 7 | AD22: =IF($Q22="R",INDEX(TeamBVR!$O:$O,MATCH('Pitcher temp'!$AB22,TeamBVR!$B:$B,0),0),INDEX(TeamBVL!$O:$O,MATCH('Pitcher temp'!$AB22,TeamBVR!$B:$B,0),0)) -> 0.725 | AE22: =IF($A22="","",IF($N22="home",INDEX(TeamBroad!$A:$A,MATCH('Pitcher temp'!$AG22,TeamBroad!$B:$B,0),0),INDEX(TeamBhome!$A:$A,MATCH('Pitcher temp'!$AG22,TeamBhome!$B:$B,0),0))) -> 10 | AF22: =IF($A22="","",IF($N22="home",INDEX(TeamBroad!$O:$O,MATCH('Pitcher temp'!$AG22,TeamBroad!$B:$B,0),0),INDEX(TeamBroad!$O:$O,MATCH('Pitcher temp'!$AG22,TeamBroad!$B:$B,0),0))) -> 0.72 | AG22: =IF(A22="","",VLOOKUP(M22,team!B:C,2,FALSE)) -> Washington | AH22: =IF(N22="home",VLOOKUP(L22,team!B:C,2,FALSE),VLOOKUP('Pitcher temp'!M22,team!B:C,2,FALSE)) -> Washington | AI22: =VLOOKUP($AH22,team!$E:G,3,FALSE) -> Nationals Park (Washington, D.C.) | AJ22: =VLOOKUP($AH22,team!$E:H,2,FALSE) -> 6 | AK22: =VLOOKUP($AH22,team!$E:I,4,FALSE) -> 1.068 | AL22: =VLOOKUP($AH22,team!$J:P,2,FALSE) -> 29 | AM22: =VLOOKUP($AH22,team!$J:Q,4,FALSE) -> 0.701 | AN22: =VLOOKUP(AH22,team!C:O,13,FALSE) -> Washington Nationals | AO22: =INDEX(weather!$F:$F,MATCH('Pitcher temp'!$AN22,weather!$B:$B,0),0) -> 71° F/ 22° C | AP22: =INDEX(weather!$F:$F,(MATCH('Pitcher temp'!$AN22,weather!$B:$B,0))+1,0) -> Overcast | AQ22: 10.914 | AR22: 16.83 | AS22: 10.7 | AT22: 16.5 | AU22: =IF($V22>9,Projections!$H$4,IF('Pitcher temp'!$V22>5,Projections!$H$5,IF('Pitcher temp'!$V22<1.8,Projections!$H$6,0))) -> -0.05 | AV22: =IF($Z22<6,Projections!$H$9,IF($Z22>24,Projections!$H$10,0)) -> 0 | AW22: =IF($AC22<6,Projections!$H$13,IF($AC22>24,Projections!$H$14,0)) -> 0 | AX22: =IF($AE22<6,Projections!$H$17,IF($AE22>24,Projections!$H$18,0)) -> 0 | AY22: =IF($AJ22<6,Projections!$H$21,IF($AJ22>24,Projections!$H$22,0)) -> 0 | AZ22: =IF($P22>9.5,Projections!$H$25,IF('Pitcher temp'!$P22>8,Projections!$H$26,IF(AND('Pitcher temp'!$P22<7,'Pitcher temp'!$P22>1),Projections!$H$27,0))) -> 0 | BA22: =IF($O22<-190,Projections!$H$30,IF('Pitcher temp'!$O22<-149,Projections!$H$31,IF('Pitcher temp'!$O22>145,Projections!$H$32,0)))+(IF($BI22<7,Projections!$H$35,IF($BI22>23,Projections!$H$36,0))) -> 0.07 | BB22: =IF($V22>9,Projections!$I$4,IF('Pitcher temp'!$V22>5,Projections!$I$5,IF('Pitcher temp'!$V22<1.8,Projections!$I$6,0))) -> 0 | BC22: =IF($Z22<6,Projections!$I$9,IF($Z22>24,Projections!$I$10,0)) -> 0 | BD22: =IF($AC22<6,Projections!$I$13,IF($AC22>24,Projections!$I$14,0)) -> 0 | BE22: =IF($AE22<6,Projections!$I$17,IF($AE22>24,Projections!$I$18,0)) -> 0 | BF22: =IF($AJ22<6,Projections!$I$21,IF($AJ22>24,Projections!$I$22,0)) -> 0 | BG22: =IF($P22>9.5,Projections!$I$25,IF('Pitcher temp'!$P22>8,Projections!$I$26,IF(AND('Pitcher temp'!$P22<7,'Pitcher temp'!$P22>1),Projections!$I$27,0))) -> 0 | BH22: =IF($O22<-190,Projections!$I$30,IF('Pitcher temp'!$O22<-149,Projections!$I$31,IF('Pitcher temp'!$O22>145,Projections!$I$32,0)))+(IF($BI22<7,Projections!$I$35,IF($BI22>23,Projections!$I$36,0))) -> 0 | BI22: =IF(A22="",0,INDEX(teamk!A:A,MATCH('Pitcher temp'!AB22,teamk!B:B,0),0)) -> 5 | BJ22: =IF($A22="",0,VLOOKUP($B22,pitchers!$B:CE,35,FALSE)) -> 0.92 | BK22: =IF($A22="",0,VLOOKUP($B22,pitchers!$B:CF,40,FALSE)) -> 7.8 | BL22: =IFERROR(IF($A22="",0,VLOOKUP($CO22,FG!$N:BH,6,FALSE)),0) -> 0.348 | BM22: =IFERROR(IF($A22="",0,VLOOKUP($CO22,FG!$AP:BI,6,FALSE)),0) -> 0.291 | BN22: =VLOOKUP(B22,'batters-temp'!V:CG,64,FALSE) -> 16:05:00 | BO22: =IFERROR(IF($A22="",0,VLOOKUP($CP22,PVLHB!$B:AQ,42,FALSE)),0) -> 0.3152173913 | BP22: =IFERROR(IF($A22="",0,VLOOKUP($CP22,PVRHB!$B:AR,42,FALSE)),0) -> 0.2545454545 | BQ22: =IFERROR(IF($A22="",0,VLOOKUP($B22,PVLHB!$B:AS,43,FALSE)),0) -> 0.1176470588 | BR22: =IFERROR(IF($A22="",0,VLOOKUP($B22,PVRHB!$B:AT,43,FALSE)),0) -> 0.2737430168 | BS22: =IFERROR(IF($A22="",0,IF($N22="home",VLOOKUP('Pitcher temp'!$CP22,'P-home'!$B:BZ,32,FALSE),VLOOKUP('Pitcher temp'!$CP22,'P-road'!$B:BZ,32,FALSE))),"") -> 0.3 | BT22: =IFERROR(IF($A22="",0,IF($N22="home",VLOOKUP('Pitcher temp'!$CP22,'P-home'!$B:CA,33,FALSE),VLOOKUP('Pitcher temp'!$CP22,'P-road'!$B:CA,33,FALSE))),"") -> 0.1985815603 | BU22: =IF(N22="Home",VLOOKUP(M22,team!B:D,3,FALSE),VLOOKUP('Pitcher temp'!BV22,team!B:D,3,FALSE)) -> Philadelphia Phillies | BV22: =VLOOKUP(C22,team!A:B,2,FALSE) -> PHI | BW22: =IF(A22="",0,VLOOKUP($BU22,weather4!$T:AA,2,FALSE)) -> 0.57 | BX22: =VLOOKUP($BU22,weather4!$T:AB,3,FALSE) -> Overcast | BY22: =IF(A22="",0,VLOOKUP($BU22,weather4!$T:AC,4,FALSE)) -> 0 | BZ22: =VLOOKUP($BU22,weather4!$T:AD,5,FALSE) -> 0 | CA22: =VLOOKUP($BU22,weather4!$T:AE,6,FALSE) -> 0 | CB22: =VLOOKUP($BU22,weather4!$T:AF,7,FALSE) -> ENE 15 mph | CC22: =VLOOKUP($BU22,weather4!$T:AG,8,FALSE) -> 72° | CD22: =IFERROR(IF($A22="",0,VLOOKUP($CO22,PVLHB2014!$AX:BZ,6,FALSE)),0) -> 0 | CE22: =IFERROR(IF($A22="",0,VLOOKUP($CO22,PVRHB2014!$AW:CA,6,FALSE)),0) -> 0 | CF22: =INDEX(team!A:A,(MATCH('Pitcher temp'!M22,team!B:B,0))) -> Was | CG22: =IFERROR(IF($A22="",0,VLOOKUP($B22,PVLHB!$B:BJ,44,FALSE)),0) -> 0.03636363636 | CH22: =IFERROR(IF($A22="",0,VLOOKUP($B22,PVRHB!$B:BJ,44,FALSE)),0) -> 0.04242424242 | CI22: =IFERROR(IF($A22="",0,VLOOKUP($CO22,PVLHB2014!$AX:CE,9,FALSE)),0) -> 0 | CJ22: =IFERROR(IF($A22="",0,VLOOKUP($CO22,PVRHB2014!$AW:CF,9,FALSE)),0) -> 0 | CK22: =IFERROR(IF($A22="",0,VLOOKUP($CO22,FG!$N:CG,10,FALSE)),0) -> 4.77 | CL22: =IFERROR(IF($A22="",0,VLOOKUP($CO22,FG!$AP:CH,10,FALSE)),0) -> 3.09 | CM22: =IFERROR(IF($A22="",0,VLOOKUP($CO22,FG!$A:CI,8,FALSE)),0) -> 3.74 | CN22: =IFERROR(IF($A22="",0,VLOOKUP($CO22,FG!$A:CJ,10,FALSE)),0) -> 3.7 | CO22: =IF($B22="","",VLOOKUP($B22,names!$J:AB,7,FALSE)) -> Aaron Nola | CP22: =IF($B22="","",VLOOKUP($B22,names!$J:AB,8,FALSE)) -> Aaron Nola | CQ22: 596 | CR22: 499 | CS22: 607 | CT22: 509
A23: =IF(OR('FD pit'!$C25="",'FD pit'!$C25="Name"),"",'FD pit'!$C25) -> Tomlin, Josh | B23: =IF(A23="","",VLOOKUP(A23,names!F:G,2,FALSE)) -> Josh Tomlin | C23: =IF($A23="","",VLOOKUP($A23,'FD pit'!$C:P,4,FALSE)) -> Cle | D23: =IF($A23="",0,VLOOKUP($A23,'FD pit'!$C:AP,5,FALSE)) -> 8600 | E23: =IF($A23="",0,VLOOKUP($A23,'FD pit'!$C:AQ,MATCH("/GP",'FD pit'!$C$4:$N$4,0),FALSE)) -> 14.6 | F23: =IF($A23="",0,VLOOKUP($A23,'FD pit'!$C:AR,MATCH("/GP",'FD pit'!$C$4:$N$4,0)+2,FALSE)) -> 15.3 | G23: =IF($A23="",0,VLOOKUP($A23,'FD pit'!$C:AS,MATCH("/GP",'FD pit'!$C$4:$N$4,0)+3,FALSE)) -> 17.7 | H23: =IFERROR(VLOOKUP($A23,'DK pit'!$C:R,5,FALSE),0) -> 10800 | I23: =IFERROR(VLOOKUP($A23,'DK pit'!$C:S,MATCH("/GP",'DK pit'!$C$4:$N$4,0),FALSE),0) -> 25.3 | J23: =IFERROR(VLOOKUP($A23,'DK pit'!$C:T,MATCH("/GP",'FD pit'!$C$4:$N$4,0)+2,FALSE),0) -> 27.9 | K23: =IFERROR(VLOOKUP($A23,'DK pit'!$C:U,MATCH("/GP",'DK pit'!$C$4:$N$4,0)+3,FALSE),0) -> 27.9 | L23: =IFERROR(VLOOKUP(C23,team!A:B,2,FALSE),"") -> CLE | M23: =IFERROR(VLOOKUP(L23,Games!A:B,2,FALSE),"") -> KC | N23: =IFERROR(VLOOKUP($L23,Games!$A:C,3,FALSE),"") -> Away | O23: =IF(A23="",0,IFERROR(VALUE(IFERROR(VLOOKUP($L23,Games!$A:F,4,FALSE),"")),110)) -> 120 | P23: =IFERROR(VALUE(LEFT(VLOOKUP($L23,Games!$A:E,5,FALSE),4)),"") -> 8 | Q23: =VLOOKUP(B23,names!J:M,4,FALSE) -> R | R23: =IFERROR(IF($A23="",0,VLOOKUP($B23,pitchers!$B:AM,12,FALSE)),"") -> 55.2 | S23: =IF($A23="",0,VLOOKUP($B23,pitchers!$B:AN,20,FALSE)) -> 2.43 | T23: =IF($A23="",0,VLOOKUP($B23,pitchers!$B:AO,38,FALSE)) -> 0.737 | U23: =IFERROR(IF($A23="",0,VLOOKUP($B23,pitchersL14!$B:AP,12,FALSE)),0) -> 14.2 | V23: =IFERROR(IF($A23="",0,VLOOKUP($B23,pitchersL14!$B:AQ,20,FALSE)),"---") -> 1.23 | W23: =IFERROR(IF($A23="",0,VLOOKUP($B23,pitchersL14!$B:AR,38,FALSE)),0) -> 0.75 | X23: =IFERROR(IF($A23="",0,IF($N23="home",VLOOKUP('Pitcher temp'!$CP23,'P-home'!$B:AF,7,FALSE),VLOOKUP('Pitcher temp'!$CP23,'P-road'!$B:AF,7,FALSE))),"") -> 101 | Y23: =IFERROR(IF($A23="",0,IF($N23="home",VLOOKUP('Pitcher temp'!$CP23,'P-home'!$B:AG,31,FALSE),VLOOKUP('Pitcher temp'!$CP23,'P-road'!$B:AG,31,FALSE))),"") -> 0.539 | Z23: =IF($A23="",0,INDEX('Team B L7'!$A:$A,MATCH('Pitcher temp'!$AG23,'Team B L7'!$B:$B,0),0)) -> 7 | AA23: =IF($A23="",0,INDEX('Team B L7'!$O:$O,MATCH('Pitcher temp'!$AG23,'Team B L7'!$B:$B,0),0)) -> 0.814 | AB23: =INDEX(team!C:C,MATCH('Pitcher temp'!M23,team!B:B,0),0) -> Kansas City | AC23: =IF(Q23="R",INDEX(TeamBVR!A:A,MATCH('Pitcher temp'!AB23,TeamBVR!B:B,0),0),INDEX(TeamBVL!A:A,MATCH('Pitcher temp'!AB23,TeamBVR!B:B,0),0)) -> 17 | AD23: =IF($Q23="R",INDEX(TeamBVR!$O:$O,MATCH('Pitcher temp'!$AB23,TeamBVR!$B:$B,0),0),INDEX(TeamBVL!$O:$O,MATCH('Pitcher temp'!$AB23,TeamBVR!$B:$B,0),0)) -> 0.743 | AE23: =IF($A23="","",IF($N23="home",INDEX(TeamBroad!$A:$A,MATCH('Pitcher temp'!$AG23,TeamBroad!$B:$B,0),0),INDEX(TeamBhome!$A:$A,MATCH('Pitcher temp'!$AG23,TeamBhome!$B:$B,0),0))) -> 5 | AF23: =IF($A23="","",IF($N23="home",INDEX(TeamBroad!$O:$O,MATCH('Pitcher temp'!$AG23,TeamBroad!$B:$B,0),0),INDEX(TeamBroad!$O:$O,MATCH('Pitcher temp'!$AG23,TeamBroad!$B:$B,0),0))) -> 0.714 | AG23: =IF(A23="","",VLOOKUP(M23,team!B:C,2,FALSE)) -> Kansas City | AH23: =IF(N23="home",VLOOKUP(L23,team!B:C,2,FALSE),VLOOKUP('Pitcher temp'!M23,team!B:C,2,FALSE)) -> Kansas City | AI23: =VLOOKUP($AH23,team!$E:G,3,FALSE) -> Kauffman Stadium (Kansas City, Missouri) | AJ23: =VLOOKUP($AH23,team!$E:H,2,FALSE) -> 11 | AK23: =VLOOKUP($AH23,team!$E:I,4,FALSE) -> 1.014 | AL23: =VLOOKUP($AH23,team!$J:P,2,FALSE) -> 22 | AM23: =VLOOKUP($AH23,team!$J:Q,4,FALSE) -> 0.843 | AN23: =VLOOKUP(AH23,team!C:O,13,FALSE) -> Kansas City Royals | AO23: =INDEX(weather!$F:$F,MATCH('Pitcher temp'!$AN23,weather!$B:$B,0),0) -> 75° F/ 24° C | AP23: =INDEX(weather!$F:$F,(MATCH('Pitcher temp'!$AN23,weather!$B:$B,0))+1,0) -> Clear | AQ23: 13.87 | AR23: 24.035 | AS23: 14.6 | AT23: 25.3 | AU23: =IF($V23>9,Projections!$H$4,IF('Pitcher temp'!$V23>5,Projections!$H$5,IF('Pitcher temp'!$V23<1.8,Projections!$H$6,0))) -> 0.12 | AV23: =IF($Z23<6,Projections!$H$9,IF($Z23>24,Projections!$H$10,0)) -> 0 | AW23: =IF($AC23<6,Projections!$H$13,IF($AC23>24,Projections!$H$14,0)) -> 0 | AX23: =IF($AE23<6,Projections!$H$17,IF($AE23>24,Projections!$H$18,0)) -> -0.07 | AY23: =IF($AJ23<6,Projections!$H$21,IF($AJ23>24,Projections!$H$22,0)) -> 0 | AZ23: =IF($P23>9.5,Projections!$H$25,IF('Pitcher temp'!$P23>8,Projections!$H$26,IF(AND('Pitcher temp'!$P23<7,'Pitcher temp'!$P23>1),Projections!$H$27,0))) -> 0 | BA23: =IF($O23<-190,Projections!$H$30,IF('Pitcher temp'!$O23<-149,Projections!$H$31,IF('Pitcher temp'!$O23>145,Projections!$H$32,0)))+(IF($BI23<7,Projections!$H$35,IF($BI23>23,Projections!$H$36,0))) -> -0.1 | BB23: =IF($V23>9,Projections!$I$4,IF('Pitcher temp'!$V23>5,Projections!$I$5,IF('Pitcher temp'!$V23<1.8,Projections!$I$6,0))) -> 0 | BC23: =IF($Z23<6,Projections!$I$9,IF($Z23>24,Projections!$I$10,0)) -> 0 | BD23: =IF($AC23<6,Projections!$I$13,IF($AC23>24,Projections!$I$14,0)) -> 0 | BE23: =IF($AE23<6,Projections!$I$17,IF($AE23>24,Projections!$I$18,0)) -> 0 | BF23: =IF($AJ23<6,Projections!$I$21,IF($AJ23>24,Projections!$I$22,0)) -> 0 | BG23: =IF($P23>9.5,Projections!$I$25,IF('Pitcher temp'!$P23>8,Projections!$I$26,IF(AND('Pitcher temp'!$P23<7,'Pitcher temp'!$P23>1),Projections!$I$27,0))) -> 0 | BH23: =IF($O23<-190,Projections!$I$30,IF('Pitcher temp'!$O23<-149,Projections!$I$31,IF('Pitcher temp'!$O23>145,Projections!$I$32,0)))+(IF($BI23<7,Projections!$I$35,IF($BI23>23,Projections!$I$36,0))) -> 0 | BI23: =IF(A23="",0,INDEX(teamk!A:A,MATCH('Pitcher temp'!AB23,teamk!B:B,0),0)) -> 30 | BJ23: =IF($A23="",0,VLOOKUP($B23,pitchers!$B:CE,35,FALSE)) -> 0.61 | BK23: =IF($A23="",0,VLOOKUP($B23,pitchers!$B:CF,40,FALSE)) -> 8.4 | BL23: =IFERROR(IF($A23="",0,VLOOKUP($CO23,FG!$N:BH,6,FALSE)),0) -> 0.143 | BM23: =IFERROR(IF($A23="",0,VLOOKUP($CO23,FG!$AP:BI,6,FALSE)),0) -> 0.356 | BN23: =VLOOKUP(B23,'batters-temp'!V:CG,64,FALSE) -> 19:10:00 | BO23: =IFERROR(IF($A23="",0,VLOOKUP($CP23,PVLHB!$B:AQ,42,FALSE)),0) -> 0.1216216216 | BP23: =IFERROR(IF($A23="",0,VLOOKUP($CP23,PVRHB!$B:AR,42,FALSE)),0) -> 0.2380952381 | BQ23: =IFERROR(IF($A23="",0,VLOOKUP($B23,PVLHB!$B:AS,43,FALSE)),0) -> 0.2277227723 | BR23: =IFERROR(IF($A23="",0,VLOOKUP($B23,PVRHB!$B:AT,43,FALSE)),0) -> 0.2710280374 | BS23: =IFERROR(IF($A23="",0,IF($N23="home",VLOOKUP('Pitcher temp'!$CP23,'P-home'!$B:BZ,32,FALSE),VLOOKUP('Pitcher temp'!$CP23,'P-road'!$B:BZ,32,FALSE))),"") -> 0.1388888889 | BT23: =IFERROR(IF($A23="",0,IF($N23="home",VLOOKUP('Pitcher temp'!$CP23,'P-home'!$B:CA,33,FALSE),VLOOKUP('Pitcher temp'!$CP23,'P-road'!$B:CA,33,FALSE))),"") -> 0.2277227723 | BU23: =IF(N23="Home",VLOOKUP(M23,team!B:D,3,FALSE),VLOOKUP('Pitcher temp'!BV23,team!B:D,3,FALSE)) -> Cleveland Indians | BV23: =VLOOKUP(C23,team!A:B,2,FALSE) -> CLE | BW23: =IF(A23="",0,VLOOKUP($BU23,weather4!$T:AA,2,FALSE)) -> 0.44 | BX23: =VLOOKUP($BU23,weather4!$T:AB,3,FALSE) -> Clear | BY23: =IF(A23="",0,VLOOKUP($BU23,weather4!$T:AC,4,FALSE)) -> 0 | BZ23: =VLOOKUP($BU23,weather4!$T:AD,5,FALSE) -> 0 | CA23: =VLOOKUP($BU23,weather4!$T:AE,6,FALSE) -> 0 | CB23: =VLOOKUP($BU23,weather4!$T:AF,7,FALSE) -> E 8 mph | CC23: =VLOOKUP($BU23,weather4!$T:AG,8,FALSE) -> 78° | CD23: =IFERROR(IF($A23="",0,VLOOKUP($CO23,PVLHB2014!$AX:BZ,6,FALSE)),0) -> 0.307 | CE23: =IFERROR(IF($A23="",0,VLOOKUP($CO23,PVRHB2014!$AW:CA,6,FALSE)),0) -> 0.37 | CF23: =INDEX(team!A:A,(MATCH('Pitcher temp'!M23,team!B:B,0))) -> Kan | CG23: =IFERROR(IF($A23="",0,VLOOKUP($B23,PVLHB!$B:BJ,44,FALSE)),0) -> 0.0202020202 | CH23: =IFERROR(IF($A23="",0,VLOOKUP($B23,PVRHB!$B:BJ,44,FALSE)),0) -> 0.08910891089 | CI23: =IFERROR(IF($A23="",0,VLOOKUP($CO23,PVLHB2014!$AX:CE,9,FALSE)),0) -> 3.05 | CJ23: =IFERROR(IF($A23="",0,VLOOKUP($CO23,PVRHB2014!$AW:CF,9,FALSE)),0) -> 3.29 | CK23: =IFERROR(IF($A23="",0,VLOOKUP($CO23,FG!$N:CG,10,FALSE)),0) -> 3.45 | CL23: =IFERROR(IF($A23="",0,VLOOKUP($CO23,FG!$AP:CH,10,FALSE)),0) -> 3.52 | CM23: =IFERROR(IF($A23="",0,VLOOKUP($CO23,FG!$A:CI,8,FALSE)),0) -> 3.48 | CN23: =IFERROR(IF($A23="",0,VLOOKUP($CO23,FG!$A:CJ,10,FALSE)),0) -> 3.17 | CO23: =IF($B23="","",VLOOKUP($B23,names!$J:AB,7,FALSE)) -> Josh Tomlin | CP23: =IF($B23="","",VLOOKUP($B23,names!$J:AB,8,FALSE)) -> Josh Tomlin | CQ23: 620 | CR23: 449 | CS23: 589 | CT23: 427
A24: =IF(OR('FD pit'!$C26="",'FD pit'!$C26="Name"),"",'FD pit'!$C26) -> Duffey, Tyler | B24: =IF(A24="","",VLOOKUP(A24,names!F:G,2,FALSE)) -> Tyler Duffey | C24: =IF($A24="","",VLOOKUP($A24,'FD pit'!$C:P,4,FALSE)) -> Min | D24: =IF($A24="",0,VLOOKUP($A24,'FD pit'!$C:AP,5,FALSE)) -> 6400 | E24: =IF($A24="",0,VLOOKUP($A24,'FD pit'!$C:AQ,MATCH("/GP",'FD pit'!$C$4:$N$4,0),FALSE)) -> 11.2 | F24: =IF($A24="",0,VLOOKUP($A24,'FD pit'!$C:AR,MATCH("/GP",'FD pit'!$C$4:$N$4,0)+2,FALSE)) -> 17.2 | G24: =IF($A24="",0,VLOOKUP($A24,'FD pit'!$C:AS,MATCH("/GP",'FD pit'!$C$4:$N$4,0)+3,FALSE)) -> 18 | H24: =IFERROR(VLOOKUP($A24,'DK pit'!$C:R,5,FALSE),0) -> 9200 | I24: =IFERROR(VLOOKUP($A24,'DK pit'!$C:S,MATCH("/GP",'DK pit'!$C$4:$N$4,0),FALSE),0) -> 17.3 | J24: =IFERROR(VLOOKUP($A24,'DK pit'!$C:T,MATCH("/GP",'FD pit'!$C$4:$N$4,0)+2,FALSE),0) -> 28.1 | K24: =IFERROR(VLOOKUP($A24,'DK pit'!$C:U,MATCH("/GP",'DK pit'!$C$4:$N$4,0)+3,FALSE),0) -> 31.4 | L24: =IFERROR(VLOOKUP(C24,team!A:B,2,FALSE),"") -> MIN | M24: =IFERROR(VLOOKUP(L24,Games!A:B,2,FALSE),"") -> DET | N24: =IFERROR(VLOOKUP($L24,Games!$A:C,3,FALSE),"") -> Away | O24: =IF(A24="",0,IFERROR(VALUE(IFERROR(VLOOKUP($L24,Games!$A:F,4,FALSE),"")),110)) -> -123 | P24: =IFERROR(VALUE(LEFT(VLOOKUP($L24,Games!$A:E,5,FALSE),4)),"") -> 8.5 | Q24: =VLOOKUP(B24,names!J:M,4,FALSE) -> R | R24: =IFERROR(IF($A24="",0,VLOOKUP($B24,pitchers!$B:AM,12,FALSE)),"") -> 45.2 | S24: =IF($A24="",0,VLOOKUP($B24,pitchers!$B:AN,20,FALSE)) -> 3.15 | T24: =IF($A24="",0,VLOOKUP($B24,pitchers!$B:AO,38,FALSE)) -> 1.314 | U24: =IFERROR(IF($A24="",0,VLOOKUP($B24,pitchersL14!$B:AP,12,FALSE)),0) -> 13.1 | V24: =IFERROR(IF($A24="",0,VLOOKUP($B24,pitchersL14!$B:AQ,20,FALSE)),"---") -> 0.68 | W24: =IFERROR(IF($A24="",0,VLOOKUP($B24,pitchersL14!$B:AR,38,FALSE)),0) -> 0.975 | X24: =IFERROR(IF($A24="",0,IF($N24="home",VLOOKUP('Pitcher temp'!$CP24,'P-home'!$B:AF,7,FALSE),VLOOKUP('Pitcher temp'!$CP24,'P-road'!$B:AF,7,FALSE))),"") -> 89 | Y24: =IFERROR(IF($A24="",0,IF($N24="home",VLOOKUP('Pitcher temp'!$CP24,'P-home'!$B:AG,31,FALSE),VLOOKUP('Pitcher temp'!$CP24,'P-road'!$B:AG,31,FALSE))),"") -> 0.859 | Z24: =IF($A24="",0,INDEX('Team B L7'!$A:$A,MATCH('Pitcher temp'!$AG24,'Team B L7'!$B:$B,0),0)) -> 18 | AA24: =IF($A24="",0,INDEX('Team B L7'!$O:$O,MATCH('Pitcher temp'!$AG24,'Team B L7'!$B:$B,0),0)) -> 0.678 | AB24: =INDEX(team!C:C,MATCH('Pitcher temp'!M24,team!B:B,0),0) -> Detroit | AC24: =IF(Q24="R",INDEX(TeamBVR!A:A,MATCH('Pitcher temp'!AB24,TeamBVR!B:B,0),0),INDEX(TeamBVL!A:A,MATCH('Pitcher temp'!AB24,TeamBVR!B:B,0),0)) -> 11 | AD24: =IF($Q24="R",INDEX(TeamBVR!$O:$O,MATCH('Pitcher temp'!$AB24,TeamBVR!$B:$B,0),0),INDEX(TeamBVL!$O:$O,MATCH('Pitcher temp'!$AB24,TeamBVR!$B:$B,0),0)) -> 0.732 | AE24: =IF($A24="","",IF($N24="home",INDEX(TeamBroad!$A:$A,MATCH('Pitcher temp'!$AG24,TeamBroad!$B:$B,0),0),INDEX(TeamBhome!$A:$A,MATCH('Pitcher temp'!$AG24,TeamBhome!$B:$B,0),0))) -> 15 | AF24: =IF($A24="","",IF($N24="home",INDEX(TeamBroad!$O:$O,MATCH('Pitcher temp'!$AG24,TeamBroad!$B:$B,0),0),INDEX(TeamBroad!$O:$O,MATCH('Pitcher temp'!$AG24,TeamBroad!$B:$B,0),0))) -> 0.74 | AG24: =IF(A24="","",VLOOKUP(M24,team!B:C,2,FALSE)) -> Detroit | AH24: =IF(N24="home",VLOOKUP(L24,team!B:C,2,FALSE),VLOOKUP('Pitcher temp'!M24,team!B:C,2,FALSE)) -> Detroit | AI24: =VLOOKUP($AH24,team!$E:G,3,FALSE) -> Comerica Park (Detroit, Michigan) | AJ24: =VLOOKUP($AH24,team!$E:H,2,FALSE) -> 14 | AK24: =VLOOKUP($AH24,team!$E:I,4,FALSE) -> 1.003 | AL24: =VLOOKUP($AH24,team!$J:P,2,FALSE) -> 15 | AM24: =VLOOKUP($AH24,team!$J:Q,4,FALSE) -> 1.014 | AN24: =VLOOKUP(AH24,team!C:O,13,FALSE) -> Detroit Tigers | AO24: =INDEX(weather!$F:$F,MATCH('Pitcher temp'!$AN24,weather!$B:$B,0),0) -> 67° F/ 19° C | AP24: =INDEX(weather!$F:$F,(MATCH('Pitcher temp'!$AN24,weather!$B:$B,0))+1,0) -> Partly Cloudy | AQ24: 8.3888 | AR24: 12.9577 | AS24: 7.84 | AT24: 12.11 | AU24: =IF($V24>9,Projections!$H$4,IF('Pitcher temp'!$V24>5,Projections!$H$5,IF('Pitcher temp'!$V24<1.8,Projections!$H$6,0))) -> 0.12 | AV24: =IF($Z24<6,Projections!$H$9,IF($Z24>24,Projections!$H$10,0)) -> 0 | AW24: =IF($AC24<6,Projections!$H$13,IF($AC24>24,Projections!$H$14,0)) -> 0 | AX24: =IF($AE24<6,Projections!$H$17,IF($AE24>24,Projections!$H$18,0)) -> 0 | AY24: =IF($AJ24<6,Projections!$H$21,IF($AJ24>24,Projections!$H$22,0)) -> 0 | AZ24: =IF($P24>9.5,Projections!$H$25,IF('Pitcher temp'!$P24>8,Projections!$H$26,IF(AND('Pitcher temp'!$P24<7,'Pitcher temp'!$P24>1),Projections!$H$27,0))) -> -0.05 | BA24: =IF($O24<-190,Projections!$H$30,IF('Pitcher temp'!$O24<-149,Projections!$H$31,IF('Pitcher temp'!$O24>145,Projections!$H$32,0)))+(IF($BI24<7,Projections!$H$35,IF($BI24>23,Projections!$H$36,0))) -> 0 | BB24: =IF($V24>9,Projections!$I$4,IF('Pitcher temp'!$V24>5,Projections!$I$5,IF('Pitcher temp'!$V24<1.8,Projections!$I$6,0))) -> 0 | BC24: =IF($Z24<6,Projections!$I$9,IF($Z24>24,Projections!$I$10,0)) -> 0 | BD24: =IF($AC24<6,Projections!$I$13,IF($AC24>24,Projections!$I$14,0)) -> 0 | BE24: =IF($AE24<6,Projections!$I$17,IF($AE24>24,Projections!$I$18,0)) -> 0 | BF24: =IF($AJ24<6,Projections!$I$21,IF($AJ24>24,Projections!$I$22,0)) -> 0 | BG24: =IF($P24>9.5,Projections!$I$25,IF('Pitcher temp'!$P24>8,Projections!$I$26,IF(AND('Pitcher temp'!$P24<7,'Pitcher temp'!$P24>1),Projections!$I$27,0))) -> 0 | BH24: =IF($O24<-190,Projections!$I$30,IF('Pitcher temp'!$O24<-149,Projections!$I$31,IF('Pitcher temp'!$O24>145,Projections!$I$32,0)))+(IF($BI24<7,Projections!$I$35,IF($BI24>23,Projections!$I$36,0))) -> 0 | BI24: =IF(A24="",0,INDEX(teamk!A:A,MATCH('Pitcher temp'!AB24,teamk!B:B,0),0)) -> 15 | BJ24: =IF($A24="",0,VLOOKUP($B24,pitchers!$B:CE,35,FALSE)) -> 0.94 | BK24: =IF($A24="",0,VLOOKUP($B24,pitchers!$B:CF,40,FALSE)) -> 8.7 | BL24: =IFERROR(IF($A24="",0,VLOOKUP($CO24,FG!$N:BH,6,FALSE)),0) -> 0.343 | BM24: =IFERROR(IF($A24="",0,VLOOKUP($CO24,FG!$AP:BI,6,FALSE)),0) -> 0.307 | BN24: =VLOOKUP(B24,'batters-temp'!V:CG,64,FALSE) -> 19:05:00 | BO24: =IFERROR(IF($A24="",0,VLOOKUP($CP24,PVLHB!$B:AQ,42,FALSE)),0) -> 0.3965517241 | BP24: =IFERROR(IF($A24="",0,VLOOKUP($CP24,PVRHB!$B:AR,42,FALSE)),0) -> 0.2352941176 | BQ24: =IFERROR(IF($A24="",0,VLOOKUP($B24,PVLHB!$B:AS,43,FALSE)),0) -> 0.2708333333 | BR24: =IFERROR(IF($A24="",0,VLOOKUP($B24,PVRHB!$B:AT,43,FALSE)),0) -> 0.1875 | BS24: =IFERROR(IF($A24="",0,IF($N24="home",VLOOKUP('Pitcher temp'!$CP24,'P-home'!$B:BZ,32,FALSE),VLOOKUP('Pitcher temp'!$CP24,'P-road'!$B:BZ,32,FALSE))),"") -> 0.3846153846 | BT24: =IFERROR(IF($A24="",0,IF($N24="home",VLOOKUP('Pitcher temp'!$CP24,'P-home'!$B:CA,33,FALSE),VLOOKUP('Pitcher temp'!$CP24,'P-road'!$B:CA,33,FALSE))),"") -> 0.2359550562 | BU24: =IF(N24="Home",VLOOKUP(M24,team!B:D,3,FALSE),VLOOKUP('Pitcher temp'!BV24,team!B:D,3,FALSE)) -> Minnesota Twins | BV24: =VLOOKUP(C24,team!A:B,2,FALSE) -> MIN | BW24: =IF(A24="",0,VLOOKUP($BU24,weather4!$T:AA,2,FALSE)) -> 0.55 | BX24: =VLOOKUP($BU24,weather4!$T:AB,3,FALSE) -> Partly Cloudy | BY24: =IF(A24="",0,VLOOKUP($BU24,weather4!$T:AC,4,FALSE)) -> 0 | BZ24: =VLOOKUP($BU24,weather4!$T:AD,5,FALSE) -> 0 | CA24: =VLOOKUP($BU24,weather4!$T:AE,6,FALSE) -> 0.01 | CB24: =VLOOKUP($BU24,weather4!$T:AF,7,FALSE) -> ESE 11 mph | CC24: =VLOOKUP($BU24,weather4!$T:AG,8,FALSE) -> 72° | CD24: =IFERROR(IF($A24="",0,VLOOKUP($CO24,PVLHB2014!$AX:BZ,6,FALSE)),0) -> 0 | CE24: =IFERROR(IF($A24="",0,VLOOKUP($CO24,PVRHB2014!$AW:CA,6,FALSE)),0) -> 0 | CF24: =INDEX(team!A:A,(MATCH('Pitcher temp'!M24,team!B:B,0))) -> Det | CG24: =IFERROR(IF($A24="",0,VLOOKUP($B24,PVLHB!$B:BJ,44,FALSE)),0) -> 0.01176470588 | CH24: =IFERROR(IF($A24="",0,VLOOKUP($B24,PVRHB!$B:BJ,44,FALSE)),0) -> 0.02272727273 | CI24: =IFERROR(IF($A24="",0,VLOOKUP($CO24,PVLHB2014!$AX:CE,9,FALSE)),0) -> 0 | CJ24: =IFERROR(IF($A24="",0,VLOOKUP($CO24,PVRHB2014!$AW:CF,9,FALSE)),0) -> 0 | CK24: =IFERROR(IF($A24="",0,VLOOKUP($CO24,FG!$N:CG,10,FALSE)),0) -> 3.07 | CL24: =IFERROR(IF($A24="",0,VLOOKUP($CO24,FG!$AP:CH,10,FALSE)),0) -> 4.78 | CM24: =IFERROR(IF($A24="",0,VLOOKUP($CO24,FG!$A:CI,8,FALSE)),0) -> 3.96 | CN24: =IFERROR(IF($A24="",0,VLOOKUP($CO24,FG!$A:CJ,10,FALSE)),0) -> 4.1 | CO24: =IF($B24="","",VLOOKUP($B24,names!$J:AB,7,FALSE)) -> Tyler Duffey | CP24: =IF($B24="","",VLOOKUP($B24,names!$J:AB,8,FALSE)) -> Tyler Duffey | CQ24: 763 | CR24: 710 | CS24: 816 | CT24: 760
A25: =IF(OR('FD pit'!$C27="",'FD pit'!$C27="Name"),"",'FD pit'!$C27) -> Medlen, Kris | B25: =IF(A25="","",VLOOKUP(A25,names!F:G,2,FALSE)) -> Kris Medlen | C25: =IF($A25="","",VLOOKUP($A25,'FD pit'!$C:P,4,FALSE)) -> Kan | D25: =IF($A25="",0,VLOOKUP($A25,'FD pit'!$C:AP,5,FALSE)) -> 6900 | E25: =IF($A25="",0,VLOOKUP($A25,'FD pit'!$C:AQ,MATCH("/GP",'FD pit'!$C$4:$N$4,0),FALSE)) -> 6.3 | F25: =IF($A25="",0,VLOOKUP($A25,'FD pit'!$C:AR,MATCH("/GP",'FD pit'!$C$4:$N$4,0)+2,FALSE)) -> 10.7 | G25: =IF($A25="",0,VLOOKUP($A25,'FD pit'!$C:AS,MATCH("/GP",'FD pit'!$C$4:$N$4,0)+3,FALSE)) -> 11 | H25: =IFERROR(VLOOKUP($A25,'DK pit'!$C:R,5,FALSE),0) -> 5000 | I25: =IFERROR(VLOOKUP($A25,'DK pit'!$C:S,MATCH("/GP",'DK pit'!$C$4:$N$4,0),FALSE),0) -> 9.2 | J25: =IFERROR(VLOOKUP($A25,'DK pit'!$C:T,MATCH("/GP",'FD pit'!$C$4:$N$4,0)+2,FALSE),0) -> 14.6 | K25: =IFERROR(VLOOKUP($A25,'DK pit'!$C:U,MATCH("/GP",'DK pit'!$C$4:$N$4,0)+3,FALSE),0) -> 14.4 | L25: =IFERROR(VLOOKUP(C25,team!A:B,2,FALSE),"") -> KC | M25: =IFERROR(VLOOKUP(L25,Games!A:B,2,FALSE),"") -> CLE | N25: =IFERROR(VLOOKUP($L25,Games!$A:C,3,FALSE),"") -> Home | O25: =IF(A25="",0,IFERROR(VALUE(IFERROR(VLOOKUP($L25,Games!$A:F,4,FALSE),"")),110)) -> -130 | P25: =IFERROR(VALUE(LEFT(VLOOKUP($L25,Games!$A:E,5,FALSE),4)),"") -> 8 | Q25: =VLOOKUP(B25,names!J:M,4,FALSE) -> R | R25: =IFERROR(IF($A25="",0,VLOOKUP($B25,pitchers!$B:AM,12,FALSE)),"") -> 48.2 | S25: =IF($A25="",0,VLOOKUP($B25,pitchers!$B:AN,20,FALSE)) -> 3.51 | T25: =IF($A25="",0,VLOOKUP($B25,pitchers!$B:AO,38,FALSE)) -> 1.171 | U25: =IFERROR(IF($A25="",0,VLOOKUP($B25,pitchersL14!$B:AP,12,FALSE)),0) -> 11.1 | V25: =IFERROR(IF($A25="",0,VLOOKUP($B25,pitchersL14!$B:AQ,20,FALSE)),"---") -> 0 | W25: =IFERROR(IF($A25="",0,VLOOKUP($B25,pitchersL14!$B:AR,38,FALSE)),0) -> 1.235 | X25: =IFERROR(IF($A25="",0,IF($N25="home",VLOOKUP('Pitcher temp'!$CP25,'P-home'!$B:AF,7,FALSE),VLOOKUP('Pitcher temp'!$CP25,'P-road'!$B:AF,7,FALSE))),"") -> 91 | Y25: =IFERROR(IF($A25="",0,IF($N25="home",VLOOKUP('Pitcher temp'!$CP25,'P-home'!$B:AG,31,FALSE),VLOOKUP('Pitcher temp'!$CP25,'P-road'!$B:AG,31,FALSE))),"") -> 0.713 | Z25: =IF($A25="",0,INDEX('Team B L7'!$A:$A,MATCH('Pitcher temp'!$AG25,'Team B L7'!$B:$B,0),0)) -> 5 | AA25: =IF($A25="",0,INDEX('Team B L7'!$O:$O,MATCH('Pitcher temp'!$AG25,'Team B L7'!$B:$B,0),0)) -> 0.795 | AB25: =INDEX(team!C:C,MATCH('Pitcher temp'!M25,team!B:B,0),0) -> Cleveland | AC25: =IF(Q25="R",INDEX(TeamBVR!A:A,MATCH('Pitcher temp'!AB25,TeamBVR!B:B,0),0),INDEX(TeamBVL!A:A,MATCH('Pitcher temp'!AB25,TeamBVR!B:B,0),0)) -> 27 | AD25: =IF($Q25="R",INDEX(TeamBVR!$O:$O,MATCH('Pitcher temp'!$AB25,TeamBVR!$B:$B,0),0),INDEX(TeamBVL!$O:$O,MATCH('Pitcher temp'!$AB25,TeamBVR!$B:$B,0),0)) -> 0.72 | AE25: =IF($A25="","",IF($N25="home",INDEX(TeamBroad!$A:$A,MATCH('Pitcher temp'!$AG25,TeamBroad!$B:$B,0),0),INDEX(TeamBhome!$A:$A,MATCH('Pitcher temp'!$AG25,TeamBhome!$B:$B,0),0))) -> 23 | AF25: =IF($A25="","",IF($N25="home",INDEX(TeamBroad!$O:$O,MATCH('Pitcher temp'!$AG25,TeamBroad!$B:$B,0),0),INDEX(TeamBroad!$O:$O,MATCH('Pitcher temp'!$AG25,TeamBroad!$B:$B,0),0))) -> 0.69 | AG25: =IF(A25="","",VLOOKUP(M25,team!B:C,2,FALSE)) -> Cleveland | AH25: =IF(N25="home",VLOOKUP(L25,team!B:C,2,FALSE),VLOOKUP('Pitcher temp'!M25,team!B:C,2,FALSE)) -> Kansas City | AI25: =VLOOKUP($AH25,team!$E:G,3,FALSE) -> Kauffman Stadium (Kansas City, Missouri) | AJ25: =VLOOKUP($AH25,team!$E:H,2,FALSE) -> 11 | AK25: =VLOOKUP($AH25,team!$E:I,4,FALSE) -> 1.014 | AL25: =VLOOKUP($AH25,team!$J:P,2,FALSE) -> 22 | AM25: =VLOOKUP($AH25,team!$J:Q,4,FALSE) -> 0.843 | AN25: =VLOOKUP(AH25,team!C:O,13,FALSE) -> Kansas City Royals | AO25: =INDEX(weather!$F:$F,MATCH('Pitcher temp'!$AN25,weather!$B:$B,0),0) -> 75° F/ 24° C | AP25: =INDEX(weather!$F:$F,(MATCH('Pitcher temp'!$AN25,weather!$B:$B,0))+1,0) -> Clear | AQ25: 4.3218 | AR25: 6.3112 | AS25: 4.41 | AT25: 6.44 | AU25: =IF($V25>9,Projections!$H$4,IF('Pitcher temp'!$V25>5,Projections!$H$5,IF('Pitcher temp'!$V25<1.8,Projections!$H$6,0))) -> 0.12 | AV25: =IF($Z25<6,Projections!$H$9,IF($Z25>24,Projections!$H$10,0)) -> -0.12 | AW25: =IF($AC25<6,Projections!$H$13,IF($AC25>24,Projections!$H$14,0)) -> 0.08 | AX25: =IF($AE25<6,Projections!$H$17,IF($AE25>24,Projections!$H$18,0)) -> 0 | AY25: =IF($AJ25<6,Projections!$H$21,IF($AJ25>24,Projections!$H$22,0)) -> 0 | AZ25: =IF($P25>9.5,Projections!$H$25,IF('Pitcher temp'!$P25>8,Projections!$H$26,IF(AND('Pitcher temp'!$P25<7,'Pitcher temp'!$P25>1),Projections!$H$27,0))) -> 0 | BA25: =IF($O25<-190,Projections!$H$30,IF('Pitcher temp'!$O25<-149,Projections!$H$31,IF('Pitcher temp'!$O25>145,Projections!$H$32,0)))+(IF($BI25<7,Projections!$H$35,IF($BI25>23,Projections!$H$36,0))) -> -0.1 | BB25: =IF($V25>9,Projections!$I$4,IF('Pitcher temp'!$V25>5,Projections!$I$5,IF('Pitcher temp'!$V25<1.8,Projections!$I$6,0))) -> 0 | BC25: =IF($Z25<6,Projections!$I$9,IF($Z25>24,Projections!$I$10,0)) -> 0 | BD25: =IF($AC25<6,Projections!$I$13,IF($AC25>24,Projections!$I$14,0)) -> 0 | BE25: =IF($AE25<6,Projections!$I$17,IF($AE25>24,Projections!$I$18,0)) -> 0 | BF25: =IF($AJ25<6,Projections!$I$21,IF($AJ25>24,Projections!$I$22,0)) -> 0 | BG25: =IF($P25>9.5,Projections!$I$25,IF('Pitcher temp'!$P25>8,Projections!$I$26,IF(AND('Pitcher temp'!$P25<7,'Pitcher temp'!$P25>1),Projections!$I$27,0))) -> 0 | BH25: =IF($O25<-190,Projections!$I$30,IF('Pitcher temp'!$O25<-149,Projections!$I$31,IF('Pitcher temp'!$O25>145,Projections!$I$32,0)))+(IF($BI25<7,Projections!$I$35,IF($BI25>23,Projections!$I$36,0))) -> 0 | BI25: =IF(A25="",0,INDEX(teamk!A:A,MATCH('Pitcher temp'!AB25,teamk!B:B,0),0)) -> 26 | BJ25: =IF($A25="",0,VLOOKUP($B25,pitchers!$B:CE,35,FALSE)) -> 1.27 | BK25: =IF($A25="",0,VLOOKUP($B25,pitchers!$B:CF,40,FALSE)) -> 5.9 | BL25: =IFERROR(IF($A25="",0,VLOOKUP($CO25,FG!$N:BH,6,FALSE)),0) -> 0.276 | BM25: =IFERROR(IF($A25="",0,VLOOKUP($CO25,FG!$AP:BI,6,FALSE)),0) -> 0.31 | BN25: =VLOOKUP(B25,'batters-temp'!V:CG,64,FALSE) -> 19:10:00 | BO25: =IFERROR(IF($A25="",0,VLOOKUP($CP25,PVLHB!$B:AQ,42,FALSE)),0) -> 0.2328767123 | BP25: =IFERROR(IF($A25="",0,VLOOKUP($CP25,PVRHB!$B:AR,42,FALSE)),0) -> 0.2916666667 | BQ25: =IFERROR(IF($A25="",0,VLOOKUP($B25,PVLHB!$B:AS,43,FALSE)),0) -> 0.1759259259 | BR25: =IFERROR(IF($A25="",0,VLOOKUP($B25,PVRHB!$B:AT,43,FALSE)),0) -> 0.1444444444 | BS25: =IFERROR(IF($A25="",0,IF($N25="home",VLOOKUP('Pitcher temp'!$CP25,'P-home'!$B:BZ,32,FALSE),VLOOKUP('Pitcher temp'!$CP25,'P-road'!$B:BZ,32,FALSE))),"") -> 0.2753623188 | BT25: =IFERROR(IF($A25="",0,IF($N25="home",VLOOKUP('Pitcher temp'!$CP25,'P-home'!$B:CA,33,FALSE),VLOOKUP('Pitcher temp'!$CP25,'P-road'!$B:CA,33,FALSE))),"") -> 0.1978021978 | BU25: =IF(N25="Home",VLOOKUP(M25,team!B:D,3,FALSE),VLOOKUP('Pitcher temp'!BV25,team!B:D,3,FALSE)) -> Cleveland Indians | BV25: =VLOOKUP(C25,team!A:B,2,FALSE) -> KC | BW25: =IF(A25="",0,VLOOKUP($BU25,weather4!$T:AA,2,FALSE)) -> 0.44 | BX25: =VLOOKUP($BU25,weather4!$T:AB,3,FALSE) -> Clear | BY25: =IF(A25="",0,VLOOKUP($BU25,weather4!$T:AC,4,FALSE)) -> 0 | BZ25: =VLOOKUP($BU25,weather4!$T:AD,5,FALSE) -> 0 | CA25: =VLOOKUP($BU25,weather4!$T:AE,6,FALSE) -> 0 | CB25: =VLOOKUP($BU25,weather4!$T:AF,7,FALSE) -> E 8 mph | CC25: =VLOOKUP($BU25,weather4!$T:AG,8,FALSE) -> 78° | CD25: =IFERROR(IF($A25="",0,VLOOKUP($CO25,PVLHB2014!$AX:BZ,6,FALSE)),0) -> 0 | CE25: =IFERROR(IF($A25="",0,VLOOKUP($CO25,PVRHB2014!$AW:CA,6,FALSE)),0) -> 0 | CF25: =INDEX(team!A:A,(MATCH('Pitcher temp'!M25,team!B:B,0))) -> Cle | CG25: =IFERROR(IF($A25="",0,VLOOKUP($B25,PVLHB!$B:BJ,44,FALSE)),0) -> 0.02127659574 | CH25: =IFERROR(IF($A25="",0,VLOOKUP($B25,PVRHB!$B:BJ,44,FALSE)),0) -> 0.03409090909 | CI25: =IFERROR(IF($A25="",0,VLOOKUP($CO25,PVLHB2014!$AX:CE,9,FALSE)),0) -> 0 | CJ25: =IFERROR(IF($A25="",0,VLOOKUP($CO25,PVRHB2014!$AW:CF,9,FALSE)),0) -> 0 | CK25: =IFERROR(IF($A25="",0,VLOOKUP($CO25,FG!$N:CG,10,FALSE)),0) -> 4.57 | CL25: =IFERROR(IF($A25="",0,VLOOKUP($CO25,FG!$AP:CH,10,FALSE)),0) -> 3.36 | CM25: =IFERROR(IF($A25="",0,VLOOKUP($CO25,FG!$A:CI,8,FALSE)),0) -> 4.05 | CN25: =IFERROR(IF($A25="",0,VLOOKUP($CO25,FG!$A:CJ,10,FALSE)),0) -> 3.94 | CO25: =IF($B25="","",VLOOKUP($B25,names!$J:AB,7,FALSE)) -> Kris Medlen | CP25: =IF($B25="","",VLOOKUP($B25,names!$J:AB,8,FALSE)) -> Kris Medlen | CQ25: 1597 | CR25: 792 | CS25: 1565 | CT25: 776
A26: =IF(OR('FD pit'!$C28="",'FD pit'!$C28="Name"),"",'FD pit'!$C28) -> Lamb, John | B26: =IF(A26="","",VLOOKUP(A26,names!F:G,2,FALSE)) -> John Lamb | C26: =IF($A26="","",VLOOKUP($A26,'FD pit'!$C:P,4,FALSE)) -> Cin | D26: =IF($A26="",0,VLOOKUP($A26,'FD pit'!$C:AP,5,FALSE)) -> 5500 | E26: =IF($A26="",0,VLOOKUP($A26,'FD pit'!$C:AQ,MATCH("/GP",'FD pit'!$C$4:$N$4,0),FALSE)) -> 9.1 | F26: =IF($A26="",0,VLOOKUP($A26,'FD pit'!$C:AR,MATCH("/GP",'FD pit'!$C$4:$N$4,0)+2,FALSE)) -> 8 | G26: =IF($A26="",0,VLOOKUP($A26,'FD pit'!$C:AS,MATCH("/GP",'FD pit'!$C$4:$N$4,0)+3,FALSE)) -> 12 | H26: =IFERROR(VLOOKUP($A26,'DK pit'!$C:R,5,FALSE),0) -> 7200 | I26: =IFERROR(VLOOKUP($A26,'DK pit'!$C:S,MATCH("/GP",'DK pit'!$C$4:$N$4,0),FALSE),0) -> 14.1 | J26: =IFERROR(VLOOKUP($A26,'DK pit'!$C:T,MATCH("/GP",'FD pit'!$C$4:$N$4,0)+2,FALSE),0) -> 13.4 | K26: =IFERROR(VLOOKUP($A26,'DK pit'!$C:U,MATCH("/GP",'DK pit'!$C$4:$N$4,0)+3,FALSE),0) -> 21.3 | L26: =IFERROR(VLOOKUP(C26,team!A:B,2,FALSE),"") -> CIN | M26: =IFERROR(VLOOKUP(L26,Games!A:B,2,FALSE),"") -> NYM | N26: =IFERROR(VLOOKUP($L26,Games!$A:C,3,FALSE),"") -> Home | O26: =IF(A26="",0,IFERROR(VALUE(IFERROR(VLOOKUP($L26,Games!$A:F,4,FALSE),"")),110)) -> 139 | P26: =IFERROR(VALUE(LEFT(VLOOKUP($L26,Games!$A:E,5,FALSE),4)),"") -> 7.5 | Q26: =VLOOKUP(B26,names!J:M,4,FALSE) -> L | R26: =IFERROR(IF($A26="",0,VLOOKUP($B26,pitchers!$B:AM,12,FALSE)),"") -> 43 | S26: =IF($A26="",0,VLOOKUP($B26,pitchers!$B:AN,20,FALSE)) -> 4.6 | T26: =IF($A26="",0,VLOOKUP($B26,pitchers!$B:AO,38,FALSE)) -> 1.488 | U26: =IFERROR(IF($A26="",0,VLOOKUP($B26,pitchersL14!$B:AP,12,FALSE)),0) -> 10 | V26: =IFERROR(IF($A26="",0,VLOOKUP($B26,pitchersL14!$B:AQ,20,FALSE)),"---") -> 2.7 | W26: =IFERROR(IF($A26="",0,VLOOKUP($B26,pitchersL14!$B:AR,38,FALSE)),0) -> 1.2 | X26: =IFERROR(IF($A26="",0,IF($N26="home",VLOOKUP('Pitcher temp'!$CP26,'P-home'!$B:AF,7,FALSE),VLOOKUP('Pitcher temp'!$CP26,'P-road'!$B:AF,7,FALSE))),"") -> 85 | Y26: =IFERROR(IF($A26="",0,IF($N26="home",VLOOKUP('Pitcher temp'!$CP26,'P-home'!$B:AG,31,FALSE),VLOOKUP('Pitcher temp'!$CP26,'P-road'!$B:AG,31,FALSE))),"") -> 0 | Z26: =IF($A26="",0,INDEX('Team B L7'!$A:$A,MATCH('Pitcher temp'!$AG26,'Team B L7'!$B:$B,0),0)) -> 12 | AA26: =IF($A26="",0,INDEX('Team B L7'!$O:$O,MATCH('Pitcher temp'!$AG26,'Team B L7'!$B:$B,0),0)) -> 0.767 | AB26: =INDEX(team!C:C,MATCH('Pitcher temp'!M26,team!B:B,0),0) -> NY Mets | AC26: =IF(Q26="R",INDEX(TeamBVR!A:A,MATCH('Pitcher temp'!AB26,TeamBVR!B:B,0),0),INDEX(TeamBVL!A:A,MATCH('Pitcher temp'!AB26,TeamBVR!B:B,0),0)) -> 6 | AD26: =IF($Q26="R",INDEX(TeamBVR!$O:$O,MATCH('Pitcher temp'!$AB26,TeamBVR!$B:$B,0),0),INDEX(TeamBVL!$O:$O,MATCH('Pitcher temp'!$AB26,TeamBVR!$B:$B,0),0)) -> 0.735 | AE26: =IF($A26="","",IF($N26="home",INDEX(TeamBroad!$A:$A,MATCH('Pitcher temp'!$AG26,TeamBroad!$B:$B,0),0),INDEX(TeamBhome!$A:$A,MATCH('Pitcher temp'!$AG26,TeamBhome!$B:$B,0),0))) -> 6 | AF26: =IF($A26="","",IF($N26="home",INDEX(TeamBroad!$O:$O,MATCH('Pitcher temp'!$AG26,TeamBroad!$B:$B,0),0),INDEX(TeamBroad!$O:$O,MATCH('Pitcher temp'!$AG26,TeamBroad!$B:$B,0),0))) -> 0.727 | AG26: =IF(A26="","",VLOOKUP(M26,team!B:C,2,FALSE)) -> NY Mets | AH26: =IF(N26="home",VLOOKUP(L26,team!B:C,2,FALSE),VLOOKUP('Pitcher temp'!M26,team!B:C,2,FALSE)) -> Cincinnati | AI26: =VLOOKUP($AH26,team!$E:G,3,FALSE) -> Great American Ball Park (Cincinnati, Ohio) | AJ26: =VLOOKUP($AH26,team!$E:H,2,FALSE) -> 18 | AK26: =VLOOKUP($AH26,team!$E:I,4,FALSE) -> 0.963 | AL26: =VLOOKUP($AH26,team!$J:P,2,FALSE) -> 4 | AM26: =VLOOKUP($AH26,team!$J:Q,4,FALSE) -> 1.279 | AN26: =VLOOKUP(AH26,team!C:O,13,FALSE) -> Cincinnati Reds | AO26: =INDEX(weather!$F:$F,MATCH('Pitcher temp'!$AN26,weather!$B:$B,0),0) -> 68° F/ 20° C | AP26: =INDEX(weather!$F:$F,(MATCH('Pitcher temp'!$AN26,weather!$B:$B,0))+1,0) -> Chance of Rain | AQ26: 6.37 | AR26: 9.87 | AS26: 6.37 | AT26: 9.87 | AU26: =IF($V26>9,Projections!$H$4,IF('Pitcher temp'!$V26>5,Projections!$H$5,IF('Pitcher temp'!$V26<1.8,Projections!$H$6,0))) -> 0 | AV26: =IF($Z26<6,Projections!$H$9,IF($Z26>24,Projections!$H$10,0)) -> 0 | AW26: =IF($AC26<6,Projections!$H$13,IF($AC26>24,Projections!$H$14,0)) -> 0 | AX26: =IF($AE26<6,Projections!$H$17,IF($AE26>24,Projections!$H$18,0)) -> 0 | AY26: =IF($AJ26<6,Projections!$H$21,IF($AJ26>24,Projections!$H$22,0)) -> 0 | AZ26: =IF($P26>9.5,Projections!$H$25,IF('Pitcher temp'!$P26>8,Projections!$H$26,IF(AND('Pitcher temp'!$P26<7,'Pitcher temp'!$P26>1),Projections!$H$27,0))) -> 0 | BA26: =IF($O26<-190,Projections!$H$30,IF('Pitcher temp'!$O26<-149,Projections!$H$31,IF('Pitcher temp'!$O26>145,Projections!$H$32,0)))+(IF($BI26<7,Projections!$H$35,IF($BI26>23,Projections!$H$36,0))) -> 0 | BB26: =IF($V26>9,Projections!$I$4,IF('Pitcher temp'!$V26>5,Projections!$I$5,IF('Pitcher temp'!$V26<1.8,Projections!$I$6,0))) -> 0 | BC26: =IF($Z26<6,Projections!$I$9,IF($Z26>24,Projections!$I$10,0)) -> 0 | BD26: =IF($AC26<6,Projections!$I$13,IF($AC26>24,Projections!$I$14,0)) -> 0 | BE26: =IF($AE26<6,Projections!$I$17,IF($AE26>24,Projections!$I$18,0)) -> 0 | BF26: =IF($AJ26<6,Projections!$I$21,IF($AJ26>24,Projections!$I$22,0)) -> 0 | BG26: =IF($P26>9.5,Projections!$I$25,IF('Pitcher temp'!$P26>8,Projections!$I$26,IF(AND('Pitcher temp'!$P26<7,'Pitcher temp'!$P26>1),Projections!$I$27,0))) -> 0 | BH26: =IF($O26<-190,Projections!$I$30,IF('Pitcher temp'!$O26<-149,Projections!$I$31,IF('Pitcher temp'!$O26>145,Projections!$I$32,0)))+(IF($BI26<7,Projections!$I$35,IF($BI26>23,Projections!$I$36,0))) -> 0 | BI26: =IF(A26="",0,INDEX(teamk!A:A,MATCH('Pitcher temp'!AB26,teamk!B:B,0),0)) -> 14 | BJ26: =IF($A26="",0,VLOOKUP($B26,pitchers!$B:CE,35,FALSE)) -> 0.66 | BK26: =IF($A26="",0,VLOOKUP($B26,pitchers!$B:CF,40,FALSE)) -> 10 | BL26: =IFERROR(IF($A26="",0,VLOOKUP($CO26,FG!$N:BH,6,FALSE)),0) -> 0.449 | BM26: =IFERROR(IF($A26="",0,VLOOKUP($CO26,FG!$AP:BI,6,FALSE)),0) -> 0.354 | BN26: =VLOOKUP(B26,'batters-temp'!V:CG,64,FALSE) -> 16:10:00 | BO26: =IFERROR(IF($A26="",0,VLOOKUP($CP26,PVLHB!$B:AQ,42,FALSE)),0) -> 0.4285714286 | BP26: =IFERROR(IF($A26="",0,VLOOKUP($CP26,PVRHB!$B:AR,42,FALSE)),0) -> 0.3789473684 | BQ26: =IFERROR(IF($A26="",0,VLOOKUP($B26,PVLHB!$B:AS,43,FALSE)),0) -> 0.25 | BR26: =IFERROR(IF($A26="",0,VLOOKUP($B26,PVRHB!$B:AT,43,FALSE)),0) -> 0.2585034014 | BS26: =IFERROR(IF($A26="",0,IF($N26="home",VLOOKUP('Pitcher temp'!$CP26,'P-home'!$B:BZ,32,FALSE),VLOOKUP('Pitcher temp'!$CP26,'P-road'!$B:BZ,32,FALSE))),"") -> 0 | BT26: =IFERROR(IF($A26="",0,IF($N26="home",VLOOKUP('Pitcher temp'!$CP26,'P-home'!$B:CA,33,FALSE),VLOOKUP('Pitcher temp'!$CP26,'P-road'!$B:CA,33,FALSE))),"") -> 0 | BU26: =IF(N26="Home",VLOOKUP(M26,team!B:D,3,FALSE),VLOOKUP('Pitcher temp'!BV26,team!B:D,3,FALSE)) -> New York Mets | BV26: =VLOOKUP(C26,team!A:B,2,FALSE) -> CIN | BW26: =IF(A26="",0,VLOOKUP($BU26,weather4!$T:AA,2,FALSE)) -> 0.68 | BX26: =VLOOKUP($BU26,weather4!$T:AB,3,FALSE) -> Overcast | BY26: =IF(A26="",0,VLOOKUP($BU26,weather4!$T:AC,4,FALSE)) -> 0.15 | BZ26: =VLOOKUP($BU26,weather4!$T:AD,5,FALSE) -> 0.15 | CA26: =VLOOKUP($BU26,weather4!$T:AE,6,FALSE) -> 0.15 | CB26: =VLOOKUP($BU26,weather4!$T:AF,7,FALSE) -> E 11 mph | CC26: =VLOOKUP($BU26,weather4!$T:AG,8,FALSE) -> 70° | CD26: =IFERROR(IF($A26="",0,VLOOKUP($CO26,PVLHB2014!$AX:BZ,6,FALSE)),0) -> 0 | CE26: =IFERROR(IF($A26="",0,VLOOKUP($CO26,PVRHB2014!$AW:CA,6,FALSE)),0) -> 0 | CF26: =INDEX(team!A:A,(MATCH('Pitcher temp'!M26,team!B:B,0))) -> NYM | CG26: =IFERROR(IF($A26="",0,VLOOKUP($B26,PVLHB!$B:BJ,44,FALSE)),0) -> 0.03125 | CH26: =IFERROR(IF($A26="",0,VLOOKUP($B26,PVRHB!$B:BJ,44,FALSE)),0) -> 0.02941176471 | CI26: =IFERROR(IF($A26="",0,VLOOKUP($CO26,PVLHB2014!$AX:CE,9,FALSE)),0) -> 0 | CJ26: =IFERROR(IF($A26="",0,VLOOKUP($CO26,PVRHB2014!$AW:CF,9,FALSE)),0) -> 0 | CK26: =IFERROR(IF($A26="",0,VLOOKUP($CO26,FG!$N:CG,10,FALSE)),0) -> 5.58 | CL26: =IFERROR(IF($A26="",0,VLOOKUP($CO26,FG!$AP:CH,10,FALSE)),0) -> 3.29 | CM26: =IFERROR(IF($A26="",0,VLOOKUP($CO26,FG!$A:CI,8,FALSE)),0) -> 3.64 | CN26: =IFERROR(IF($A26="",0,VLOOKUP($CO26,FG!$A:CJ,10,FALSE)),0) -> 3.55 | CO26: =IF($B26="","",VLOOKUP($B26,names!$J:AB,7,FALSE)) -> John Lamb | CP26: =IF($B26="","",VLOOKUP($B26,names!$J:AB,8,FALSE)) -> John Lamb | CQ26: 863 | CR26: 729 | CS26: 863 | CT26: 729
A27: =IF(OR('FD pit'!$C29="",'FD pit'!$C29="Name"),"",'FD pit'!$C29) -> Breslow, Craig | B27: =IF(A27="","",VLOOKUP(A27,names!F:G,2,FALSE)) -> Craig Breslow | C27: =IF($A27="","",VLOOKUP($A27,'FD pit'!$C:P,4,FALSE)) -> Bos | D27: =IF($A27="",0,VLOOKUP($A27,'FD pit'!$C:AP,5,FALSE)) -> 4000 | E27: =IF($A27="",0,VLOOKUP($A27,'FD pit'!$C:AQ,MATCH("/GP",'FD pit'!$C$4:$N$4,0),FALSE)) -> 1.6 | F27: =IF($A27="",0,VLOOKUP($A27,'FD pit'!$C:AR,MATCH("/GP",'FD pit'!$C$4:$N$4,0)+2,FALSE)) -> 3.2 | G27: =IF($A27="",0,VLOOKUP($A27,'FD pit'!$C:AS,MATCH("/GP",'FD pit'!$C$4:$N$4,0)+3,FALSE)) -> 2 | H27: =IFERROR(VLOOKUP($A27,'DK pit'!$C:R,5,FALSE),0) -> 4000 | I27: =IFERROR(VLOOKUP($A27,'DK pit'!$C:S,MATCH("/GP",'DK pit'!$C$4:$N$4,0),FALSE),0) -> 2.4 | J27: =IFERROR(VLOOKUP($A27,'DK pit'!$C:T,MATCH("/GP",'FD pit'!$C$4:$N$4,0)+2,FALSE),0) -> 6.2 | K27: =IFERROR(VLOOKUP($A27,'DK pit'!$C:U,MATCH("/GP",'DK pit'!$C$4:$N$4,0)+3,FALSE),0) -> 3.6 | L27: =IFERROR(VLOOKUP(C27,team!A:B,2,FALSE),"") -> BOS | M27: =IFERROR(VLOOKUP(L27,Games!A:B,2,FALSE),"") -> BAL | N27: =IFERROR(VLOOKUP($L27,Games!$A:C,3,FALSE),"") -> Home | O27: =IF(A27="",0,IFERROR(VALUE(IFERROR(VLOOKUP($L27,Games!$A:F,4,FALSE),"")),110)) -> 110 | P27: =IFERROR(VALUE(LEFT(VLOOKUP($L27,Games!$A:E,5,FALSE),4)),"") -> 7.5 | Q27: =VLOOKUP(B27,names!J:M,4,FALSE) -> L | R27: =IFERROR(IF($A27="",0,VLOOKUP($B27,pitchers!$B:AM,12,FALSE)),"") -> 55.2 | S27: =IF($A27="",0,VLOOKUP($B27,pitchers!$B:AN,20,FALSE)) -> 4.53 | T27: =IF($A27="",0,VLOOKUP($B27,pitchers!$B:AO,38,FALSE)) -> 1.491 | U27: =IFERROR(IF($A27="",0,VLOOKUP($B27,pitchersL14!$B:AP,12,FALSE)),0) -> 3.1 | V27: =IFERROR(IF($A27="",0,VLOOKUP($B27,pitchersL14!$B:AQ,20,FALSE)),"---") -> 2.7 | W27: =IFERROR(IF($A27="",0,VLOOKUP($B27,pitchersL14!$B:AR,38,FALSE)),0) -> 0.6 | X27: =IFERROR(IF($A27="",0,IF($N27="home",VLOOKUP('Pitcher temp'!$CP27,'P-home'!$B:AF,7,FALSE),VLOOKUP('Pitcher temp'!$CP27,'P-road'!$B:AF,7,FALSE))),"") -> 126 | Y27: =IFERROR(IF($A27="",0,IF($N27="home",VLOOKUP('Pitcher temp'!$CP27,'P-home'!$B:AG,31,FALSE),VLOOKUP('Pitcher temp'!$CP27,'P-road'!$B:AG,31,FALSE))),"") -> 0.737 | Z27: =IF($A27="",0,INDEX('Team B L7'!$A:$A,MATCH('Pitcher temp'!$AG27,'Team B L7'!$B:$B,0),0)) -> 25 | AA27: =IF($A27="",0,INDEX('Team B L7'!$O:$O,MATCH('Pitcher temp'!$AG27,'Team B L7'!$B:$B,0),0)) -> 0.63 | AB27: =INDEX(team!C:C,MATCH('Pitcher temp'!M27,team!B:B,0),0) -> Baltimore | AC27: =IF(Q27="R",INDEX(TeamBVR!A:A,MATCH('Pitcher temp'!AB27,TeamBVR!B:B,0),0),INDEX(TeamBVL!A:A,MATCH('Pitcher temp'!AB27,TeamBVR!B:B,0),0)) -> 5 | AD27: =IF($Q27="R",INDEX(TeamBVR!$O:$O,MATCH('Pitcher temp'!$AB27,TeamBVR!$B:$B,0),0),INDEX(TeamBVL!$O:$O,MATCH('Pitcher temp'!$AB27,TeamBVR!$B:$B,0),0)) -> 0.738 | AE27: =IF($A27="","",IF($N27="home",INDEX(TeamBroad!$A:$A,MATCH('Pitcher temp'!$AG27,TeamBroad!$B:$B,0),0),INDEX(TeamBhome!$A:$A,MATCH('Pitcher temp'!$AG27,TeamBhome!$B:$B,0),0))) -> 20 | AF27: =IF($A27="","",IF($N27="home",INDEX(TeamBroad!$O:$O,MATCH('Pitcher temp'!$AG27,TeamBroad!$B:$B,0),0),INDEX(TeamBroad!$O:$O,MATCH('Pitcher temp'!$AG27,TeamBroad!$B:$B,0),0))) -> 0.674 | AG27: =IF(A27="","",VLOOKUP(M27,team!B:C,2,FALSE)) -> Baltimore | AH27: =IF(N27="home",VLOOKUP(L27,team!B:C,2,FALSE),VLOOKUP('Pitcher temp'!M27,team!B:C,2,FALSE)) -> Boston | AI27: =VLOOKUP($AH27,team!$E:G,3,FALSE) -> Fenway Park (Boston, Massachusetts) | AJ27: =VLOOKUP($AH27,team!$E:H,2,FALSE) -> 5 | AK27: =VLOOKUP($AH27,team!$E:I,4,FALSE) -> 1.072 | AL27: =VLOOKUP($AH27,team!$J:P,2,FALSE) -> 27 | AM27: =VLOOKUP($AH27,team!$J:Q,4,FALSE) -> 0.72 | AN27: =VLOOKUP(AH27,team!C:O,13,FALSE) -> Boston Red Sox | AO27: =INDEX(weather!$F:$F,MATCH('Pitcher temp'!$AN27,weather!$B:$B,0),0) -> 60° F/ 16° C | AP27: =INDEX(weather!$F:$F,(MATCH('Pitcher temp'!$AN27,weather!$B:$B,0))+1,0) -> Clear | AQ27: 1.664 | AR27: 2.496 | AS27: 1.6 | AT27: 2.4 | AU27: =IF($V27>9,Projections!$H$4,IF('Pitcher temp'!$V27>5,Projections!$H$5,IF('Pitcher temp'!$V27<1.8,Projections!$H$6,0))) -> 0 | AV27: =IF($Z27<6,Projections!$H$9,IF($Z27>24,Projections!$H$10,0)) -> 0.1 | AW27: =IF($AC27<6,Projections!$H$13,IF($AC27>24,Projections!$H$14,0)) -> -0.08 | AX27: =IF($AE27<6,Projections!$H$17,IF($AE27>24,Projections!$H$18,0)) -> 0 | AY27: =IF($AJ27<6,Projections!$H$21,IF($AJ27>24,Projections!$H$22,0)) -> -0.1 | AZ27: =IF($P27>9.5,Projections!$H$25,IF('Pitcher temp'!$P27>8,Projections!$H$26,IF(AND('Pitcher temp'!$P27<7,'Pitcher temp'!$P27>1),Projections!$H$27,0))) -> 0 | BA27: =IF($O27<-190,Projections!$H$30,IF('Pitcher temp'!$O27<-149,Projections!$H$31,IF('Pitcher temp'!$O27>145,Projections!$H$32,0)))+(IF($BI27<7,Projections!$H$35,IF($BI27>23,Projections!$H$36,0))) -> 0.12 | BB27: =IF($V27>9,Projections!$I$4,IF('Pitcher temp'!$V27>5,Projections!$I$5,IF('Pitcher temp'!$V27<1.8,Projections!$I$6,0))) -> 0 | BC27: =IF($Z27<6,Projections!$I$9,IF($Z27>24,Projections!$I$10,0)) -> 0 | BD27: =IF($AC27<6,Projections!$I$13,IF($AC27>24,Projections!$I$14,0)) -> 0 | BE27: =IF($AE27<6,Projections!$I$17,IF($AE27>24,Projections!$I$18,0)) -> 0 | BF27: =IF($AJ27<6,Projections!$I$21,IF($AJ27>24,Projections!$I$22,0)) -> 0 | BG27: =IF($P27>9.5,Projections!$I$25,IF('Pitcher temp'!$P27>8,Projections!$I$26,IF(AND('Pitcher temp'!$P27<7,'Pitcher temp'!$P27>1),Projections!$I$27,0))) -> 0 | BH27: =IF($O27<-190,Projections!$I$30,IF('Pitcher temp'!$O27<-149,Projections!$I$31,IF('Pitcher temp'!$O27>145,Projections!$I$32,0)))+(IF($BI27<7,Projections!$I$35,IF($BI27>23,Projections!$I$36,0))) -> 0 | BI27: =IF(A27="",0,INDEX(teamk!A:A,MATCH('Pitcher temp'!AB27,teamk!B:B,0),0)) -> 3 | BJ27: =IF($A27="",0,VLOOKUP($B27,pitchers!$B:CE,35,FALSE)) -> 0.59 | BK27: =IF($A27="",0,VLOOKUP($B27,pitchers!$B:CF,40,FALSE)) -> 6.8 | BL27: =IFERROR(IF($A27="",0,VLOOKUP($CO27,FG!$N:BH,6,FALSE)),0) -> 0.35 | BM27: =IFERROR(IF($A27="",0,VLOOKUP($CO27,FG!$AP:BI,6,FALSE)),0) -> 0.359 | BN27: =VLOOKUP(B27,'batters-temp'!V:CG,64,FALSE) -> 16:05:00 | BO27: =IFERROR(IF($A27="",0,VLOOKUP($CP27,PVLHB!$B:AQ,42,FALSE)),0) -> 0.3181818182 | BP27: =IFERROR(IF($A27="",0,VLOOKUP($CP27,PVRHB!$B:AR,42,FALSE)),0) -> 0.31 | BQ27: =IFERROR(IF($A27="",0,VLOOKUP($B27,PVLHB!$B:AS,43,FALSE)),0) -> 0.1318681319 | BR27: =IFERROR(IF($A27="",0,VLOOKUP($B27,PVRHB!$B:AT,43,FALSE)),0) -> 0.1960784314 | BS27: =IFERROR(IF($A27="",0,IF($N27="home",VLOOKUP('Pitcher temp'!$CP27,'P-home'!$B:BZ,32,FALSE),VLOOKUP('Pitcher temp'!$CP27,'P-road'!$B:BZ,32,FALSE))),"") -> 0.2912621359 | BT27: =IFERROR(IF($A27="",0,IF($N27="home",VLOOKUP('Pitcher temp'!$CP27,'P-home'!$B:CA,33,FALSE),VLOOKUP('Pitcher temp'!$CP27,'P-road'!$B:CA,33,FALSE))),"") -> 0.1666666667 | BU27: =IF(N27="Home",VLOOKUP(M27,team!B:D,3,FALSE),VLOOKUP('Pitcher temp'!BV27,team!B:D,3,FALSE)) -> Baltimore Orioles | BV27: =VLOOKUP(C27,team!A:B,2,FALSE) -> BOS | BW27: =IF(A27="",0,VLOOKUP($BU27,weather4!$T:AA,2,FALSE)) -> 0.51 | BX27: =VLOOKUP($BU27,weather4!$T:AB,3,FALSE) -> Clear | BY27: =IF(A27="",0,VLOOKUP($BU27,weather4!$T:AC,4,FALSE)) -> 0 | BZ27: =VLOOKUP($BU27,weather4!$T:AD,5,FALSE) -> 0 | CA27: =VLOOKUP($BU27,weather4!$T:AE,6,FALSE) -> 0 | CB27: =VLOOKUP($BU27,weather4!$T:AF,7,FALSE) -> ENE 13 mph | CC27: =VLOOKUP($BU27,weather4!$T:AG,8,FALSE) -> 63° | CD27: =IFERROR(IF($A27="",0,VLOOKUP($CO27,PVLHB2014!$AX:BZ,6,FALSE)),0) -> 0.374 | CE27: =IFERROR(IF($A27="",0,VLOOKUP($CO27,PVRHB2014!$AW:CA,6,FALSE)),0) -> 0.406 | CF27: =INDEX(team!A:A,(MATCH('Pitcher temp'!M27,team!B:B,0))) -> Bal | CG27: =IFERROR(IF($A27="",0,VLOOKUP($B27,PVLHB!$B:BJ,44,FALSE)),0) -> 0.0375 | CH27: =IFERROR(IF($A27="",0,VLOOKUP($B27,PVRHB!$B:BJ,44,FALSE)),0) -> 0.05263157895 | CI27: =IFERROR(IF($A27="",0,VLOOKUP($CO27,PVLHB2014!$AX:CE,9,FALSE)),0) -> 5.62 | CJ27: =IFERROR(IF($A27="",0,VLOOKUP($CO27,PVRHB2014!$AW:CF,9,FALSE)),0) -> 4.7 | CK27: =IFERROR(IF($A27="",0,VLOOKUP($CO27,FG!$N:CG,10,FALSE)),0) -> 4.95 | CL27: =IFERROR(IF($A27="",0,VLOOKUP($CO27,FG!$AP:CH,10,FALSE)),0) -> 5.21 | CM27: =IFERROR(IF($A27="",0,VLOOKUP($CO27,FG!$A:CI,8,FALSE)),0) -> 5.11 | CN27: =IFERROR(IF($A27="",0,VLOOKUP($CO27,FG!$A:CJ,10,FALSE)),0) -> 4.45 | CO27: =IF($B27="","",VLOOKUP($B27,names!$J:AB,7,FALSE)) -> Craig Breslow | CP27: =IF($B27="","",VLOOKUP($B27,names!$J:AB,8,FALSE)) -> Craig Breslow | CQ27: 2404 | CR27: 1603 | CS27: 2500 | CT27: 1667
A28: =IF(OR('FD pit'!$C30="",'FD pit'!$C30="Name"),"",'FD pit'!$C30) ->  | B28: =IF(A28="","",VLOOKUP(A28,names!F:G,2,FALSE)) ->  | C28: =IF($A28="","",VLOOKUP($A28,'FD pit'!$C:P,4,FALSE)) ->  | D28: =IF($A28="",0,VLOOKUP($A28,'FD pit'!$C:AP,5,FALSE)) -> 0 | E28: =IF($A28="",0,VLOOKUP($A28,'FD pit'!$C:AQ,MATCH("/GP",'FD pit'!$C$4:$N$4,0),FALSE)) -> 0 | F28: =IF($A28="",0,VLOOKUP($A28,'FD pit'!$C:AR,MATCH("/GP",'FD pit'!$C$4:$N$4,0)+2,FALSE)) -> 0 | G28: =IF($A28="",0,VLOOKUP($A28,'FD pit'!$C:AS,MATCH("/GP",'FD pit'!$C$4:$N$4,0)+3,FALSE)) -> 0 | H28: =IFERROR(VLOOKUP($A28,'DK pit'!$C:R,5,FALSE),0) -> 0 | I28: =IFERROR(VLOOKUP($A28,'DK pit'!$C:S,MATCH("/GP",'DK pit'!$C$4:$N$4,0),FALSE),0) -> 0 | J28: =IFERROR(VLOOKUP($A28,'DK pit'!$C:T,MATCH("/GP",'FD pit'!$C$4:$N$4,0)+2,FALSE),0) -> 0 | K28: =IFERROR(VLOOKUP($A28,'DK pit'!$C:U,MATCH("/GP",'DK pit'!$C$4:$N$4,0)+3,FALSE),0) -> 0 | L28: =IFERROR(VLOOKUP(C28,team!A:B,2,FALSE),"") ->  | M28: =IFERROR(VLOOKUP(L28,Games!A:B,2,FALSE),"") ->  | N28: =IFERROR(VLOOKUP($L28,Games!$A:C,3,FALSE),"") ->  | O28: =IF(A28="",0,IFERROR(VALUE(IFERROR(VLOOKUP($L28,Games!$A:F,4,FALSE),"")),110)) -> 0 | P28: =IFERROR(VALUE(LEFT(VLOOKUP($L28,Games!$A:E,5,FALSE),4)),"") ->  | Q28: =VLOOKUP(B28,names!J:M,4,FALSE) ->  | R28: =IFERROR(IF($A28="",0,VLOOKUP($B28,pitchers!$B:AM,12,FALSE)),"") -> 0 | S28: =IF($A28="",0,VLOOKUP($B28,pitchers!$B:AN,20,FALSE)) -> 0 | T28: =IF($A28="",0,VLOOKUP($B28,pitchers!$B:AO,38,FALSE)) -> 0 | U28: =IFERROR(IF($A28="",0,VLOOKUP($B28,pitchersL14!$B:AP,12,FALSE)),0) -> 0 | V28: =IFERROR(IF($A28="",0,VLOOKUP($B28,pitchersL14!$B:AQ,20,FALSE)),"---") -> 0 | W28: =IFERROR(IF($A28="",0,VLOOKUP($B28,pitchersL14!$B:AR,38,FALSE)),0) -> 0 | X28: =IFERROR(IF($A28="",0,IF($N28="home",VLOOKUP('Pitcher temp'!$CP28,'P-home'!$B:AF,7,FALSE),VLOOKUP('Pitcher temp'!$CP28,'P-road'!$B:AF,7,FALSE))),"") -> 0 | Y28: =IFERROR(IF($A28="",0,IF($N28="home",VLOOKUP('Pitcher temp'!$CP28,'P-home'!$B:AG,31,FALSE),VLOOKUP('Pitcher temp'!$CP28,'P-road'!$B:AG,31,FALSE))),"") -> 0 | Z28: =IF($A28="",0,INDEX('Team B L7'!$A:$A,MATCH('Pitcher temp'!$AG28,'Team B L7'!$B:$B,0),0)) -> 0 | AA28: =IF($A28="",0,INDEX('Team B L7'!$O:$O,MATCH('Pitcher temp'!$AG28,'Team B L7'!$B:$B,0),0)) -> 0 | AB28: =INDEX(team!C:C,MATCH('Pitcher temp'!M28,team!B:B,0),0) ->  | AC28: =IF(Q28="R",INDEX(TeamBVR!A:A,MATCH('Pitcher temp'!AB28,TeamBVR!B:B,0),0),INDEX(TeamBVL!A:A,MATCH('Pitcher temp'!AB28,TeamBVR!B:B,0),0)) ->  | AD28: =IF($Q28="R",INDEX(TeamBVR!$O:$O,MATCH('Pitcher temp'!$AB28,TeamBVR!$B:$B,0),0),INDEX(TeamBVL!$O:$O,MATCH('Pitcher temp'!$AB28,TeamBVR!$B:$B,0),0)) ->  | AE28: =IF($A28="","",IF($N28="home",INDEX(TeamBroad!$A:$A,MATCH('Pitcher temp'!$AG28,TeamBroad!$B:$B,0),0),INDEX(TeamBhome!$A:$A,MATCH('Pitcher temp'!$AG28,TeamBhome!$B:$B,0),0))) ->  | AF28: =IF($A28="","",IF($N28="home",INDEX(TeamBroad!$O:$O,MATCH('Pitcher temp'!$AG28,TeamBroad!$B:$B,0),0),INDEX(TeamBroad!$O:$O,MATCH('Pitcher temp'!$AG28,TeamBroad!$B:$B,0),0))) ->  | AG28: =IF(A28="","",VLOOKUP(M28,team!B:C,2,FALSE)) ->  | AH28: =IF(N28="home",VLOOKUP(L28,team!B:C,2,FALSE),VLOOKUP('Pitcher temp'!M28,team!B:C,2,FALSE)) ->  | AI28: =VLOOKUP($AH28,team!$E:G,3,FALSE) ->  | AJ28: =VLOOKUP($AH28,team!$E:H,2,FALSE) ->  | AK28: =VLOOKUP($AH28,team!$E:I,4,FALSE) ->  | AL28: =VLOOKUP($AH28,team!$J:P,2,FALSE) ->  | AM28: =VLOOKUP($AH28,team!$J:Q,4,FALSE) ->  | AN28: =VLOOKUP(AH28,team!C:O,13,FALSE) ->  | AO28: =INDEX(weather!$F:$F,MATCH('Pitcher temp'!$AN28,weather!$B:$B,0),0) ->  | AP28: =INDEX(weather!$F:$F,(MATCH('Pitcher temp'!$AN28,weather!$B:$B,0))+1,0) ->  | AU28: =IF($V28>9,Projections!$H$4,IF('Pitcher temp'!$V28>5,Projections!$H$5,IF('Pitcher temp'!$V28<1.8,Projections!$H$6,0))) -> 0.12 | AV28: =IF($Z28<6,Projections!$H$9,IF($Z28>24,Projections!$H$10,0)) -> -0.12 | AW28: =IF($AC28<6,Projections!$H$13,IF($AC28>24,Projections!$H$14,0)) ->  | AX28: =IF($AE28<6,Projections!$H$17,IF($AE28>24,Projections!$H$18,0)) -> 0.07 | AY28: =IF($AJ28<6,Projections!$H$21,IF($AJ28>24,Projections!$H$22,0)) ->  | AZ28: =IF($P28>9.5,Projections!$H$25,IF('Pitcher temp'!$P28>8,Projections!$H$26,IF(AND('Pitcher temp'!$P28<7,'Pitcher temp'!$P28>1),Projections!$H$27,0))) -> -0.15 | BA28: =IF($O28<-190,Projections!$H$30,IF('Pitcher temp'!$O28<-149,Projections!$H$31,IF('Pitcher temp'!$O28>145,Projections!$H$32,0)))+(IF($BI28<7,Projections!$H$35,IF($BI28>23,Projections!$H$36,0))) -> 0.12 | BB28: =IF($V28>9,Projections!$I$4,IF('Pitcher temp'!$V28>5,Projections!$I$5,IF('Pitcher temp'!$V28<1.8,Projections!$I$6,0))) -> 0 | BC28: =IF($Z28<6,Projections!$I$9,IF($Z28>24,Projections!$I$10,0)) -> 0 | BD28: =IF($AC28<6,Projections!$I$13,IF($AC28>24,Projections!$I$14,0)) ->  | BE28: =IF($AE28<6,Projections!$I$17,IF($AE28>24,Projections!$I$18,0)) -> 0 | BF28: =IF($AJ28<6,Projections!$I$21,IF($AJ28>24,Projections!$I$22,0)) ->  | BG28: =IF($P28>9.5,Projections!$I$25,IF('Pitcher temp'!$P28>8,Projections!$I$26,IF(AND('Pitcher temp'!$P28<7,'Pitcher temp'!$P28>1),Projections!$I$27,0))) -> 0 | BH28: =IF($O28<-190,Projections!$I$30,IF('Pitcher temp'!$O28<-149,Projections!$I$31,IF('Pitcher temp'!$O28>145,Projections!$I$32,0)))+(IF($BI28<7,Projections!$I$35,IF($BI28>23,Projections!$I$36,0))) -> 0 | BI28: =IF(A28="",0,INDEX(teamk!A:A,MATCH('Pitcher temp'!AB28,teamk!B:B,0),0)) -> 0 | BJ28: =IF($A28="",0,VLOOKUP($B28,pitchers!$B:CE,35,FALSE)) -> 0 | BK28: =IF($A28="",0,VLOOKUP($B28,pitchers!$B:CF,40,FALSE)) -> 0 | BL28: =IFERROR(IF($A28="",0,VLOOKUP($CO28,FG!$N:BH,6,FALSE)),0) -> 0 | BM28: =IFERROR(IF($A28="",0,VLOOKUP($CO28,FG!$AP:BI,6,FALSE)),0) -> 0 | BN28: =VLOOKUP(B28,'batters-temp'!V:CG,64,FALSE) ->  | BO28: =IFERROR(IF($A28="",0,VLOOKUP($CP28,PVLHB!$B:AQ,42,FALSE)),0) -> 0 | BP28: =IFERROR(IF($A28="",0,VLOOKUP($CP28,PVRHB!$B:AR,42,FALSE)),0) -> 0 | BQ28: =IFERROR(IF($A28="",0,VLOOKUP($B28,PVLHB!$B:AS,43,FALSE)),0) -> 0 | BR28: =IFERROR(IF($A28="",0,VLOOKUP($B28,PVRHB!$B:AT,43,FALSE)),0) -> 0 | BS28: =IFERROR(IF($A28="",0,IF($N28="home",VLOOKUP('Pitcher temp'!$CP28,'P-home'!$B:BZ,32,FALSE),VLOOKUP('Pitcher temp'!$CP28,'P-road'!$B:BZ,32,FALSE))),"") -> 0 | BT28: =IFERROR(IF($A28="",0,IF($N28="home",VLOOKUP('Pitcher temp'!$CP28,'P-home'!$B:CA,33,FALSE),VLOOKUP('Pitcher temp'!$CP28,'P-road'!$B:CA,33,FALSE))),"") -> 0 | BU28: =IF(N28="Home",VLOOKUP(M28,team!B:D,3,FALSE),VLOOKUP('Pitcher temp'!BV28,team!B:D,3,FALSE)) ->  | BV28: =VLOOKUP(C28,team!A:B,2,FALSE) ->  | BW28: =IF(A28="",0,VLOOKUP($BU28,weather4!$T:AA,2,FALSE)) -> 0 | BX28: =VLOOKUP($BU28,weather4!$T:AB,3,FALSE) ->  | BY28: =IF(A28="",0,VLOOKUP($BU28,weather4!$T:AC,4,FALSE)) -> 0 | BZ28: =VLOOKUP($BU28,weather4!$T:AD,5,FALSE) ->  | CA28: =VLOOKUP($BU28,weather4!$T:AE,6,FALSE) ->  | CB28: =VLOOKUP($BU28,weather4!$T:AF,7,FALSE) ->  | CC28: =VLOOKUP($BU28,weather4!$T:AG,8,FALSE) ->  | CD28: =IFERROR(IF($A28="",0,VLOOKUP($CO28,PVLHB2014!$AX:BZ,6,FALSE)),0) -> 0 | CE28: =IFERROR(IF($A28="",0,VLOOKUP($CO28,PVRHB2014!$AW:CA,6,FALSE)),0) -> 0 | CF28: =INDEX(team!A:A,(MATCH('Pitcher temp'!M28,team!B:B,0))) ->  | CG28: =IFERROR(IF($A28="",0,VLOOKUP($B28,PVLHB!$B:BJ,44,FALSE)),0) -> 0 | CH28: =IFERROR(IF($A28="",0,VLOOKUP($B28,PVRHB!$B:BJ,44,FALSE)),0) -> 0 | CI28: =IFERROR(IF($A28="",0,VLOOKUP($CO28,PVLHB2014!$AX:CE,9,FALSE)),0) -> 0 | CJ28: =IFERROR(IF($A28="",0,VLOOKUP($CO28,PVRHB2014!$AW:CF,9,FALSE)),0) -> 0 | CK28: =IFERROR(IF($A28="",0,VLOOKUP($CO28,FG!$N:CG,10,FALSE)),0) -> 0 | CL28: =IFERROR(IF($A28="",0,VLOOKUP($CO28,FG!$AP:CH,10,FALSE)),0) -> 0 | CM28: =IFERROR(IF($A28="",0,VLOOKUP($CO28,FG!$A:CI,8,FALSE)),0) -> 0 | CN28: =IFERROR(IF($A28="",0,VLOOKUP($CO28,FG!$A:CJ,10,FALSE)),0) -> 0 | CO28: =IF($B28="","",VLOOKUP($B28,names!$J:AB,7,FALSE)) ->  | CP28: =IF($B28="","",VLOOKUP($B28,names!$J:AB,8,FALSE)) ->  | CQ28: 0 | CR28: 0 | CS28: 0 | CT28: 0
A29: =IF(OR('FD pit'!$C31="",'FD pit'!$C31="Name"),"",'FD pit'!$C31) ->  | B29: =IF(A29="","",VLOOKUP(A29,names!F:G,2,FALSE)) ->  | C29: =IF($A29="","",VLOOKUP($A29,'FD pit'!$C:P,4,FALSE)) ->  | D29: =IF($A29="",0,VLOOKUP($A29,'FD pit'!$C:AP,5,FALSE)) -> 0 | E29: =IF($A29="",0,VLOOKUP($A29,'FD pit'!$C:AQ,MATCH("/GP",'FD pit'!$C$4:$N$4,0),FALSE)) -> 0 | F29: =IF($A29="",0,VLOOKUP($A29,'FD pit'!$C:AR,MATCH("/GP",'FD pit'!$C$4:$N$4,0)+2,FALSE)) -> 0 | G29: =IF($A29="",0,VLOOKUP($A29,'FD pit'!$C:AS,MATCH("/GP",'FD pit'!$C$4:$N$4,0)+3,FALSE)) -> 0 | H29: =IFERROR(VLOOKUP($A29,'DK pit'!$C:R,5,FALSE),0) -> 0 | I29: =IFERROR(VLOOKUP($A29,'DK pit'!$C:S,MATCH("/GP",'DK pit'!$C$4:$N$4,0),FALSE),0) -> 0 | J29: =IFERROR(VLOOKUP($A29,'DK pit'!$C:T,MATCH("/GP",'FD pit'!$C$4:$N$4,0)+2,FALSE),0) -> 0 | K29: =IFERROR(VLOOKUP($A29,'DK pit'!$C:U,MATCH("/GP",'DK pit'!$C$4:$N$4,0)+3,FALSE),0) -> 0 | L29: =IFERROR(VLOOKUP(C29,team!A:B,2,FALSE),"") ->  | M29: =IFERROR(VLOOKUP(L29,Games!A:B,2,FALSE),"") ->  | N29: =IFERROR(VLOOKUP($L29,Games!$A:C,3,FALSE),"") ->  | O29: =IF(A29="",0,IFERROR(VALUE(IFERROR(VLOOKUP($L29,Games!$A:F,4,FALSE),"")),110)) -> 0 | P29: =IFERROR(VALUE(LEFT(VLOOKUP($L29,Games!$A:E,5,FALSE),4)),"") ->  | Q29: =VLOOKUP(B29,names!J:M,4,FALSE) ->  | R29: =IFERROR(IF($A29="",0,VLOOKUP($B29,pitchers!$B:AM,12,FALSE)),"") -> 0 | S29: =IF($A29="",0,VLOOKUP($B29,pitchers!$B:AN,20,FALSE)) -> 0 | T29: =IF($A29="",0,VLOOKUP($B29,pitchers!$B:AO,38,FALSE)) -> 0 | U29: =IFERROR(IF($A29="",0,VLOOKUP($B29,pitchersL14!$B:AP,12,FALSE)),0) -> 0 | V29: =IFERROR(IF($A29="",0,VLOOKUP($B29,pitchersL14!$B:AQ,20,FALSE)),"---") -> 0 | W29: =IFERROR(IF($A29="",0,VLOOKUP($B29,pitchersL14!$B:AR,38,FALSE)),0) -> 0 | X29: =IFERROR(IF($A29="",0,IF($N29="home",VLOOKUP('Pitcher temp'!$CP29,'P-home'!$B:AF,7,FALSE),VLOOKUP('Pitcher temp'!$CP29,'P-road'!$B:AF,7,FALSE))),"") -> 0 | Y29: =IFERROR(IF($A29="",0,IF($N29="home",VLOOKUP('Pitcher temp'!$CP29,'P-home'!$B:AG,31,FALSE),VLOOKUP('Pitcher temp'!$CP29,'P-road'!$B:AG,31,FALSE))),"") -> 0 | Z29: =IF($A29="",0,INDEX('Team B L7'!$A:$A,MATCH('Pitcher temp'!$AG29,'Team B L7'!$B:$B,0),0)) -> 0 | AA29: =IF($A29="",0,INDEX('Team B L7'!$O:$O,MATCH('Pitcher temp'!$AG29,'Team B L7'!$B:$B,0),0)) -> 0 | AB29: =INDEX(team!C:C,MATCH('Pitcher temp'!M29,team!B:B,0),0) ->  | AC29: =IF(Q29="R",INDEX(TeamBVR!A:A,MATCH('Pitcher temp'!AB29,TeamBVR!B:B,0),0),INDEX(TeamBVL!A:A,MATCH('Pitcher temp'!AB29,TeamBVR!B:B,0),0)) ->  | AD29: =IF($Q29="R",INDEX(TeamBVR!$O:$O,MATCH('Pitcher temp'!$AB29,TeamBVR!$B:$B,0),0),INDEX(TeamBVL!$O:$O,MATCH('Pitcher temp'!$AB29,TeamBVR!$B:$B,0),0)) ->  | AE29: =IF($A29="","",IF($N29="home",INDEX(TeamBroad!$A:$A,MATCH('Pitcher temp'!$AG29,TeamBroad!$B:$B,0),0),INDEX(TeamBhome!$A:$A,MATCH('Pitcher temp'!$AG29,TeamBhome!$B:$B,0),0))) ->  | AF29: =IF($A29="","",IF($N29="home",INDEX(TeamBroad!$O:$O,MATCH('Pitcher temp'!$AG29,TeamBroad!$B:$B,0),0),INDEX(TeamBroad!$O:$O,MATCH('Pitcher temp'!$AG29,TeamBroad!$B:$B,0),0))) ->  | AG29: =IF(A29="","",VLOOKUP(M29,team!B:C,2,FALSE)) ->  | AH29: =IF(N29="home",VLOOKUP(L29,team!B:C,2,FALSE),VLOOKUP('Pitcher temp'!M29,team!B:C,2,FALSE)) ->  | AI29: =VLOOKUP($AH29,team!$E:G,3,FALSE) ->  | AJ29: =VLOOKUP($AH29,team!$E:H,2,FALSE) ->  | AK29: =VLOOKUP($AH29,team!$E:I,4,FALSE) ->  | AL29: =VLOOKUP($AH29,team!$J:P,2,FALSE) ->  | AM29: =VLOOKUP($AH29,team!$J:Q,4,FALSE) ->  | AN29: =VLOOKUP(AH29,team!C:O,13,FALSE) ->  | AO29: =INDEX(weather!$F:$F,MATCH('Pitcher temp'!$AN29,weather!$B:$B,0),0) ->  | AP29: =INDEX(weather!$F:$F,(MATCH('Pitcher temp'!$AN29,weather!$B:$B,0))+1,0) ->  | AU29: =IF($V29>9,Projections!$H$4,IF('Pitcher temp'!$V29>5,Projections!$H$5,IF('Pitcher temp'!$V29<1.8,Projections!$H$6,0))) -> 0.12 | AV29: =IF($Z29<6,Projections!$H$9,IF($Z29>24,Projections!$H$10,0)) -> -0.12 | AW29: =IF($AC29<6,Projections!$H$13,IF($AC29>24,Projections!$H$14,0)) ->  | AX29: =IF($AE29<6,Projections!$H$17,IF($AE29>24,Projections!$H$18,0)) -> 0.07 | AY29: =IF($AJ29<6,Projections!$H$21,IF($AJ29>24,Projections!$H$22,0)) ->  | AZ29: =IF($P29>9.5,Projections!$H$25,IF('Pitcher temp'!$P29>8,Projections!$H$26,IF(AND('Pitcher temp'!$P29<7,'Pitcher temp'!$P29>1),Projections!$H$27,0))) -> -0.15 | BA29: =IF($O29<-190,Projections!$H$30,IF('Pitcher temp'!$O29<-149,Projections!$H$31,IF('Pitcher temp'!$O29>145,Projections!$H$32,0)))+(IF($BI29<7,Projections!$H$35,IF($BI29>23,Projections!$H$36,0))) -> 0.12 | BB29: =IF($V29>9,Projections!$I$4,IF('Pitcher temp'!$V29>5,Projections!$I$5,IF('Pitcher temp'!$V29<1.8,Projections!$I$6,0))) -> 0 | BC29: =IF($Z29<6,Projections!$I$9,IF($Z29>24,Projections!$I$10,0)) -> 0 | BD29: =IF($AC29<6,Projections!$I$13,IF($AC29>24,Projections!$I$14,0)) ->  | BE29: =IF($AE29<6,Projections!$I$17,IF($AE29>24,Projections!$I$18,0)) -> 0 | BF29: =IF($AJ29<6,Projections!$I$21,IF($AJ29>24,Projections!$I$22,0)) ->  | BG29: =IF($P29>9.5,Projections!$I$25,IF('Pitcher temp'!$P29>8,Projections!$I$26,IF(AND('Pitcher temp'!$P29<7,'Pitcher temp'!$P29>1),Projections!$I$27,0))) -> 0 | BH29: =IF($O29<-190,Projections!$I$30,IF('Pitcher temp'!$O29<-149,Projections!$I$31,IF('Pitcher temp'!$O29>145,Projections!$I$32,0)))+(IF($BI29<7,Projections!$I$35,IF($BI29>23,Projections!$I$36,0))) -> 0 | BI29: =IF(A29="",0,INDEX(teamk!A:A,MATCH('Pitcher temp'!AB29,teamk!B:B,0),0)) -> 0 | BJ29: =IF($A29="",0,VLOOKUP($B29,pitchers!$B:CE,35,FALSE)) -> 0 | BK29: =IF($A29="",0,VLOOKUP($B29,pitchers!$B:CF,40,FALSE)) -> 0 | BL29: =IFERROR(IF($A29="",0,VLOOKUP($CO29,FG!$N:BH,6,FALSE)),0) -> 0 | BM29: =IFERROR(IF($A29="",0,VLOOKUP($CO29,FG!$AP:BI,6,FALSE)),0) -> 0 | BN29: =VLOOKUP(B29,'batters-temp'!V:CG,64,FALSE) ->  | BO29: =IFERROR(IF($A29="",0,VLOOKUP($CP29,PVLHB!$B:AQ,42,FALSE)),0) -> 0 | BP29: =IFERROR(IF($A29="",0,VLOOKUP($CP29,PVRHB!$B:AR,42,FALSE)),0) -> 0 | BQ29: =IFERROR(IF($A29="",0,VLOOKUP($B29,PVLHB!$B:AS,43,FALSE)),0) -> 0 | BR29: =IFERROR(IF($A29="",0,VLOOKUP($B29,PVRHB!$B:AT,43,FALSE)),0) -> 0 | BS29: =IFERROR(IF($A29="",0,IF($N29="home",VLOOKUP('Pitcher temp'!$CP29,'P-home'!$B:BZ,32,FALSE),VLOOKUP('Pitcher temp'!$CP29,'P-road'!$B:BZ,32,FALSE))),"") -> 0 | BT29: =IFERROR(IF($A29="",0,IF($N29="home",VLOOKUP('Pitcher temp'!$CP29,'P-home'!$B:CA,33,FALSE),VLOOKUP('Pitcher temp'!$CP29,'P-road'!$B:CA,33,FALSE))),"") -> 0 | BU29: =IF(N29="Home",VLOOKUP(M29,team!B:D,3,FALSE),VLOOKUP('Pitcher temp'!BV29,team!B:D,3,FALSE)) ->  | BV29: =VLOOKUP(C29,team!A:B,2,FALSE) ->  | BW29: =IF(A29="",0,VLOOKUP($BU29,weather4!$T:AA,2,FALSE)) -> 0 | BX29: =VLOOKUP($BU29,weather4!$T:AB,3,FALSE) ->  | BY29: =IF(A29="",0,VLOOKUP($BU29,weather4!$T:AC,4,FALSE)) -> 0 | BZ29: =VLOOKUP($BU29,weather4!$T:AD,5,FALSE) ->  | CA29: =VLOOKUP($BU29,weather4!$T:AE,6,FALSE) ->  | CB29: =VLOOKUP($BU29,weather4!$T:AF,7,FALSE) ->  | CC29: =VLOOKUP($BU29,weather4!$T:AG,8,FALSE) ->  | CD29: =IFERROR(IF($A29="",0,VLOOKUP($CO29,PVLHB2014!$AX:BZ,6,FALSE)),0) -> 0 | CE29: =IFERROR(IF($A29="",0,VLOOKUP($CO29,PVRHB2014!$AW:CA,6,FALSE)),0) -> 0 | CF29: =INDEX(team!A:A,(MATCH('Pitcher temp'!M29,team!B:B,0))) ->  | CG29: =IFERROR(IF($A29="",0,VLOOKUP($B29,PVLHB!$B:BJ,44,FALSE)),0) -> 0 | CH29: =IFERROR(IF($A29="",0,VLOOKUP($B29,PVRHB!$B:BJ,44,FALSE)),0) -> 0 | CI29: =IFERROR(IF($A29="",0,VLOOKUP($CO29,PVLHB2014!$AX:CE,9,FALSE)),0) -> 0 | CJ29: =IFERROR(IF($A29="",0,VLOOKUP($CO29,PVRHB2014!$AW:CF,9,FALSE)),0) -> 0 | CK29: =IFERROR(IF($A29="",0,VLOOKUP($CO29,FG!$N:CG,10,FALSE)),0) -> 0 | CL29: =IFERROR(IF($A29="",0,VLOOKUP($CO29,FG!$AP:CH,10,FALSE)),0) -> 0 | CM29: =IFERROR(IF($A29="",0,VLOOKUP($CO29,FG!$A:CI,8,FALSE)),0) -> 0 | CN29: =IFERROR(IF($A29="",0,VLOOKUP($CO29,FG!$A:CJ,10,FALSE)),0) -> 0 | CO29: =IF($B29="","",VLOOKUP($B29,names!$J:AB,7,FALSE)) ->  | CP29: =IF($B29="","",VLOOKUP($B29,names!$J:AB,8,FALSE)) ->  | CQ29: 0 | CR29: 0 | CS29: 0 | CT29: 0
A30: =IF(OR('FD pit'!$C32="",'FD pit'!$C32="Name"),"",'FD pit'!$C32) ->  | B30: =IF(A30="","",VLOOKUP(A30,names!F:G,2,FALSE)) ->  | C30: =IF($A30="","",VLOOKUP($A30,'FD pit'!$C:P,4,FALSE)) ->  | D30: =IF($A30="",0,VLOOKUP($A30,'FD pit'!$C:AP,5,FALSE)) -> 0 | E30: =IF($A30="",0,VLOOKUP($A30,'FD pit'!$C:AQ,MATCH("/GP",'FD pit'!$C$4:$N$4,0),FALSE)) -> 0 | F30: =IF($A30="",0,VLOOKUP($A30,'FD pit'!$C:AR,MATCH("/GP",'FD pit'!$C$4:$N$4,0)+2,FALSE)) -> 0 | G30: =IF($A30="",0,VLOOKUP($A30,'FD pit'!$C:AS,MATCH("/GP",'FD pit'!$C$4:$N$4,0)+3,FALSE)) -> 0 | H30: =IFERROR(VLOOKUP($A30,'DK pit'!$C:R,5,FALSE),0) -> 0 | I30: =IFERROR(VLOOKUP($A30,'DK pit'!$C:S,MATCH("/GP",'DK pit'!$C$4:$N$4,0),FALSE),0) -> 0 | J30: =IFERROR(VLOOKUP($A30,'DK pit'!$C:T,MATCH("/GP",'FD pit'!$C$4:$N$4,0)+2,FALSE),0) -> 0 | K30: =IFERROR(VLOOKUP($A30,'DK pit'!$C:U,MATCH("/GP",'DK pit'!$C$4:$N$4,0)+3,FALSE),0) -> 0 | L30: =IFERROR(VLOOKUP(C30,team!A:B,2,FALSE),"") ->  | M30: =IFERROR(VLOOKUP(L30,Games!A:B,2,FALSE),"") ->  | N30: =IFERROR(VLOOKUP($L30,Games!$A:C,3,FALSE),"") ->  | O30: =IF(A30="",0,IFERROR(VALUE(IFERROR(VLOOKUP($L30,Games!$A:F,4,FALSE),"")),110)) -> 0 | P30: =IFERROR(VALUE(LEFT(VLOOKUP($L30,Games!$A:E,5,FALSE),4)),"") ->  | Q30: =VLOOKUP(B30,names!J:M,4,FALSE) ->  | R30: =IFERROR(IF($A30="",0,VLOOKUP($B30,pitchers!$B:AM,12,FALSE)),"") -> 0 | S30: =IF($A30="",0,VLOOKUP($B30,pitchers!$B:AN,20,FALSE)) -> 0 | T30: =IF($A30="",0,VLOOKUP($B30,pitchers!$B:AO,38,FALSE)) -> 0 | U30: =IFERROR(IF($A30="",0,VLOOKUP($B30,pitchersL14!$B:AP,12,FALSE)),0) -> 0 | V30: =IFERROR(IF($A30="",0,VLOOKUP($B30,pitchersL14!$B:AQ,20,FALSE)),"---") -> 0 | W30: =IFERROR(IF($A30="",0,VLOOKUP($B30,pitchersL14!$B:AR,38,FALSE)),0) -> 0 | X30: =IFERROR(IF($A30="",0,IF($N30="home",VLOOKUP('Pitcher temp'!$CP30,'P-home'!$B:AF,7,FALSE),VLOOKUP('Pitcher temp'!$CP30,'P-road'!$B:AF,7,FALSE))),"") -> 0 | Y30: =IFERROR(IF($A30="",0,IF($N30="home",VLOOKUP('Pitcher temp'!$CP30,'P-home'!$B:AG,31,FALSE),VLOOKUP('Pitcher temp'!$CP30,'P-road'!$B:AG,31,FALSE))),"") -> 0 | Z30: =IF($A30="",0,INDEX('Team B L7'!$A:$A,MATCH('Pitcher temp'!$AG30,'Team B L7'!$B:$B,0),0)) -> 0 | AA30: =IF($A30="",0,INDEX('Team B L7'!$O:$O,MATCH('Pitcher temp'!$AG30,'Team B L7'!$B:$B,0),0)) -> 0 | AB30: =INDEX(team!C:C,MATCH('Pitcher temp'!M30,team!B:B,0),0) ->  | AC30: =IF(Q30="R",INDEX(TeamBVR!A:A,MATCH('Pitcher temp'!AB30,TeamBVR!B:B,0),0),INDEX(TeamBVL!A:A,MATCH('Pitcher temp'!AB30,TeamBVR!B:B,0),0)) ->  | AD30: =IF($Q30="R",INDEX(TeamBVR!$O:$O,MATCH('Pitcher temp'!$AB30,TeamBVR!$B:$B,0),0),INDEX(TeamBVL!$O:$O,MATCH('Pitcher temp'!$AB30,TeamBVR!$B:$B,0),0)) ->  | AE30: =IF($A30="","",IF($N30="home",INDEX(TeamBroad!$A:$A,MATCH('Pitcher temp'!$AG30,TeamBroad!$B:$B,0),0),INDEX(TeamBhome!$A:$A,MATCH('Pitcher temp'!$AG30,TeamBhome!$B:$B,0),0))) ->  | AF30: =IF($A30="","",IF($N30="home",INDEX(TeamBroad!$O:$O,MATCH('Pitcher temp'!$AG30,TeamBroad!$B:$B,0),0),INDEX(TeamBroad!$O:$O,MATCH('Pitcher temp'!$AG30,TeamBroad!$B:$B,0),0))) ->  | AG30: =IF(A30="","",VLOOKUP(M30,team!B:C,2,FALSE)) ->  | AH30: =IF(N30="home",VLOOKUP(L30,team!B:C,2,FALSE),VLOOKUP('Pitcher temp'!M30,team!B:C,2,FALSE)) ->  | AI30: =VLOOKUP($AH30,team!$E:G,3,FALSE) ->  | AJ30: =VLOOKUP($AH30,team!$E:H,2,FALSE) ->  | AK30: =VLOOKUP($AH30,team!$E:I,4,FALSE) ->  | AL30: =VLOOKUP($AH30,team!$J:P,2,FALSE) ->  | AM30: =VLOOKUP($AH30,team!$J:Q,4,FALSE) ->  | AN30: =VLOOKUP(AH30,team!C:O,13,FALSE) ->  | AO30: =INDEX(weather!$F:$F,MATCH('Pitcher temp'!$AN30,weather!$B:$B,0),0) ->  | AP30: =INDEX(weather!$F:$F,(MATCH('Pitcher temp'!$AN30,weather!$B:$B,0))+1,0) ->  | AU30: =IF($V30>9,Projections!$H$4,IF('Pitcher temp'!$V30>5,Projections!$H$5,IF('Pitcher temp'!$V30<1.8,Projections!$H$6,0))) -> 0.12 | AV30: =IF($Z30<6,Projections!$H$9,IF($Z30>24,Projections!$H$10,0)) -> -0.12 | AW30: =IF($AC30<6,Projections!$H$13,IF($AC30>24,Projections!$H$14,0)) ->  | AX30: =IF($AE30<6,Projections!$H$17,IF($AE30>24,Projections!$H$18,0)) -> 0.07 | AY30: =IF($AJ30<6,Projections!$H$21,IF($AJ30>24,Projections!$H$22,0)) ->  | AZ30: =IF($P30>9.5,Projections!$H$25,IF('Pitcher temp'!$P30>8,Projections!$H$26,IF(AND('Pitcher temp'!$P30<7,'Pitcher temp'!$P30>1),Projections!$H$27,0))) -> -0.15 | BA30: =IF($O30<-190,Projections!$H$30,IF('Pitcher temp'!$O30<-149,Projections!$H$31,IF('Pitcher temp'!$O30>145,Projections!$H$32,0)))+(IF($BI30<7,Projections!$H$35,IF($BI30>23,Projections!$H$36,0))) -> 0.12 | BB30: =IF($V30>9,Projections!$I$4,IF('Pitcher temp'!$V30>5,Projections!$I$5,IF('Pitcher temp'!$V30<1.8,Projections!$I$6,0))) -> 0 | BC30: =IF($Z30<6,Projections!$I$9,IF($Z30>24,Projections!$I$10,0)) -> 0 | BD30: =IF($AC30<6,Projections!$I$13,IF($AC30>24,Projections!$I$14,0)) ->  | BE30: =IF($AE30<6,Projections!$I$17,IF($AE30>24,Projections!$I$18,0)) -> 0 | BF30: =IF($AJ30<6,Projections!$I$21,IF($AJ30>24,Projections!$I$22,0)) ->  | BG30: =IF($P30>9.5,Projections!$I$25,IF('Pitcher temp'!$P30>8,Projections!$I$26,IF(AND('Pitcher temp'!$P30<7,'Pitcher temp'!$P30>1),Projections!$I$27,0))) -> 0 | BH30: =IF($O30<-190,Projections!$I$30,IF('Pitcher temp'!$O30<-149,Projections!$I$31,IF('Pitcher temp'!$O30>145,Projections!$I$32,0)))+(IF($BI30<7,Projections!$I$35,IF($BI30>23,Projections!$I$36,0))) -> 0 | BI30: =IF(A30="",0,INDEX(teamk!A:A,MATCH('Pitcher temp'!AB30,teamk!B:B,0),0)) -> 0 | BJ30: =IF($A30="",0,VLOOKUP($B30,pitchers!$B:CE,35,FALSE)) -> 0 | BK30: =IF($A30="",0,VLOOKUP($B30,pitchers!$B:CF,40,FALSE)) -> 0 | BL30: =IFERROR(IF($A30="",0,VLOOKUP($CO30,FG!$N:BH,6,FALSE)),0) -> 0 | BM30: =IFERROR(IF($A30="",0,VLOOKUP($CO30,FG!$AP:BI,6,FALSE)),0) -> 0 | BN30: =VLOOKUP(B30,'batters-temp'!V:CG,64,FALSE) ->  | BO30: =IFERROR(IF($A30="",0,VLOOKUP($CP30,PVLHB!$B:AQ,42,FALSE)),0) -> 0 | BP30: =IFERROR(IF($A30="",0,VLOOKUP($CP30,PVRHB!$B:AR,42,FALSE)),0) -> 0 | BQ30: =IFERROR(IF($A30="",0,VLOOKUP($B30,PVLHB!$B:AS,43,FALSE)),0) -> 0 | BR30: =IFERROR(IF($A30="",0,VLOOKUP($B30,PVRHB!$B:AT,43,FALSE)),0) -> 0 | BS30: =IFERROR(IF($A30="",0,IF($N30="home",VLOOKUP('Pitcher temp'!$CP30,'P-home'!$B:BZ,32,FALSE),VLOOKUP('Pitcher temp'!$CP30,'P-road'!$B:BZ,32,FALSE))),"") -> 0 | BT30: =IFERROR(IF($A30="",0,IF($N30="home",VLOOKUP('Pitcher temp'!$CP30,'P-home'!$B:CA,33,FALSE),VLOOKUP('Pitcher temp'!$CP30,'P-road'!$B:CA,33,FALSE))),"") -> 0 | BU30: =IF(N30="Home",VLOOKUP(M30,team!B:D,3,FALSE),VLOOKUP('Pitcher temp'!BV30,team!B:D,3,FALSE)) ->  | BV30: =VLOOKUP(C30,team!A:B,2,FALSE) ->  | BW30: =IF(A30="",0,VLOOKUP($BU30,weather4!$T:AA,2,FALSE)) -> 0 | BX30: =VLOOKUP($BU30,weather4!$T:AB,3,FALSE) ->  | BY30: =IF(A30="",0,VLOOKUP($BU30,weather4!$T:AC,4,FALSE)) -> 0 | BZ30: =VLOOKUP($BU30,weather4!$T:AD,5,FALSE) ->  | CA30: =VLOOKUP($BU30,weather4!$T:AE,6,FALSE) ->  | CB30: =VLOOKUP($BU30,weather4!$T:AF,7,FALSE) ->  | CC30: =VLOOKUP($BU30,weather4!$T:AG,8,FALSE) ->  | CD30: =IFERROR(IF($A30="",0,VLOOKUP($CO30,PVLHB2014!$AX:BZ,6,FALSE)),0) -> 0 | CE30: =IFERROR(IF($A30="",0,VLOOKUP($CO30,PVRHB2014!$AW:CA,6,FALSE)),0) -> 0 | CF30: =INDEX(team!A:A,(MATCH('Pitcher temp'!M30,team!B:B,0))) ->  | CG30: =IFERROR(IF($A30="",0,VLOOKUP($B30,PVLHB!$B:BJ,44,FALSE)),0) -> 0 | CH30: =IFERROR(IF($A30="",0,VLOOKUP($B30,PVRHB!$B:BJ,44,FALSE)),0) -> 0 | CI30: =IFERROR(IF($A30="",0,VLOOKUP($CO30,PVLHB2014!$AX:CE,9,FALSE)),0) -> 0 | CJ30: =IFERROR(IF($A30="",0,VLOOKUP($CO30,PVRHB2014!$AW:CF,9,FALSE)),0) -> 0 | CK30: =IFERROR(IF($A30="",0,VLOOKUP($CO30,FG!$N:CG,10,FALSE)),0) -> 0 | CL30: =IFERROR(IF($A30="",0,VLOOKUP($CO30,FG!$AP:CH,10,FALSE)),0) -> 0 | CM30: =IFERROR(IF($A30="",0,VLOOKUP($CO30,FG!$A:CI,8,FALSE)),0) -> 0 | CN30: =IFERROR(IF($A30="",0,VLOOKUP($CO30,FG!$A:CJ,10,FALSE)),0) -> 0 | CO30: =IF($B30="","",VLOOKUP($B30,names!$J:AB,7,FALSE)) ->  | CP30: =IF($B30="","",VLOOKUP($B30,names!$J:AB,8,FALSE)) ->  | CQ30: 0 | CR30: 0 | CS30: 0 | CT30: 0
A31: =IF(OR('FD pit'!$C33="",'FD pit'!$C33="Name"),"",'FD pit'!$C33) ->  | B31: =IF(A31="","",VLOOKUP(A31,names!F:G,2,FALSE)) ->  | C31: =IF($A31="","",VLOOKUP($A31,'FD pit'!$C:P,4,FALSE)) ->  | D31: =IF($A31="",0,VLOOKUP($A31,'FD pit'!$C:AP,5,FALSE)) -> 0 | E31: =IF($A31="",0,VLOOKUP($A31,'FD pit'!$C:AQ,MATCH("/GP",'FD pit'!$C$4:$N$4,0),FALSE)) -> 0 | F31: =IF($A31="",0,VLOOKUP($A31,'FD pit'!$C:AR,MATCH("/GP",'FD pit'!$C$4:$N$4,0)+2,FALSE)) -> 0 | G31: =IF($A31="",0,VLOOKUP($A31,'FD pit'!$C:AS,MATCH("/GP",'FD pit'!$C$4:$N$4,0)+3,FALSE)) -> 0 | H31: =IFERROR(VLOOKUP($A31,'DK pit'!$C:R,5,FALSE),0) -> 0 | I31: =IFERROR(VLOOKUP($A31,'DK pit'!$C:S,MATCH("/GP",'DK pit'!$C$4:$N$4,0),FALSE),0) -> 0 | J31: =IFERROR(VLOOKUP($A31,'DK pit'!$C:T,MATCH("/GP",'FD pit'!$C$4:$N$4,0)+2,FALSE),0) -> 0 | K31: =IFERROR(VLOOKUP($A31,'DK pit'!$C:U,MATCH("/GP",'DK pit'!$C$4:$N$4,0)+3,FALSE),0) -> 0 | L31: =IFERROR(VLOOKUP(C31,team!A:B,2,FALSE),"") ->  | M31: =IFERROR(VLOOKUP(L31,Games!A:B,2,FALSE),"") ->  | N31: =IFERROR(VLOOKUP($L31,Games!$A:C,3,FALSE),"") ->  | O31: =IF(A31="",0,IFERROR(VALUE(IFERROR(VLOOKUP($L31,Games!$A:F,4,FALSE),"")),110)) -> 0 | P31: =IFERROR(VALUE(LEFT(VLOOKUP($L31,Games!$A:E,5,FALSE),4)),"") ->  | Q31: =VLOOKUP(B31,names!J:M,4,FALSE) ->  | R31: =IFERROR(IF($A31="",0,VLOOKUP($B31,pitchers!$B:AM,12,FALSE)),"") -> 0 | S31: =IF($A31="",0,VLOOKUP($B31,pitchers!$B:AN,20,FALSE)) -> 0 | T31: =IF($A31="",0,VLOOKUP($B31,pitchers!$B:AO,38,FALSE)) -> 0 | U31: =IFERROR(IF($A31="",0,VLOOKUP($B31,pitchersL14!$B:AP,12,FALSE)),0) -> 0 | V31: =IFERROR(IF($A31="",0,VLOOKUP($B31,pitchersL14!$B:AQ,20,FALSE)),"---") -> 0 | W31: =IFERROR(IF($A31="",0,VLOOKUP($B31,pitchersL14!$B:AR,38,FALSE)),0) -> 0 | X31: =IFERROR(IF($A31="",0,IF($N31="home",VLOOKUP('Pitcher temp'!$CP31,'P-home'!$B:AF,7,FALSE),VLOOKUP('Pitcher temp'!$CP31,'P-road'!$B:AF,7,FALSE))),"") -> 0 | Y31: =IFERROR(IF($A31="",0,IF($N31="home",VLOOKUP('Pitcher temp'!$CP31,'P-home'!$B:AG,31,FALSE),VLOOKUP('Pitcher temp'!$CP31,'P-road'!$B:AG,31,FALSE))),"") -> 0 | Z31: =IF($A31="",0,INDEX('Team B L7'!$A:$A,MATCH('Pitcher temp'!$AG31,'Team B L7'!$B:$B,0),0)) -> 0 | AA31: =IF($A31="",0,INDEX('Team B L7'!$O:$O,MATCH('Pitcher temp'!$AG31,'Team B L7'!$B:$B,0),0)) -> 0 | AB31: =INDEX(team!C:C,MATCH('Pitcher temp'!M31,team!B:B,0),0) ->  | AC31: =IF(Q31="R",INDEX(TeamBVR!A:A,MATCH('Pitcher temp'!AB31,TeamBVR!B:B,0),0),INDEX(TeamBVL!A:A,MATCH('Pitcher temp'!AB31,TeamBVR!B:B,0),0)) ->  | AD31: =IF($Q31="R",INDEX(TeamBVR!$O:$O,MATCH('Pitcher temp'!$AB31,TeamBVR!$B:$B,0),0),INDEX(TeamBVL!$O:$O,MATCH('Pitcher temp'!$AB31,TeamBVR!$B:$B,0),0)) ->  | AE31: =IF($A31="","",IF($N31="home",INDEX(TeamBroad!$A:$A,MATCH('Pitcher temp'!$AG31,TeamBroad!$B:$B,0),0),INDEX(TeamBhome!$A:$A,MATCH('Pitcher temp'!$AG31,TeamBhome!$B:$B,0),0))) ->  | AF31: =IF($A31="","",IF($N31="home",INDEX(TeamBroad!$O:$O,MATCH('Pitcher temp'!$AG31,TeamBroad!$B:$B,0),0),INDEX(TeamBroad!$O:$O,MATCH('Pitcher temp'!$AG31,TeamBroad!$B:$B,0),0))) ->  | AG31: =IF(A31="","",VLOOKUP(M31,team!B:C,2,FALSE)) ->  | AH31: =IF(N31="home",VLOOKUP(L31,team!B:C,2,FALSE),VLOOKUP('Pitcher temp'!M31,team!B:C,2,FALSE)) ->  | AI31: =VLOOKUP($AH31,team!$E:G,3,FALSE) ->  | AJ31: =VLOOKUP($AH31,team!$E:H,2,FALSE) ->  | AK31: =VLOOKUP($AH31,team!$E:I,4,FALSE) ->  | AL31: =VLOOKUP($AH31,team!$J:P,2,FALSE) ->  | AM31: =VLOOKUP($AH31,team!$J:Q,4,FALSE) ->  | AN31: =VLOOKUP(AH31,team!C:O,13,FALSE) ->  | AO31: =INDEX(weather!$F:$F,MATCH('Pitcher temp'!$AN31,weather!$B:$B,0),0) ->  | AP31: =INDEX(weather!$F:$F,(MATCH('Pitcher temp'!$AN31,weather!$B:$B,0))+1,0) ->  | AU31: =IF($V31>9,Projections!$H$4,IF('Pitcher temp'!$V31>5,Projections!$H$5,IF('Pitcher temp'!$V31<1.8,Projections!$H$6,0))) -> 0.12 | AV31: =IF($Z31<6,Projections!$H$9,IF($Z31>24,Projections!$H$10,0)) -> -0.12 | AW31: =IF($AC31<6,Projections!$H$13,IF($AC31>24,Projections!$H$14,0)) ->  | AX31: =IF($AE31<6,Projections!$H$17,IF($AE31>24,Projections!$H$18,0)) -> 0.07 | AY31: =IF($AJ31<6,Projections!$H$21,IF($AJ31>24,Projections!$H$22,0)) ->  | AZ31: =IF($P31>9.5,Projections!$H$25,IF('Pitcher temp'!$P31>8,Projections!$H$26,IF(AND('Pitcher temp'!$P31<7,'Pitcher temp'!$P31>1),Projections!$H$27,0))) -> -0.15 | BA31: =IF($O31<-190,Projections!$H$30,IF('Pitcher temp'!$O31<-149,Projections!$H$31,IF('Pitcher temp'!$O31>145,Projections!$H$32,0)))+(IF($BI31<7,Projections!$H$35,IF($BI31>23,Projections!$H$36,0))) -> 0.12 | BB31: =IF($V31>9,Projections!$I$4,IF('Pitcher temp'!$V31>5,Projections!$I$5,IF('Pitcher temp'!$V31<1.8,Projections!$I$6,0))) -> 0 | BC31: =IF($Z31<6,Projections!$I$9,IF($Z31>24,Projections!$I$10,0)) -> 0 | BD31: =IF($AC31<6,Projections!$I$13,IF($AC31>24,Projections!$I$14,0)) ->  | BE31: =IF($AE31<6,Projections!$I$17,IF($AE31>24,Projections!$I$18,0)) -> 0 | BF31: =IF($AJ31<6,Projections!$I$21,IF($AJ31>24,Projections!$I$22,0)) ->  | BG31: =IF($P31>9.5,Projections!$I$25,IF('Pitcher temp'!$P31>8,Projections!$I$26,IF(AND('Pitcher temp'!$P31<7,'Pitcher temp'!$P31>1),Projections!$I$27,0))) -> 0 | BH31: =IF($O31<-190,Projections!$I$30,IF('Pitcher temp'!$O31<-149,Projections!$I$31,IF('Pitcher temp'!$O31>145,Projections!$I$32,0)))+(IF($BI31<7,Projections!$I$35,IF($BI31>23,Projections!$I$36,0))) -> 0 | BI31: =IF(A31="",0,INDEX(teamk!A:A,MATCH('Pitcher temp'!AB31,teamk!B:B,0),0)) -> 0 | BJ31: =IF($A31="",0,VLOOKUP($B31,pitchers!$B:CE,35,FALSE)) -> 0 | BK31: =IF($A31="",0,VLOOKUP($B31,pitchers!$B:CF,40,FALSE)) -> 0 | BL31: =IFERROR(IF($A31="",0,VLOOKUP($CO31,FG!$N:BH,6,FALSE)),0) -> 0 | BM31: =IFERROR(IF($A31="",0,VLOOKUP($CO31,FG!$AP:BI,6,FALSE)),0) -> 0 | BN31: =VLOOKUP(B31,'batters-temp'!V:CG,64,FALSE) ->  | BO31: =IFERROR(IF($A31="",0,VLOOKUP($CP31,PVLHB!$B:AQ,42,FALSE)),0) -> 0 | BP31: =IFERROR(IF($A31="",0,VLOOKUP($CP31,PVRHB!$B:AR,42,FALSE)),0) -> 0 | BQ31: =IFERROR(IF($A31="",0,VLOOKUP($B31,PVLHB!$B:AS,43,FALSE)),0) -> 0 | BR31: =IFERROR(IF($A31="",0,VLOOKUP($B31,PVRHB!$B:AT,43,FALSE)),0) -> 0 | BS31: =IFERROR(IF($A31="",0,IF($N31="home",VLOOKUP('Pitcher temp'!$CP31,'P-home'!$B:BZ,32,FALSE),VLOOKUP('Pitcher temp'!$CP31,'P-road'!$B:BZ,32,FALSE))),"") -> 0 | BT31: =IFERROR(IF($A31="",0,IF($N31="home",VLOOKUP('Pitcher temp'!$CP31,'P-home'!$B:CA,33,FALSE),VLOOKUP('Pitcher temp'!$CP31,'P-road'!$B:CA,33,FALSE))),"") -> 0 | BU31: =IF(N31="Home",VLOOKUP(M31,team!B:D,3,FALSE),VLOOKUP('Pitcher temp'!BV31,team!B:D,3,FALSE)) ->  | BV31: =VLOOKUP(C31,team!A:B,2,FALSE) ->  | BW31: =IF(A31="",0,VLOOKUP($BU31,weather4!$T:AA,2,FALSE)) -> 0 | BX31: =VLOOKUP($BU31,weather4!$T:AB,3,FALSE) ->  | BY31: =IF(A31="",0,VLOOKUP($BU31,weather4!$T:AC,4,FALSE)) -> 0 | BZ31: =VLOOKUP($BU31,weather4!$T:AD,5,FALSE) ->  | CA31: =VLOOKUP($BU31,weather4!$T:AE,6,FALSE) ->  | CB31: =VLOOKUP($BU31,weather4!$T:AF,7,FALSE) ->  | CC31: =VLOOKUP($BU31,weather4!$T:AG,8,FALSE) ->  | CD31: =IFERROR(IF($A31="",0,VLOOKUP($CO31,PVLHB2014!$AX:BZ,6,FALSE)),0) -> 0 | CE31: =IFERROR(IF($A31="",0,VLOOKUP($CO31,PVRHB2014!$AW:CA,6,FALSE)),0) -> 0 | CF31: =INDEX(team!A:A,(MATCH('Pitcher temp'!M31,team!B:B,0))) ->  | CG31: =IFERROR(IF($A31="",0,VLOOKUP($B31,PVLHB!$B:BJ,44,FALSE)),0) -> 0 | CH31: =IFERROR(IF($A31="",0,VLOOKUP($B31,PVRHB!$B:BJ,44,FALSE)),0) -> 0 | CI31: =IFERROR(IF($A31="",0,VLOOKUP($CO31,PVLHB2014!$AX:CE,9,FALSE)),0) -> 0 | CJ31: =IFERROR(IF($A31="",0,VLOOKUP($CO31,PVRHB2014!$AW:CF,9,FALSE)),0) -> 0 | CK31: =IFERROR(IF($A31="",0,VLOOKUP($CO31,FG!$N:CG,10,FALSE)),0) -> 0 | CL31: =IFERROR(IF($A31="",0,VLOOKUP($CO31,FG!$AP:CH,10,FALSE)),0) -> 0 | CM31: =IFERROR(IF($A31="",0,VLOOKUP($CO31,FG!$A:CI,8,FALSE)),0) -> 0 | CN31: =IFERROR(IF($A31="",0,VLOOKUP($CO31,FG!$A:CJ,10,FALSE)),0) -> 0 | CO31: =IF($B31="","",VLOOKUP($B31,names!$J:AB,7,FALSE)) ->  | CP31: =IF($B31="","",VLOOKUP($B31,names!$J:AB,8,FALSE)) ->  | CQ31: 0 | CR31: 0 | CS31: 0 | CT31: 0
A32: =IF(OR('FD pit'!$C34="",'FD pit'!$C34="Name"),"",'FD pit'!$C34) ->  | B32: =IF(A32="","",VLOOKUP(A32,names!F:G,2,FALSE)) ->  | C32: =IF($A32="","",VLOOKUP($A32,'FD pit'!$C:P,4,FALSE)) ->  | D32: =IF($A32="",0,VLOOKUP($A32,'FD pit'!$C:AP,5,FALSE)) -> 0 | E32: =IF($A32="",0,VLOOKUP($A32,'FD pit'!$C:AQ,MATCH("/GP",'FD pit'!$C$4:$N$4,0),FALSE)) -> 0 | F32: =IF($A32="",0,VLOOKUP($A32,'FD pit'!$C:AR,MATCH("/GP",'FD pit'!$C$4:$N$4,0)+2,FALSE)) -> 0 | G32: =IF($A32="",0,VLOOKUP($A32,'FD pit'!$C:AS,MATCH("/GP",'FD pit'!$C$4:$N$4,0)+3,FALSE)) -> 0 | H32: =IFERROR(VLOOKUP($A32,'DK pit'!$C:R,5,FALSE),0) -> 0 | I32: =IFERROR(VLOOKUP($A32,'DK pit'!$C:S,MATCH("/GP",'DK pit'!$C$4:$N$4,0),FALSE),0) -> 0 | J32: =IFERROR(VLOOKUP($A32,'DK pit'!$C:T,MATCH("/GP",'FD pit'!$C$4:$N$4,0)+2,FALSE),0) -> 0 | K32: =IFERROR(VLOOKUP($A32,'DK pit'!$C:U,MATCH("/GP",'DK pit'!$C$4:$N$4,0)+3,FALSE),0) -> 0 | L32: =IFERROR(VLOOKUP(C32,team!A:B,2,FALSE),"") ->  | M32: =IFERROR(VLOOKUP(L32,Games!A:B,2,FALSE),"") ->  | N32: =IFERROR(VLOOKUP($L32,Games!$A:C,3,FALSE),"") ->  | O32: =IF(A32="",0,IFERROR(VALUE(IFERROR(VLOOKUP($L32,Games!$A:F,4,FALSE),"")),110)) -> 0 | P32: =IFERROR(VALUE(LEFT(VLOOKUP($L32,Games!$A:E,5,FALSE),4)),"") ->  | Q32: =VLOOKUP(B32,names!J:M,4,FALSE) ->  | R32: =IFERROR(IF($A32="",0,VLOOKUP($B32,pitchers!$B:AM,12,FALSE)),"") -> 0 | S32: =IF($A32="",0,VLOOKUP($B32,pitchers!$B:AN,20,FALSE)) -> 0 | T32: =IF($A32="",0,VLOOKUP($B32,pitchers!$B:AO,38,FALSE)) -> 0 | U32: =IFERROR(IF($A32="",0,VLOOKUP($B32,pitchersL14!$B:AP,12,FALSE)),0) -> 0 | V32: =IFERROR(IF($A32="",0,VLOOKUP($B32,pitchersL14!$B:AQ,20,FALSE)),"---") -> 0 | W32: =IFERROR(IF($A32="",0,VLOOKUP($B32,pitchersL14!$B:AR,38,FALSE)),0) -> 0 | X32: =IFERROR(IF($A32="",0,IF($N32="home",VLOOKUP('Pitcher temp'!$CP32,'P-home'!$B:AF,7,FALSE),VLOOKUP('Pitcher temp'!$CP32,'P-road'!$B:AF,7,FALSE))),"") -> 0 | Y32: =IFERROR(IF($A32="",0,IF($N32="home",VLOOKUP('Pitcher temp'!$CP32,'P-home'!$B:AG,31,FALSE),VLOOKUP('Pitcher temp'!$CP32,'P-road'!$B:AG,31,FALSE))),"") -> 0 | Z32: =IF($A32="",0,INDEX('Team B L7'!$A:$A,MATCH('Pitcher temp'!$AG32,'Team B L7'!$B:$B,0),0)) -> 0 | AA32: =IF($A32="",0,INDEX('Team B L7'!$O:$O,MATCH('Pitcher temp'!$AG32,'Team B L7'!$B:$B,0),0)) -> 0 | AB32: =INDEX(team!C:C,MATCH('Pitcher temp'!M32,team!B:B,0),0) ->  | AC32: =IF(Q32="R",INDEX(TeamBVR!A:A,MATCH('Pitcher temp'!AB32,TeamBVR!B:B,0),0),INDEX(TeamBVL!A:A,MATCH('Pitcher temp'!AB32,TeamBVR!B:B,0),0)) ->  | AD32: =IF($Q32="R",INDEX(TeamBVR!$O:$O,MATCH('Pitcher temp'!$AB32,TeamBVR!$B:$B,0),0),INDEX(TeamBVL!$O:$O,MATCH('Pitcher temp'!$AB32,TeamBVR!$B:$B,0),0)) ->  | AE32: =IF($A32="","",IF($N32="home",INDEX(TeamBroad!$A:$A,MATCH('Pitcher temp'!$AG32,TeamBroad!$B:$B,0),0),INDEX(TeamBhome!$A:$A,MATCH('Pitcher temp'!$AG32,TeamBhome!$B:$B,0),0))) ->  | AF32: =IF($A32="","",IF($N32="home",INDEX(TeamBroad!$O:$O,MATCH('Pitcher temp'!$AG32,TeamBroad!$B:$B,0),0),INDEX(TeamBroad!$O:$O,MATCH('Pitcher temp'!$AG32,TeamBroad!$B:$B,0),0))) ->  | AG32: =IF(A32="","",VLOOKUP(M32,team!B:C,2,FALSE)) ->  | AH32: =IF(N32="home",VLOOKUP(L32,team!B:C,2,FALSE),VLOOKUP('Pitcher temp'!M32,team!B:C,2,FALSE)) ->  | AI32: =VLOOKUP($AH32,team!$E:G,3,FALSE) ->  | AJ32: =VLOOKUP($AH32,team!$E:H,2,FALSE) ->  | AK32: =VLOOKUP($AH32,team!$E:I,4,FALSE) ->  | AL32: =VLOOKUP($AH32,team!$J:P,2,FALSE) ->  | AM32: =VLOOKUP($AH32,team!$J:Q,4,FALSE) ->  | AN32: =VLOOKUP(AH32,team!C:O,13,FALSE) ->  | AO32: =INDEX(weather!$F:$F,MATCH('Pitcher temp'!$AN32,weather!$B:$B,0),0) ->  | AP32: =INDEX(weather!$F:$F,(MATCH('Pitcher temp'!$AN32,weather!$B:$B,0))+1,0) ->  | AU32: =IF($V32>9,Projections!$H$4,IF('Pitcher temp'!$V32>5,Projections!$H$5,IF('Pitcher temp'!$V32<1.8,Projections!$H$6,0))) -> 0.12 | AV32: =IF($Z32<6,Projections!$H$9,IF($Z32>24,Projections!$H$10,0)) -> -0.12 | AW32: =IF($AC32<6,Projections!$H$13,IF($AC32>24,Projections!$H$14,0)) ->  | AX32: =IF($AE32<6,Projections!$H$17,IF($AE32>24,Projections!$H$18,0)) -> 0.07 | AY32: =IF($AJ32<6,Projections!$H$21,IF($AJ32>24,Projections!$H$22,0)) ->  | AZ32: =IF($P32>9.5,Projections!$H$25,IF('Pitcher temp'!$P32>8,Projections!$H$26,IF(AND('Pitcher temp'!$P32<7,'Pitcher temp'!$P32>1),Projections!$H$27,0))) -> -0.15 | BA32: =IF($O32<-190,Projections!$H$30,IF('Pitcher temp'!$O32<-149,Projections!$H$31,IF('Pitcher temp'!$O32>145,Projections!$H$32,0)))+(IF($BI32<7,Projections!$H$35,IF($BI32>23,Projections!$H$36,0))) -> 0.12 | BB32: =IF($V32>9,Projections!$I$4,IF('Pitcher temp'!$V32>5,Projections!$I$5,IF('Pitcher temp'!$V32<1.8,Projections!$I$6,0))) -> 0 | BC32: =IF($Z32<6,Projections!$I$9,IF($Z32>24,Projections!$I$10,0)) -> 0 | BD32: =IF($AC32<6,Projections!$I$13,IF($AC32>24,Projections!$I$14,0)) ->  | BE32: =IF($AE32<6,Projections!$I$17,IF($AE32>24,Projections!$I$18,0)) -> 0 | BF32: =IF($AJ32<6,Projections!$I$21,IF($AJ32>24,Projections!$I$22,0)) ->  | BG32: =IF($P32>9.5,Projections!$I$25,IF('Pitcher temp'!$P32>8,Projections!$I$26,IF(AND('Pitcher temp'!$P32<7,'Pitcher temp'!$P32>1),Projections!$I$27,0))) -> 0 | BH32: =IF($O32<-190,Projections!$I$30,IF('Pitcher temp'!$O32<-149,Projections!$I$31,IF('Pitcher temp'!$O32>145,Projections!$I$32,0)))+(IF($BI32<7,Projections!$I$35,IF($BI32>23,Projections!$I$36,0))) -> 0 | BI32: =IF(A32="",0,INDEX(teamk!A:A,MATCH('Pitcher temp'!AB32,teamk!B:B,0),0)) -> 0 | BJ32: =IF($A32="",0,VLOOKUP($B32,pitchers!$B:CE,35,FALSE)) -> 0 | BK32: =IF($A32="",0,VLOOKUP($B32,pitchers!$B:CF,40,FALSE)) -> 0 | BL32: =IFERROR(IF($A32="",0,VLOOKUP($CO32,FG!$N:BH,6,FALSE)),0) -> 0 | BM32: =IFERROR(IF($A32="",0,VLOOKUP($CO32,FG!$AP:BI,6,FALSE)),0) -> 0 | BN32: =VLOOKUP(B32,'batters-temp'!V:CG,64,FALSE) ->  | BO32: =IFERROR(IF($A32="",0,VLOOKUP($CP32,PVLHB!$B:AQ,42,FALSE)),0) -> 0 | BP32: =IFERROR(IF($A32="",0,VLOOKUP($CP32,PVRHB!$B:AR,42,FALSE)),0) -> 0 | BQ32: =IFERROR(IF($A32="",0,VLOOKUP($B32,PVLHB!$B:AS,43,FALSE)),0) -> 0 | BR32: =IFERROR(IF($A32="",0,VLOOKUP($B32,PVRHB!$B:AT,43,FALSE)),0) -> 0 | BS32: =IFERROR(IF($A32="",0,IF($N32="home",VLOOKUP('Pitcher temp'!$CP32,'P-home'!$B:BZ,32,FALSE),VLOOKUP('Pitcher temp'!$CP32,'P-road'!$B:BZ,32,FALSE))),"") -> 0 | BT32: =IFERROR(IF($A32="",0,IF($N32="home",VLOOKUP('Pitcher temp'!$CP32,'P-home'!$B:CA,33,FALSE),VLOOKUP('Pitcher temp'!$CP32,'P-road'!$B:CA,33,FALSE))),"") -> 0 | BU32: =IF(N32="Home",VLOOKUP(M32,team!B:D,3,FALSE),VLOOKUP('Pitcher temp'!BV32,team!B:D,3,FALSE)) ->  | BV32: =VLOOKUP(C32,team!A:B,2,FALSE) ->  | BW32: =IF(A32="",0,VLOOKUP($BU32,weather4!$T:AA,2,FALSE)) -> 0 | BX32: =VLOOKUP($BU32,weather4!$T:AB,3,FALSE) ->  | BY32: =IF(A32="",0,VLOOKUP($BU32,weather4!$T:AC,4,FALSE)) -> 0 | BZ32: =VLOOKUP($BU32,weather4!$T:AD,5,FALSE) ->  | CA32: =VLOOKUP($BU32,weather4!$T:AE,6,FALSE) ->  | CB32: =VLOOKUP($BU32,weather4!$T:AF,7,FALSE) ->  | CC32: =VLOOKUP($BU32,weather4!$T:AG,8,FALSE) ->  | CD32: =IFERROR(IF($A32="",0,VLOOKUP($CO32,PVLHB2014!$AX:BZ,6,FALSE)),0) -> 0 | CE32: =IFERROR(IF($A32="",0,VLOOKUP($CO32,PVRHB2014!$AW:CA,6,FALSE)),0) -> 0 | CF32: =INDEX(team!A:A,(MATCH('Pitcher temp'!M32,team!B:B,0))) ->  | CG32: =IFERROR(IF($A32="",0,VLOOKUP($B32,PVLHB!$B:BJ,44,FALSE)),0) -> 0 | CH32: =IFERROR(IF($A32="",0,VLOOKUP($B32,PVRHB!$B:BJ,44,FALSE)),0) -> 0 | CI32: =IFERROR(IF($A32="",0,VLOOKUP($CO32,PVLHB2014!$AX:CE,9,FALSE)),0) -> 0 | CJ32: =IFERROR(IF($A32="",0,VLOOKUP($CO32,PVRHB2014!$AW:CF,9,FALSE)),0) -> 0 | CK32: =IFERROR(IF($A32="",0,VLOOKUP($CO32,FG!$N:CG,10,FALSE)),0) -> 0 | CL32: =IFERROR(IF($A32="",0,VLOOKUP($CO32,FG!$AP:CH,10,FALSE)),0) -> 0 | CM32: =IFERROR(IF($A32="",0,VLOOKUP($CO32,FG!$A:CI,8,FALSE)),0) -> 0 | CN32: =IFERROR(IF($A32="",0,VLOOKUP($CO32,FG!$A:CJ,10,FALSE)),0) -> 0 | CO32: =IF($B32="","",VLOOKUP($B32,names!$J:AB,7,FALSE)) ->  | CP32: =IF($B32="","",VLOOKUP($B32,names!$J:AB,8,FALSE)) ->  | CQ32: 0 | CR32: 0 | CS32: 0 | CT32: 0
